Workbook

Sheet Menu
A4: ='Business Details'!B4 -> SEQ INTERIM REVENUE MONITORING - INFORMATION REQUIREMENT TEMPLATE
L8: Please note that the macro in the intermediate input sheets workbook uses the original filenames for both this templates workbook and itself. Therefore, if you wish to save this workbook under a different filename, please do so ONLY AFTER FILLING OUT THE TEMPLATES AND THE MACRO IN THE INTERMEDIATE INPUT SHEETS HAS BEEN RUN, otherwise the macro will not function properly. Please note that the revenue model should also be open before you save either this templates workbook or the intermediate input sheets under a different name, as the pricing model has links to both these workbooks.

Sheet Format Guide
B5: ='Business Details'!B4 -> SEQ INTERIM REVENUE MONITORING - INFORMATION REQUIREMENT TEMPLATE
B6: FORMAT GUIDE
B8: PROJECT FILE: | E8: Information Requirement Template
B10: VERSION AND STATUS OF MODEL: | E10: Version 1.0
B12: DATE OF MODEL: | E12: =NOW() -> 2012-09-24T13:00:31.400
B19: SPREADSHEET FORMATTING PROTOCOLS
B21: Column headings | D21: 2010/11
B23: Hard coded cells (assumptions, data inputs, and value-copied cells) | D23: 15246 | F23: List Box
B25: Row formula different to others | D25: 100 | F25: Macro button (navigation)
B27: Calculated Cell | D27: 15246
B29: Sub-total | D29: 300.51
B31: Total (eg maximum revenue requirement) | D31: 250.86

Sheet Business Details
B4: SEQ INTERIM REVENUE MONITORING - INFORMATION REQUIREMENT TEMPLATE
B7: Business Details | I7: Supporting Documents
B9: Business name | D9: Northern SEQ Distributor-Retailer Authority (trading as Unitywater ABN: 89 791 717 472)
B11: Geographical areas
C12: 1 | D12: Moreton Bay Regional Council
C13: 2 | D13: Sunshine Coast Regional Council
C14: 3 | D14: N/A
C15: 4 | D15: N/A
C16: 5 | D16: N/A
B18: Are additional geographic areas used? | D18: No | G18: If yes, please provide supporting information.
B20: Analysis Years
B22: Period of information requirement | D22: Year ending 30 June:
C23: Start date | D23: 2009
C24: Smoothing Period - Start Year | D24: N/A
C25: Smoothing Period - End year Year | D25: N/A
C26: Reporting year | D26: 2013
B28: Indexation rates | E28: Year Ending 30 June:
E29: =StartDate -> 2009 | F29: =E29+1 -> 2010 | G29: =F29+1 -> 2011 | H29: =G29+1 -> 2012 | I29: =H29+1 -> 2013 | J29: =CONCATENATE(I29+1," onwards") -> 2014 onwards | K29: Supporting Documents
B30: Indexation rates
C31: Annual Indexation rate | D31: % pa | E31: =[6]Data1!$CT$254 -> 0.02019002375 | F31: =[6]Data1!$CT$258 -> 0.03201396973 | G31: =[6]Data1!$CT$262 -> 0.03835307389 | H31: =[6]Data1!$CT$265 -> 0.01316511245 | I31: =[6]Data1!$CT$269 -> 0.0248 | J31: =[6]Data1!$CT$270 -> 0.0248 | K31: ..\..\Work Papers\RAB Indexation\640103 ABS CPI all groups capital cities saved 5 June 2012.xls
B37: Asset Class Details | I37: Supporting Documents
B39: Asset classes
C40: 1 | D40: ='[7]Business Details'!$D$40 -> Reservoirs
C41: 2 | D41: ='[7]Business Details'!$D$41 -> Pump stations
C42: 3 | D42: ='[7]Business Details'!$D$42 -> Treatment
C43: 4 | D43: ='[7]Business Details'!$D$43 -> Associated telemetry and control systems
C44: 5 | D44: ='[7]Business Details'!$D$44 -> Meters
C45: 6 | D45: ='[7]Business Details'!$D$45 -> Billing systems
C46: 7 | D46: ='[7]Business Details'!$D$46 -> Corporate systems
C47: 8 | D47: ='[7]Business Details'!$D$47 -> Sundry property, plant and equipment
C48: 9 | D48: ='[7]Business Details'!$D$48 -> Land
C49: 10 | D49: ='[7]Business Details'!$D$49 -> Building other than infrastructure housing
C50: 11 | D50: ='[7]Business Details'!$D$50 -> Distribution infrastructure not included in another category
C51: 12 | D51: ='[7]Business Details'!$D$51 -> Support services
C52: 13 | D52: ='[7]Business Details'!$D$52 -> Mains
C53: 14 | D53: ='[7]Business Details'!$D$53 -> Establishment Costs | I53: N/A
C54: 15 | D54: ='[7]Business Details'!$D$54 -> Unallocated cash contribution

Sheet 3.3
B4: ='Business Details'!$B$4 -> SEQ INTERIM REVENUE MONITORING - INFORMATION REQUIREMENT TEMPLATE
B7: =CONCATENATE("Supporting Documents for ",'Business Details'!$D$9) -> Supporting Documents for Northern SEQ Distributor-Retailer Authority (trading as Unitywater ABN: 89 791 717 472)
B8: =CONCATENATE("Reporting year = ",AnalysisYear) -> Reporting year = 2013
F10: 0 | G10: 1 | H10: 2
J11: Supporting
J12: Documents | Y12: =X12 -> 
B14: Basis for preparation of historical information:
B16: ='[8]3.3'!B16:H25 -> Where historical information has been provided for the period prior to 1/7/10 this is the same as the previous returns and was the best available information from Council records. The resutls for 2010/11 are from Unitywater's actuals results and where app
B27: Basis for preparation of forecast information:
B29: ='[8]3.3'!B29:H39 -> Forecast data has been prepared on the following basis for capital and operating expenditures. Capital expenditures; Capital expenditure is sourced from the Unitywater five year capital works forecast which provides the forecast capital spend by project
Y235: =X235 -> 

Sheet 5.1.1
B4: ='Business Details'!$B$4 -> SEQ INTERIM REVENUE MONITORING - INFORMATION REQUIREMENT TEMPLATE
B7: =CONCATENATE("Consolidated Statement for ",'Business Details'!$D$9) -> Consolidated Statement for Northern SEQ Distributor-Retailer Authority (trading as Unitywater ABN: 89 791 717 472)
B8: =CONCATENATE("Reporting year = ",AnalysisYear) -> Reporting year = 2013
F12: For Year Ending 30 June: | N12: =CONCATENATE("For Year Ending 30 June ",AnalysisYear,":") -> For Year Ending 30 June 2013:
C13: Account heading | F13: =StartDate -> 2009 | G13: =F13+1 -> 2010 | H13: 2011 | I13: 2012 | J13: 2013 | K13: 2014 | L13: 2015 | N13: Ledger Code | O13: Relevant Notes | P13: Supporting Documents | AG13: =AF13 -> 
C15: Revenues
C16: Revenue from services | E16: $'000 | F16: ='[9]5.1.1'!F16 -> 0 | G16: ='[9]5.1.1'!G16 -> 0 | H16: ='[9]5.1.1'!H16 -> 361215.9534 | I16: ='[9]5.1.1'!I16 -> 415715.3638 | J16: ='[9]5.1.1'!J16 -> 443241.3615 | K16: ='[9]5.1.1'!K16 -> 487931.8225 | L16: ='[9]5.1.1'!L16 -> 534762.522 | P16: ..\..\..\..\Commercial Acctg\QCA Unitywater Submission 2012\LTFM\UW_20120518_LTFM - QCA Reg Submission.xlsx
C17: Investment income | E17: $'000 | F17: ='[9]5.1.1'!F17 -> 0 | G17: ='[9]5.1.1'!G17 -> 0 | H17: ='[9]5.1.1'!H17 -> 2551 | I17: ='[9]5.1.1'!I17 -> 2626.302 | J17: ='[9]5.1.1'!J17 -> 363.173 | K17: ='[9]5.1.1'!K17 -> 375.884055 | L17: ='[9]5.1.1'!L17 -> 388.7582881
C18: Net profit / (loss) from sale of regulatory assets | E18: $'000 | F18: ='[9]5.1.1'!F18 -> 0 | G18: ='[9]5.1.1'!G18 -> 0 | H18: ='[9]5.1.1'!H18 -> 0 | I18: ='[9]5.1.1'!I18 -> 0 | J18: ='[9]5.1.1'!J18 -> 0 | K18: ='[9]5.1.1'!K18 -> 0 | L18: ='[9]5.1.1'!L18 -> 0
C19: Net profit / (loss) from sale of unregulated assets | E19: $'000 | F19: ='[9]5.1.1'!F19 -> 0 | G19: ='[9]5.1.1'!G19 -> 0 | H19: ='[9]5.1.1'!H19 -> 5454 | I19: ='[9]5.1.1'!I19 -> 1481.931 | J19: ='[9]5.1.1'!J19 -> 0 | K19: ='[9]5.1.1'!K19 -> 0 | L19: ='[9]5.1.1'!L19 -> 0
C20: Contributions | E20: $'000 | F20: ='[9]5.1.1'!F20 -> 0 | G20: ='[9]5.1.1'!G20 -> 0 | H20: ='[9]5.1.1'!H20 -> 104483 | I20: ='[9]5.1.1'!I20 -> 65041.301 | J20: ='[9]5.1.1'!J20 -> 65011.383 | K20: ='[9]5.1.1'!K20 -> 66930.25222 | L20: ='[9]5.1.1'!L20 -> 69222.64971
C21: Other 1 - [specify] | E21: $'000
C22: Other 2 - [specify] | E22: $'000
C23: Total Revenue | E23: $'000 | F23: =SUM(F16:F22) -> 0 | G23: 0 | H23: 473703.9534 | I23: 484864.8978 | J23: 508615.9175 | K23: 555237.9588 | L23: =SUM(L16:L22) -> 604373.93
C25: Expenses
C26: Operating expenditure | E26: $'000 | F26: ='[9]5.1.1'!F26 -> 0 | G26: ='[9]5.1.1'!G26 -> 0 | H26: ='[9]5.1.1'!H26 -> 213100.9 | I26: ='[9]5.1.1'!I26 -> 237780.6282 | J26: ='[9]5.1.1'!J26 -> 263026.2687 | K26: ='[9]5.1.1'!K26 -> 296677.6928 | L26: ='[9]5.1.1'!L26 -> 330409.61 | P26: ..\..\..\..\Commercial Acctg\QCA Unitywater Submission 2012\LTFM\UW_20120518_LTFM - QCA Reg Submission.xlsx
C27: Bad debts | E27: $'000 | F27: ='[9]5.1.1'!F27 -> 0 | G27: ='[9]5.1.1'!G27 -> 0 | H27: ='[9]5.1.1'!H27 -> 0 | I27: ='[9]5.1.1'!I27 -> 0 | J27: ='[9]5.1.1'!J27 -> 0 | K27: ='[9]5.1.1'!K27 -> 0 | L27: ='[9]5.1.1'!L27 -> 0
C28: Other 1 - [specify] | E28: $'000 | F28: ='[9]5.1.1'!F28 -> 0 | G28: ='[9]5.1.1'!G28 -> 0 | H28: ='[9]5.1.1'!H28 -> 0 | I28: ='[9]5.1.1'!I28 -> 0 | J28: ='[9]5.1.1'!J28 -> 0 | K28: ='[9]5.1.1'!K28 -> 0 | L28: ='[9]5.1.1'!L28 -> 0
C29: Other 2 - [specify] | E29: $'000 | F29: ='[9]5.1.1'!F29 -> 0 | G29: ='[9]5.1.1'!G29 -> 0 | H29: ='[9]5.1.1'!H29 -> 0 | I29: ='[9]5.1.1'!I29 -> 0 | J29: ='[9]5.1.1'!J29 -> 0 | K29: ='[9]5.1.1'!K29 -> 0 | L29: ='[9]5.1.1'!L29 -> 0
C30: Total Expenses | E30: $'000 | F30: =SUM(F26:F29) -> 0 | G30: 0 | H30: 213100.9 | I30: 237780.6282 | J30: 263026.2687 | K30: 296677.6928 | L30: =SUM(L26:L29) -> 330409.61
C32: Earnings Before Interest, Tax, Depreciation and Amortisation | E32: $'000 | F32: =F23-F30 -> 0 | G32: 0 | H32: 260603.0534 | I32: 247084.2696 | J32: 245589.6488 | K32: 258560.266 | L32: =L23-L30 -> 273964.3199 | P32: ..\..\..\..\Commercial Acctg\QCA Unitywater Submission 2012\LTFM\UW_20120518_LTFM - QCA Reg Submission.xlsx
C34: Depreciation and amortization | E34: $'000 | F34: ='[9]5.1.1'!F34 -> 0 | G34: ='[9]5.1.1'!G34 -> 0 | H34: ='[9]5.1.1'!H34 -> 82909 | I34: ='[9]5.1.1'!I34 -> 85805.745 | J34: ='[9]5.1.1'!J34 -> 76490.10696 | K34: ='[9]5.1.1'!K34 -> 82585.46379 | L34: ='[9]5.1.1'!L34 -> 90828.91746 | P34: ..\..\..\..\Commercial Acctg\QCA Unitywater Submission 2012\LTFM\UW_20120518_LTFM - QCA Reg Submission.xlsx
C35: Earnings Before Interest, and Tax | E35: $'000 | F35: =F32-F34 -> 0 | G35: 0 | H35: 177694.0534 | I35: 161278.5246 | J35: 169099.5418 | K35: 175974.8022 | L35: =L32-L34 -> 183135.4025
C37: Borrowing costs | E37: $'000 | F37: ='[9]5.1.1'!F37 -> 0 | G37: ='[9]5.1.1'!G37 -> 0 | H37: ='[9]5.1.1'!H37 -> 86915.03792 | I37: ='[9]5.1.1'!I37 -> 94157.793 | J37: ='[9]5.1.1'!J37 -> 97887.502 | K37: ='[9]5.1.1'!K37 -> 88277.53031 | L37: ='[9]5.1.1'!L37 -> 93624.63052 | P37: ..\..\..\..\Commercial Acctg\QCA Unitywater Submission 2012\LTFM\UW_20120518_LTFM - QCA Reg Submission.xlsx
C38: Earnings Before Tax | E38: $'000 | F38: =F35-F37 -> 0 | G38: 0 | H38: 90779.01548 | I38: 67120.73161 | J38: 71212.03983 | K38: 87697.2719 | L38: =L35-L37 -> 89510.77194
C40: Tax Expense | E40: $'000 | F40: ='[9]5.1.1'!F40 -> 0 | G40: ='[9]5.1.1'!G40 -> 0 | H40: ='[9]5.1.1'!H40 -> 22134 | I40: ='[9]5.1.1'!I40 -> 9195.406 | J40: ='[9]5.1.1'!J40 -> 10080.518 | K40: ='[9]5.1.1'!K40 -> 14699.82652 | L40: ='[9]5.1.1'!L40 -> 14846.24982 | P40: ..\..\..\..\Commercial Acctg\QCA Unitywater Submission 2012\LTFM\UW_20120518_LTFM - QCA Reg Submission.xlsx
C42: Earnings After Tax | E42: $'000 | F42: =F38-F40 -> 0 | G42: 0 | H42: 68645.01548 | I42: 57925.32561 | J42: 61131.52183 | K42: 72997.44538 | L42: =L38-L40 -> 74664.52212
C44: Dividends paid | E44: $'000 | F44: ='[9]5.1.1'!F44 -> 0 | G44: ='[9]5.1.1'!G44 -> 0 | H44: ='[9]5.1.1'!H44 -> 45000 | I44: ='[9]5.1.1'!I44 -> 45889.361 | J44: ='[9]5.1.1'!J44 -> 44907 | K44: ='[9]5.1.1'!K44 -> 27439.67618 | L44: ='[9]5.1.1'!L44 -> 27712.99966 | P44: ..\..\..\..\Commercial Acctg\QCA Unitywater Submission 2012\LTFM\UW_20120518_LTFM - QCA Reg Submission.xlsx
C46: Retained earnings for year | E46: $'000 | F46: =F42-F44 -> 0 | G46: 0 | H46: 23645.01548 | I46: 12035.96461 | J46: 16224.52183 | K46: 45557.7692 | L46: =L42-L44 -> 46951.52246
C47: Retained earnings brought forward | E47: $'000 | G47: =F49 -> 0 | H47: -13043 | I47: 10602.01548 | J47: 22637.98009 | K47: 38862.50192 | L47: 84420.27112 | P47: ..\..\..\..\Commercial Acctg\QCA Unitywater Submission 2012\LTFM\UW_20120518_LTFM - QCA Reg Submission.xlsx
C48: Movement in retained earnings | E48: $'000 | F48: =F46 -> 0 | G48: 0 | H48: 23645.01548 | I48: 12035.96461 | J48: 16224.52183 | K48: 45557.7692 | L48: =L46 -> 46951.52246
C49: Retained earnings carried forward | E49: $'000 | F49: =F47+F48 -> 0 | G49: ='[9]5.1.1'!G49 -> -13043 | H49: 10602.01548 | I49: 22637.98009 | J49: 38862.50192 | K49: 84420.27112 | L49: =L47+L48 -> 131371.7936
AG246: =AF246 -> 

Sheet 5.1.2
B4: ='Business Details'!$B$4 -> SEQ INTERIM REVENUE MONITORING - INFORMATION REQUIREMENT TEMPLATE
B7: =CONCATENATE("Consolidated Statement for ",'Business Details'!$D$9) -> Consolidated Statement for Northern SEQ Distributor-Retailer Authority (trading as Unitywater ABN: 89 791 717 472)
B8: =CONCATENATE("Reporting year = ",AnalysisYear) -> Reporting year = 2013
F12: ='5.1.1'!F12 -> For Year Ending 30 June: | N12: ='5.1.1'!N12 -> For Year Ending 30 June 2013:
C13: ='5.1.1'!C13 -> Account heading | F13: ='5.1.1'!F13 -> 2009 | G13: ='5.1.1'!G13 -> 2010 | H13: ='5.1.1'!H13 -> 2011 | I13: ='5.1.1'!I13 -> 2012 | J13: ='5.1.1'!J13 -> 2013 | K13: ='5.1.1'!K13 -> 2014 | L13: ='5.1.1'!L13 -> 2015 | N13: Ledger Code | O13: Relevant Notes | P13: Supporting Documents
C15: Current Assets
C17: Cash | E17: $'000 | F17: ='[9]5.1.2'!F17 -> 0 | G17: ='[9]5.1.2'!G17 -> 0 | H17: ='[9]5.1.2'!H17 -> 69707 | I17: ='[9]5.1.2'!I17 -> 25074.70767 | J17: ='[9]5.1.2'!J17 -> 18467.09205 | K17: ='[9]5.1.2'!K17 -> 10349.89409 | L17: ='[9]5.1.2'!L17 -> 10692.09727 | P17: ..\..\..\..\Commercial Acctg\QCA Unitywater Submission 2012\LTFM\UW_20120518_LTFM - QCA Reg Submission.xlsx
C18: Receivables | E18: $'000 | F18: ='[9]5.1.2'!F18 -> 0 | G18: ='[9]5.1.2'!G18 -> 0 | H18: ='[9]5.1.2'!H18 -> 77451 | I18: ='[9]5.1.2'!I18 -> 84399.22142 | J18: ='[9]5.1.2'!J18 -> 56999.2452 | K18: ='[9]5.1.2'!K18 -> 82527.52706 | L18: ='[9]5.1.2'!L18 -> 90464.60079
C19: ='[9]5.1.2'!C19 -> Other - mostly Inventory | E19: $'000 | F19: ='[9]5.1.2'!F19 -> 0 | G19: ='[9]5.1.2'!G19 -> 0 | H19: ='[9]5.1.2'!H19 -> 2886 | I19: ='[9]5.1.2'!I19 -> 3421.86 | J19: ='[9]5.1.2'!J19 -> 3844.94515 | K19: ='[9]5.1.2'!K19 -> 3979.51823 | L19: ='[9]5.1.2'!L19 -> 4115.818891
C20: Total Current Assets | E20: $'000 | F20: =SUM(F17:F19) -> 0 | G20: 0 | H20: 150044 | I20: 112895.7891 | J20: 79311.2824 | K20: 96856.93938 | L20: =SUM(L17:L19) -> 105272.517
C22: Non-Current Assets
C24: Property, plant and equipment | E24: $'000 | F24: ='[9]5.1.2'!F24 -> 0 | G24: ='[9]5.1.2'!G24 -> 0 | H24: ='[9]5.1.2'!H24 -> 2501502 | I24: ='[9]5.1.2'!I24 -> 2704726.38 | J24: ='[9]5.1.2'!J24 -> 2862088.301 | K24: ='[9]5.1.2'!K24 -> 3130138.369 | L24: ='[9]5.1.2'!L24 -> 3304615.444 | P24: ..\..\..\..\Commercial Acctg\QCA Unitywater Submission 2012\LTFM\UW_20120518_LTFM - QCA Reg Submission.xlsx
C25: Deferred tax assets | E25: $'000 | F25: ='[9]5.1.2'!F25 -> 0 | G25: ='[9]5.1.2'!G25 -> 0 | H25: ='[9]5.1.2'!H25 -> 4358 | I25: ='[9]5.1.2'!I25 -> 4498.300594 | J25: ='[9]5.1.2'!J25 -> 3944.77887 | K25: ='[9]5.1.2'!K25 -> 3492.896653 | L25: ='[9]5.1.2'!L25 -> 3716.514716
C26: ='[9]5.1.2'!C26 -> Other - Works In Progress | E26: $'000 | F26: ='[9]5.1.2'!F26 -> 0 | G26: ='[9]5.1.2'!G26 -> 0 | H26: ='[9]5.1.2'!H26 -> 238455 | I26: ='[9]5.1.2'!I26 -> 155220.2242 | J26: ='[9]5.1.2'!J26 -> 133413.8887 | K26: ='[9]5.1.2'!K26 -> 82131.34913 | L26: ='[9]5.1.2'!L26 -> 131580.7692
C27: Total non-current assets | E27: $'000 | F27: =SUM(F24:F26) -> 0 | G27: 0 | H27: 2744315 | I27: 2864444.904 | J27: 2999446.969 | K27: 3215762.615 | L27: =SUM(L24:L26) -> 3439912.728
C29: TOTAL ASSETS | E29: $'000 | F29: =F27+F20 -> 0 | G29: 0 | H29: 2894359 | I29: 2977340.693 | J29: 3078758.251 | K29: 3312619.555 | L29: =L27+L20 -> 3545185.245
C31: Current Liabilities
C33: Payables | E33: $'000 | F33: ='[9]5.1.2'!F33 -> 0 | G33: ='[9]5.1.2'!G33 -> 0 | H33: ='[9]5.1.2'!H33 -> 61699 | I33: ='[9]5.1.2'!I33 -> 55348.6432 | J33: ='[9]5.1.2'!J33 -> 57103.35381 | K33: ='[9]5.1.2'!K33 -> 60460.83971 | L33: ='[9]5.1.2'!L33 -> 63757.95903 | P33: ..\..\..\..\Commercial Acctg\QCA Unitywater Submission 2012\LTFM\UW_20120518_LTFM - QCA Reg Submission.xlsx
C34: Interest-bearing liabilities | E34: $'000 | F34: ='[9]5.1.2'!F34 -> 0 | G34: ='[9]5.1.2'!G34 -> 0 | H34: ='[9]5.1.2'!H34 -> 0 | I34: ='[9]5.1.2'!I34 -> 10862.07918 | J34: ='[9]5.1.2'!J34 -> 11444.16926 | K34: ='[9]5.1.2'!K34 -> 12066.79824 | L34: ='[9]5.1.2'!L34 -> 2500
C35: Current tax liabilities | E35: $'000 | F35: ='[9]5.1.2'!F35 -> 0 | G35: ='[9]5.1.2'!G35 -> 0 | H35: ='[9]5.1.2'!H35 -> 0 | I35: ='[9]5.1.2'!I35 -> 2584.598527 | J35: ='[9]5.1.2'!J35 -> 3558.411262 | K35: ='[9]5.1.2'!K35 -> 3562.127077 | L35: ='[9]5.1.2'!L35 -> 3767.60797
C36: Provisions | E36: $'000 | F36: ='[9]5.1.2'!F36 -> 0 | G36: ='[9]5.1.2'!G36 -> 0 | H36: ='[9]5.1.2'!H36 -> 29447 | I36: ='[9]5.1.2'!I36 -> 17938.49105 | J36: ='[9]5.1.2'!J36 -> 29096.84819 | K36: ='[9]5.1.2'!K36 -> 20658.22657 | L36: ='[9]5.1.2'!L36 -> 21054.15563
C37: Other - unearned revenue, security deposits or retentions & other payables | E37: $'000 | F37: ='[9]5.1.2'!F37 -> 0 | G37: ='[9]5.1.2'!G37 -> 0 | H37: ='[9]5.1.2'!H37 -> 5298 | I37: ='[9]5.1.2'!I37 -> 5430.45 | J37: ='[9]5.1.2'!J37 -> 5606.939625 | K37: ='[9]5.1.2'!K37 -> 5803.182512 | L37: ='[9]5.1.2'!L37 -> 6001.944665
C38: Total current Liabilities | E38: $'000 | F38: =SUM(F33:F37) -> 0 | G38: 0 | H38: 96444 | I38: 92164.26196 | J38: 106809.7221 | K38: 102551.1741 | L38: =SUM(L33:L37) -> 97081.6673
C40: Non-Current Liabilities
C42: Payables | E42: $'000 | F42: ='[9]5.1.2'!F42 -> 0 | G42: ='[9]5.1.2'!G42 -> 0 | H42: ='[9]5.1.2'!H42 -> 0 | I42: ='[9]5.1.2'!I42 -> 0 | J42: ='[9]5.1.2'!J42 -> 0 | K42: ='[9]5.1.2'!K42 -> 0 | L42: ='[9]5.1.2'!L42 -> 0 | P42: ..\..\..\..\Commercial Acctg\QCA Unitywater Submission 2012\LTFM\UW_20120518_LTFM - QCA Reg Submission.xlsx
C43: Interest-bearing liabilities | E43: $'000 | F43: ='[9]5.1.2'!F43 -> 0 | G43: ='[9]5.1.2'!G43 -> 0 | H43: ='[9]5.1.2'!H43 -> 1322216 | I43: ='[9]5.1.2'!I43 -> 1396629.974 | J43: ='[9]5.1.2'!J43 -> 1471551.814 | K43: ='[9]5.1.2'!K43 -> 1554393.294 | L43: ='[9]5.1.2'!L43 -> 1624476.916
C44: Current tax liabilities | E44: $'000 | F44: ='[9]5.1.2'!F44 -> 0 | G44: ='[9]5.1.2'!G44 -> 0 | H44: ='[9]5.1.2'!H44 -> 20006 | I44: ='[9]5.1.2'!I44 -> 19002.46017 | J44: ='[9]5.1.2'!J44 -> 14295.95085 | K44: ='[9]5.1.2'!K44 -> 14295.95085 | L44: ='[9]5.1.2'!L44 -> 14295.95085
C45: Provisions | E45: $'000 | F45: ='[9]5.1.2'!F45 -> 0 | G45: ='[9]5.1.2'!G45 -> 0 | H45: ='[9]5.1.2'!H45 -> 10309 | I45: ='[9]5.1.2'!I45 -> 12124.03275 | J45: ='[9]5.1.2'!J45 -> 12456.27785 | K45: ='[9]5.1.2'!K45 -> 13009.47841 | L45: ='[9]5.1.2'!L45 -> 13495.60463
C46: ='[9]5.1.2'!C46 -> Other - [specify] | E46: $'000
C47: Total Non-Current Liabilities | E47: $'000 | F47: =SUM(F42:F46) -> 0 | G47: 0 | H47: 1352531 | I47: 1427756.467 | J47: 1498304.043 | K47: 1581698.723 | L47: =SUM(L42:L46) -> 1652268.472
C49: TOTAL LIABILITIES | E49: $'000 | F49: =F47+F38 -> 0 | G49: 0 | H49: 1448975 | I49: 1519920.728 | J49: 1605113.765 | K49: 1684249.897 | L49: =L47+L38 -> 1749350.139
C51: NET ASSETS/(LIABILITIES) | E51: $'000 | F51: =F29-F49 -> 0 | G51: 0 | H51: 1445384 | I51: 1457419.965 | J51: 1473644.486 | K51: 1628369.658 | L51: =L29-L49 -> 1795835.106
C53: Shareholders Equity
C55: Share Capital | E55: $'000 | F55: ='[9]5.1.2'!F55 -> 0 | G55: ='[9]5.1.2'!G55 -> 0 | H55: ='[9]5.1.2'!H55 -> 1434782 | I55: ='[9]5.1.2'!I55 -> 1434782 | J55: ='[9]5.1.2'!J55 -> 1434782 | K55: ='[9]5.1.2'!K55 -> 1434782 | L55: ='[9]5.1.2'!L55 -> 1434782 | P55: ..\..\..\..\Commercial Acctg\QCA Unitywater Submission 2012\LTFM\UW_20120518_LTFM - QCA Reg Submission.xlsx
C56: Reserves | E56: $'000 | F56: ='[9]5.1.2'!F56 -> 0 | G56: ='[9]5.1.2'!G56 -> 0 | H56: ='[9]5.1.2'!H56 -> 0 | I56: ='[9]5.1.2'!I56 -> 0 | J56: ='[9]5.1.2'!J56 -> 0 | K56: ='[9]5.1.2'!K56 -> 109167.4022 | L56: ='[9]5.1.2'!L56 -> 229681.3284
C57: Retained earnings | E57: $'000 | F57: ='5.1.1'!F49 -> 0 | G57: ='5.1.1'!G49 -> -13043 | H57: ='5.1.1'!H49 -> 10602.01548 | I57: ='5.1.1'!I49 -> 22637.98009 | J57: ='5.1.1'!J49 -> 38862.50192 | K57: ='5.1.1'!K49 -> 84420.27112 | L57: ='5.1.1'!M49 -> 0
C59: TOTAL SHAREHOLDERS EQUITY | E59: $'000 | F59: =SUM(F55:F57) -> 0 | G59: -13043 | H59: 1445384.015 | I59: 1457419.98 | J59: 1473644.502 | K59: 1628369.673 | L59: =SUM(L55:L57) -> 1664463.328

Sheet 5.1.3
B4: ='Business Details'!$B$4 -> SEQ INTERIM REVENUE MONITORING - INFORMATION REQUIREMENT TEMPLATE
B7: =CONCATENATE("Consolidated Statement for ",'Business Details'!$D$9) -> Consolidated Statement for Northern SEQ Distributor-Retailer Authority (trading as Unitywater ABN: 89 791 717 472)
B8: =CONCATENATE("Reporting year = ",AnalysisYear) -> Reporting year = 2013
F11: 0 | G11: 1 | H11: 2 | I11: 3 | J11: 4
F12: ='5.1.2'!F12 -> For Year Ending 30 June: | N12: ='5.1.1'!N12 -> For Year Ending 30 June 2013:
C13: ='5.1.2'!C13 -> Account heading | F13: ='5.1.2'!F13 -> 2009 | G13: ='5.1.2'!G13 -> 2010 | H13: ='5.1.2'!H13 -> 2011 | I13: ='5.1.2'!I13 -> 2012 | J13: ='5.1.2'!J13 -> 2013 | K13: ='5.1.2'!K13 -> 2014 | L13: ='5.1.2'!L13 -> 2015 | N13: ='5.1.2'!O13 -> Relevant Notes | O13: ='5.1.2'!P13 -> Supporting Documents | AF13: =AE13 -> 
C15: Cash flows from operating activities
C17: Receipts from customers | E17: $'000 | F17: ='[9]5.1.3'!F17 -> 0 | G17: ='[9]5.1.3'!G17 -> 0 | H17: ='[9]5.1.3'!H17 -> 380752 | I17: ='[9]5.1.3'!I17 -> 442878.3317 | J17: ='[9]5.1.3'!J17 -> 497585.8031 | K17: ='[9]5.1.3'!K17 -> 492325.8746 | L17: ='[9]5.1.3'!L17 -> 558119.1129 | O17: ..\..\..\..\Commercial Acctg\QCA Unitywater Submission 2012\LTFM\UW_20120518_LTFM - QCA Reg Submission.xlsx
C18: Payments to suppliers and employees | E18: $'000 | F18: ='[9]5.1.3'!F18 -> 0 | G18: ='[9]5.1.3'!G18 -> 0 | H18: ='[9]5.1.3'!H18 -> -208077 | I18: ='[9]5.1.3'!I18 -> -235069.5759 | J18: ='[9]5.1.3'!J18 -> -260922.4653 | K18: ='[9]5.1.3'!K18 -> -293873.4075 | L18: ='[9]5.1.3'!L18 -> -327598.6169
C19: Cash flow arising from restructuring | E19: $'000 | F19: ='[9]5.1.3'!F19 -> 0 | G19: ='[9]5.1.3'!G19 -> 0 | H19: ='[9]5.1.3'!H19 -> -10057 | I19: ='[9]5.1.3'!I19 -> 0 | J19: ='[9]5.1.3'!J19 -> 0 | K19: ='[9]5.1.3'!K19 -> 0 | L19: ='[9]5.1.3'!L19 -> 0
C20: Other - net changes in current assets, net changes in current liabilities & income tax paid | E20: $'000 | F20: ='[9]5.1.3'!F20 -> 0 | G20: ='[9]5.1.3'!G20 -> 0 | H20: ='[9]5.1.3'!H20 -> -7355 | I20: ='[9]5.1.3'!I20 -> -18423.56453 | J20: ='[9]5.1.3'!J20 -> -12186.07866 | K20: ='[9]5.1.3'!K20 -> -14471.04914 | L20: ='[9]5.1.3'!L20 -> -15664.69323
C21: Net cash inflow (outflow) from operating activities | E21: $'000 | F21: =SUM(F17:F20) -> 0 | G21: 0 | H21: 155263 | I21: 189385.1913 | J21: 224477.2591 | K21: 183981.418 | L21: =SUM(L17:L20) -> 214855.8027
C23: Cash flow from investing activities
C25: Payments for property, plant and equipment | E25: $'000 | F25: ='[9]5.1.3'!F25 -> 0 | G25: ='[9]5.1.3'!G25 -> 0 | H25: ='[9]5.1.3'!H25 -> -165438 | I25: ='[9]5.1.3'!I25 -> -169883.5827 | J25: ='[9]5.1.3'!J25 -> -174457.2983 | K25: ='[9]5.1.3'!K25 -> -151487.7399 | L25: ='[9]5.1.3'!L25 -> -154218.2137 | O25: ..\..\..\..\Commercial Acctg\QCA Unitywater Submission 2012\LTFM\UW_20120518_LTFM - QCA Reg Submission.xlsx
C26: Net movement in loans and advances | E26: $'000 | F26: ='[9]5.1.3'!F26 -> 0 | G26: ='[9]5.1.3'!G26 -> 0 | H26: ='[9]5.1.3'!H26 -> 0 | I26: ='[9]5.1.3'!I26 -> 0 | J26: ='[9]5.1.3'!J26 -> 0 | K26: ='[9]5.1.3'!K26 -> 0 | L26: ='[9]5.1.3'!L26 -> 0
C27: Proceeds from sale of property, plant and equipment | E27: $'000 | F27: ='[9]5.1.3'!F27 -> 0 | G27: ='[9]5.1.3'!G27 -> 0 | H27: ='[9]5.1.3'!H27 -> 809 | I27: ='[9]5.1.3'!I27 -> 0 | J27: ='[9]5.1.3'!J27 -> 0 | K27: ='[9]5.1.3'!K27 -> 0 | L27: ='[9]5.1.3'!L27 -> 0
C28: Interest received | E28: $'000 | F28: ='[9]5.1.3'!F28 -> 0 | G28: ='[9]5.1.3'!G28 -> 0 | H28: ='[9]5.1.3'!H28 -> 2551 | I28: ='[9]5.1.3'!I28 -> 2626.302 | J28: ='[9]5.1.3'!J28 -> 363.173 | K28: ='[9]5.1.3'!K28 -> 375.884055 | L28: ='[9]5.1.3'!L28 -> 388.7582881
C29: ='[9]5.1.3'!C29 -> Other - [specify] | E29: $'000
C30: Net cash inflow (outflow) from investing activities | E30: $'000 | F30: =SUM(F25:F29) -> 0 | G30: 0 | H30: -162078 | I30: -167257.2807 | J30: -174094.1253 | K30: -151111.8559 | L30: =SUM(L25:L29) -> -153829.4554
C32: Cash flow from financing activities
C34: Proceeds from borrowings | E34: $'000 | F34: ='[9]5.1.3'!F34 -> 0 | G34: ='[9]5.1.3'!G34 -> 0 | H34: ='[9]5.1.3'!H34 -> 167000 | I34: ='[9]5.1.3'!I34 -> 92000 | J34: ='[9]5.1.3'!J34 -> 114000 | K34: ='[9]5.1.3'!K34 -> 92568 | L34: ='[9]5.1.3'!L34 -> 70168 | O34: ..\..\..\..\Commercial Acctg\QCA Unitywater Submission 2012\LTFM\UW_20120518_LTFM - QCA Reg Submission.xlsx
C35: Repayments of borrowings | E35: $'000 | F35: ='[9]5.1.3'!F35 -> 0 | G35: ='[9]5.1.3'!G35 -> 0 | H35: ='[9]5.1.3'!H35 -> -5435 | I35: ='[9]5.1.3'!I35 -> -7817.87176 | J35: ='[9]5.1.3'!J35 -> -40862.07918 | K35: ='[9]5.1.3'!K35 -> -11444.16926 | L35: ='[9]5.1.3'!L35 -> -12066.79824
C36: Finance costs | E36: $'000 | F36: ='[9]5.1.3'!F36 -> 0 | G36: ='[9]5.1.3'!G36 -> 0 | H36: ='[9]5.1.3'!H36 -> -64031 | I36: ='[9]5.1.3'!I36 -> -92537.31036 | J36: ='[9]5.1.3'!J36 -> -96202.83 | K36: ='[9]5.1.3'!K36 -> -85937.25272 | L36: ='[9]5.1.3'!L36 -> -91209.00797
C37: Other - dividends paid | E37: $'000 | F37: ='[9]5.1.3'!F37 -> 0 | G37: ='[9]5.1.3'!G37 -> 0 | H37: ='[9]5.1.3'!H37 -> -21012 | I37: ='[9]5.1.3'!I37 -> -58405.02075 | J37: ='[9]5.1.3'!J37 -> -33925.84025 | K37: ='[9]5.1.3'!K37 -> -36173.33809 | L37: ='[9]5.1.3'!L37 -> -27576.33792
C38: Net cash inflow (outflow) from financing activities | E38: $'000 | F38: =SUM(F34:F37) -> 0 | G38: 0 | H38: 76522 | I38: -66760.20287 | J38: -56990.74943 | K38: -40986.76007 | L38: =SUM(L34:L37) -> -60684.14413
C40: Net increase (decrease) in cash held | E40: $'000
C42: Cash at beginning of reporting period | E42: $'000 | G42: =F44 -> 0 | H42: 0 | I42: 69707 | J42: 25074.70767 | K42: 18467.09205 | L42: 10349.89409 | O42: ..\..\..\..\Commercial Acctg\QCA Unitywater Submission 2012\LTFM\UW_20120518_LTFM - QCA Reg Submission.xlsx
C44: Cash at end of reporting period | E44: $'000 | F44: =F38+F30+F21+F42 -> 0 | G44: 0 | H44: 69707 | I44: 25074.70767 | J44: 18467.09205 | K44: 10349.89409 | L44: =L38+L30+L21+L42 -> 10692.09727
AF72: =AE72 -> 

Sheet 5.1.4
B4: ='Business Details'!$B$4 -> SEQ INTERIM REVENUE MONITORING - INFORMATION REQUIREMENT TEMPLATE
B7: =CONCATENATE("Regulatory Adjustment Journals for ",'Business Details'!$D$9) -> Regulatory Adjustment Journals for Northern SEQ Distributor-Retailer Authority (trading as Unitywater ABN: 89 791 717 472)
B8: =CONCATENATE("Reporting year = ",AnalysisYear) -> Reporting year = 2013
F11: ='5.1.1'!N12 -> For Year Ending 30 June 2013:
B12: Journal Number | C12: Account Debited | F12: Profit and Loss Statement | H12: Balance Sheet
D13: Account Credited | F13: Debit | G13: Credit | H13: Debit | I13: Credit
B15: 1 | C15: Reserves (balancing entry) | E15: $'000 | I15: =F18-I16 -> 80517.68399
B16: 1 | D16: Fixed assets - opening gross undepreciated (financial accounting values) | E16: $'000 | I16: ='5.1.2'!I24 -> 2704726.38
B18: 1 | C18: Fixed assets - opening undepreciated regulatory values | E18: $'000 | F18: =[10]Summary!P286 -> 2785244.064
C20: Replacement of opening accounting gross asset balances with opening regulatory values.
B23: 2 | D23: Reserves (balancing entry) | E23: $'000
B24: 2 | C24: Fixed assets - opening accumulated depreciation (financial accounting values) | E24: $'000
B26: 2 | D26: Fixed assets Opening Accumulated Depreciation (regulatory values) | E26: $'000
C28: Replacement of opening accounting accumulated depreciation balances with opening regulatory values.
B31: 3 | D31: Fixed assets - gross undepreciated value (regulatory values) | E31: $'000
B32: 3 | C32: Revenue - customer contributions | E32: $'000
C34: Adjustment to credit current year customer contributions to assets instead of revenues (This adjustments should be carried forward in regulatory asset values)
B36: 4 | C36: Fixed assets - accumulated depreciation (financial accounting values) | E36: $'000 | H36: =G37 -> 76490.10696
B37: 4 | D37: P&L depreciation charge (financial accounting values) | E37: $'000 | G37: ='5.1.1'!J34 -> 76490.10696
B38: 4 | D38: Accumulated depreciation (regulatory values) | E38: $'000 | I38: =F40 -> 88987.31699
B40: 4 | C40: P&L depreciation charge (regulatory basis values) | E40: $'000 | F40: =([10]output!Q256+[10]output!Q264)*1000 -> 88987.31699
C42: Reversal of current period accounting depreciation charge with regulatory annual charge
B45: 5 | C45: Undepreciated value of fixed assets (financial accounting values) | E45: $'000
B46: 5 | D46: Accumulated depreciation on disposal of assets (financial accounting values) | E46: $'000
B47: 5 | D47: Undepreciated value of fixed asset disposed (regulatory values) | E47: $'000
B48: 5 | D48: Accumulated depreciation on assets disposal (regulatory values) | E48: $'000
B49: 5 | C49: Adjustment to profits / loss on disposal (balancing figure) | E49: $'000
C51: Restatement of profit and loss of disposal of fixed assets - at regulatory values
B54: 6 | C54: Opening undepreciated value of fixed assets (regulatory values) | E54: $'000
B55: 6 | D55: Reserves | E55: $'000
C57: Inflation adjustment to opening fixed asset (regulatory values)
B60: 7 | D60: Opening accumulated depreciation on fixed assets (regulatory values) | E60: $'000
B61: 7 | C61: Reserves | E61: $'000
C63: Inflation adjustment to accumulated depreciation brought forward on fixed assets (regulatory values)
B66: 8 | C66: Item A - specify | E66: $'000 | H66: =[10]Summary!Q276 -> 73182.86116
B67: 8 | D67: Item B - specify | E67: $'000 | I67: =H66 -> 73182.86116
C69: Reason for the regulatory adjustment - specify
B72: 9 | C72: Item A - specify | E72: $'000 | H72: 97503.48587
B73: 9 | D73: Item B - specify | E73: $'000 | I73: =H72 -> 97503.48587
C75: Reason for the regulatory adjustment - specify

Sheet 5.1.5
B4: ='Business Details'!$B$4 -> SEQ INTERIM REVENUE MONITORING - INFORMATION REQUIREMENT TEMPLATE
B7: =CONCATENATE("Regulatory Adjustments for ",'Business Details'!$D$9) -> Regulatory Adjustments for Northern SEQ Distributor-Retailer Authority (trading as Unitywater ABN: 89 791 717 472)
B8: =CONCATENATE("Reporting year = ",AnalysisYear) -> Reporting year = 2013
F11: =CONCATENATE("For Year Ending 30 June ",AnalysisYear) -> For Year Ending 30 June 2013
C12: Account heading | F12: Consolidated Statement Value | G12: Regulatory Adjustments | H12: Regulatory Value | J12: Journal Reference | Z12: =Y12 -> 
C14: Revenues
C15: Revenue from services | E15: $'000 | F15: ='5.1.1'!J16 -> 443241.3615 | H15: =F15-G15 -> 443241.3615
C16: Investment income | E16: $'000 | F16: ='5.1.1'!J17 -> 363.173 | H16: =F16-G16 -> 363.173
C17: Net profit / (loss) from sale of regulatory assets | E17: $'000 | F17: ='5.1.1'!J18 -> 0 | H17: 0
C18: Net profit / (loss) from sale of unregulated assets | E18: $'000 | F18: ='5.1.1'!J19 -> 0 | H18: 0
C19: Contributions | E19: $'000 | F19: ='5.1.1'!J20 -> 65011.383 | H19: 65011.383
C20: ='5.1.1'!C21 -> Other 1 - [specify] | E20: $'000 | F20: ='5.1.1'!J21 -> 0 | H20: 0
C21: ='5.1.1'!C22 -> Other 2 - [specify] | E21: $'000 | F21: ='5.1.1'!J22 -> 0 | H21: 0
C22: Total Revenue | E22: $'000 | F22: ='5.1.1'!J23 -> 508615.9175 | G22: =SUM(G15:G21) -> 0 | H22: =SUM(H15:H21) -> 508615.9175
C24: Expenses
C25: Operating expenditure | E25: $'000 | F25: ='5.1.1'!J26 -> 263026.2687 | H25: =F25-G25 -> 263026.2687
C26: Bad debts | E26: $'000 | F26: ='5.1.1'!J27 -> 0 | H26: =F26-G26 -> 0
C27: ='5.1.1'!C28 -> Other 1 - [specify] | E27: $'000 | F27: ='5.1.1'!J28 -> 0 | H27: =F27-G27 -> 0
C28: ='5.1.1'!C29 -> Other 2 - [specify] | E28: $'000 | F28: ='5.1.1'!J29 -> 0 | H28: =F28-G28 -> 0
C29: Total Expenses | E29: $'000 | F29: ='5.1.1'!J30 -> 263026.2687 | G29: =SUM(G25:G28) -> 0 | H29: =SUM(H25:H28) -> 263026.2687
C31: EBITDA | E31: $'000 | F31: ='5.1.1'!J32 -> 245589.6488 | G31: =G22-G29 -> 0 | H31: =H22-H29 -> 245589.6488
C33: Depreciation | E33: $'000 | F33: ='5.1.1'!J34 -> 76490.10696 | G33: ='5.1.4'!G37-'5.1.4'!F40 -> -12497.21003 | H33: =F33-G33 -> 88987.31699
C34: Earnings Before Interest, Tax and Amortisation | E34: $'000 | F34: ='5.1.1'!J35 -> 169099.5418 | G34: =G31-G33 -> 12497.21003 | H34: =H31-H33 -> 156602.3318
C36: Borrowing costs | E36: $'000 | F36: ='5.1.1'!J37 -> 97887.502 | H36: =F36-G36 -> 97887.502
C37: Profit/Loss Before Tax | E37: $'000 | F37: ='5.1.1'!J38 -> 71212.03983 | G37: =G34-G36 -> 12497.21003 | H37: =H34-H36 -> 58714.8298
C39: Tax Expense | E39: $'000 | F39: ='5.1.1'!J40 -> 10080.518 | H39: =F39-G39 -> 10080.518
C41: Profit/Loss After Tax | E41: $'000 | F41: ='5.1.1'!J42 -> 61131.52183 | G41: =G37-G39 -> 12497.21003 | H41: =H37-H39 -> 48634.3118
Z245: =Y245 -> 

Sheet 5.1.6
B4: ='Business Details'!$B$4 -> SEQ INTERIM REVENUE MONITORING - INFORMATION REQUIREMENT TEMPLATE
B7: =CONCATENATE("Regulatory Adjustments for ",'Business Details'!$D$9) -> Regulatory Adjustments for Northern SEQ Distributor-Retailer Authority (trading as Unitywater ABN: 89 791 717 472)
B8: =CONCATENATE("Reporting year = ",AnalysisYear) -> Reporting year = 2013
F11: ='5.1.1'!N12 -> For Year Ending 30 June 2013:
C12: ='5.1.7'!C12 -> Account heading | F12: Consolidated Statement Value | G12: Regulatory Adjustments | H12: Regulatory Value | J12: Journal Reference
C14: Current Assets
C16: Cash | E16: $'000 | F16: ='5.1.2'!J17 -> 18467.09205 | H16: =F16-G16 -> 18467.09205
C17: Receivables | E17: $'000 | F17: ='5.1.2'!J18 -> 56999.2452 | H17: =F17-G17 -> 56999.2452
C18: Other | E18: $'000 | F18: ='5.1.2'!J19 -> 3844.94515 | H18: =F18-G18 -> 3844.94515
C19: Total Current Assets | E19: $'000 | F19: ='5.1.2'!J20 -> 79311.2824 | G19: =SUM(G16:G18) -> 0 | H19: =SUM(H16:H18) -> 79311.2824
C21: Non-Current Assets
C23: Property, plant and equipment | E23: $'000 | F23: ='5.1.2'!J24 -> 2862088.301 | G23: ='5.1.4'!I38-'5.1.4'!H36+'5.1.4'!I16-'5.1.4'!F18-'5.1.4'!H66-'5.1.4'!H72 -> -238706.821 | H23: =F23-G23 -> 3100795.122
C24: Deferred tax assets | E24: $'000 | F24: ='5.1.2'!J25 -> 3944.77887 | H24: =F24-G24 -> 3944.77887
C25: Other | E25: $'000 | F25: ='5.1.2'!J26 -> 133413.8887 | H25: =F25-G25 -> 133413.8887
C26: Total non-current assets | E26: $'000 | F26: ='5.1.2'!J27 -> 2999446.969 | G26: =SUM(G23:G25) -> -238706.821 | H26: =SUM(H23:H25) -> 3238153.79
C28: TOTAL ASSETS | E28: $'000 | F28: ='5.1.2'!J29 -> 3078758.251 | G28: =G26+G19 -> -238706.821 | H28: =H26+H19 -> 3317465.072
C30: Current Liabilities
C32: Payables | E32: $'000 | F32: ='5.1.2'!J33 -> 57103.35381 | H32: =F32-G32 -> 57103.35381
C33: Interest-bearing liabilities | E33: $'000 | F33: ='5.1.2'!J34 -> 11444.16926 | H33: =F33-G33 -> 11444.16926
C34: Current tax liabilities | E34: $'000 | F34: ='5.1.2'!J35 -> 3558.411262 | H34: =F34-G34 -> 3558.411262
C35: Provisions | E35: $'000 | F35: ='5.1.2'!J36 -> 29096.84819 | H35: =F35-G35 -> 29096.84819
C36: Other | E36: $'000 | F36: ='5.1.2'!J37 -> 5606.939625 | H36: =F36-G36 -> 5606.939625
C37: Total current Liabilities | E37: $'000 | F37: ='5.1.2'!J38 -> 106809.7221 | G37: =SUM(G32:G36) -> 0 | H37: =SUM(H32:H36) -> 106809.7221
C39: Non-Current Liabilities
C41: Payables | E41: $'000 | F41: ='5.1.2'!J42 -> 0 | H41: =F41-G41 -> 0
C42: Intrest-bearing liabilities | E42: $'000 | F42: ='5.1.2'!J43 -> 1471551.814 | H42: =F42-G42 -> 1471551.814
C43: Current tax liabilities | E43: $'000 | F43: ='5.1.2'!J44 -> 14295.95085 | H43: =F43-G43 -> 14295.95085
C44: Provisions | E44: $'000 | F44: ='5.1.2'!J45 -> 12456.27785 | H44: =F44-G44 -> 12456.27785
C45: Other | E45: $'000 | F45: ='5.1.2'!J46 -> 0 | H45: =F45-G45 -> 0
C46: Total Non-Current Liabilities | E46: $'000 | F46: ='5.1.2'!J47 -> 1498304.043 | G46: =SUM(G41:G45) -> 0 | H46: =SUM(H41:H45) -> 1498304.043
C48: TOTAL LIABILITIES | E48: $'000 | F48: ='5.1.2'!J49 -> 1605113.765 | G48: =G46+G37 -> 0 | H48: =H46+H37 -> 1605113.765
C50: NET ASSETS/(LIABILITIES) | E50: $'000 | F50: ='5.1.2'!J51 -> 1473644.486 | G50: =G28-G48 -> -238706.821 | H50: =H28-H48 -> 1712351.307
C52: Shareholders Equity
C54: Share Capital | E54: $'000 | F54: ='5.1.2'!J55 -> 1434782 | H54: =F54-G54 -> 1434782
C55: Reserves | E55: $'000 | F55: ='5.1.2'!J56 -> 0 | G55: =-'5.1.4'!I15-'5.1.4'!I67-'5.1.4'!I73 -> -251204.031 | H55: =F55-G55 -> 251204.031
C56: Retained earnings | E56: $'000 | F56: ='5.1.2'!J57 -> 38862.50192 | G56: ='5.1.4'!I38-'5.1.4'!H36 -> 12497.21003 | H56: =F56-G56 -> 26365.29189
F57: ='5.1.2'!J58 -> 0
C58: TOTAL SHAREHOLDERS EQUITY | E58: $'000 | F58: ='5.1.2'!J59 -> 1473644.502 | G58: =SUM(G54:G56) -> -238706.821 | H58: =SUM(H54:H56) -> 1712351.323

Sheet 5.1.7
B4: ='Business Details'!$B$4 -> SEQ INTERIM REVENUE MONITORING - INFORMATION REQUIREMENT TEMPLATE
B7: =CONCATENATE("Regulatory Values for ",'Business Details'!$D$9) -> Regulatory Values for Northern SEQ Distributor-Retailer Authority (trading as Unitywater ABN: 89 791 717 472)
B8: =CONCATENATE("Reporting year = ",AnalysisYear) -> Reporting year = 2013
F11: For Year Ending 30 June:
C12: Account heading | E12: Numeration | F12: ='5.1.1'!F13 -> 2009 | G12: ='5.1.1'!G13 -> 2010 | H12: ='5.1.1'!H13 -> 2011 | I12: ='5.1.1'!I13 -> 2012 | J12: ='5.1.1'!J13 -> 2013 | K12: ='5.1.1'!K13 -> 2014 | L12: ='5.1.1'!L13 -> 2015 | AD12: =AC12 -> 
C14: Revenues
C15: Revenue from services | E15: $'000 | H15: ='5.1.1'!H16 -> 361215.9534 | I15: ='5.1.1'!I16 -> 415715.3638 | J15: ='5.1.5'!H15 -> 443241.3615 | K15: ='5.1.1'!K16 -> 487931.8225 | L15: ='5.1.1'!L16 -> 534762.522
C16: Investment income | E16: $'000 | H16: ='5.1.1'!H17 -> 2551 | I16: ='5.1.1'!I17 -> 2626.302 | J16: ='5.1.5'!H16 -> 363.173 | K16: ='5.1.1'!K17 -> 375.884055 | L16: ='5.1.1'!L17 -> 388.7582881
C17: Net profit / (loss) from sale of regulatory assets | E17: $'000 | H17: ='5.1.1'!H18+'5.1.1'!H19 -> 5454 | I17: ='5.1.1'!I18+'5.1.1'!I19 -> 1481.931 | J17: ='5.1.5'!H17 -> 0 | K17: ='5.1.1'!K18+'5.1.1'!K19 -> 0 | L17: ='5.1.1'!L18+'5.1.1'!L19 -> 0
C19: Contributions | E19: $'000 | H19: ='5.1.1'!H20 -> 104483 | I19: ='5.1.1'!I20 -> 65041.301 | J19: ='5.1.5'!H19 -> 65011.383 | K19: ='5.1.1'!K20 -> 66930.25222 | L19: ='5.1.1'!L20 -> 69222.64971
C20: ='5.1.1'!C21 -> Other 1 - [specify] | E20: $'000 | J20: ='5.1.5'!H20 -> 0
C21: ='5.1.1'!C22 -> Other 2 - [specify] | E21: $'000 | J21: ='5.1.5'!H21 -> 0
C22: Total Revenue | E22: $'000 | F22: =SUM(F15:F21) -> 0 | G22: 0 | H22: =SUM(H15:H21) -> 473703.9534 | I22: =SUM(I15:I21) -> 484864.8978 | J22: =SUM(J15:J21) -> 508615.9175 | K22: 555237.9588 | L22: =SUM(L15:L21) -> 604373.93
C24: Expenses
C25: Operating expenditure | E25: $'000 | H25: ='5.1.1'!H26 -> 213100.9 | I25: ='5.1.1'!I26 -> 237780.6282 | J25: ='5.1.5'!H25 -> 263026.2687 | K25: ='5.1.1'!K26 -> 296677.6928 | L25: ='5.1.1'!L26 -> 330409.61
C26: Bad debts | E26: $'000 | J26: ='5.1.5'!H26 -> 0
C27: ='5.1.1'!C28 -> Other 1 - [specify] | E27: $'000 | J27: ='5.1.5'!H27 -> 0
C28: ='5.1.1'!C29 -> Other 2 - [specify] | E28: $'000 | J28: ='5.1.5'!H28 -> 0
C29: Total Expenses | E29: $'000 | F29: =SUM(F25:F28) -> 0 | G29: 0 | H29: =SUM(H25:H28) -> 213100.9 | I29: =SUM(I25:I28) -> 237780.6282 | J29: =SUM(J25:J28) -> 263026.2687 | K29: 296677.6928 | L29: =SUM(L25:L28) -> 330409.61
C31: EBITDA | E31: $'000 | F31: =F22-F29 -> 0 | G31: 0 | H31: 260603.0534 | I31: 247084.2696 | J31: =J22-J29 -> 245589.6488 | K31: 258560.266 | L31: =L22-L29 -> 273964.3199
C33: Depreciation | E33: $'000 | H33: =[10]Summary!O281 -> 78171.09416 | I33: =[10]Summary!P281 -> 80869.77636 | J33: ='5.1.5'!H33 -> 88987.31699 | K33: =[10]Summary!R281 -> 96043.87853 | L33: =[10]Summary!S281 -> 101459.5736
C34: Earnings Before Interest, Tax and Amortisation | E34: $'000 | F34: =F31-F33 -> 0 | G34: 0 | H34: =H31-H33 -> 182431.9592 | I34: =I31-I33 -> 166214.4933 | J34: =J31-J33 -> 156602.3318 | K34: 162516.3875 | L34: =L31-L33 -> 172504.7464
C36: Borrowing costs | E36: $'000 | H36: ='5.1.1'!H37 -> 86915.03792 | I36: ='5.1.1'!I37 -> 94157.793 | J36: ='5.1.5'!H36 -> 97887.502 | K36: ='5.1.1'!K37 -> 88277.53031 | L36: ='5.1.1'!L37 -> 93624.63052
C37: Profit/Loss Before Tax | E37: $'000 | F37: =F34-F36 -> 0 | G37: 0 | H37: 95516.92132 | I37: 72056.70026 | J37: =J34-J36 -> 58714.8298 | K37: 74238.85716 | L37: =L34-L36 -> 78880.11585
C39: Tax Expense | E39: $'000 | H39: ='5.1.1'!H40 -> 22134 | I39: ='5.1.1'!I40 -> 9195.406 | J39: ='5.1.5'!H39 -> 10080.518 | K39: ='5.1.1'!K40 -> 14699.82652 | L39: ='5.1.1'!L40 -> 14846.24982
C41: Profit/Loss After Tax | E41: $'000 | F41: =F37-F39 -> 0 | G41: 0 | H41: =H37-H39 -> 73382.92132 | I41: =I37-I39 -> 62861.29426 | J41: =J37-J39 -> 48634.3118 | K41: 59539.03064 | L41: =L37-L39 -> 64033.86603
C43: Dividend paid | E43: $'000 | H43: ='5.1.1'!H44 -> 45000 | I43: ='5.1.1'!I44 -> 45889.361 | J43: ='5.1.1'!H44 -> 45000 | K43: ='5.1.1'!K44 -> 27439.67618 | L43: ='5.1.1'!L44 -> 27712.99966
C45: Retained earnings for the year | E45: $'000 | F45: =F41-F43 -> 0 | G45: 0 | H45: 28382.92132 | I45: 16971.93326 | J45: =J41-J43 -> 3634.311801 | K45: 32099.35447 | L45: =L41-L43 -> 36320.86637
AD245: =AC245 -> 

Sheet 5.1.8
B4: ='Business Details'!$B$4 -> SEQ INTERIM REVENUE MONITORING - INFORMATION REQUIREMENT TEMPLATE
B7: =CONCATENATE("Regulatory Values for ",'Business Details'!$D$9) -> Regulatory Values for Northern SEQ Distributor-Retailer Authority (trading as Unitywater ABN: 89 791 717 472)
B8: =CONCATENATE("Reporting year = ",AnalysisYear) -> Reporting year = 2013
F11: ='5.1.7'!F11 -> For Year Ending 30 June:
C12: ='5.1.7'!C12 -> Account heading | E12: ='5.1.7'!E12 -> Numeration | F12: ='5.1.7'!F12 -> 2009 | G12: ='5.1.7'!G12 -> 2010 | H12: ='5.1.7'!H12 -> 2011 | I12: ='5.1.7'!I12 -> 2012 | J12: ='5.1.7'!J12 -> 2013 | K12: ='5.1.7'!K12 -> 2014 | L12: ='5.1.7'!L12 -> 2015
C14: Current Assets
C16: Cash | E16: $'000 | H16: ='5.1.2'!H17 -> 69707 | I16: ='5.1.2'!I17 -> 25074.70767 | J16: ='5.1.6'!H16 -> 18467.09205 | K16: ='5.1.2'!K17 -> 10349.89409 | L16: ='5.1.2'!L17 -> 10692.09727
C17: Receivables | E17: $'000 | H17: ='5.1.2'!H18 -> 77451 | I17: ='5.1.2'!I18 -> 84399.22142 | J17: ='5.1.6'!H17 -> 56999.2452 | K17: ='5.1.2'!K18 -> 82527.52706 | L17: ='5.1.2'!L18 -> 90464.60079
C18: Other | E18: $'000 | H18: ='5.1.2'!H19 -> 2886 | I18: ='5.1.2'!I19 -> 3421.86 | J18: ='5.1.6'!H18 -> 3844.94515 | K18: ='5.1.2'!K19 -> 3979.51823 | L18: ='5.1.2'!L19 -> 4115.818891
C19: Total Current Assets | E19: $'000 | F19: =SUM(F16:F18) -> 0 | G19: 0 | H19: =SUM(H16:H18) -> 150044 | I19: =SUM(I16:I18) -> 112895.7891 | J19: =SUM(J16:J18) -> 79311.2824 | K19: 96856.93938 | L19: =SUM(L16:L18) -> 105272.517
C21: Non-Current Assets
C23: Property, plant and equipment | E23: $'000 | H23: =[10]Summary!O286 -> 2602832.338 | I23: =[10]Summary!P286 -> 2785244.064 | J23: ='5.1.6'!H23 -> 3100795.122 | K23: =[10]Summary!R286 -> 3322718.278 | L23: =[10]Summary!S286 -> 3410605.267
C24: Deferred tax assets | E24: $'000 | H24: ='5.1.2'!H25 -> 4358 | I24: ='5.1.2'!I25 -> 4498.300594 | J24: ='5.1.6'!H24 -> 3944.77887 | K24: ='5.1.2'!K25 -> 3492.896653 | L24: ='5.1.2'!L25 -> 3716.514716
C25: Other | E25: $'000 | H25: ='5.1.2'!H26 -> 238455 | I25: ='5.1.2'!I26 -> 155220.2242 | J25: ='5.1.6'!H25 -> 133413.8887 | K25: ='5.1.2'!K26 -> 82131.34913 | L25: ='5.1.2'!L26 -> 131580.7692
C26: Total non-current assets | E26: $'000 | F26: =SUM(F23:F25) -> 0 | G26: 0 | H26: =SUM(H23:H25) -> 2845645.338 | I26: =SUM(I23:I25) -> 2944962.588 | J26: =SUM(J23:J25) -> 3238153.79 | K26: 3408342.523 | L26: =SUM(L23:L25) -> 3545902.55
C28: TOTAL ASSETS | E28: $'000 | F28: =F26+F19 -> 0 | G28: 0 | H28: 2995689.338 | I28: =I26+I19 -> 3057858.377 | J28: =J26+J19 -> 3317465.072 | K28: 3505199.463 | L28: =L26+L19 -> 3651175.067
C30: Current Liabilities
C32: Payables | E32: $'000 | H32: ='5.1.2'!H33 -> 61699 | I32: ='5.1.2'!I33 -> 55348.6432 | J32: ='5.1.6'!H32 -> 57103.35381 | K32: ='5.1.2'!K33 -> 60460.83971 | L32: ='5.1.2'!L33 -> 63757.95903
C33: Interest-bearing liabilities | E33: $'000 | H33: ='5.1.2'!H34 -> 0 | I33: ='5.1.2'!I34 -> 10862.07918 | J33: ='5.1.6'!H33 -> 11444.16926 | K33: ='5.1.2'!K34 -> 12066.79824 | L33: ='5.1.2'!L34 -> 2500
C34: Current tax liabilities | E34: $'000 | H34: ='5.1.2'!H35 -> 0 | I34: ='5.1.2'!I35 -> 2584.598527 | J34: ='5.1.6'!H34 -> 3558.411262 | K34: ='5.1.2'!K35 -> 3562.127077 | L34: ='5.1.2'!L35 -> 3767.60797
C35: Provisions | E35: $'000 | H35: ='5.1.2'!H36 -> 29447 | I35: ='5.1.2'!I36 -> 17938.49105 | J35: ='5.1.6'!H35 -> 29096.84819 | K35: ='5.1.2'!K36 -> 20658.22657 | L35: ='5.1.2'!L36 -> 21054.15563
C36: Other | E36: $'000 | H36: ='5.1.2'!H37 -> 5298 | I36: ='5.1.2'!I37 -> 5430.45 | J36: ='5.1.6'!H36 -> 5606.939625 | K36: ='5.1.2'!K37 -> 5803.182512 | L36: ='5.1.2'!L37 -> 6001.944665
C37: Total current Liabilities | E37: $'000 | F37: =SUM(F32:F36) -> 0 | G37: 0 | H37: 96444 | I37: =SUM(I32:I36) -> 92164.26196 | J37: =SUM(J32:J36) -> 106809.7221 | K37: 102551.1741 | L37: =SUM(L32:L36) -> 97081.6673
C39: Non-Current Liabilities
C41: Payables | E41: $'000 | H41: ='5.1.2'!H42 -> 0 | I41: ='5.1.2'!I42 -> 0 | J41: ='5.1.6'!H41 -> 0 | K41: ='5.1.2'!K42 -> 0 | L41: ='5.1.2'!L42 -> 0
C42: Intrest-bearing liabilities | E42: $'000 | H42: ='5.1.2'!H43 -> 1322216 | I42: ='5.1.2'!I43 -> 1396629.974 | J42: ='5.1.6'!H42 -> 1471551.814 | K42: ='5.1.2'!K43 -> 1554393.294 | L42: ='5.1.2'!L43 -> 1624476.916
C43: Current tax liabilities | E43: $'000 | H43: ='5.1.2'!H44 -> 20006 | I43: ='5.1.2'!I44 -> 19002.46017 | J43: ='5.1.6'!H43 -> 14295.95085 | K43: ='5.1.2'!K44 -> 14295.95085 | L43: ='5.1.2'!L44 -> 14295.95085
C44: Provisions | E44: $'000 | H44: ='5.1.2'!H45 -> 10309 | I44: ='5.1.2'!I45 -> 12124.03275 | J44: ='5.1.6'!H44 -> 12456.27785 | K44: ='5.1.2'!K45 -> 13009.47841 | L44: ='5.1.2'!L45 -> 13495.60463
C45: Other | E45: $'000 | H45: ='5.1.2'!H46 -> 0 | I45: ='5.1.2'!I46 -> 0 | J45: ='5.1.6'!H45 -> 0 | K45: ='5.1.2'!K46 -> 0 | L45: ='5.1.2'!L46 -> 0
C46: Total Non-Current Liabilities | E46: $'000 | F46: =SUM(F41:F45) -> 0 | G46: 0 | H46: 1352531 | I46: =SUM(I41:I45) -> 1427756.467 | J46: =SUM(J41:J45) -> 1498304.043 | K46: 1581698.723 | L46: =SUM(L41:L45) -> 1652268.472
C48: TOTAL LIABILITIES | E48: $'000 | F48: =F46+F37 -> 0 | G48: 0 | H48: 1448975 | I48: =I46+I37 -> 1519920.728 | J48: =J46+J37 -> 1605113.765 | K48: 1684249.897 | L48: =L46+L37 -> 1749350.139
C50: NET ASSETS/(LIABILITIES) | E50: $'000 | F50: =F28-F48 -> 0 | G50: 0 | H50: 1546714.338 | I50: =I28-I48 -> 1537937.649 | J50: =J28-J48 -> 1712351.307 | K50: 1820949.566 | L50: =L28-L48 -> 1901824.928
C52: Shareholders Equity
C54: Share Capital | E54: $'000 | H54: ='5.1.2'!H55 -> 1434782 | I54: ='5.1.2'!I55 -> 1434782 | J54: ='5.1.6'!H54 -> 1434782 | K54: ='5.1.2'!K55 -> 1434782 | L54: ='5.1.2'!L55 -> 1434782
C55: Reserves | E55: $'000 | I55: 70843.79434 | J55: ='5.1.6'!H55 -> 251204.031 | K55: 327702.9194 | L55: 372257.4157
C56: Retained earnings | E56: $'000 | F56: ='5.1.1'!F47+'5.1.7'!F45 -> 0 | G56: ='5.1.2'!G57 -> -13043 | H56: =G56+'5.1.7'!H45 -> 15339.92132 | I56: =H56+'5.1.7'!I45 -> 32311.85458 | J56: ='5.1.6'!H56 -> 26365.29189 | K56: =J56+'5.1.7'!K45 -> 58464.64636 | L56: =K56+'5.1.7'!L45 -> 94785.51272
C58: TOTAL SHAREHOLDERS EQUITY | E58: $'000 | F58: =SUM(F54:F56) -> 0 | G58: -13043 | H58: 1450121.921 | I58: =SUM(I54:I56) -> 1537937.649 | J58: =SUM(J54:J56) -> 1712351.323 | K58: 1820949.566 | L58: =SUM(L54:L56) -> 1901824.928

Sheet 5.2.1
AA1: ="If revenues are smoothed beyond "&J12&", additional data is to be provided for the corresponding period. Additional years can be accessed by clicking on the '+' sign above" -> If revenues are smoothed beyond 2013, additional data is to be provided for the corresponding period. Additional years can be accessed by clicking on the '+' sign above
B4: ='Business Details'!$B$4 -> SEQ INTERIM REVENUE MONITORING - INFORMATION REQUIREMENT TEMPLATE
B7: =CONCATENATE("Revenue Details for ",'Business Details'!$D$9) -> Revenue Details for Northern SEQ Distributor-Retailer Authority (trading as Unitywater ABN: 89 791 717 472)
B8: =CONCATENATE("Reporting year = ",AnalysisYear) -> Reporting year = 2013
F10: 0 | G10: 1 | H10: 2 | I10: 3 | J10: 4
F11: ='5.1.7'!F11 -> For Year Ending 30 June: | AA11: =CONCATENATE("For Year Ending 30 June ",AnalysisYear) -> For Year Ending 30 June 2013
F12: ='5.1.7'!F12 -> 2009 | G12: ='5.1.7'!G12 -> 2010 | H12: ='5.1.7'!H12 -> 2011 | I12: ='5.1.7'!I12 -> 2012 | J12: ='5.1.7'!J12 -> 2013 | K12: =J12+1 -> 2014 | L12: =K12+1 -> 2015 | M12: 2016 | N12: 2017 | O12: 2018 | P12: 2019 | Q12: 2020 | R12: 2021 | S12: 2022 | T12: 2023 | U12: 2024 | V12: 2025 | W12: 2026 | X12: 2027 | Y12: 2028 | AA12: Supporting Documents | AT12: =AS12 -> 
B14: ="Geographical Area 1 - "&'Business Details'!$D$12 -> Geographical Area 1 - Moreton Bay Regional Council
B16: REVENUE FROM SERVICES
C17: Revenue from water services:
C18: Drinking water | E18: $'000 | F18: ='[11]5.2.1 Revenue'!F18 -> 65434.77483 | G18: ='[11]5.2.1 Revenue'!G18 -> 68842.08605 | H18: ='[11]5.2.1 Revenue'!H18 -> 91563.31903 | I18: ='[11]5.2.1 Revenue'!I18 -> 112899.407 | J18: ='[11]5.2.1 Revenue'!J18 -> 122168.195 | K18: ='[11]5.2.1 Revenue'!K18 -> 139246.5214 | L18: ='[11]5.2.1 Revenue'!L18 -> 158710.413 | AA18: ..\..\..\..\Commercial Acctg\QCA Unitywater Submission 2012\CAM\CAM 12_13\12-13 Revenue Forecast - Price Freeze Apr 4.xlsx
C19: Other core water services | E19: $'000 | F19: ='[11]5.2.1 Revenue'!F19 -> 6990.02427 | G19: ='[11]5.2.1 Revenue'!G19 -> 7481.71631 | H19: ='[11]5.2.1 Revenue'!H19 -> 10261.94692 | I19: ='[11]5.2.1 Revenue'!I19 -> 8919.011 | J19: ='[11]5.2.1 Revenue'!J19 -> 10599.278 | K19: ='[11]5.2.1 Revenue'!K19 -> 11138.23927 | L19: ='[11]5.2.1 Revenue'!L19 -> 11623.95721
C21: Revenue from wastewater services:
C22: Wastewater via sewer | E22: $'000 | F22: ='[11]5.2.1 Revenue'!F22 -> 63098.0705 | G22: ='[11]5.2.1 Revenue'!G22 -> 77092.14949 | H22: ='[11]5.2.1 Revenue'!H22 -> 106986.0789 | I22: ='[11]5.2.1 Revenue'!I22 -> 113959.058 | J22: ='[11]5.2.1 Revenue'!J22 -> 115792.8725 | K22: ='[11]5.2.1 Revenue'!K22 -> 122068.3516 | L22: ='[11]5.2.1 Revenue'!L22 -> 129366.2919 | AA22: ..\..\..\..\Commercial Acctg\QCA Unitywater Submission 2012\CAM\CAM 12_13\12-13 Revenue Forecast - Price Freeze Apr 4.xlsx
C23: Trade waste | E23: $'000 | F23: ='[11]5.2.1 Revenue'!F23 -> 1439.24824 | G23: ='[11]5.2.1 Revenue'!G23 -> 1820.51453 | H23: ='[11]5.2.1 Revenue'!H23 -> 1199.19421 | I23: ='[11]5.2.1 Revenue'!I23 -> 1560.925 | J23: ='[11]5.2.1 Revenue'!J23 -> 1415.226 | K23: ='[11]5.2.1 Revenue'!K23 -> 1496.210536 | L23: ='[11]5.2.1 Revenue'!L23 -> 1585.659405
C24: Other core wastewater services | E24: $'000 | F24: ='[11]5.2.1 Revenue'!F24 -> 2402.6 | G24: ='[11]5.2.1 Revenue'!G24 -> 0 | H24: ='[11]5.2.1 Revenue'!H24 -> 1398.701397 | I24: ='[11]5.2.1 Revenue'!I24 -> 1347.766 | J24: ='[11]5.2.1 Revenue'!J24 -> 1106.363 | K24: ='[11]5.2.1 Revenue'!K24 -> 1172.505376 | L24: ='[11]5.2.1 Revenue'!L24 -> 1241.702198
C26: Non-regulated:
C27: Aggregate non-regulated services | E27: $'000 | F27: ='[11]5.2.1 Revenue'!F27 -> 5305.837 | G27: ='[11]5.2.1 Revenue'!G27 -> 4004.54302 | H27: ='[11]5.2.1 Revenue'!H27 -> 3516.459152 | I27: ='[11]5.2.1 Revenue'!I27 -> 2570.782925 | J27: ='[11]5.2.1 Revenue'!J27 -> 2510.8185 | K27: ='[11]5.2.1 Revenue'!K27 -> 2650.563108 | L27: ='[11]5.2.1 Revenue'!L27 -> 2796.05935 | AA27: ..\..\..\..\Commercial Acctg\QCA Unitywater Submission 2012\CAM\CAM 12_13\12-13 Revenue Forecast - Price Freeze Apr 4.xlsx
C29: Subtotal Revenue from Services | E29: $'000 | F29: =SUM(F18:F19)+SUM(F22:F24)+F27 -> 144670.5548 | G29: 159241.0094 | H29: 214925.6997 | I29: 241256.9499 | J29: 253592.753 | K29: 277772.3912 | L29: 305324.0831 | M29: 0 | N29: 0 | O29: 0 | P29: 0 | Q29: 0 | R29: 0 | S29: 0 | T29: 0 | U29: 0 | V29: 0 | W29: 0 | X29: 0 | Y29: 0
B31: OTHER REVENUE
C32: Other Revenue Offset Against Revenue Requirements:
C33: Investment Income | E33: $'000 | F33: ='[11]5.2.1 Revenue'!F33 -> 0 | G33: ='[11]5.2.1 Revenue'!G33 -> 0 | H33: ='[11]5.2.1 Revenue'!H33 -> 0 | I33: ='[11]5.2.1 Revenue'!I33 -> 0 | J33: ='[11]5.2.1 Revenue'!J33 -> 0 | K33: ='[11]5.2.1 Revenue'!K33 -> 0 | L33: ='[11]5.2.1 Revenue'!L33 -> 0 | AA33: ..\..\..\..\Commercial Acctg\QCA Unitywater Submission 2012\CAM\CAM 12_13\12-13 Revenue Forecast - Price Freeze Apr 4.xlsx
C34: Net profit from Sale of Assets | E34: $'000 | F34: ='[11]5.2.1 Revenue'!F34 -> 0 | G34: ='[11]5.2.1 Revenue'!G34 -> -3308.32667 | H34: ='[11]5.2.1 Revenue'!H34 -> 0 | I34: ='[11]5.2.1 Revenue'!I34 -> 0 | J34: ='[11]5.2.1 Revenue'!J34 -> 0 | K34: ='[11]5.2.1 Revenue'!K34 -> 0 | L34: ='[11]5.2.1 Revenue'!L34 -> 0
C35: Contributions | E35: $'000 | F35: ='[11]5.2.1 Revenue'!F35 -> 73309.827 | G35: ='[11]5.2.1 Revenue'!G35 -> 84211.71072 | H35: ='[11]5.2.1 Revenue'!H35 -> 77661.26054 | I35: ='[11]5.2.1 Revenue'!I35 -> 19737.0905 | J35: ='[11]5.2.1 Revenue'!J35 -> 32811.028 | K35: ='[11]5.2.1 Revenue'!K35 -> 38650.4982 | L35: ='[11]5.2.1 Revenue'!L35 -> 39974.29875
C37: Other Revenue Not Offset Against Revenue Requirements:
C38: Investment Income | E38: $'000 | F38: ='[11]5.2.1 Revenue'!F38 -> 2716.819 | G38: ='[11]5.2.1 Revenue'!G38 -> 0 | H38: ='[11]5.2.1 Revenue'!H38 -> 870.002625 | I38: ='[11]5.2.1 Revenue'!I38 -> 1313.151 | J38: ='[11]5.2.1 Revenue'!J38 -> 181.5865 | K38: ='[11]5.2.1 Revenue'!K38 -> 187.9420275 | L38: ='[11]5.2.1 Revenue'!L38 -> 194.379144 | AA38: ..\..\..\..\Commercial Acctg\QCA Unitywater Submission 2012\CAM\CAM 12_13\12-13 Revenue Forecast - Price Freeze Apr 4.xlsx
C39: Net profit from Sale of Assets | E39: $'000 | F39: ='[11]5.2.1 Revenue'!F39 -> 0 | G39: ='[11]5.2.1 Revenue'!G39 -> 0 | H39: ='[11]5.2.1 Revenue'!H39 -> 0 | I39: ='[11]5.2.1 Revenue'!I39 -> 740.9655 | J39: ='[11]5.2.1 Revenue'!J39 -> 0 | K39: ='[11]5.2.1 Revenue'!K39 -> 0 | L39: ='[11]5.2.1 Revenue'!L39 -> 0
C40: Contributions | E40: $'000 | F40: ='[11]5.2.1 Revenue'!F40 -> 0 | G40: ='[11]5.2.1 Revenue'!G40 -> 0 | H40: ='[11]5.2.1 Revenue'!H40 -> 0 | I40: ='[11]5.2.1 Revenue'!I40 -> 0 | J40: ='[11]5.2.1 Revenue'!J40 -> 0 | K40: ='[11]5.2.1 Revenue'!K40 -> 0 | L40: ='[11]5.2.1 Revenue'!L40 -> 0
C42: Subtotal Other Revenue | E42: $'000 | F42: =SUM(F33:F35)+SUM(F38:F40) -> 76026.646 | G42: =SUM(G33:G35)+SUM(G38:G40) -> 80903.38405 | H42: =SUM(H33:H35)+SUM(H38:H40) -> 78531.26316 | I42: =SUM(I33:I35)+SUM(I38:I40) -> 21791.207 | J42: =SUM(J33:J35)+SUM(J38:J40) -> 32992.6145 | K42: =SUM(K33:K35)+SUM(K38:K40) -> 38838.44022 | L42: 40168.6779 | M42: 0 | N42: 0 | O42: 0 | P42: 0 | Q42: 0 | R42: 0 | S42: 0 | T42: 0 | U42: 0 | V42: 0 | W42: 0 | X42: 0 | Y42: 0
B44: TOTAL REVENUE | E44: $'000 | F44: =F42+F29 -> 220697.2008 | G44: =G42+G29 -> 240144.3935 | H44: =H42+H29 -> 293456.9628 | I44: =I42+I29 -> 263048.1569 | J44: =J42+J29 -> 286585.3675 | K44: =K42+K29 -> 316610.8315 | L44: 345492.761 | M44: 0 | N44: 0 | O44: 0 | P44: 0 | Q44: 0 | R44: 0 | S44: 0 | T44: 0 | U44: 0 | V44: 0 | W44: 0 | X44: 0 | Y44: 0
F47: =F11 -> For Year Ending 30 June: | AA47: =AA11 -> For Year Ending 30 June 2013
F48: =F12 -> 2009 | G48: =G12 -> 2010 | H48: =H12 -> 2011 | I48: =I12 -> 2012 | J48: =J12 -> 2013 | K48: =K12 -> 2014 | L48: 2015 | M48: 2016 | N48: 2017 | O48: 2018 | P48: 2019 | Q48: 2020 | R48: 2021 | S48: 2022 | T48: 2023 | U48: 2024 | V48: 2025 | W48: 2026 | X48: 2027 | Y48: 2028 | AA48: =AA12 -> Supporting Documents | AT48: =AS48 -> 
B50: ="Geographical Area 2 - "&'Business Details'!$D$13 -> Geographical Area 2 - Sunshine Coast Regional Council
B52: =B16 -> REVENUE FROM SERVICES
C53: =C17 -> Revenue from water services:
C54: =C18 -> Drinking water | E54: $'000 | F54: ='[11]5.2.1 Revenue'!F54 -> 57187.63367 | G54: ='[11]5.2.1 Revenue'!G54 -> 76298 | H54: ='[11]5.2.1 Revenue'!H54 -> 67228.37658 | I54: ='[11]5.2.1 Revenue'!I54 -> 83692.683 | J54: ='[11]5.2.1 Revenue'!J54 -> 96922.11 | K54: ='[11]5.2.1 Revenue'!K54 -> 112256.1354 | L54: ='[11]5.2.1 Revenue'!L54 -> 125631.6869 | AA54: ..\..\..\..\Commercial Acctg\QCA Unitywater Submission 2012\CAM\CAM 12_13\12-13 Revenue Forecast - Price Freeze Apr 4.xlsx
C55: =C19 -> Other core water services | E55: $'000 | F55: ='[11]5.2.1 Revenue'!F55 -> 0 | G55: ='[11]5.2.1 Revenue'!G55 -> 0 | H55: ='[11]5.2.1 Revenue'!H55 -> 2412.379662 | I55: ='[11]5.2.1 Revenue'!I55 -> 2420 | J55: ='[11]5.2.1 Revenue'!J55 -> 2280.6645 | K55: ='[11]5.2.1 Revenue'!K55 -> 2465.840543 | L55: ='[11]5.2.1 Revenue'!L55 -> 2767.56501
C57: =C21 -> Revenue from wastewater services:
C58: =C22 -> Wastewater via sewer | E58: $'000 | F58: ='[11]5.2.1 Revenue'!F58 -> 70342.17561 | G58: ='[11]5.2.1 Revenue'!G58 -> 83950.41694 | H58: ='[11]5.2.1 Revenue'!H58 -> 83852.92355 | I58: ='[11]5.2.1 Revenue'!I58 -> 83155.204 | J58: ='[11]5.2.1 Revenue'!J58 -> 85629.658 | K58: ='[11]5.2.1 Revenue'!K58 -> 90345.77532 | L58: ='[11]5.2.1 Revenue'!L58 -> 95653.98434 | AA58: ..\..\..\..\Commercial Acctg\QCA Unitywater Submission 2012\CAM\CAM 12_13\12-13 Revenue Forecast - Price Freeze Apr 4.xlsx
C59: =C23 -> Trade waste | E59: $'000 | F59: ='[11]5.2.1 Revenue'!F59 -> 862.962 | G59: ='[11]5.2.1 Revenue'!G59 -> 569.3299493 | H59: ='[11]5.2.1 Revenue'!H59 -> 1414.38784 | I59: ='[11]5.2.1 Revenue'!I59 -> 1306.328 | J59: ='[11]5.2.1 Revenue'!J59 -> 1753.273 | K59: ='[11]5.2.1 Revenue'!K59 -> 1851.96326 | L59: ='[11]5.2.1 Revenue'!L59 -> 1960.945294
C60: =C24 -> Other core wastewater services | E60: $'000 | F60: ='[11]5.2.1 Revenue'!F60 -> 0 | G60: ='[11]5.2.1 Revenue'!G60 -> 0 | H60: ='[11]5.2.1 Revenue'!H60 -> 1219.426423 | I60: ='[11]5.2.1 Revenue'!I60 -> 954.083 | J60: ='[11]5.2.1 Revenue'!J60 -> 635.1375 | K60: ='[11]5.2.1 Revenue'!K60 -> 672.5132829 | L60: ='[11]5.2.1 Revenue'!L60 -> 711.572877
C62: =C26 -> Non-regulated:
C63: =C27 -> Aggregate non-regulated services | E63: $'000 | F63: ='[11]5.2.1 Revenue'!F63 -> 12536.96576 | G63: ='[11]5.2.1 Revenue'!G63 -> 149.2531073 | H63: ='[11]5.2.1 Revenue'!H63 -> 1809.648468 | I63: ='[11]5.2.1 Revenue'!I63 -> 2930.115925 | J63: ='[11]5.2.1 Revenue'!J63 -> 2427.7655 | K63: ='[11]5.2.1 Revenue'!K63 -> 2567.203546 | L63: ='[11]5.2.1 Revenue'!L63 -> 2712.684465 | AA63: ..\..\..\..\Commercial Acctg\QCA Unitywater Submission 2012\CAM\CAM 12_13\12-13 Revenue Forecast - Price Freeze Apr 4.xlsx
C65: =C29 -> Subtotal Revenue from Services | E65: $'000 | F65: =SUM(F54:F55)+SUM(F58:F60)+F63 -> 140929.737 | G65: 160967 | H65: =SUM(H54:H55)+SUM(H58:H60)+H63 -> 157937.1425 | I65: =SUM(I54:I55)+SUM(I58:I60)+I63 -> 174458.4139 | J65: 189648.6085 | K65: 210159.4313 | L65: 229438.4389 | M65: 0 | N65: 0 | O65: 0 | P65: 0 | Q65: 0 | R65: 0 | S65: 0 | T65: 0 | U65: 0 | V65: 0 | W65: 0 | X65: 0 | Y65: 0
B67: =B31 -> OTHER REVENUE
C68: =C32 -> Other Revenue Offset Against Revenue Requirements:
C69: =C33 -> Investment Income | E69: $'000 | F69: ='[11]5.2.1 Revenue'!F69 -> 0 | G69: ='[11]5.2.1 Revenue'!G69 -> 0 | H69: ='[11]5.2.1 Revenue'!H69 -> 0 | I69: ='[11]5.2.1 Revenue'!I69 -> 0 | J69: ='[11]5.2.1 Revenue'!J69 -> 0 | K69: ='[11]5.2.1 Revenue'!K69 -> 0 | L69: ='[11]5.2.1 Revenue'!L69 -> 0 | AA69: ..\..\..\..\Commercial Acctg\QCA Unitywater Submission 2012\CAM\CAM 12_13\12-13 Revenue Forecast - Price Freeze Apr 4.xlsx
C70: =C34 -> Net profit from Sale of Assets | E70: $'000 | F70: ='[11]5.2.1 Revenue'!F70 -> 0 | G70: ='[11]5.2.1 Revenue'!G70 -> 0 | H70: ='[11]5.2.1 Revenue'!H70 -> 0 | I70: ='[11]5.2.1 Revenue'!I70 -> 0 | J70: ='[11]5.2.1 Revenue'!J70 -> 0 | K70: ='[11]5.2.1 Revenue'!K70 -> 0 | L70: ='[11]5.2.1 Revenue'!L70 -> 0
C71: =C35 -> Contributions | E71: $'000 | F71: ='[11]5.2.1 Revenue'!F71 -> 53532.01319 | G71: ='[11]5.2.1 Revenue'!G71 -> 28859 | H71: ='[11]5.2.1 Revenue'!H71 -> 21441.22043 | I71: ='[11]5.2.1 Revenue'!I71 -> 45304.2105 | J71: ='[11]5.2.1 Revenue'!J71 -> 32200.355 | K71: ='[11]5.2.1 Revenue'!K71 -> 28279.75402 | L71: ='[11]5.2.1 Revenue'!L71 -> 29248.35096
C73: =C37 -> Other Revenue Not Offset Against Revenue Requirements:
C74: =C38 -> Investment Income | E74: $'000 | F74: ='[11]5.2.1 Revenue'!F74 -> 1352 | G74: ='[11]5.2.1 Revenue'!G74 -> 0 | H74: ='[11]5.2.1 Revenue'!H74 -> 870.002625 | I74: ='[11]5.2.1 Revenue'!I74 -> 1313.151 | J74: ='[11]5.2.1 Revenue'!J74 -> 181.5865 | K74: ='[11]5.2.1 Revenue'!K74 -> 187.9420275 | L74: ='[11]5.2.1 Revenue'!L74 -> 194.379144 | AA74: ..\..\..\..\Commercial Acctg\QCA Unitywater Submission 2012\CAM\CAM 12_13\12-13 Revenue Forecast - Price Freeze Apr 4.xlsx
C75: =C39 -> Net profit from Sale of Assets | E75: $'000 | F75: ='[11]5.2.1 Revenue'!F75 -> 0 | G75: ='[11]5.2.1 Revenue'!G75 -> 0 | H75: ='[11]5.2.1 Revenue'!H75 -> 0 | I75: ='[11]5.2.1 Revenue'!I75 -> 740.9655 | J75: ='[11]5.2.1 Revenue'!J75 -> 0 | K75: ='[11]5.2.1 Revenue'!K75 -> 0 | L75: ='[11]5.2.1 Revenue'!L75 -> 0
C76: =C40 -> Contributions | E76: $'000 | F76: ='[11]5.2.1 Revenue'!F76 -> 0 | G76: ='[11]5.2.1 Revenue'!G76 -> 0 | H76: ='[11]5.2.1 Revenue'!H76 -> 0 | I76: ='[11]5.2.1 Revenue'!I76 -> 0 | J76: ='[11]5.2.1 Revenue'!J76 -> 0 | K76: ='[11]5.2.1 Revenue'!K76 -> 0 | L76: ='[11]5.2.1 Revenue'!L76 -> 0
C78: =C42 -> Subtotal Other Revenue | E78: $'000 | F78: =SUM(F69:F71)+SUM(F74:F76) -> 54884.01319 | G78: =SUM(G69:G71)+SUM(G74:G76) -> 28859 | H78: =SUM(H69:H71)+SUM(H74:H76) -> 22311.22306 | I78: =SUM(I69:I71)+SUM(I74:I76) -> 47358.327 | J78: =SUM(J69:J71)+SUM(J74:J76) -> 32381.9415 | K78: =SUM(K69:K71)+SUM(K74:K76) -> 28467.69605 | L78: 29442.7301 | M78: 0 | N78: 0 | O78: 0 | P78: 0 | Q78: 0 | R78: 0 | S78: 0 | T78: 0 | U78: 0 | V78: 0 | W78: 0 | X78: 0 | Y78: 0
B80: =B44 -> TOTAL REVENUE | E80: $'000 | F80: =F78+F65 -> 195813.7502 | G80: =G78+G65 -> 189826 | H80: =H78+H65 -> 180248.3656 | I80: =I78+I65 -> 221816.7409 | J80: =J78+J65 -> 222030.55 | K80: =K78+K65 -> 238627.1274 | L80: 258881.169 | M80: 0 | N80: 0 | O80: 0 | P80: 0 | Q80: 0 | R80: 0 | S80: 0 | T80: 0 | U80: 0 | V80: 0 | W80: 0 | X80: 0 | Y80: 0
F83: =F47 -> For Year Ending 30 June: | AA83: =AA47 -> For Year Ending 30 June 2013
F84: =F48 -> 2009 | G84: =G48 -> 2010 | H84: =H48 -> 2011 | I84: =I48 -> 2012 | J84: =J48 -> 2013 | K84: =K48 -> 2014 | L84: 2015 | M84: 2016 | N84: 2017 | O84: 2018 | P84: 2019 | Q84: 2020 | R84: 2021 | S84: 2022 | T84: 2023 | U84: 2024 | V84: 2025 | W84: 2026 | X84: 2027 | Y84: 2028 | AA84: =AA48 -> Supporting Documents | AT84: =AS84 -> 
B86: ="Geographical Area 3 - "&'Business Details'!$D$14 -> Geographical Area 3 - N/A
B88: =B52 -> REVENUE FROM SERVICES
C89: =C53 -> Revenue from water services:
C90: =C54 -> Drinking water | E90: $'000
C91: =C55 -> Other core water services | E91: $'000
C93: =C57 -> Revenue from wastewater services:
C94: =C58 -> Wastewater via sewer | E94: $'000
C95: =C59 -> Trade waste | E95: $'000
C96: =C60 -> Other core wastewater services | E96: $'000
C98: =C62 -> Non-regulated:
C99: =C63 -> Aggregate non-regulated services | E99: $'000
C101: =C65 -> Subtotal Revenue from Services | E101: $'000 | F101: =SUM(F90:F91)+SUM(F94:F96)+F99 -> 0 | G101: 0 | H101: 0 | I101: 0 | J101: 0 | K101: 0 | L101: 0 | M101: 0 | N101: 0 | O101: 0 | P101: 0 | Q101: 0 | R101: 0 | S101: 0 | T101: 0 | U101: 0 | V101: 0 | W101: 0 | X101: 0 | Y101: 0
B103: =B67 -> OTHER REVENUE
C104: =C68 -> Other Revenue Offset Against Revenue Requirements:
C105: =C69 -> Investment Income | E105: $'000
C106: =C70 -> Net profit from Sale of Assets | E106: $'000
C107: =C71 -> Contributions | E107: $'000
C109: =C73 -> Other Revenue Not Offset Against Revenue Requirements:
C110: =C74 -> Investment Income | E110: $'000
C111: =C75 -> Net profit from Sale of Assets | E111: $'000
C112: =C76 -> Contributions | E112: $'000
C114: =C78 -> Subtotal Other Revenue | E114: $'000 | F114: =SUM(F105:F107)+SUM(F110:F112) -> 0 | G114: =SUM(G105:G107)+SUM(G110:G112) -> 0 | H114: =SUM(H105:H107)+SUM(H110:H112) -> 0 | I114: =SUM(I105:I107)+SUM(I110:I112) -> 0 | J114: =SUM(J105:J107)+SUM(J110:J112) -> 0 | K114: =SUM(K105:K107)+SUM(K110:K112) -> 0 | L114: 0 | M114: 0 | N114: 0 | O114: 0 | P114: 0 | Q114: 0 | R114: 0 | S114: 0 | T114: 0 | U114: 0 | V114: 0 | W114: 0 | X114: 0 | Y114: 0
B116: =B80 -> TOTAL REVENUE | E116: $'000 | F116: =F114+F101 -> 0 | G116: =G114+G101 -> 0 | H116: =H114+H101 -> 0 | I116: =I114+I101 -> 0 | J116: =J114+J101 -> 0 | K116: =K114+K101 -> 0 | L116: 0 | M116: 0 | N116: 0 | O116: 0 | P116: 0 | Q116: 0 | R116: 0 | S116: 0 | T116: 0 | U116: 0 | V116: 0 | W116: 0 | X116: 0 | Y116: 0
F119: =F83 -> For Year Ending 30 June: | AA119: =AA83 -> For Year Ending 30 June 2013
F120: =F84 -> 2009 | G120: =G84 -> 2010 | H120: =H84 -> 2011 | I120: =I84 -> 2012 | J120: =J84 -> 2013 | K120: =K84 -> 2014 | L120: 2015 | M120: 2016 | N120: 2017 | O120: 2018 | P120: 2019 | Q120: 2020 | R120: 2021 | S120: 2022 | T120: 2023 | U120: 2024 | V120: 2025 | W120: 2026 | X120: 2027 | Y120: 2028 | AA120: =AA84 -> Supporting Documents | AT120: =AS120 -> 
B122: ="Geographical Area 4 - "&'Business Details'!$D$15 -> Geographical Area 4 - N/A
B124: =B88 -> REVENUE FROM SERVICES
C125: =C89 -> Revenue from water services:
C126: =C90 -> Drinking water | E126: $'000
C127: =C91 -> Other core water services | E127: $'000
C129: =C93 -> Revenue from wastewater services:
C130: =C94 -> Wastewater via sewer | E130: $'000
C131: =C95 -> Trade waste | E131: $'000
C132: =C96 -> Other core wastewater services | E132: $'000
C134: =C98 -> Non-regulated:
C135: =C99 -> Aggregate non-regulated services | E135: $'000
C137: =C101 -> Subtotal Revenue from Services | E137: $'000 | F137: =SUM(F126:F127)+SUM(F130:F132)+F135 -> 0 | G137: 0 | H137: 0 | I137: 0 | J137: 0 | K137: 0 | L137: 0 | M137: 0 | N137: 0 | O137: 0 | P137: 0 | Q137: 0 | R137: 0 | S137: 0 | T137: 0 | U137: 0 | V137: 0 | W137: 0 | X137: 0 | Y137: 0
B139: =B103 -> OTHER REVENUE
C140: =C104 -> Other Revenue Offset Against Revenue Requirements:
C141: =C105 -> Investment Income | E141: $'000
C142: =C106 -> Net profit from Sale of Assets | E142: $'000
C143: =C107 -> Contributions | E143: $'000
C145: =C109 -> Other Revenue Not Offset Against Revenue Requirements:
C146: =C110 -> Investment Income | E146: $'000
C147: =C111 -> Net profit from Sale of Assets | E147: $'000
C148: =C112 -> Contributions | E148: $'000
C150: =C114 -> Subtotal Other Revenue | E150: $'000 | F150: =SUM(F141:F143)+SUM(F146:F148) -> 0 | G150: =SUM(G141:G143)+SUM(G146:G148) -> 0 | H150: =SUM(H141:H143)+SUM(H146:H148) -> 0 | I150: =SUM(I141:I143)+SUM(I146:I148) -> 0 | J150: =SUM(J141:J143)+SUM(J146:J148) -> 0 | K150: =SUM(K141:K143)+SUM(K146:K148) -> 0 | L150: 0 | M150: 0 | N150: 0 | O150: 0 | P150: 0 | Q150: 0 | R150: 0 | S150: 0 | T150: 0 | U150: 0 | V150: 0 | W150: 0 | X150: 0 | Y150: 0
B152: =B116 -> TOTAL REVENUE | E152: $'000 | F152: =F150+F137 -> 0 | G152: =G150+G137 -> 0 | H152: =H150+H137 -> 0 | I152: =I150+I137 -> 0 | J152: =J150+J137 -> 0 | K152: =K150+K137 -> 0 | L152: 0 | M152: 0 | N152: 0 | O152: 0 | P152: 0 | Q152: 0 | R152: 0 | S152: 0 | T152: 0 | U152: 0 | V152: 0 | W152: 0 | X152: 0 | Y152: 0
F155: =F119 -> For Year Ending 30 June: | AA155: =AA119 -> For Year Ending 30 June 2013
F156: =F120 -> 2009 | G156: =G120 -> 2010 | H156: =H120 -> 2011 | I156: =I120 -> 2012 | J156: =J120 -> 2013 | K156: =K120 -> 2014 | L156: 2015 | M156: 2016 | N156: 2017 | O156: 2018 | P156: 2019 | Q156: 2020 | R156: 2021 | S156: 2022 | T156: 2023 | U156: 2024 | V156: 2025 | W156: 2026 | X156: 2027 | Y156: 2028 | AA156: =AA120 -> Supporting Documents | AT156: =AS156 -> 
B158: ="Geographical Area 5 - "&'Business Details'!$D$16 -> Geographical Area 5 - N/A
B160: =B124 -> REVENUE FROM SERVICES
C161: =C125 -> Revenue from water services:
C162: =C126 -> Drinking water | E162: $'000
C163: =C127 -> Other core water services | E163: $'000
C165: =C129 -> Revenue from wastewater services:
C166: =C130 -> Wastewater via sewer | E166: $'000
C167: =C131 -> Trade waste | E167: $'000
C168: =C132 -> Other core wastewater services | E168: $'000
C170: =C134 -> Non-regulated:
C171: =C135 -> Aggregate non-regulated services | E171: $'000
C173: =C137 -> Subtotal Revenue from Services | E173: $'000 | F173: =SUM(F162:F163)+SUM(F166:F168)+F171 -> 0 | G173: 0 | H173: =SUM(H162:H163)+SUM(H166:H168)+H171 -> 0 | I173: =SUM(I162:I163)+SUM(I166:I168)+I171 -> 0 | J173: 0 | K173: 0 | L173: 0 | M173: 0 | N173: 0 | O173: 0 | P173: 0 | Q173: 0 | R173: 0 | S173: 0 | T173: 0 | U173: 0 | V173: 0 | W173: 0 | X173: 0 | Y173: 0
B175: =B139 -> OTHER REVENUE
C176: =C140 -> Other Revenue Offset Against Revenue Requirements:
C177: =C141 -> Investment Income | E177: $'000
C178: =C142 -> Net profit from Sale of Assets | E178: $'000
C179: =C143 -> Contributions | E179: $'000
C181: =C145 -> Other Revenue Not Offset Against Revenue Requirements:
C182: =C146 -> Investment Income | E182: $'000
C183: =C147 -> Net profit from Sale of Assets | E183: $'000
C184: =C148 -> Contributions | E184: $'000
C186: =C150 -> Subtotal Other Revenue | E186: $'000 | F186: =SUM(F177:F179)+SUM(F182:F184) -> 0 | G186: =SUM(G177:G179)+SUM(G182:G184) -> 0 | H186: =SUM(H177:H179)+SUM(H182:H184) -> 0 | I186: =SUM(I177:I179)+SUM(I182:I184) -> 0 | J186: =SUM(J177:J179)+SUM(J182:J184) -> 0 | K186: =SUM(K177:K179)+SUM(K182:K184) -> 0 | L186: 0 | M186: 0 | N186: 0 | O186: 0 | P186: 0 | Q186: 0 | R186: 0 | S186: 0 | T186: 0 | U186: 0 | V186: 0 | W186: 0 | X186: 0 | Y186: 0
B188: =B152 -> TOTAL REVENUE | E188: $'000 | F188: =F186+F173 -> 0 | G188: =G186+G173 -> 0 | H188: =H186+H173 -> 0 | I188: =I186+I173 -> 0 | J188: =J186+J173 -> 0 | K188: =K186+K173 -> 0 | L188: 0 | M188: 0 | N188: 0 | O188: 0 | P188: 0 | Q188: 0 | R188: 0 | S188: 0 | T188: 0 | U188: 0 | V188: 0 | W188: 0 | X188: 0 | Y188: 0
F191: =F155 -> For Year Ending 30 June: | AA191: =AA155 -> For Year Ending 30 June 2013
F192: =F156 -> 2009 | G192: =G156 -> 2010 | H192: =H156 -> 2011 | I192: =I156 -> 2012 | J192: =J156 -> 2013 | K192: =K156 -> 2014 | L192: 2015 | M192: 2016 | N192: 2017 | O192: 2018 | P192: 2019 | Q192: 2020 | R192: 2021 | S192: 2022 | T192: 2023 | U192: 2024 | V192: 2025 | W192: 2026 | X192: 2027 | Y192: 2028 | AA192: =AA156 -> Supporting Documents
B194: Unallocated Revenue
C196: REVENUE FROM SERVICES
C197: Revenue from water services:
C198: Drinking water | E198: $'000
C199: Other core water services | E199: $'000
C201: =C165 -> Revenue from wastewater services:
C202: =C166 -> Wastewater via sewer | E202: $'000
C203: =C167 -> Trade waste | E203: $'000
C204: =C168 -> Other core wastewater services | E204: $'000
C206: =C170 -> Non-regulated:
C207: =C171 -> Aggregate non-regulated services | E207: $'000
C209: =C173 -> Subtotal Revenue from Services | E209: $'000 | F209: =SUM(F198:F199)+SUM(F202:F204)+F207 -> 0 | G209: 0 | H209: 0 | I209: 0 | J209: 0 | K209: 0 | L209: 0 | M209: 0 | N209: 0 | O209: 0 | P209: 0 | Q209: 0 | R209: 0 | S209: 0 | T209: 0 | U209: 0 | V209: 0 | W209: 0 | X209: 0 | Y209: 0
B211: =B175 -> OTHER REVENUE
C212: =C176 -> Other Revenue Offset Against Revenue Requirements:
C213: =C177 -> Investment Income | E213: $'000
C214: =C178 -> Net profit from Sale of Assets | E214: $'000
C215: =C179 -> Contributions | E215: $'000
C217: =C181 -> Other Revenue Not Offset Against Revenue Requirements:
C218: =C182 -> Investment Income | E218: $'000
C219: =C183 -> Net profit from Sale of Assets | E219: $'000
C220: =C184 -> Contributions | E220: $'000
C222: =C186 -> Subtotal Other Revenue | E222: $'000 | F222: =SUM(F213:F215)+SUM(F218:F220) -> 0 | G222: =SUM(G213:G215)+SUM(G218:G220) -> 0 | H222: =SUM(H213:H215)+SUM(H218:H220) -> 0 | I222: =SUM(I213:I215)+SUM(I218:I220) -> 0 | J222: =SUM(J213:J215)+SUM(J218:J220) -> 0 | K222: =SUM(K213:K215)+SUM(K218:K220) -> 0 | L222: 0 | M222: 0 | N222: 0 | O222: 0 | P222: 0 | Q222: 0 | R222: 0 | S222: 0 | T222: 0 | U222: 0 | V222: 0 | W222: 0 | X222: 0 | Y222: 0
B224: TOTAL UNALLOCATED REVENUE | E224: $'000 | F224: =F222+F209 -> 0 | G224: =G222+G209 -> 0 | H224: =H222+H209 -> 0 | I224: =I222+I209 -> 0 | J224: =J222+J209 -> 0 | K224: =K222+K209 -> 0 | L224: 0 | M224: 0 | N224: 0 | O224: 0 | P224: 0 | Q224: 0 | R224: 0 | S224: 0 | T224: 0 | U224: 0 | V224: 0 | W224: 0 | X224: 0 | Y224: 0
F227: =F155 -> For Year Ending 30 June: | AA227: =AA155 -> For Year Ending 30 June 2013
F228: =F156 -> 2009 | G228: =G156 -> 2010 | H228: =H156 -> 2011 | I228: =I156 -> 2012 | J228: =J156 -> 2013 | K228: =K156 -> 2014 | L228: 2015 | M228: 2016 | N228: 2017 | O228: 2018 | P228: 2019 | Q228: 2020 | R228: 2021 | S228: 2022 | T228: 2023 | U228: 2024 | V228: 2025 | W228: 2026 | X228: 2027 | Y228: 2028 | AA228: =AA156 -> Supporting Documents
B230: Total
B232: =B160 -> REVENUE FROM SERVICES
C233: =C161 -> Revenue from water services:
C234: =C162 -> Drinking water | E234: $'000 | F234: =F18+F54+F90+F126+F162+F198 -> 122622.4085 | G234: 145140.086 | H234: 158791.6956 | I234: 196592.09 | J234: 219090.305 | K234: 251502.6567 | L234: 284342.0999 | M234: 0 | N234: 0 | O234: 0 | P234: 0 | Q234: 0 | R234: 0 | S234: 0 | T234: 0 | U234: 0 | V234: 0 | W234: 0 | X234: 0 | Y234: 0
C235: =C163 -> Other core water services | E235: $'000 | F235: =F19+F55+F91+F127+F163+F199 -> 6990.02427 | G235: =G19+G55+G91+G127+G163+G199 -> 7481.71631 | H235: =H19+H55+H91+H127+H163+H199 -> 12674.32658 | I235: =I19+I55+I91+I127+I163+I199 -> 11339.011 | J235: 12879.9425 | K235: 13604.07982 | L235: 14391.52222 | M235: 0 | N235: 0 | O235: 0 | P235: 0 | Q235: 0 | R235: 0 | S235: 0 | T235: 0 | U235: 0 | V235: 0 | W235: 0 | X235: 0 | Y235: 0
C237: =C165 -> Revenue from wastewater services:
C238: =C166 -> Wastewater via sewer | E238: $'000 | F238: =F22+F58+F94+F130+F166+F202 -> 133440.2461 | G238: 161042.5664 | H238: =H22+H58+H94+H130+H166+H202 -> 190839.0025 | I238: 197114.262 | J238: 201422.5305 | K238: 212414.1269 | L238: 225020.2762 | M238: 0 | N238: 0 | O238: 0 | P238: 0 | Q238: 0 | R238: 0 | S238: 0 | T238: 0 | U238: 0 | V238: 0 | W238: 0 | X238: 0 | Y238: 0
C239: =C167 -> Trade waste | E239: $'000 | F239: =F23+F59+F95+F131+F167+F203 -> 2302.21024 | G239: 2389.844479 | H239: 2613.58205 | I239: 2867.253 | J239: 3168.499 | K239: 3348.173795 | L239: 3546.604699 | M239: 0 | N239: 0 | O239: 0 | P239: 0 | Q239: 0 | R239: 0 | S239: 0 | T239: 0 | U239: 0 | V239: 0 | W239: 0 | X239: 0 | Y239: 0
C240: =C168 -> Other core wastewater services | E240: $'000 | F240: =F24+F60+F96+F132+F168+F204 -> 2402.6 | G240: 0 | H240: 2618.12782 | I240: 2301.849 | J240: 1741.5005 | K240: 1845.018659 | L240: 1953.275075 | M240: 0 | N240: 0 | O240: 0 | P240: 0 | Q240: 0 | R240: 0 | S240: 0 | T240: 0 | U240: 0 | V240: 0 | W240: 0 | X240: 0 | Y240: 0
C242: =C170 -> Non-regulated:
C243: =C171 -> Aggregate non-regulated services | E243: $'000 | F243: =F27+F63+F99+F135+F171+F207 -> 17842.80276 | G243: 4153.796127 | H243: =H27+H63+H99+H135+H171+H207 -> 5326.10762 | I243: =I27+I63+I99+I135+I171+I207 -> 5500.89885 | J243: 4938.584 | K243: 5217.766654 | L243: 5508.743816 | M243: 0 | N243: 0 | O243: 0 | P243: 0 | Q243: 0 | R243: 0 | S243: 0 | T243: 0 | U243: 0 | V243: 0 | W243: 0 | X243: 0 | Y243: 0
C245: =C173 -> Subtotal Revenue from Services | E245: $'000 | F245: =SUM(F234:F235)+SUM(F238:F240)+F243 -> 285600.2919 | G245: 320208.0094 | H245: 372862.8422 | I245: 415715.3638 | J245: 443241.3615 | K245: 487931.8225 | L245: 534762.522 | M245: 0 | N245: 0 | O245: 0 | P245: 0 | Q245: 0 | R245: 0 | S245: 0 | T245: 0 | U245: 0 | V245: 0 | W245: 0 | X245: 0 | Y245: 0
B247: =B175 -> OTHER REVENUE
C248: =C176 -> Other Revenue Offset Against Revenue Requirements:
C249: =C177 -> Investment Income | E249: $'000 | F249: =F33+F69+F105+F141+F177+F213 -> 0 | G249: 0 | H249: 0 | I249: 0 | J249: 0 | K249: 0 | L249: 0 | M249: 0 | N249: 0 | O249: 0 | P249: 0 | Q249: 0 | R249: 0 | S249: 0 | T249: 0 | U249: 0 | V249: 0 | W249: 0 | X249: 0 | Y249: 0
C250: =C178 -> Net profit from Sale of Assets | E250: $'000 | F250: =F34+F70+F106+F142+F178+F214 -> 0 | G250: -3308.32667 | H250: 0 | I250: 0 | J250: 0 | K250: 0 | L250: 0 | M250: 0 | N250: 0 | O250: 0 | P250: 0 | Q250: 0 | R250: 0 | S250: 0 | T250: 0 | U250: 0 | V250: 0 | W250: 0 | X250: 0 | Y250: 0
C251: =C179 -> Contributions | E251: $'000 | F251: =F35+F71+F107+F143+F179+F215 -> 126841.8402 | G251: 113070.7107 | H251: 99102.48097 | I251: 65041.301 | J251: 65011.383 | K251: 66930.25222 | L251: 69222.64971 | M251: 0 | N251: 0 | O251: 0 | P251: 0 | Q251: 0 | R251: 0 | S251: 0 | T251: 0 | U251: 0 | V251: 0 | W251: 0 | X251: 0 | Y251: 0
C253: =C181 -> Other Revenue Not Offset Against Revenue Requirements:
C254: =C182 -> Investment Income | E254: $'000 | F254: =F38+F74+F110+F146+F182+F218 -> 4068.819 | G254: 0 | H254: 1740.00525 | I254: 2626.302 | J254: 363.173 | K254: 375.884055 | L254: 388.7582881 | M254: 0 | N254: 0 | O254: 0 | P254: 0 | Q254: 0 | R254: 0 | S254: 0 | T254: 0 | U254: 0 | V254: 0 | W254: 0 | X254: 0 | Y254: 0
C255: =C183 -> Net profit from Sale of Assets | E255: $'000 | F255: =F39+F75+F111+F147+F183+F219 -> 0 | G255: 0 | H255: 0 | I255: 1481.931 | J255: 0 | K255: 0 | L255: 0 | M255: 0 | N255: 0 | O255: 0 | P255: 0 | Q255: 0 | R255: 0 | S255: 0 | T255: 0 | U255: 0 | V255: 0 | W255: 0 | X255: 0 | Y255: 0
C256: =C184 -> Contributions | E256: $'000 | F256: =F40+F76+F112+F148+F184+F220 -> 0 | G256: 0 | H256: 0 | I256: 0 | J256: 0 | K256: 0 | L256: 0 | M256: 0 | N256: 0 | O256: 0 | P256: 0 | Q256: 0 | R256: 0 | S256: 0 | T256: 0 | U256: 0 | V256: 0 | W256: 0 | X256: 0 | Y256: 0
C258: =C186 -> Subtotal Other Revenue | E258: $'000 | F258: =SUM(F249:F251)+SUM(F254:F256) -> 130910.6592 | G258: =SUM(G249:G251)+SUM(G254:G256) -> 109762.3841 | H258: =SUM(H249:H251)+SUM(H254:H256) -> 100842.4862 | I258: =SUM(I249:I251)+SUM(I254:I256) -> 69149.534 | J258: =SUM(J249:J251)+SUM(J254:J256) -> 65374.556 | K258: =SUM(K249:K251)+SUM(K254:K256) -> 67306.13627 | L258: 69611.408 | M258: 0 | N258: 0 | O258: 0 | P258: 0 | Q258: 0 | R258: 0 | S258: 0 | T258: 0 | U258: 0 | V258: 0 | W258: 0 | X258: 0 | Y258: 0
B260: =B188 -> TOTAL REVENUE | E260: $'000 | F260: =F258+F245 -> 416510.9511 | G260: =G258+G245 -> 429970.3934 | H260: =H258+H245 -> 473705.3284 | I260: =I258+I245 -> 484864.8978 | J260: =J258+J245 -> 508615.9175 | K260: =K258+K245 -> 555237.9588 | L260: 604373.93 | M260: 0 | N260: 0 | O260: 0 | P260: 0 | Q260: 0 | R260: 0 | S260: 0 | T260: 0 | U260: 0 | V260: 0 | W260: 0 | X260: 0 | Y260: 0

Sheet 5.2.2
B4: ='Business Details'!$B$4 -> SEQ INTERIM REVENUE MONITORING - INFORMATION REQUIREMENT TEMPLATE
B7: =CONCATENATE("Revenue Details for ",'Business Details'!$D$9," - Customer Groups for Year Ending 30 June ",AnalysisYear) -> Revenue Details for Northern SEQ Distributor-Retailer Authority (trading as Unitywater ABN: 89 791 717 472) - Customer Groups for Year Ending 30 June 2013
B8: =CONCATENATE("Reporting year = ",AnalysisYear) -> Reporting year = 2013
G10: 0 | H10: 0 | I10: 3 | J10: 4
F11: CUSTOMER GROUPS: | L11: =CONCATENATE("For Year Ending 30 June ",AnalysisYear) -> For Year Ending 30 June 2013
F12: Residential | G12: Non-residential | H12: Commercially Negotiated Agreements | I12: Other | J12: Total | L12: Supporting Documents | AE12: =AD12 -> 
B14: ="Geographical Area 1 - "&'Business Details'!$D$12 -> Geographical Area 1 - Moreton Bay Regional Council
B16: REVENUE FROM SERVICES
C17: Water:
C18: Drinking water | E18: $'000 | F18: ='[11]5.2.2 Revenue by Customer'!F18 -> 108394.5623 | G18: ='[11]5.2.2 Revenue by Customer'!G18 -> 11146.0754 | H18: ='[11]5.2.2 Revenue by Customer'!H18 -> 2627.557311 | I18: ='[11]5.2.2 Revenue by Customer'!I18 -> 0 | J18: =SUM(F18:I18) -> 122168.195 | K18: =IF($J18='5.2.1'!J18,"OK","check") -> OK | L18: ..\..\..\..\Commercial Acctg\QCA Unitywater Submission 2012\CAM\CAM 12_13\12-13 Revenue Forecast - Price Freeze Apr 4.xlsx
C19: Other core water services | E19: $'000 | F19: ='[11]5.2.2 Revenue by Customer'!F19 -> 0 | G19: ='[11]5.2.2 Revenue by Customer'!G19 -> 0 | H19: ='[11]5.2.2 Revenue by Customer'!H19 -> 0 | I19: ='[11]5.2.2 Revenue by Customer'!I19 -> 10599.278 | J19: =SUM(F19:I19) -> 10599.278 | K19: =IF($J19='5.2.1'!J19,"OK","check") -> OK
C21: Wastewater:
C22: Wastewater via sewer | E22: $'000 | F22: ='[11]5.2.2 Revenue by Customer'!F22 -> 110289.4252 | G22: ='[11]5.2.2 Revenue by Customer'!G22 -> 5503.447302 | H22: ='[11]5.2.2 Revenue by Customer'!H22 -> 0 | I22: ='[11]5.2.2 Revenue by Customer'!I22 -> 0 | J22: =SUM(F22:I22) -> 115792.8725 | K22: =IF($J22='5.2.1'!J22,"OK","check") -> OK | L22: ..\..\..\..\Commercial Acctg\QCA Unitywater Submission 2012\CAM\CAM 12_13\12-13 Revenue Forecast - Price Freeze Apr 4.xlsx
C23: Trade waste | E23: $'000 | F23: ='[11]5.2.2 Revenue by Customer'!F23 -> 0 | G23: ='[11]5.2.2 Revenue by Customer'!G23 -> 1415.226 | H23: ='[11]5.2.2 Revenue by Customer'!H23 -> 0 | I23: ='[11]5.2.2 Revenue by Customer'!I23 -> 0 | J23: =SUM(F23:I23) -> 1415.226 | K23: =IF($J23='5.2.1'!J23,"OK","check") -> OK
C24: Other core wastewater services | E24: $'000 | F24: ='[11]5.2.2 Revenue by Customer'!F24 -> 0 | G24: ='[11]5.2.2 Revenue by Customer'!G24 -> 0 | H24: ='[11]5.2.2 Revenue by Customer'!H24 -> 0 | I24: ='[11]5.2.2 Revenue by Customer'!I24 -> 1106.363 | J24: =SUM(F24:I24) -> 1106.363 | K24: =IF($J24='5.2.1'!J24,"OK","check") -> OK
C26: Non-regulated:
C27: Aggregate non-regulated services | E27: $'000 | F27: ='[11]5.2.2 Revenue by Customer'!F27 -> 0 | G27: ='[11]5.2.2 Revenue by Customer'!G27 -> 0 | H27: ='[11]5.2.2 Revenue by Customer'!H27 -> 0 | I27: ='[11]5.2.2 Revenue by Customer'!I27 -> 2510.8185 | J27: =SUM(F27:I27) -> 2510.8185 | K27: =IF($J27='5.2.1'!J27,"OK","check") -> OK | L27: ..\..\..\..\Commercial Acctg\QCA Unitywater Submission 2012\CAM\CAM 12_13\12-13 Revenue Forecast - Price Freeze Apr 4.xlsx
C29: Subtotal Revenue from Services | E29: $'000 | F29: =SUM(F18:F19)+SUM(F22:F24)+F27 -> 218683.9875 | G29: =SUM(G18:G19)+SUM(G22:G24)+G27 -> 18064.7487 | H29: =SUM(H18:H19)+SUM(H22:H24)+H27 -> 2627.557311 | I29: =SUM(I18:I19)+SUM(I22:I24)+I27 -> 14216.4595 | J29: =SUM(J18:J19)+SUM(J22:J24)+J27 -> 253592.753 | K29: =IF($J29='5.2.1'!J29,"OK","check") -> OK
B31: OTHER REVENUES
C32: Revenue Offset Against Revenue:
C33: Investment income | E33: $'000 | F33: ='[11]5.2.2 Revenue by Customer'!F33 -> 0 | G33: ='[11]5.2.2 Revenue by Customer'!G33 -> 0 | H33: ='[11]5.2.2 Revenue by Customer'!H33 -> 0 | I33: ='[11]5.2.2 Revenue by Customer'!I33 -> 0 | J33: =SUM(F33:I33) -> 0 | K33: =IF($J33='5.2.1'!J33,"OK","check") -> OK | L33: ..\..\..\..\Commercial Acctg\QCA Unitywater Submission 2012\CAM\CAM 12_13\12-13 Revenue Forecast - Price Freeze Apr 4.xlsx
C34: Net profit from sale of assets | E34: $'000 | F34: ='[11]5.2.2 Revenue by Customer'!F34 -> 0 | G34: ='[11]5.2.2 Revenue by Customer'!G34 -> 0 | H34: ='[11]5.2.2 Revenue by Customer'!H34 -> 0 | I34: ='[11]5.2.2 Revenue by Customer'!I34 -> 0 | J34: =SUM(F34:I34) -> 0 | K34: =IF($J34='5.2.1'!J34,"OK","check") -> OK
C35: Contributions | E35: $'000 | F35: ='[11]5.2.2 Revenue by Customer'!F35 -> 0 | G35: ='[11]5.2.2 Revenue by Customer'!G35 -> 0 | H35: ='[11]5.2.2 Revenue by Customer'!H35 -> 0 | I35: ='[11]5.2.2 Revenue by Customer'!I35 -> 32811.028 | J35: =SUM(F35:I35) -> 32811.028 | K35: =IF($J35='5.2.1'!J35,"OK","check") -> OK
C37: Revenue Not Offset Against Revenue:
C38: Investment income | E38: $'000 | F38: ='[11]5.2.2 Revenue by Customer'!F38 -> 0 | G38: ='[11]5.2.2 Revenue by Customer'!G38 -> 0 | H38: ='[11]5.2.2 Revenue by Customer'!H38 -> 0 | I38: ='[11]5.2.2 Revenue by Customer'!I38 -> 181.5865 | J38: =SUM(F38:I38) -> 181.5865 | K38: =IF($J38='5.2.1'!J38,"OK","check") -> OK | L38: ..\..\..\..\Commercial Acctg\QCA Unitywater Submission 2012\CAM\CAM 12_13\12-13 Revenue Forecast - Price Freeze Apr 4.xlsx
C39: Net profit from sale of assets | E39: $'000 | F39: ='[11]5.2.2 Revenue by Customer'!F39 -> 0 | G39: ='[11]5.2.2 Revenue by Customer'!G39 -> 0 | H39: ='[11]5.2.2 Revenue by Customer'!H39 -> 0 | I39: ='[11]5.2.2 Revenue by Customer'!I39 -> 0 | J39: =SUM(F39:I39) -> 0 | K39: =IF($J39='5.2.1'!J39,"OK","check") -> OK
C40: Contributions | E40: $'000 | F40: ='[11]5.2.2 Revenue by Customer'!F40 -> 0 | G40: ='[11]5.2.2 Revenue by Customer'!G40 -> 0 | H40: ='[11]5.2.2 Revenue by Customer'!H40 -> 0 | I40: ='[11]5.2.2 Revenue by Customer'!I40 -> 0 | J40: =SUM(F40:I40) -> 0 | K40: =IF($J40='5.2.1'!J40,"OK","check") -> OK
C42: Subtotal Other Revenues | E42: $'000 | F42: =SUM(F33:F35)+SUM(F38:F40) -> 0 | G42: =SUM(G33:G35)+SUM(G38:G40) -> 0 | H42: =SUM(H33:H35)+SUM(H38:H40) -> 0 | I42: =SUM(I33:I35)+SUM(I38:I40) -> 32992.6145 | J42: =SUM(J33:J35)+SUM(J38:J40) -> 32992.6145 | K42: =IF($J42='5.2.1'!J42,"OK","check") -> OK
B44: TOTAL REVENUE | E44: $'000 | F44: =F42+F29 -> 218683.9875 | G44: =G42+G29 -> 18064.7487 | H44: =H42+H29 -> 2627.557311 | I44: =I42+I29 -> 47209.074 | J44: =J42+J29 -> 286585.3675 | K44: =IF($J44='5.2.1'!J44,"OK","check") -> OK
F49: =F$11 -> CUSTOMER GROUPS: | L49: =L$11 -> For Year Ending 30 June 2013
F50: =F$12 -> Residential | G50: =G$12 -> Non-residential | H50: =H$12 -> Commercially Negotiated Agreements | I50: =I$12 -> Other | J50: =J$12 -> Total | L50: =L$12 -> Supporting Documents | AE50: =AD50 -> 
B52: ="Geographical Area 2 - "&'Business Details'!$D$13 -> Geographical Area 2 - Sunshine Coast Regional Council
B54: REVENUE FROM SERVICES
C55: Water:
C56: Drinking water | E56: $'000 | F56: ='[11]5.2.2 Revenue by Customer'!F56 -> 79870.71472 | G56: ='[11]5.2.2 Revenue by Customer'!G56 -> 17051.39528 | H56: ='[11]5.2.2 Revenue by Customer'!H56 -> 0 | I56: ='[11]5.2.2 Revenue by Customer'!I56 -> 0 | J56: =SUM(F56:I56) -> 96922.11 | K56: =IF($J56='5.2.1'!J54,"OK","check") -> OK | L56: ..\..\..\..\Commercial Acctg\QCA Unitywater Submission 2012\CAM\CAM 12_13\12-13 Revenue Forecast - Price Freeze Apr 4.xlsx
C57: Other core water services | E57: $'000 | F57: ='[11]5.2.2 Revenue by Customer'!F57 -> 0 | G57: ='[11]5.2.2 Revenue by Customer'!G57 -> 0 | H57: ='[11]5.2.2 Revenue by Customer'!H57 -> 0 | I57: ='[11]5.2.2 Revenue by Customer'!I57 -> 2280.6645 | J57: =SUM(F57:I57) -> 2280.6645 | K57: =IF($J57='5.2.1'!J55,"OK","check") -> OK
C59: Wastewater:
C60: Wastewater via sewer | E60: $'000 | F60: ='[11]5.2.2 Revenue by Customer'!F60 -> 73934.79401 | G60: ='[11]5.2.2 Revenue by Customer'!G60 -> 11694.86399 | H60: ='[11]5.2.2 Revenue by Customer'!H60 -> 0 | I60: ='[11]5.2.2 Revenue by Customer'!I60 -> 0 | J60: =SUM(F60:I60) -> 85629.658 | K60: =IF($J60='5.2.1'!J58,"OK","check") -> OK | L60: ..\..\..\..\Commercial Acctg\QCA Unitywater Submission 2012\CAM\CAM 12_13\12-13 Revenue Forecast - Price Freeze Apr 4.xlsx
C61: Trade waste | E61: $'000 | F61: ='[11]5.2.2 Revenue by Customer'!F61 -> 0 | G61: ='[11]5.2.2 Revenue by Customer'!G61 -> 1753.273 | H61: ='[11]5.2.2 Revenue by Customer'!H61 -> 0 | I61: ='[11]5.2.2 Revenue by Customer'!I61 -> 0 | J61: =SUM(F61:I61) -> 1753.273 | K61: =IF($J61='5.2.1'!J59,"OK","check") -> OK
C62: Other core wastewater services | F62: ='[11]5.2.2 Revenue by Customer'!F62 -> 0 | G62: ='[11]5.2.2 Revenue by Customer'!G62 -> 0 | H62: ='[11]5.2.2 Revenue by Customer'!H62 -> 0 | I62: ='[11]5.2.2 Revenue by Customer'!I62 -> 635.1375 | J62: =SUM(F62:I62) -> 635.1375 | K62: =IF($J62='5.2.1'!J60,"OK","check") -> OK
C64: Non-regulated:
C65: Aggregate non-regulated services | E65: $'000 | F65: ='[11]5.2.2 Revenue by Customer'!F65 -> 0 | G65: ='[11]5.2.2 Revenue by Customer'!G65 -> 0 | H65: ='[11]5.2.2 Revenue by Customer'!H65 -> 0 | I65: ='[11]5.2.2 Revenue by Customer'!I65 -> 2427.7655 | J65: =SUM(F65:I65) -> 2427.7655 | K65: =IF($J65='5.2.1'!J63,"OK","check") -> OK | L65: ..\..\..\..\Commercial Acctg\QCA Unitywater Submission 2012\CAM\CAM 12_13\12-13 Revenue Forecast - Price Freeze Apr 4.xlsx
C67: Subtotal Revenue from Services | E67: $'000 | F67: =SUM(F56:F57)+SUM(F60:F62)+F65 -> 153805.5087 | G67: =SUM(G56:G57)+SUM(G60:G62)+G65 -> 30499.53226 | H67: =SUM(H56:H57)+SUM(H60:H62)+H65 -> 0 | I67: =SUM(I56:I57)+SUM(I60:I62)+I65 -> 5343.5675 | J67: =SUM(J56:J57)+SUM(J60:J62)+J65 -> 189648.6085 | K67: =IF($J67='5.2.1'!J65,"OK","check") -> OK
B69: OTHER REVENUES
C70: Revenue Offset Against Revenue:
C71: Investment income | E71: $'000 | F71: ='[11]5.2.2 Revenue by Customer'!F71 -> 0 | G71: ='[11]5.2.2 Revenue by Customer'!G71 -> 0 | H71: ='[11]5.2.2 Revenue by Customer'!H71 -> 0 | I71: ='[11]5.2.2 Revenue by Customer'!I71 -> 0 | J71: =SUM(F71:I71) -> 0 | K71: =IF($J71='5.2.1'!J69,"OK","check") -> OK | L71: ..\..\..\..\Commercial Acctg\QCA Unitywater Submission 2012\CAM\CAM 12_13\12-13 Revenue Forecast - Price Freeze Apr 4.xlsx
C72: Net profit from sale of assets | E72: $'000 | F72: ='[11]5.2.2 Revenue by Customer'!F72 -> 0 | G72: ='[11]5.2.2 Revenue by Customer'!G72 -> 0 | H72: ='[11]5.2.2 Revenue by Customer'!H72 -> 0 | I72: ='[11]5.2.2 Revenue by Customer'!I72 -> 0 | J72: =SUM(F72:I72) -> 0 | K72: =IF($J72='5.2.1'!J70,"OK","check") -> OK
C73: Contributions | E73: $'000 | F73: ='[11]5.2.2 Revenue by Customer'!F73 -> 0 | G73: ='[11]5.2.2 Revenue by Customer'!G73 -> 0 | H73: ='[11]5.2.2 Revenue by Customer'!H73 -> 0 | I73: ='[11]5.2.2 Revenue by Customer'!I73 -> 32200.355 | J73: =SUM(F73:I73) -> 32200.355 | K73: =IF($J73='5.2.1'!J71,"OK","check") -> OK
C75: Revenue Not Offset Against Revenue:
C76: Investment income | E76: $'000 | F76: ='[11]5.2.2 Revenue by Customer'!F76 -> 0 | G76: ='[11]5.2.2 Revenue by Customer'!G76 -> 0 | H76: ='[11]5.2.2 Revenue by Customer'!H76 -> 0 | I76: ='[11]5.2.2 Revenue by Customer'!I76 -> 181.5865 | J76: =SUM(F76:I76) -> 181.5865 | K76: =IF($J76='5.2.1'!J74,"OK","check") -> OK | L76: ..\..\..\..\Commercial Acctg\QCA Unitywater Submission 2012\CAM\CAM 12_13\12-13 Revenue Forecast - Price Freeze Apr 4.xlsx
C77: Net profit from sale of assets | E77: $'000 | F77: ='[11]5.2.2 Revenue by Customer'!F77 -> 0 | G77: ='[11]5.2.2 Revenue by Customer'!G77 -> 0 | H77: ='[11]5.2.2 Revenue by Customer'!H77 -> 0 | I77: ='[11]5.2.2 Revenue by Customer'!I77 -> 0 | J77: =SUM(F77:I77) -> 0 | K77: =IF($J77='5.2.1'!J75,"OK","check") -> OK
C78: Contributions | E78: $'000 | F78: ='[11]5.2.2 Revenue by Customer'!F78 -> 0 | G78: ='[11]5.2.2 Revenue by Customer'!G78 -> 0 | H78: ='[11]5.2.2 Revenue by Customer'!H78 -> 0 | I78: ='[11]5.2.2 Revenue by Customer'!I78 -> 0 | J78: =SUM(F78:I78) -> 0 | K78: =IF($J78='5.2.1'!J76,"OK","check") -> OK
C80: Subtotal Other Revenues | E80: $'000 | F80: =SUM(F71:F73)+SUM(F76:F78) -> 0 | G80: =SUM(G71:G73)+SUM(G76:G78) -> 0 | H80: =SUM(H71:H73)+SUM(H76:H78) -> 0 | I80: =SUM(I71:I73)+SUM(I76:I78) -> 32381.9415 | J80: =SUM(J71:J73)+SUM(J76:J78) -> 32381.9415 | K80: =IF($J80='5.2.1'!J78,"OK","check") -> OK
B82: TOTAL REVENUE | E82: $'000 | F82: =F80+F67 -> 153805.5087 | G82: =G80+G67 -> 30499.53226 | H82: =H80+H67 -> 0 | I82: =I80+I67 -> 37725.509 | J82: =J80+J67 -> 222030.55 | K82: =IF($J82='5.2.1'!J80,"OK","check") -> OK
F87: =F$11 -> CUSTOMER GROUPS: | L87: =L$11 -> For Year Ending 30 June 2013
F88: =F$12 -> Residential | G88: =G$12 -> Non-residential | H88: =H$12 -> Commercially Negotiated Agreements | I88: =I$12 -> Other | J88: =J$12 -> Total | L88: =L$12 -> Supporting Documents | AE88: =AD88 -> 
B90: ="Geographical Area 3 - "&'Business Details'!$D$14 -> Geographical Area 3 - N/A
B92: REVENUE FROM SERVICES
C93: Water:
C94: Drinking water | E94: $'000 | J94: =SUM(F94:I94) -> 0 | K94: =IF($J94='5.2.1'!J90,"OK","check") -> OK
C95: Other core water services | E95: $'000 | J95: =SUM(F95:I95) -> 0 | K95: =IF($J95='5.2.1'!J91,"OK","check") -> OK
C97: Wastewater:
C98: Wastewater via sewer | E98: $'000 | J98: =SUM(F98:I98) -> 0 | K98: =IF($J98='5.2.1'!J94,"OK","check") -> OK
C99: Trade waste | E99: $'000 | J99: =SUM(F99:I99) -> 0 | K99: =IF($J99='5.2.1'!J95,"OK","check") -> OK
C100: Other core wastewater services | J100: =SUM(F100:I100) -> 0 | K100: =IF($J100='5.2.1'!J96,"OK","check") -> OK
C102: Non-regulated:
C103: Aggregate non-regulated services | E103: $'000 | J103: =SUM(F103:I103) -> 0 | K103: =IF($J103='5.2.1'!J99,"OK","check") -> OK
C105: Subtotal Revenue from Services | E105: $'000 | F105: =SUM(F94:F95)+SUM(F98:F100)+F103 -> 0 | G105: =SUM(G94:G95)+SUM(G98:G100)+G103 -> 0 | H105: =SUM(H94:H95)+SUM(H98:H100)+H103 -> 0 | I105: =SUM(I94:I95)+SUM(I98:I100)+I103 -> 0 | J105: =SUM(J94:J95)+SUM(J98:J100)+J103 -> 0 | K105: =IF($J105='5.2.1'!J101,"OK","check") -> OK
B107: OTHER REVENUES
C108: Revenue Offset Against Revenue:
C109: Investment income | E109: $'000 | J109: =SUM(F109:I109) -> 0 | K109: =IF($J109='5.2.1'!J105,"OK","check") -> OK
C110: Net profit from sale of assets | E110: $'000 | J110: =SUM(F110:I110) -> 0 | K110: =IF($J110='5.2.1'!J106,"OK","check") -> OK
C111: Contributions | E111: $'000 | J111: =SUM(F111:I111) -> 0 | K111: =IF($J111='5.2.1'!J107,"OK","check") -> OK
C113: Revenue Not Offset Against Revenue:
C114: Investment income | E114: $'000 | J114: =SUM(F114:I114) -> 0 | K114: =IF($J114='5.2.1'!J110,"OK","check") -> OK
C115: Net profit from sale of assets | E115: $'000 | J115: =SUM(F115:I115) -> 0 | K115: =IF($J115='5.2.1'!J111,"OK","check") -> OK
C116: Contributions | E116: $'000 | J116: =SUM(F116:I116) -> 0 | K116: =IF($J116='5.2.1'!J112,"OK","check") -> OK
C118: Subtotal Other Revenues | E118: $'000 | F118: =SUM(F109:F111)+SUM(F114:F116) -> 0 | G118: =SUM(G109:G111)+SUM(G114:G116) -> 0 | H118: =SUM(H109:H111)+SUM(H114:H116) -> 0 | I118: =SUM(I109:I111)+SUM(I114:I116) -> 0 | J118: =SUM(J109:J111)+SUM(J114:J116) -> 0 | K118: =IF($J118='5.2.1'!J114,"OK","check") -> OK
B120: TOTAL REVENUE | E120: $'000 | F120: =F118+F105 -> 0 | G120: =G118+G105 -> 0 | H120: =H118+H105 -> 0 | I120: =I118+I105 -> 0 | J120: =J118+J105 -> 0 | K120: =IF($J120='5.2.1'!J116,"OK","check") -> OK
F125: =F$11 -> CUSTOMER GROUPS: | L125: =L$11 -> For Year Ending 30 June 2013
F126: =F$12 -> Residential | G126: =G$12 -> Non-residential | H126: =H$12 -> Commercially Negotiated Agreements | I126: =I$12 -> Other | J126: =J$12 -> Total | L126: =L$12 -> Supporting Documents | AE126: =AD126 -> 
B128: ="Geographical Area 4 - "&'Business Details'!$D$15 -> Geographical Area 4 - N/A
B130: REVENUE FROM SERVICES
C131: Water:
C132: Drinking water | E132: $'000 | J132: =SUM(F132:I132) -> 0 | K132: =IF($J132='5.2.1'!J126,"OK","check") -> OK
C133: Other core water services | E133: $'000 | J133: =SUM(F133:I133) -> 0 | K133: =IF($J133='5.2.1'!J127,"OK","check") -> OK
C135: Wastewater:
C136: Wastewater via sewer | E136: $'000 | J136: =SUM(F136:I136) -> 0 | K136: =IF($J136='5.2.1'!J130,"OK","check") -> OK
C137: Trade waste | E137: $'000 | J137: =SUM(F137:I137) -> 0 | K137: =IF($J137='5.2.1'!J131,"OK","check") -> OK
C138: Other core wastewater services | J138: =SUM(F138:I138) -> 0 | K138: =IF($J138='5.2.1'!J132,"OK","check") -> OK
C140: Non-regulated:
C141: Aggregate non-regulated services | E141: $'000 | J141: =SUM(F141:I141) -> 0 | K141: =IF($J141='5.2.1'!J135,"OK","check") -> OK
C143: Subtotal Revenue from Services | E143: $'000 | F143: =SUM(F132:F133)+SUM(F136:F138)+F141 -> 0 | G143: =SUM(G132:G133)+SUM(G136:G138)+G141 -> 0 | H143: =SUM(H132:H133)+SUM(H136:H138)+H141 -> 0 | I143: =SUM(I132:I133)+SUM(I136:I138)+I141 -> 0 | J143: =SUM(J132:J133)+SUM(J136:J138)+J141 -> 0 | K143: =IF($J143='5.2.1'!J137,"OK","check") -> OK
B145: OTHER REVENUES
C146: Revenue Offset Against Revenue:
C147: Investment income | E147: $'000 | J147: =SUM(F147:I147) -> 0 | K147: =IF($J147='5.2.1'!J141,"OK","check") -> OK
C148: Net profit from sale of assets | E148: $'000 | J148: =SUM(F148:I148) -> 0 | K148: =IF($J148='5.2.1'!J142,"OK","check") -> OK
C149: Contributions | E149: $'000 | J149: =SUM(F149:I149) -> 0 | K149: =IF($J149='5.2.1'!J143,"OK","check") -> OK
C151: Revenue Not Offset Against Revenue:
C152: Investment income | E152: $'000 | J152: =SUM(F152:I152) -> 0 | K152: =IF($J152='5.2.1'!J146,"OK","check") -> OK
C153: Net profit from sale of assets | E153: $'000 | J153: =SUM(F153:I153) -> 0 | K153: =IF($J153='5.2.1'!J147,"OK","check") -> OK
C154: Contributions | E154: $'000 | J154: =SUM(F154:I154) -> 0 | K154: =IF($J154='5.2.1'!J148,"OK","check") -> OK
C156: Subtotal Other Revenues | E156: $'000 | F156: =SUM(F147:F149)+SUM(F152:F154) -> 0 | G156: =SUM(G147:G149)+SUM(G152:G154) -> 0 | H156: =SUM(H147:H149)+SUM(H152:H154) -> 0 | I156: =SUM(I147:I149)+SUM(I152:I154) -> 0 | J156: =SUM(J147:J149)+SUM(J152:J154) -> 0 | K156: =IF($J156='5.2.1'!J150,"OK","check") -> OK
B158: TOTAL REVENUE | E158: $'000 | F158: =F156+F143 -> 0 | G158: =G156+G143 -> 0 | H158: =H156+H143 -> 0 | I158: =I156+I143 -> 0 | J158: =J156+J143 -> 0 | K158: =IF($J158='5.2.1'!J152,"OK","check") -> OK
F163: =F$11 -> CUSTOMER GROUPS: | L163: =L$11 -> For Year Ending 30 June 2013
F164: =F$12 -> Residential | G164: =G$12 -> Non-residential | H164: =H$12 -> Commercially Negotiated Agreements | I164: =I$12 -> Other | J164: =J$12 -> Total | L164: =L$12 -> Supporting Documents | AE164: =AD164 -> 
B166: ="Geographical Area 5 - "&'Business Details'!$D$16 -> Geographical Area 5 - N/A
B168: REVENUE FROM SERVICES
C169: Water:
C170: Drinking water | E170: $'000 | J170: =SUM(F170:I170) -> 0 | K170: =IF($J170='5.2.1'!J162,"OK","check") -> OK
C171: Other core water services | E171: $'000 | J171: =SUM(F171:I171) -> 0 | K171: =IF($J171='5.2.1'!J163,"OK","check") -> OK
C173: Wastewater:
C174: Wastewater via sewer | E174: $'000 | J174: =SUM(F174:I174) -> 0 | K174: =IF($J174='5.2.1'!J166,"OK","check") -> OK
C175: Trade waste | E175: $'000 | J175: =SUM(F175:I175) -> 0 | K175: =IF($J175='5.2.1'!J167,"OK","check") -> OK
C176: Other core wastewater services | J176: =SUM(F176:I176) -> 0 | K176: =IF($J176='5.2.1'!J168,"OK","check") -> OK
C178: Non-regulated:
C179: Aggregate non-regulated services | E179: $'000 | J179: =SUM(F179:I179) -> 0 | K179: =IF($J179='5.2.1'!J171,"OK","check") -> OK
C181: Subtotal Revenue from Services | E181: $'000 | F181: =SUM(F170:F171)+SUM(F174:F176)+F179 -> 0 | G181: =SUM(G170:G171)+SUM(G174:G176)+G179 -> 0 | H181: =SUM(H170:H171)+SUM(H174:H176)+H179 -> 0 | I181: =SUM(I170:I171)+SUM(I174:I176)+I179 -> 0 | J181: =SUM(J170:J171)+SUM(J174:J176)+J179 -> 0 | K181: =IF($J181='5.2.1'!J173,"OK","check") -> OK
B183: OTHER REVENUES
C184: Revenue Offset Against Revenue:
C185: Investment income | E185: $'000 | J185: =SUM(F185:I185) -> 0 | K185: =IF($J185='5.2.1'!J177,"OK","check") -> OK
C186: Net profit from sale of assets | E186: $'000 | J186: =SUM(F186:I186) -> 0 | K186: =IF($J186='5.2.1'!J178,"OK","check") -> OK
C187: Contributions | E187: $'000 | J187: =SUM(F187:I187) -> 0 | K187: =IF($J187='5.2.1'!J179,"OK","check") -> OK
C189: Revenue Not Offset Against Revenue:
C190: Investment income | E190: $'000 | J190: =SUM(F190:I190) -> 0 | K190: =IF($J190='5.2.1'!J182,"OK","check") -> OK
C191: Net profit from sale of assets | E191: $'000 | J191: =SUM(F191:I191) -> 0 | K191: =IF($J191='5.2.1'!J183,"OK","check") -> OK
C192: Contributions | E192: $'000 | J192: =SUM(F192:I192) -> 0 | K192: =IF($J192='5.2.1'!J184,"OK","check") -> OK
C194: Subtotal Other Revenues | E194: $'000 | F194: =SUM(F185:F187)+SUM(F190:F192) -> 0 | G194: =SUM(G185:G187)+SUM(G190:G192) -> 0 | H194: =SUM(H185:H187)+SUM(H190:H192) -> 0 | I194: =SUM(I185:I187)+SUM(I190:I192) -> 0 | J194: =SUM(J185:J187)+SUM(J190:J192) -> 0 | K194: =IF($J194='5.2.1'!J186,"OK","check") -> OK
B196: TOTAL REVENUE | E196: $'000 | F196: =F194+F181 -> 0 | G196: =G194+G181 -> 0 | H196: =H194+H181 -> 0 | I196: =I194+I181 -> 0 | J196: =J194+J181 -> 0 | K196: =IF($J196='5.2.1'!J188,"OK","check") -> OK
F201: =F$11 -> CUSTOMER GROUPS: | L201: =L$11 -> For Year Ending 30 June 2013
F202: =F$12 -> Residential | G202: =G$12 -> Non-residential | H202: =H$12 -> Commercially Negotiated Agreements | I202: =I$12 -> Other | J202: =J$12 -> Total | L202: =L$12 -> Supporting Documents | AE202: =AD202 -> 
B204: Unallocated Revenue
B206: REVENUE FROM SERVICES
C207: Water:
C208: Drinking water | E208: $'000 | J208: =SUM(F208:I208) -> 0 | K208: =IF($J208='5.2.1'!J198,"OK","check") -> OK
C209: Other core water services | E209: $'000 | J209: =SUM(F209:I209) -> 0 | K209: =IF($J209='5.2.1'!J199,"OK","check") -> OK
C211: Wastewater:
C212: Wastewater via sewer | E212: $'000 | J212: =SUM(F212:I212) -> 0 | K212: =IF($J212='5.2.1'!J202,"OK","check") -> OK
C213: Trade waste | E213: $'000 | J213: =SUM(F213:I213) -> 0 | K213: =IF($J213='5.2.1'!J203,"OK","check") -> OK
C214: Other core wastewater services | J214: =SUM(F214:I214) -> 0 | K214: =IF($J214='5.2.1'!J204,"OK","check") -> OK
C216: Non-regulated:
C217: Aggregate non-regulated services | E217: $'000 | J217: =SUM(F217:I217) -> 0 | K217: =IF($J217='5.2.1'!J207,"OK","check") -> OK
C219: Subtotal Revenue from Services | E219: $'000 | F219: =SUM(F208:F209)+SUM(F212:F214)+F217 -> 0 | G219: =SUM(G208:G209)+SUM(G212:G214)+G217 -> 0 | H219: =SUM(H208:H209)+SUM(H212:H214)+H217 -> 0 | I219: =SUM(I208:I209)+SUM(I212:I214)+I217 -> 0 | J219: =SUM(J208:J209)+SUM(J212:J214)+J217 -> 0 | K219: =IF($J219='5.2.1'!J209,"OK","check") -> OK
B221: OTHER REVENUES
C222: Revenue Offset Against Revenue:
C223: Investment income | E223: $'000 | J223: =SUM(F223:I223) -> 0 | K223: =IF($J223='5.2.1'!J213,"OK","check") -> OK
C224: Net profit from sale of assets | E224: $'000 | J224: =SUM(F224:I224) -> 0 | K224: =IF($J224='5.2.1'!J214,"OK","check") -> OK
C225: Contributions | E225: $'000 | J225: =SUM(F225:I225) -> 0 | K225: =IF($J225='5.2.1'!J215,"OK","check") -> OK
C227: Revenue Not Offset Against Revenue:
C228: Investment income | E228: $'000 | J228: =SUM(F228:I228) -> 0 | K228: =IF($J228='5.2.1'!J218,"OK","check") -> OK
C229: Net profit from sale of assets | E229: $'000 | J229: =SUM(F229:I229) -> 0 | K229: =IF($J229='5.2.1'!J219,"OK","check") -> OK
C230: Contributions | E230: $'000 | J230: =SUM(F230:I230) -> 0 | K230: =IF($J230='5.2.1'!J220,"OK","check") -> OK
C232: Subtotal Other Revenues | E232: $'000 | F232: =SUM(F223:F225)+SUM(F228:F230) -> 0 | G232: =SUM(G223:G225)+SUM(G228:G230) -> 0 | H232: =SUM(H223:H225)+SUM(H228:H230) -> 0 | I232: =SUM(I223:I225)+SUM(I228:I230) -> 0 | J232: =SUM(J223:J225)+SUM(J228:J230) -> 0 | K232: =IF($J232='5.2.1'!J222,"OK","check") -> OK
B234: TOTAL REVENUE | E234: $'000 | F234: =F232+F219 -> 0 | G234: =G232+G219 -> 0 | H234: =H232+H219 -> 0 | I234: =I232+I219 -> 0 | J234: =J232+J219 -> 0 | K234: =IF($J234='5.2.1'!J224,"OK","check") -> OK
F239: =F$11 -> CUSTOMER GROUPS: | L239: =L$11 -> For Year Ending 30 June 2013
F240: =F$12 -> Residential | G240: =G$12 -> Non-residential | H240: =H$12 -> Commercially Negotiated Agreements | I240: =I$12 -> Other | J240: =J$12 -> Total | L240: =L$12 -> Supporting Documents
B242: Total
B244: REVENUE FROM SERVICES
C245: Water:
C246: Drinking water | E246: $'000 | F246: =F208+F170+F132+F94+F56+F18 -> 188265.277 | G246: 28197.47067 | H246: 2627.557311 | I246: 0 | J246: 219090.305 | K246: =IF($J246='5.2.1'!J234,"OK","check") -> OK
C247: Other core water services | E247: $'000 | F247: 0 | G247: 0 | H247: 0 | I247: 12879.9425 | J247: 12879.9425 | K247: =IF($J247='5.2.1'!J235,"OK","check") -> OK
C249: Wastewater:
C250: Wastewater via sewer | E250: $'000 | F250: =F212+F174+F136+F98+F60+F22 -> 184224.2192 | G250: 17198.31129 | H250: 0 | I250: 0 | J250: 201422.5305 | K250: =IF($J250='5.2.1'!J238,"OK","check") -> OK
C251: Trade waste | E251: $'000 | F251: 0 | G251: 3168.499 | H251: 0 | I251: 0 | J251: 3168.499 | K251: =IF($J251='5.2.1'!J239,"OK","check") -> OK
C252: Other core wastewater services | E252: $'000 | F252: 0 | G252: 0 | H252: 0 | I252: 1741.5005 | J252: 1741.5005 | K252: =IF($J252='5.2.1'!J240,"OK","check") -> OK
C254: Non-regulated:
C255: Aggregate non-regulated services | E255: $'000 | F255: =F217+F179+F141+F103+F65+F27 -> 0 | G255: =G217+G179+G141+G103+G65+G27 -> 0 | H255: =H217+H179+H141+H103+H65+H27 -> 0 | I255: =I217+I179+I141+I103+I65+I27 -> 4938.584 | J255: =J217+J179+J141+J103+J65+J27 -> 4938.584 | K255: =IF($J255='5.2.1'!J243,"OK","check") -> OK
C257: Subtotal Revenue from Services | E257: $'000 | F257: =SUM(F246:F247)+SUM(F250:F252)+F255 -> 372489.4962 | G257: =SUM(G246:G247)+SUM(G250:G252)+G255 -> 48564.28096 | H257: =SUM(H246:H247)+SUM(H250:H252)+H255 -> 2627.557311 | I257: =SUM(I246:I247)+SUM(I250:I252)+I255 -> 19560.027 | J257: =SUM(J246:J247)+SUM(J250:J252)+J255 -> 443241.3615 | K257: =IF($J257='5.2.1'!J245,"OK","check") -> OK
B259: OTHER REVENUES
C260: Revenue Offset Against Revenue:
C261: Investment income | E261: $'000 | F261: =F223+F185+F147+F109+F71+F33 -> 0 | G261: 0 | H261: 0 | I261: 0 | J261: 0 | K261: =IF($J261='5.2.1'!J249,"OK","check") -> OK
C262: Net profit from sale of assets | E262: $'000 | F262: 0 | G262: 0 | H262: 0 | I262: 0 | J262: 0 | K262: =IF($J262='5.2.1'!J250,"OK","check") -> OK
C263: Contributions | E263: $'000 | F263: 0 | G263: 0 | H263: 0 | I263: 65011.383 | J263: 65011.383 | K263: =IF($J263='5.2.1'!J251,"OK","check") -> OK
C265: Revenue Not Offset Against Revenue:
C266: Investment income | E266: $'000 | F266: =F228+F190+F152+F114+F76+F38 -> 0 | G266: 0 | H266: 0 | I266: 363.173 | J266: 363.173 | K266: =IF($J266='5.2.1'!J254,"OK","check") -> OK
C267: Net profit from sale of assets | E267: $'000 | F267: 0 | G267: 0 | H267: 0 | I267: 0 | J267: 0 | K267: =IF($J267='5.2.1'!J255,"OK","check") -> OK
C268: Contributions | E268: $'000 | F268: 0 | G268: 0 | H268: 0 | I268: 0 | J268: 0 | K268: =IF($J268='5.2.1'!J256,"OK","check") -> OK
C270: Subtotal Other Revenues | E270: $'000 | F270: =SUM(F261:F263)+SUM(F266:F268) -> 0 | G270: =SUM(G261:G263)+SUM(G266:G268) -> 0 | H270: =SUM(H261:H263)+SUM(H266:H268) -> 0 | I270: =SUM(I261:I263)+SUM(I266:I268) -> 65374.556 | J270: =SUM(J261:J263)+SUM(J266:J268) -> 65374.556 | K270: =IF($J270='5.2.1'!J258,"OK","check") -> OK
B272: TOTAL REVENUE | E272: $'000 | F272: =F270+F257 -> 372489.4962 | G272: =G270+G257 -> 48564.28096 | H272: =H270+H257 -> 2627.557311 | I272: =I270+I257 -> 84934.583 | J272: =J270+J257 -> 508615.9175 | K272: =IF($J272='5.2.1'!J260,"OK","check") -> OK

Sheet 5.2.3
B4: ='Business Details'!$B$4 -> SEQ INTERIM REVENUE MONITORING - INFORMATION REQUIREMENT TEMPLATE
B7: =CONCATENATE("Revenue Details for ",'Business Details'!$D$9," - Tariff Structures") -> Revenue Details for Northern SEQ Distributor-Retailer Authority (trading as Unitywater ABN: 89 791 717 472) - Tariff Structures
B8: =CONCATENATE("Reporting year = ",AnalysisYear) -> Reporting year = 2013
D13: Geographic Area | F13: Service Category | H13: Capped | J13: Customer Category | N13: Type | R13: For Year Ending 30 June: | Z13: Supporting
C14: Parameter | D14: (dropdown list) | F14: (dropdown list) | H14: (dropdown list) | J14: (dropdown list) | L14: Tariff Description | N14: (dropdown list) | P14: Unit | R14: ='5.1.1'!F13 -> 2009 | S14: ='5.1.1'!G13 -> 2010 | T14: ='5.1.1'!H13 -> 2011 | U14: ='5.1.1'!I13 -> 2012 | V14: ='5.1.1'!J13 -> 2013 | W14: ='5.1.1'!K13 -> 2014 | X14: ='5.1.1'!L13 -> 2015 | Z14: Documents | AV14: =AU14 -> 
B16: 1 | C16: Price | D16: ='[11]5.2.3'!D16 -> Moreton Bay | F16: ='[11]5.2.3'!F16 -> Drinking water | H16: ='[11]5.2.3'!H16 -> Uncapped | J16: ='[11]5.2.3'!J16 -> Residential | L16: ='[11]5.2.3'!L16 -> Bulk Water Tariff | N16: ='[11]5.2.3'!N16 -> Variable | P16: $ | U16: ='[11]5.2.3'!U16 -> 1.922 | V16: ='[11]5.2.3'!V16 -> 2.192 | W16: ='[11]5.2.3'!W16 -> 2.48 | X16: ='[11]5.2.3'!X16 -> 2.779 | Z16: ..\..\..\..\Commercial Acctg\QCA Unitywater Submission 2012\CAM\CAM 12_13\12-13 Revenue Forecast - Price Freeze Apr 4.xlsx
C17: Quantity | D17: =D16 -> Moreton Bay | F17: =F16 -> Drinking water | H17: =H16 -> Uncapped | L17: =L16 -> Bulk Water Tariff | N17: =N16 -> Variable | P17: ='[11]5.2.3'!P17 -> kilolitre | U17: ='[11]5.2.3'!U17+1676229.7 -> 22998414.7 | V17: ='[11]5.2.3'!V17 -> 23052607.27 | W17: ='[11]5.2.3'!W17 -> 24948974.41 | X17: ='[11]5.2.3'!X17 -> 27001341.61
C18: Revenue | D18: =D16 -> Moreton Bay | F18: =F16 -> Drinking water | H18: =H16 -> Uncapped | L18: =L16 -> Bulk Water Tariff | N18: =N16 -> Variable | P18: $'000 | U18: =U16*U17/1000 -> 44202.95305 | V18: =V16*V17/1000 -> 50531.31513 | W18: =W16*W17/1000 -> 61873.45653 | X18: =X16*X17/1000 -> 75036.72834
B19: =B16+1 -> 2 | C19: Price | D19: ='[11]5.2.3'!D19 -> Moreton Bay | F19: ='[11]5.2.3'!F19 -> Drinking water | H19: ='[11]5.2.3'!H19 -> Uncapped | J19: ='[11]5.2.3'!J19 -> Business | L19: ='[11]5.2.3'!L19 -> Bulk Water Tariff | N19: ='[11]5.2.3'!N19 -> Variable | P19: $ | U19: ='[11]5.2.3'!U19 -> 1.922 | V19: ='[11]5.2.3'!V19 -> 2.192 | W19: ='[11]5.2.3'!W19 -> 2.48 | X19: ='[11]5.2.3'!X19 -> 2.779 | Z19: ..\..\..\..\Commercial Acctg\QCA Unitywater Submission 2012\CAM\CAM 12_13\12-13 Revenue Forecast - Price Freeze Apr 4.xlsx
C20: Quantity | D20: =D19 -> Moreton Bay | F20: =F19 -> Drinking water | H20: =H19 -> Uncapped | L20: =L19 -> Bulk Water Tariff | N20: =N19 -> Variable | P20: ='[11]5.2.3'!P20 -> kilolitre | U20: ='[11]5.2.3'!U20 -> 2992450.049 | V20: ='[11]5.2.3'!V20 -> 3060613.81 | W20: ='[11]5.2.3'!W20 -> 3130330.244 | X20: ='[11]5.2.3'!X20 -> 3201634.72
C21: Revenue | D21: =D19 -> Moreton Bay | F21: =F19 -> Drinking water | H21: =H19 -> Uncapped | L21: =L19 -> Bulk Water Tariff | N21: =N19 -> Variable | P21: $'000 | U21: =U19*U20/1000 -> 5751.488994 | V21: =V19*V20/1000 -> 6708.865471 | W21: =W19*W20/1000 -> 7763.219005 | X21: =X19*X20/1000 -> 8897.342887
B22: =B19+1 -> 3 | C22: Price | D22: ='[11]5.2.3'!D22 -> Moreton Bay | F22: ='[11]5.2.3'!F22 -> Drinking water | H22: ='[11]5.2.3'!H22 -> Uncapped | J22: ='[11]5.2.3'!J22 -> Commercially negotiated agreements | L22: ='[11]5.2.3'!L22 -> Bulk Water Tariff | N22: ='[11]5.2.3'!N22 -> Variable | P22: $ | U22: ='[11]5.2.3'!U22 -> 1.922 | V22: ='[11]5.2.3'!V22 -> 2.192 | W22: ='[11]5.2.3'!W22 -> 2.48 | X22: ='[11]5.2.3'!X22 -> 2.779 | Z22: ..\..\..\..\Commercial Acctg\QCA Unitywater Submission 2012\CAM\CAM 12_13\12-13 Revenue Forecast - Price Freeze Apr 4.xlsx
C23: Quantity | D23: =D22 -> Moreton Bay | F23: =F22 -> Drinking water | H23: =H22 -> Uncapped | L23: =L22 -> Bulk Water Tariff | N23: =N22 -> Variable | P23: ='[11]5.2.3'!P23 -> kilolitre | U23: ='[11]5.2.3'!U23 -> 1198703.153 | V23: ='[11]5.2.3'!V23 -> 1198703.153 | W23: ='[11]5.2.3'!W23 -> 1198703.153 | X23: ='[11]5.2.3'!X23 -> 1198703.153
C24: Revenue | D24: =D22 -> Moreton Bay | F24: =F22 -> Drinking water | H24: =H22 -> Uncapped | L24: =L22 -> Bulk Water Tariff | N24: =N22 -> Variable | P24: $'000 | U24: =U22*U23/1000 -> 2303.90746 | V24: =V22*V23/1000 -> 2627.557311 | W24: =W22*W23/1000 -> 2972.783819 | X24: =X22*X23/1000 -> 3331.196062
B25: =B22+1 -> 4 | C25: Price | D25: ='[11]5.2.3'!D25 -> Moreton Bay | F25: ='[11]5.2.3'!F25 -> Drinking water | H25: ='[11]5.2.3'!H25 -> Capped | J25: ='[11]5.2.3'!J25 -> Residential | L25: ='[11]5.2.3'!L25 -> Tier 1 Tariff | N25: ='[11]5.2.3'!N25 -> Variable | P25: $ | U25: ='[11]5.2.3'!U25 -> 0.176 | V25: ='[11]5.2.3'!V25 -> 0.176 | W25: ='[11]5.2.3'!W25 -> 0.182 | X25: ='[11]5.2.3'!X25 -> 0.188 | Z25: ..\..\..\..\Commercial Acctg\QCA Unitywater Submission 2012\CAM\CAM 12_13\12-13 Revenue Forecast - Price Freeze Apr 4.xlsx
C26: Quantity | D26: =D25 -> Moreton Bay | F26: =F25 -> Drinking water | H26: =H25 -> Capped | L26: =L25 -> Tier 1 Tariff | N26: =N25 -> Variable | P26: ='[11]5.2.3'!P26 -> kilolitre | U26: ='[11]5.2.3'!U26+1676229.7 -> 20964490.93 | V26: ='[11]5.2.3'!V26 -> 20570633.22 | W26: ='[11]5.2.3'!W26 -> 21943513.91 | X26: ='[11]5.2.3'!X26 -> 23389953.52
C27: Revenue | D27: =D25 -> Moreton Bay | F27: =F25 -> Drinking water | H27: =H25 -> Capped | L27: =L25 -> Tier 1 Tariff | N27: =N25 -> Variable | P27: $'000 | U27: =U25*U26/1000 -> 3689.750404 | V27: =V25*V26/1000+'[12]Volumetric Water Revenue'!$D$42/1000 -> 3572.999137 | W27: =W25*W26/1000 -> 3993.719532 | X27: =X25*X26/1000 -> 4397.311262
B28: =B25+1 -> 5 | C28: Price | D28: ='[11]5.2.3'!D28 -> Moreton Bay | F28: ='[11]5.2.3'!F28 -> Drinking water | H28: ='[11]5.2.3'!H28 -> Capped | J28: ='[11]5.2.3'!J28 -> Business | L28: ='[11]5.2.3'!L28 -> Tier 1 Tariff | N28: ='[11]5.2.3'!N28 -> Variable | P28: $ | U28: ='[11]5.2.3'!U28 -> 0.176 | V28: ='[11]5.2.3'!V28 -> 0.176 | W28: ='[11]5.2.3'!W28 -> 0.182 | X28: ='[11]5.2.3'!X28 -> 0.188 | Z28: ..\..\..\..\Commercial Acctg\QCA Unitywater Submission 2012\CAM\CAM 12_13\12-13 Revenue Forecast - Price Freeze Apr 4.xlsx
C29: Quantity | D29: =D28 -> Moreton Bay | F29: =F28 -> Drinking water | H29: =H28 -> Capped | L29: =L28 -> Tier 1 Tariff | N29: =N28 -> Variable | P29: ='[11]5.2.3'!P29 -> kilolitre | U29: ='[11]5.2.3'!U29 -> 803148.3669 | V29: ='[11]5.2.3'!V29 -> 821442.9457 | W29: ='[11]5.2.3'!W29 -> 840154.249 | X29: ='[11]5.2.3'!X29 -> 859291.7692
C30: Revenue | D30: =D28 -> Moreton Bay | F30: =F28 -> Drinking water | H30: =H28 -> Capped | L30: =L28 -> Tier 1 Tariff | N30: =N28 -> Variable | P30: $'000 | U30: =U28*U29/1000 -> 141.3541126 | V30: =V28*V29/1000 -> 144.5739584 | W30: =W28*W29/1000 -> 152.9080733 | X30: =X28*X29/1000 -> 161.5468526
B31: =B28+1 -> 6 | C31: Price | D31: ='[11]5.2.3'!D31 -> Moreton Bay | F31: ='[11]5.2.3'!F31 -> Drinking water | H31: ='[11]5.2.3'!H31 -> Capped | J31: ='[11]5.2.3'!J31 -> Residential | L31: ='[11]5.2.3'!L31 -> Tier 2 Tariff | N31: ='[11]5.2.3'!N31 -> Variable | P31: $ | U31: ='[11]5.2.3'!U31 -> 0.849 | V31: ='[11]5.2.3'!V31 -> 0.849 | W31: ='[11]5.2.3'!W31 -> 0.877 | X31: ='[11]5.2.3'!X31 -> 0.908 | Z31: ..\..\..\..\Commercial Acctg\QCA Unitywater Submission 2012\CAM\CAM 12_13\12-13 Revenue Forecast - Price Freeze Apr 4.xlsx
C32: Quantity | D32: =D31 -> Moreton Bay | F32: =F31 -> Drinking water | H32: =H31 -> Capped | L32: =L31 -> Tier 2 Tariff | N32: =N31 -> Variable | P32: ='[11]5.2.3'!P32 -> kilolitre | U32: ='[11]5.2.3'!U32 -> 623567.6186 | V32: ='[11]5.2.3'!V32 -> 757977.7722 | W32: ='[11]5.2.3'!W32 -> 917273.8125 | X32: ='[11]5.2.3'!X32 -> 1103964.686
C33: Revenue | D33: =D31 -> Moreton Bay | F33: =F31 -> Drinking water | H33: =H31 -> Capped | L33: =L31 -> Tier 2 Tariff | N33: =N31 -> Variable | P33: $'000 | U33: =U31*U32/1000 -> 529.4089082 | V33: =V31*V32/1000 -> 643.5231286 | W33: =W31*W32/1000 -> 804.4491336 | X33: =X31*X32/1000 -> 1002.399935
B34: =B31+1 -> 7 | C34: Price | D34: ='[11]5.2.3'!D34 -> Moreton Bay | F34: ='[11]5.2.3'!F34 -> Drinking water | H34: ='[11]5.2.3'!H34 -> Capped | J34: ='[11]5.2.3'!J34 -> Business | L34: ='[11]5.2.3'!L34 -> Tier 2 Tariff | N34: ='[11]5.2.3'!N34 -> Variable | P34: $ | U34: ='[11]5.2.3'!U34 -> 0.849 | V34: ='[11]5.2.3'!V34 -> 0.849 | W34: ='[11]5.2.3'!W34 -> 0.877 | X34: ='[11]5.2.3'!X34 -> 0.908 | Z34: ..\..\..\..\Commercial Acctg\QCA Unitywater Submission 2012\CAM\CAM 12_13\12-13 Revenue Forecast - Price Freeze Apr 4.xlsx
C35: Quantity | D35: =D34 -> Moreton Bay | F35: =F34 -> Drinking water | H35: =H34 -> Capped | L35: =L34 -> Tier 2 Tariff | N35: =N34 -> Variable | P35: ='[11]5.2.3'!P35 -> kilolitre | U35: ='[11]5.2.3'!U35 -> 89754.33813 | V35: ='[11]5.2.3'!V35 -> 91798.81444 | W35: ='[11]5.2.3'!W35 -> 93889.86102 | X35: ='[11]5.2.3'!X35 -> 96028.53867
C36: Revenue | D36: =D34 -> Moreton Bay | F36: =F34 -> Drinking water | H36: =H34 -> Capped | L36: =L34 -> Tier 2 Tariff | N36: =N34 -> Variable | P36: $'000 | U36: =U34*U35/1000 -> 76.20143307 | V36: =V34*V35/1000 -> 77.93719346 | W36: =W34*W35/1000 -> 82.34140811 | X36: =X34*X35/1000 -> 87.19391311
B37: =B34+1 -> 8 | C37: Price | D37: ='[11]5.2.3'!D37 -> Moreton Bay | F37: ='[11]5.2.3'!F37 -> Drinking water | H37: ='[11]5.2.3'!H37 -> Capped | J37: ='[11]5.2.3'!J37 -> Residential | L37: ='[11]5.2.3'!L37 -> Tier 3 Tariff | N37: ='[11]5.2.3'!N37 -> Variable | P37: $ | U37: ='[11]5.2.3'!U37 -> 1.305 | V37: ='[11]5.2.3'!V37 -> 1.305 | W37: ='[11]5.2.3'!W37 -> 1.347 | X37: ='[11]5.2.3'!X37 -> 1.394 | Z37: ..\..\..\..\Commercial Acctg\QCA Unitywater Submission 2012\CAM\CAM 12_13\12-13 Revenue Forecast - Price Freeze Apr 4.xlsx
C38: Quantity | D38: =D37 -> Moreton Bay | F38: =F37 -> Drinking water | H38: =H37 -> Capped | L38: =L37 -> Tier 3 Tariff | N38: =N37 -> Variable | P38: ='[11]5.2.3'!P38 -> kilolitre | U38: ='[11]5.2.3'!U38 -> 1410356.148 | V38: ='[11]5.2.3'!V38 -> 1723996.278 | W38: ='[11]5.2.3'!W38 -> 2088186.683 | X38: ='[11]5.2.3'!X38 -> 2507423.406
C39: Revenue | D39: =D37 -> Moreton Bay | F39: =F37 -> Drinking water | H39: =H37 -> Capped | L39: =L37 -> Tier 3 Tariff | N39: =N37 -> Variable | P39: $'000 | U39: =U37*U38/1000 -> 1840.514773 | V39: =V37*V38/1000 -> 2249.815143 | W39: =W37*W38/1000 -> 2812.787462 | X39: =X37*X38/1000 -> 3495.348228
B40: =B37+1 -> 9 | C40: Price | D40: ='[11]5.2.3'!D40 -> Moreton Bay | F40: ='[11]5.2.3'!F40 -> Drinking water | H40: ='[11]5.2.3'!H40 -> Capped | J40: ='[11]5.2.3'!J40 -> Business | L40: ='[11]5.2.3'!L40 -> Tier 3 Tariff | N40: ='[11]5.2.3'!N40 -> Variable | P40: $ | U40: ='[11]5.2.3'!U40 -> 1.305 | V40: ='[11]5.2.3'!V40 -> 1.305 | W40: ='[11]5.2.3'!W40 -> 1.347 | X40: ='[11]5.2.3'!X40 -> 1.394 | Z40: ..\..\..\..\Commercial Acctg\QCA Unitywater Submission 2012\CAM\CAM 12_13\12-13 Revenue Forecast - Price Freeze Apr 4.xlsx
C41: Quantity | D41: =D40 -> Moreton Bay | F41: =F40 -> Drinking water | H41: =H40 -> Capped | L41: =L40 -> Tier 3 Tariff | N41: =N40 -> Variable | P41: ='[11]5.2.3'!P41 -> kilolitre | U41: ='[11]5.2.3'!U41 -> 2099547.344 | V41: ='[11]5.2.3'!V41 -> 2147372.05 | W41: ='[11]5.2.3'!W41 -> 2196286.134 | X41: ='[11]5.2.3'!X41 -> 2246314.412
C42: Revenue | D42: =D40 -> Moreton Bay | F42: =F40 -> Drinking water | H42: =H40 -> Capped | L42: =L40 -> Tier 3 Tariff | N42: =N40 -> Variable | P42: $'000 | U42: =U40*U41/1000 -> 2739.909284 | V42: =V40*V41/1000 -> 2802.320525 | W42: =W40*W41/1000 -> 2958.397423 | X42: =X40*X41/1000 -> 3131.36229
B43: =B40+1 -> 10 | C43: Price | D43: ='[11]5.2.3'!D43 -> Sunshine Coast | F43: ='[11]5.2.3'!F43 -> Drinking water | H43: ='[11]5.2.3'!H43 -> Uncapped | J43: ='[11]5.2.3'!J43 -> Residential | L43: ='[11]5.2.3'!L43 -> Bulk Water Tariff | N43: ='[11]5.2.3'!N43 -> Variable | P43: $ | U43: ='[11]5.2.3'!U43 -> 1.34 | V43: ='[11]5.2.3'!V43 -> 1.61 | W43: ='[11]5.2.3'!W43 -> 1.894 | X43: ='[11]5.2.3'!X43 -> 2.187 | Z43: ..\..\..\..\Commercial Acctg\QCA Unitywater Submission 2012\CAM\CAM 12_13\12-13 Revenue Forecast - Price Freeze Apr 4.xlsx
C44: Quantity | D44: =D43 -> Sunshine Coast | F44: =F43 -> Drinking water | H44: =H43 -> Uncapped | L44: =L43 -> Bulk Water Tariff | N44: =N43 -> Variable | P44: ='[11]5.2.3'!P44 -> kilolitre | U44: ='[11]5.2.3'!U44-400000 -> 20190799 | V44: ='[11]5.2.3'!V44 -> 22299354.06 | W44: ='[11]5.2.3'!W44 -> 24174398.04 | X44: ='[11]5.2.3'!X44 -> 24698403.83
C45: Revenue | D45: =D43 -> Sunshine Coast | F45: =F43 -> Drinking water | H45: =H43 -> Uncapped | L45: =L43 -> Bulk Water Tariff | N45: =N43 -> Variable | P45: $'000 | U45: =U43*U44/1000 -> 27055.67066 | V45: =V43*V44/1000 -> 35901.96004 | W45: =W43*W44/1000 -> 45786.30988 | X45: =X43*X44/1000 -> 54015.40917
B46: =B43+1 -> 11 | C46: Price | D46: ='[11]5.2.3'!D46 -> Sunshine Coast | F46: ='[11]5.2.3'!F46 -> Drinking water | H46: ='[11]5.2.3'!H46 -> Uncapped | J46: ='[11]5.2.3'!J46 -> Business | L46: ='[11]5.2.3'!L46 -> Bulk Water Tariff | N46: ='[11]5.2.3'!N46 -> Variable | P46: $ | U46: ='[11]5.2.3'!U46 -> 1.34 | V46: ='[11]5.2.3'!V46 -> 1.61 | W46: ='[11]5.2.3'!W46 -> 1.894 | X46: ='[11]5.2.3'!X46 -> 2.187 | Z46: ..\..\..\..\Commercial Acctg\QCA Unitywater Submission 2012\CAM\CAM 12_13\12-13 Revenue Forecast - Price Freeze Apr 4.xlsx
C47: Quantity | D47: =D46 -> Sunshine Coast | F47: =F46 -> Drinking water | H47: =H46 -> Uncapped | L47: =L46 -> Bulk Water Tariff | N47: =N46 -> Variable | P47: ='[11]5.2.3'!P47 -> kilolitre | U47: ='[11]5.2.3'!U47-64495.8 -> 4394166.618 | V47: ='[11]5.2.3'!V47 -> 4565919.312 | W47: ='[11]5.2.3'!W47 -> 4675756.361 | X47: ='[11]5.2.3'!X47 -> 4788235.632
C48: Revenue | D48: =D46 -> Sunshine Coast | F48: =F46 -> Drinking water | H48: =H46 -> Uncapped | L48: =L46 -> Bulk Water Tariff | N48: =N46 -> Variable | P48: $'000 | U48: =U46*U47/1000 -> 5888.183269 | V48: =V46*V47/1000 -> 7351.130092 | W48: =W46*W47/1000 -> 8855.882547 | X48: =X46*X47/1000 -> 10471.87133
B49: =B46+1 -> 12 | C49: Price | D49: ='[11]5.2.3'!D49 -> Sunshine Coast | F49: ='[11]5.2.3'!F49 -> Drinking water | H49: ='[11]5.2.3'!H49 -> Capped | J49: ='[11]5.2.3'!J49 -> Residential | L49: ='[11]5.2.3'!L49 -> Tier 1 Tariff | N49: ='[11]5.2.3'!N49 -> Variable | P49: $ | U49: ='[11]5.2.3'!U49 -> 0.538 | V49: ='[11]5.2.3'!V49 -> 0.538 | W49: ='[11]5.2.3'!W49 -> 0.555 | X49: ='[11]5.2.3'!X49 -> 0.574 | Z49: ..\..\..\..\Commercial Acctg\QCA Unitywater Submission 2012\CAM\CAM 12_13\12-13 Revenue Forecast - Price Freeze Apr 4.xlsx
C50: Quantity | D50: =D49 -> Sunshine Coast | F50: =F49 -> Drinking water | H50: =H49 -> Capped | L50: =L49 -> Tier 1 Tariff | N50: =N49 -> Variable | P50: ='[11]5.2.3'!P50 -> kilolitre | U50: ='[11]5.2.3'!U50 -> 15572196 | V50: ='[11]5.2.3'!V50 -> 16489371.2 | W50: ='[11]5.2.3'!W50 -> 17464511.13 | X50: ='[11]5.2.3'!X50 -> 17511733.33
C51: Revenue | D51: =D49 -> Sunshine Coast | F51: =F49 -> Drinking water | H51: =H49 -> Capped | L51: =L49 -> Tier 1 Tariff | N51: =N49 -> Variable | P51: $'000 | U51: =U49*U50/1000 -> 8377.841448 | V51: =V49*V50/1000 -> 8871.281708 | W51: =W49*W50/1000 -> 9692.803677 | X51: =X49*X50/1000 -> 10051.73493
B52: =B49+1 -> 13 | C52: Price | D52: ='[11]5.2.3'!D52 -> Sunshine Coast | F52: ='[11]5.2.3'!F52 -> Drinking water | H52: ='[11]5.2.3'!H52 -> Capped | J52: ='[11]5.2.3'!J52 -> Business | L52: ='[11]5.2.3'!L52 -> Tier 1 Tariff | N52: ='[11]5.2.3'!N52 -> Variable | P52: $ | U52: ='[11]5.2.3'!U52 -> 0.538 | V52: ='[11]5.2.3'!V52 -> 0.538 | W52: ='[11]5.2.3'!W52 -> 0.555 | X52: ='[11]5.2.3'!X52 -> 0.574 | Z52: ..\..\..\..\Commercial Acctg\QCA Unitywater Submission 2012\CAM\CAM 12_13\12-13 Revenue Forecast - Price Freeze Apr 4.xlsx
C53: Quantity | D53: =D52 -> Sunshine Coast | F53: =F52 -> Drinking water | H53: =H52 -> Capped | L53: =L52 -> Tier 1 Tariff | N53: =N52 -> Variable | P53: ='[11]5.2.3'!P53 -> kilolitre | U53: ='[11]5.2.3'!U53 -> 1364730.394 | V53: ='[11]5.2.3'!V53 -> 1397560.137 | W53: ='[11]5.2.3'!W53 -> 1431179.628 | X53: ='[11]5.2.3'!X53 -> 1465607.863
C54: Revenue | D54: =D52 -> Sunshine Coast | F54: =F52 -> Drinking water | H54: =H52 -> Capped | L54: =L52 -> Tier 1 Tariff | N54: =N52 -> Variable | P54: $'000 | U54: =U52*U53/1000 -> 734.2249519 | V54: =V52*V53/1000 -> 751.8873538 | W54: =W52*W53/1000 -> 794.3046934 | X54: =X52*X53/1000 -> 841.2589136
B55: =B52+1 -> 14 | C55: Price | D55: ='[11]5.2.3'!D55 -> Sunshine Coast | F55: ='[11]5.2.3'!F55 -> Drinking water | H55: ='[11]5.2.3'!H55 -> Capped | J55: ='[11]5.2.3'!J55 -> Residential | L55: ='[11]5.2.3'!L55 -> Tier 2 Tariff | N55: ='[11]5.2.3'!N55 -> Variable | P55: $ | U55: ='[11]5.2.3'!U55 -> 1.036 | V55: ='[11]5.2.3'!V55 -> 1.036 | W55: ='[11]5.2.3'!W55 -> 1.07 | X55: ='[11]5.2.3'!X55 -> 1.107 | Z55: ..\..\..\..\Commercial Acctg\QCA Unitywater Submission 2012\CAM\CAM 12_13\12-13 Revenue Forecast - Price Freeze Apr 4.xlsx
C56: Quantity | D56: =D55 -> Sunshine Coast | F56: =F55 -> Drinking water | H56: =H55 -> Capped | L56: =L55 -> Tier 2 Tariff | N56: =N55 -> Variable | P56: ='[11]5.2.3'!P56 -> kilolitre | U56: ='[11]5.2.3'!U56-400000 -> 4618602.999 | V56: ='[11]5.2.3'!V56 -> 5809982.855 | W56: ='[11]5.2.3'!W56 -> 6709886.906 | X56: ='[11]5.2.3'!X56 -> 7186670.501
C57: Revenue | D57: =D55 -> Sunshine Coast | F57: =F55 -> Drinking water | H57: =H55 -> Capped | L57: =L55 -> Tier 2 Tariff | N57: =N55 -> Variable | P57: $'000 | U57: =U55*U56/1000 -> 4784.872707 | V57: =V55*V56/1000 -> 6019.142238 | W57: =W55*W56/1000 -> 7179.578989 | X57: =X55*X56/1000 -> 7955.644245
B58: =B55+1 -> 15 | C58: Price | D58: ='[11]5.2.3'!D58 -> Sunshine Coast | F58: ='[11]5.2.3'!F58 -> Drinking water | H58: ='[11]5.2.3'!H58 -> Capped | J58: ='[11]5.2.3'!J58 -> Business | L58: ='[11]5.2.3'!L58 -> Tier 2 Tariff | N58: ='[11]5.2.3'!N58 -> Variable | P58: $ | U58: ='[11]5.2.3'!U58 -> 1.036 | V58: ='[11]5.2.3'!V58 -> 1.036 | W58: ='[11]5.2.3'!W58 -> 1.07 | X58: ='[11]5.2.3'!X58 -> 1.107 | Z58: ..\..\..\..\Commercial Acctg\QCA Unitywater Submission 2012\CAM\CAM 12_13\12-13 Revenue Forecast - Price Freeze Apr 4.xlsx
C59: Quantity | D59: =D58 -> Sunshine Coast | F59: =F58 -> Drinking water | H59: =H58 -> Capped | L59: =L58 -> Tier 2 Tariff | N59: =N58 -> Variable | P59: ='[11]5.2.3'!P59 -> kilolitre | U59: ='[11]5.2.3'!U59-64495.8 -> 3029436.224 | V59: ='[11]5.2.3'!V59 -> 3168359.175 | W59: ='[11]5.2.3'!W59 -> 3244576.733 | X59: ='[11]5.2.3'!X59 -> 3322627.769
C60: Revenue | D60: =D58 -> Sunshine Coast | F60: =F58 -> Drinking water | H60: =H58 -> Capped | L60: =L58 -> Tier 2 Tariff | N60: =N58 -> Variable | P60: $'000 | U60: =U58*U59/1000-1.86 -> 3136.635928 | V60: =V58*V59/1000 -> 3282.420105 | W60: =W58*W59/1000 -> 3471.697104 | X60: =X58*X59/1000 -> 3678.14894
B61: =B58+1 -> 16 | C61: Price | D61: ='[11]5.2.3'!D61 -> Moreton Bay | F61: ='[11]5.2.3'!F61 -> Drinking water | H61: ='[11]5.2.3'!H61 -> Capped | J61: ='[11]5.2.3'!J61 -> Residential | L61: ='[11]5.2.3'!L61 -> Access Charges | N61: ='[11]5.2.3'!N61 -> Fixed | P61: $ | U61: ='[11]5.2.3'!U61 -> 345.9809184 | V61: ='[11]5.2.3'!V61 -> 345.9813645 | W61: ='[11]5.2.3'!W61 -> 357.2312086 | X61: ='[11]5.2.3'!X61 -> 369.731006 | Z61: ..\..\..\..\Commercial Acctg\QCA Unitywater Submission 2012\CAM\CAM 12_13\12-13 Revenue Forecast - Price Freeze Apr 4.xlsx
C62: Quantity | D62: =D61 -> Moreton Bay | F62: =F61 -> Drinking water | H62: =H61 -> Capped | L62: =L61 -> Access Charges | N62: =N61 -> Fixed | P62: ='[11]5.2.3'!P62 -> Charge | U62: ='[11]5.2.3'!U62 -> 145061 | V62: ='[11]5.2.3'!V62 -> 148534 | W62: ='[11]5.2.3'!W62 -> 152091 | X62: ='[11]5.2.3'!X62 -> 155733
C63: Revenue | D63: =D61 -> Moreton Bay | F63: =F61 -> Drinking water | H63: =H61 -> Capped | L63: =L61 -> Access Charges | N63: =N61 -> Fixed | P63: $'000 | U63: =U61*U62/1000+49.5 -> 50237.838 | V63: =V61*V62/1000 -> 51389.996 | W63: =W61*W62/1000 -> 54331.65175 | X63: =X61*X62/1000 -> 57579.31875
B64: =B61+1 -> 17 | C64: Price | D64: ='[11]5.2.3'!D64 -> Moreton Bay | F64: ='[11]5.2.3'!F64 -> Drinking water | H64: ='[11]5.2.3'!H64 -> Capped | J64: ='[11]5.2.3'!J64 -> Business | L64: ='[11]5.2.3'!L64 -> Access Charges | N64: ='[11]5.2.3'!N64 -> Fixed | P64: $ | U64: ='[11]5.2.3'!U64 -> 345.7410826 | V64: ='[11]5.2.3'!V64 -> 345.7471376 | W64: ='[11]5.2.3'!W64 -> 356.9950642 | X64: ='[11]5.2.3'!X64 -> 369.4923345 | Z64: ..\..\..\..\Commercial Acctg\QCA Unitywater Submission 2012\CAM\CAM 12_13\12-13 Revenue Forecast - Price Freeze Apr 4.xlsx
C65: Quantity | D65: =D64 -> Moreton Bay | F65: =F64 -> Drinking water | H65: =H64 -> Capped | L65: =L64 -> Access Charges | N65: =N64 -> Fixed | P65: ='[11]5.2.3'!P65 -> Charge | U65: ='[11]5.2.3'!U65 -> 4009 | V65: ='[11]5.2.3'!V65 -> 4105 | W65: ='[11]5.2.3'!W65 -> 4204 | X65: ='[11]5.2.3'!X65 -> 4305
C66: Revenue | D66: =D64 -> Moreton Bay | F66: =F64 -> Drinking water | H66: =H64 -> Capped | L66: =L64 -> Access Charges | N66: =N64 -> Fixed | P66: $'000 | U66: =U64*U65/1000 -> 1386.076 | V66: =V64*V65/1000 -> 1419.292 | W66: =W64*W65/1000 -> 1500.80725 | X66: =X64*X65/1000 -> 1590.6645
B67: =B64+1 -> 18 | C67: Price | D67: ='[11]5.2.3'!D67 -> Sunshine Coast | F67: ='[11]5.2.3'!F67 -> Drinking water | H67: ='[11]5.2.3'!H67 -> Capped | J67: ='[11]5.2.3'!J67 -> Residential | L67: ='[11]5.2.3'!L67 -> Access Charges | N67: ='[11]5.2.3'!N67 -> Fixed | P67: $ | U67: ='[11]5.2.3'!U67 -> 236.8970222 | V67: ='[11]5.2.3'!V67 -> 236.851594 | W67: ='[11]5.2.3'!W67 -> 244.5006552 | X67: ='[11]5.2.3'!X67 -> 253.0134598 | Z67: ..\..\..\..\Commercial Acctg\QCA Unitywater Submission 2012\CAM\CAM 12_13\12-13 Revenue Forecast - Price Freeze Apr 4.xlsx
C68: Quantity | D68: =D67 -> Sunshine Coast | F68: =F67 -> Drinking water | H68: =H67 -> Capped | L68: =L67 -> Access Charges | N68: =N67 -> Fixed | P68: ='[11]5.2.3'!P68 -> Charge | U68: ='[11]5.2.3'!U68-181.64 -> 119100.36 | V68: ='[11]5.2.3'!V68 -> 122029 | W68: ='[11]5.2.3'!W68 -> 124839 | X68: ='[11]5.2.3'!X68 -> 127713
C69: Revenue | D69: =D67 -> Sunshine Coast | F69: =F67 -> Drinking water | H69: =H67 -> Capped | L69: =L67 -> Access Charges | N69: =N67 -> Fixed | P69: $'000 | U69: =U67*U68/1000 -> 28214.52062 | V69: =V67*V68/1000+'[12]Access Revenue'!$G$81/1000 -> 29111.77219 | W69: =W67*W68/1000 -> 30523.2173 | X69: =X67*X68/1000 -> 32313.10799
B70: =B67+1 -> 19 | C70: Price | D70: ='[11]5.2.3'!D70 -> Sunshine Coast | F70: ='[11]5.2.3'!F70 -> Drinking water | H70: ='[11]5.2.3'!H70 -> Capped | J70: ='[11]5.2.3'!J70 -> Business | L70: ='[11]5.2.3'!L70 -> Access Charges | N70: ='[11]5.2.3'!N70 -> Fixed | P70: $ | U70: ='[11]5.2.3'!U70 -> 607.0112911 | V70: ='[11]5.2.3'!V70 -> 607.4758714 | W70: ='[11]5.2.3'!W70 -> 627.5531007 | X70: ='[11]5.2.3'!X70 -> 649.6817178 | Z70: ..\..\..\..\Commercial Acctg\QCA Unitywater Submission 2012\CAM\CAM 12_13\12-13 Revenue Forecast - Price Freeze Apr 4.xlsx
C71: Quantity | D71: =D70 -> Sunshine Coast | F71: =F70 -> Drinking water | H71: =H70 -> Capped | L71: =L70 -> Access Charges | N71: =N70 -> Fixed | P71: ='[11]5.2.3'!P71 -> Charge | U71: ='[11]5.2.3'!U71 -> 9062 | V71: ='[11]5.2.3'!V71 -> 9272 | W71: ='[11]5.2.3'!W71 -> 9485 | X71: ='[11]5.2.3'!X71 -> 9704
C72: Revenue | D72: =D70 -> Sunshine Coast | F72: =F70 -> Drinking water | H72: =H70 -> Capped | L72: =L70 -> Access Charges | N72: =N70 -> Fixed | P72: $'000 | U72: =U70*U71/1000 -> 5500.73632 | V72: =V70*V71/1000 -> 5632.51628 | W72: =W70*W71/1000 -> 5952.34116 | X72: =X70*X71/1000 -> 6304.51139
B73: =B70+1 -> 20 | C73: Price | D73: ='[11]5.2.3'!D73 -> Moreton Bay | F73: ='[11]5.2.3'!F73 -> Waste-water via Sewer | H73: ='[11]5.2.3'!H73 -> Capped | J73: ='[11]5.2.3'!J73 -> Residential | L73: ='[11]5.2.3'!L73 -> Access Charges | N73: ='[11]5.2.3'!N73 -> Fixed | P73: $ | U73: ='[11]5.2.3'!U73 -> 743.9820419 | V73: ='[11]5.2.3'!V73 -> 743.983729 | W73: ='[11]5.2.3'!W73 -> 768.166362 | X73: ='[11]5.2.3'!X73 -> 795.0555853 | Z73: ..\..\..\..\Commercial Acctg\QCA Unitywater Submission 2012\CAM\CAM 12_13\12-13 Revenue Forecast - Price Freeze Apr 4.xlsx
C74: Quantity | D74: =D73 -> Moreton Bay | F74: =F73 -> Waste-water via Sewer | H74: =H73 -> Capped | L74: =L73 -> Access Charges | N74: =N73 -> Fixed | P74: ='[11]5.2.3'!P74 -> Charge | U74: ='[11]5.2.3'!U74+1614.5165 -> 145972.5165 | V74: ='[11]5.2.3'!V74 -> 147814 | W74: ='[11]5.2.3'!W74 -> 151352 | X74: ='[11]5.2.3'!X74 -> 154976
C75: Revenue | D75: =D73 -> Moreton Bay | F75: =F73 -> Waste-water via Sewer | H75: =H73 -> Capped | L75: =L73 -> Access Charges | N75: =N73 -> Fixed | P75: $'000 | U75: =U73*U74/1000 -> 108600.9309 | V75: =V73*V74/1000-'[12]Access Revenue'!$G$44/1000+'[12]Access Revenue'!$G$49/1000 -> 110306.0165 | W75: =W73*W74/1000-'[12]Access Revenue'!H$44/1000 -> 116266.5916 | X75: =X73*X74/1000-'[12]Access Revenue'!I$44/1000 -> 123217.7184
B76: =B73+1 -> 21 | C76: Price | D76: ='[11]5.2.3'!D76 -> Moreton Bay | F76: ='[11]5.2.3'!F76 -> Waste-water via Sewer | H76: ='[11]5.2.3'!H76 -> Capped | J76: ='[11]5.2.3'!J76 -> Business | L76: ='[11]5.2.3'!L76 -> Access Charges | N76: ='[11]5.2.3'!N76 -> Fixed | P76: $ | U76: ='[11]5.2.3'!U76 -> 733.4885257 | V76: ='[11]5.2.3'!V76 -> 733.5368984 | W76: ='[11]5.2.3'!W76 -> 757.4099191 | X76: ='[11]5.2.3'!X76 -> 783.9568354 | Z76: ..\..\..\..\Commercial Acctg\QCA Unitywater Submission 2012\CAM\CAM 12_13\12-13 Revenue Forecast - Price Freeze Apr 4.xlsx
C77: Quantity | D77: =D76 -> Moreton Bay | F77: =F76 -> Waste-water via Sewer | H77: =H76 -> Capped | L77: =L76 -> Access Charges | N77: =N76 -> Fixed | P77: ='[11]5.2.3'!P77 -> Charge | U77: ='[11]5.2.3'!U77 -> 7305 | V77: ='[11]5.2.3'!V77 -> 7480 | W77: ='[11]5.2.3'!W77 -> 7660 | X77: ='[11]5.2.3'!X77 -> 7843
C78: Revenue | D78: =D76 -> Moreton Bay | F78: =F76 -> Waste-water via Sewer | H78: =H76 -> Capped | L78: =L76 -> Access Charges | N78: =N76 -> Fixed | P78: $'000 | U78: =U76*U77/1000 -> 5358.13368 | V78: =V76*V77/1000 -> 5486.856 | W78: =W76*W77/1000 -> 5801.75998 | X78: =X76*X77/1000 -> 6148.57346
B79: =B76+1 -> 22 | C79: Price | D79: ='[11]5.2.3'!D79 -> Sunshine Coast | F79: ='[11]5.2.3'!F79 -> Waste-water via Sewer | H79: ='[11]5.2.3'!H79 -> Capped | J79: ='[11]5.2.3'!J79 -> Residential | L79: ='[11]5.2.3'!L79 -> Access Charges | N79: ='[11]5.2.3'!N79 -> Fixed | P79: $ | U79: ='[11]5.2.3'!U79+U4 -> 569.3977142 | V79: ='[11]5.2.3'!V79 -> 569.3984673 | W79: ='[11]5.2.3'!W79 -> 587.9038519 | X79: ='[11]5.2.3'!X79 -> 608.4839699 | Z79: ..\..\..\..\Commercial Acctg\QCA Unitywater Submission 2012\CAM\CAM 12_13\12-13 Revenue Forecast - Price Freeze Apr 4.xlsx
C80: Quantity | D80: =D79 -> Sunshine Coast | F80: =F79 -> Waste-water via Sewer | H80: =H79 -> Capped | L80: =L79 -> Access Charges | N80: =N79 -> Fixed | P80: ='[11]5.2.3'!P80 -> Charge | U80: ='[11]5.2.3'!U80-133.65 -> 126647.35 | V80: ='[11]5.2.3'!V80 -> 129702 | W80: ='[11]5.2.3'!W80 -> 132690 | X80: ='[11]5.2.3'!X80 -> 135747
C81: Revenue | D81: =D79 -> Sunshine Coast | F81: =F79 -> Waste-water via Sewer | H81: =H79 -> Capped | L81: =L79 -> Access Charges | N81: =N79 -> Fixed | P81: $'000 | U81: =U79*U80/1000 -> 72112.7116 | V81: =V79*V80/1000+'[12]Access Revenue'!$G$28/1000 -> 73942.97056 | W81: =W79*W80/1000 -> 78008.96211 | X81: =X79*X80/1000 -> 82599.87346
B82: =B79+1 -> 23 | C82: Price | D82: ='[11]5.2.3'!D82 -> Sunshine Coast | F82: ='[11]5.2.3'!F82 -> Waste-water via Sewer | H82: ='[11]5.2.3'!H82 -> Capped | J82: ='[11]5.2.3'!J82 -> Business | L82: ='[11]5.2.3'!L82 -> Access Charges | N82: ='[11]5.2.3'!N82 -> Fixed | P82: $ | U82: ='[11]5.2.3'!U82 -> 692.8886185 | V82: ='[11]5.2.3'!V82 -> 692.6945212 | W82: ='[11]5.2.3'!W82 -> 714.9299779 | X82: ='[11]5.2.3'!X82 -> 739.7009803 | Z82: ..\..\..\..\Commercial Acctg\QCA Unitywater Submission 2012\CAM\CAM 12_13\12-13 Revenue Forecast - Price Freeze Apr 4.xlsx
C83: Quantity | D83: =D82 -> Sunshine Coast | F83: =F82 -> Waste-water via Sewer | H83: =H82 -> Capped | L83: =L82 -> Access Charges | N83: =N82 -> Fixed | P83: ='[11]5.2.3'!P83 -> Charge | U83: ='[11]5.2.3'!U83 -> 9960 | V83: ='[11]5.2.3'!V83 -> 10192 | W83: ='[11]5.2.3'!W83 -> 10428 | X83: ='[11]5.2.3'!X83 -> 10670
C84: Revenue | D84: =D82 -> Sunshine Coast | F84: =F82 -> Waste-water via Sewer | H84: =H82 -> Capped | L84: =L82 -> Access Charges | N84: =N82 -> Fixed | P84: $'000 | U84: =U82*U83/1000 -> 6901.17064 | V84: =V82*V83/1000 -> 7059.94256 | W84: =W82*W83/1000 -> 7455.28981 | X84: =X82*X83/1000 -> 7892.60946
B85: =B82+1 -> 24 | C85: Price | D85: ='[11]5.2.3'!D85 -> Sunshine Coast | F85: ='[11]5.2.3'!F85 -> Waste-water via Sewer | H85: ='[11]5.2.3'!H85 -> Capped | J85: ='[11]5.2.3'!J85 -> Business | L85: ='[11]5.2.3'!L85 -> Volumetric Charge | N85: ='[11]5.2.3'!N85 -> Variable | P85: $ | U85: ='[11]5.2.3'!U85 -> 2.662 | V85: ='[11]5.2.3'!V85 -> 2.662 | W85: ='[11]5.2.3'!W85 -> 2.749 | X85: ='[11]5.2.3'!X85 -> 2.845 | Z85: ..\..\..\..\Commercial Acctg\QCA Unitywater Submission 2012\CAM\CAM 12_13\12-13 Revenue Forecast - Price Freeze Apr 4.xlsx
C86: Quantity | D86: =D85 -> Sunshine Coast | F86: =F85 -> Waste-water via Sewer | H86: =H85 -> Capped | L86: =L85 -> Volumetric Charge | N86: =N85 -> Variable | P86: ='[11]5.2.3'!P86 -> kilolitre | U86: ='[11]5.2.3'!U86 -> 1640253.193 | V86: ='[11]5.2.3'!V86 -> 1738071.328 | W86: ='[11]5.2.3'!W86 -> 1775745.873 | X86: ='[11]5.2.3'!X86 -> 1814237.054
C87: Revenue | D87: =D85 -> Sunshine Coast | F87: =F85 -> Waste-water via Sewer | H87: =H85 -> Capped | L87: =L85 -> Volumetric Charge | N87: =N85 -> Variable | P87: $'000 | U87: =U85*U86/1000+'[12]Sewerage Volumetric'!$E$11/1000 -> 4141.348 | V87: =V85*V86/1000 -> 4626.745875 | W87: =W85*W86/1000 -> 4881.525405 | X87: =X85*X86/1000 -> 5161.504418
B88: =B85+1 -> 25 | C88: Price | D88: Moreton Bay Regional Council | F88: Trade Waste | H88: Uncapped | J88: Business | L88: Discharge Fees | N88: Variable | P88: $
C89: Quantity | D89: =D88 -> Moreton Bay Regional Council | F89: =F88 -> Trade Waste | H89: =H88 -> Uncapped | L89: =L88 -> Discharge Fees | N89: =N88 -> Variable | P89: [please specify]
C90: Revenue | D90: =D88 -> Moreton Bay Regional Council | F90: =F88 -> Trade Waste | H90: =H88 -> Uncapped | L90: =L88 -> Discharge Fees | N90: =N88 -> Variable | P90: $'000 | U90: ='[12]Trade Waste'!$F$30/1000 -> 1456.934 | V90: ='[12]Trade Waste'!G$30/1000 -> 1283.92 | W90: ='[12]Trade Waste'!H$30/1000 -> 1357.390714 | X90: ='[12]Trade Waste'!I$30/1000 -> 1438.540434
B91: =B88+1 -> 26 | C91: Price | D91: Moreton Bay Regional Council | F91: Trade Waste | H91: Uncapped | J91: Business | L91: Permit/licence Fees | N91: Fixed | P91: $
C92: Quantity | D92: =D91 -> Moreton Bay Regional Council | F92: =F91 -> Trade Waste | H92: =H91 -> Uncapped | L92: =L91 -> Permit/licence Fees | N92: =N91 -> Fixed | P92: [please specify]
C93: Revenue | D93: =D91 -> Moreton Bay Regional Council | F93: =F91 -> Trade Waste | H93: =H91 -> Uncapped | L93: =L91 -> Permit/licence Fees | N93: =N91 -> Fixed | P93: $'000 | U93: =('[12]Trade Waste'!$F$32-'[12]Trade Waste'!$F$30)/1000 -> 103.991 | V93: =('[12]Trade Waste'!G$32-'[12]Trade Waste'!G$30)/1000 -> 131.306 | W93: =('[12]Trade Waste'!H$32-'[12]Trade Waste'!H$30)/1000 -> 138.8198214 | X93: =('[12]Trade Waste'!I$32-'[12]Trade Waste'!I$30)/1000 -> 147.1189717
B94: =B91+1 -> 27 | C94: Price | D94: Sunshine Coast Regional Council | F94: Trade Waste | H94: Uncapped | J94: Business | L94: Discharge Fees | N94: Variable | P94: $
C95: Quantity | D95: =D94 -> Sunshine Coast Regional Council | F95: =F94 -> Trade Waste | H95: =H94 -> Uncapped | L95: =L94 -> Discharge Fees | N95: =N94 -> Variable | P95: [please specify]
C96: Revenue | D96: =D94 -> Sunshine Coast Regional Council | F96: =F94 -> Trade Waste | H96: =H94 -> Uncapped | L96: =L94 -> Discharge Fees | N96: =N94 -> Variable | P96: $'000 | U96: ='[12]Trade Waste'!$F$38/1000 -> 1140.792 | V96: ='[12]Trade Waste'!G$38/1000 -> 1512.975 | W96: ='[12]Trade Waste'!H$38/1000 -> 1598.139088 | X96: ='[12]Trade Waste'!I$38/1000 -> 1692.184392
B97: =B94+1 -> 28 | C97: Price | D97: Sunshine Coast Regional Council | F97: Trade Waste | H97: Uncapped | J97: Business | L97: Permit/licence Fees | N97: Fixed | P97: $
C98: Quantity | D98: =D97 -> Sunshine Coast Regional Council | F98: =F97 -> Trade Waste | H98: =H97 -> Uncapped | L98: =L97 -> Permit/licence Fees | N98: =N97 -> Fixed | P98: [please specify]
C99: Revenue | D99: =D97 -> Sunshine Coast Regional Council | F99: =F97 -> Trade Waste | H99: =H97 -> Uncapped | L99: =L97 -> Permit/licence Fees | N99: =N97 -> Fixed | P99: $'000 | U99: =('[12]Trade Waste'!$F$40-'[12]Trade Waste'!$F$38)/1000 -> 165.536 | V99: =('[12]Trade Waste'!G$40-'[12]Trade Waste'!G$38)/1000 -> 240.298 | W99: =('[12]Trade Waste'!H$40-'[12]Trade Waste'!H$38)/1000 -> 253.8241719 | X99: =('[12]Trade Waste'!I$40-'[12]Trade Waste'!I$38)/1000 -> 268.7609016
B100: =B97+1 -> 29 | C100: Price | D100: Moreton Bay Regional Council | F100: Other Core Water Services | H100: Uncapped | J100: Commercially negotiated agreements | L100: Moreton Bay Otucome Charges | N100: Variable | P100: $
C101: Quantity | D101: =D100 -> Moreton Bay Regional Council | F101: =F100 -> Other Core Water Services | H101: =H100 -> Uncapped | L101: =L100 -> Moreton Bay Otucome Charges | N101: =N100 -> Variable | P101: [please specify]
C102: Revenue | D102: =D100 -> Moreton Bay Regional Council | F102: =F100 -> Other Core Water Services | H102: =H100 -> Uncapped | L102: =L100 -> Moreton Bay Otucome Charges | N102: =N100 -> Variable | P102: $'000 | U102: =('[12]Recycled Water'!$E$32-'[12]Recycled Water'!$C$28-'[12]Recycled Water'!$C$29)/1000 -> 6481.62058 | V102: =('[12]Recycled Water'!F$32-'[12]Recycled Water'!F$15-'[12]Recycled Water'!F$16)/1000 -> 6842.015167 | W102: ='[12]Recycled Water'!G$30/1000 -> 7156.302459 | X102: ='[12]Recycled Water'!H$30/1000 -> 7406.773045
B103: =B100+1 -> 30 | C103: Price | D103: Moreton Bay Regional Council | F103: Other Core Water Services | H103: Uncapped | J103: Other | L103: Recycled Water | N103: Variable | P103: $
C104: Quantity | D104: =D103 -> Moreton Bay Regional Council | F104: =F103 -> Other Core Water Services | H104: =H103 -> Uncapped | L104: =L103 -> Recycled Water | N104: =N103 -> Variable | P104: [please specify]
C105: Revenue | D105: =D103 -> Moreton Bay Regional Council | F105: =F103 -> Other Core Water Services | H105: =H103 -> Uncapped | L105: =L103 -> Recycled Water | N105: =N103 -> Variable | P105: $'000 | U105: =('[12]Recycled Water'!$C$28+'[12]Recycled Water'!$C$29)/1000 -> 52.14942 | V105: =('[12]Recycled Water'!$F$15+'[12]Recycled Water'!$F$16)/1000 -> 54.88183332 | W105: =('[12]Recycled Water'!$G$28+'[12]Recycled Water'!$G$29)/1000 -> 58.21410554 | X105: =('[12]Recycled Water'!$H$28+'[12]Recycled Water'!$H$29)/1000 -> 61.89821665
B106: =B103+1 -> 31 | C106: Price | D106: Sunshine Coast Regional Council | F106: Other Core Water Services | H106: Uncapped | J106: Other | L106: Recycled Water | N106: Variable | P106: $
C107: Quantity | D107: =D106 -> Sunshine Coast Regional Council | F107: =F106 -> Other Core Water Services | H107: =H106 -> Uncapped | L107: =L106 -> Recycled Water | N107: =N106 -> Variable | P107: [please specify]
C108: Revenue | D108: =D106 -> Sunshine Coast Regional Council | F108: =F106 -> Other Core Water Services | H108: =H106 -> Uncapped | L108: =L106 -> Recycled Water | N108: =N106 -> Variable | P108: $'000 | U108: ='[12]Recycled Water'!E$37/1000 -> 0 | V108: ='[12]Recycled Water'!F$37/1000 -> 25 | W108: ='[12]Recycled Water'!G$37/1000 -> 77.4375 | X108: ='[12]Recycled Water'!H$37/1000 -> 240.4434375
B109: =B106+1 -> 32 | C109: Price | D109: Moreton Bay Regional Council | F109: Other Core Water Services | H109: Uncapped | J109: Other | L109: Connection Fees | N109: Variable | P109: $
C110: Quantity | D110: =D109 -> Moreton Bay Regional Council | F110: =F109 -> Other Core Water Services | H110: =H109 -> Uncapped | L110: =L109 -> Connection Fees | N110: =N109 -> Variable | P110: [please specify]
C111: Revenue | D111: =D109 -> Moreton Bay Regional Council | F111: =F109 -> Other Core Water Services | H111: =H109 -> Uncapped | L111: =L109 -> Connection Fees | N111: =N109 -> Variable | P111: $'000 | U111: =('[12]Other Core Water'!C$38+'[12]Other Core Water'!C$40)/1000 -> 1177.241 | V111: =('[12]Other Core Water'!D$38+'[12]Other Core Water'!D$40)/1000 -> 2493.843 | W111: =('[12]Other Core Water'!E$38+'[12]Other Core Water'!E$40)/1000 -> 2642.933941 | X111: =('[12]Other Core Water'!F$38+'[12]Other Core Water'!F$40)/1000 -> 2798.909882
B112: =B109+1 -> 33 | C112: Price | D112: Moreton Bay Regional Council | F112: Other Core Water Services | H112: Uncapped | J112: Other | L112: Other | N112: Variable | P112: $
C113: Quantity | D113: =D112 -> Moreton Bay Regional Council | F113: =F112 -> Other Core Water Services | H113: =H112 -> Uncapped | L113: =L112 -> Other | N113: =N112 -> Variable | P113: [please specify]
C114: Revenue | D114: =D112 -> Moreton Bay Regional Council | F114: =F112 -> Other Core Water Services | H114: =H112 -> Uncapped | L114: =L112 -> Other | N114: =N112 -> Variable | P114: $'000 | U114: =('[12]Other Core Water'!C$42-'[12]Other Core Water'!C$38-'[12]Other Core Water'!C$40)/1000 -> 1208 | V114: =('[12]Other Core Water'!D$42-'[12]Other Core Water'!D$38-'[12]Other Core Water'!D$40)/1000 -> 1208.538 | W114: =('[12]Other Core Water'!E$42-'[12]Other Core Water'!E$38-'[12]Other Core Water'!E$40)/1000 -> 1280.788766 | X114: =('[12]Other Core Water'!F$42-'[12]Other Core Water'!F$38-'[12]Other Core Water'!F$40)/1000 -> 1356.376064
B115: =B112+1 -> 34 | C115: Price | D115: Sunshine Coast Regional Council | F115: Other Core Water Services | H115: Uncapped | J115: Other | L115: Connection Fees | N115: Variable | P115: $
C116: Quantity | D116: =D115 -> Sunshine Coast Regional Council | F116: =F115 -> Other Core Water Services | H116: =H115 -> Uncapped | L116: =L115 -> Connection Fees | N116: =N115 -> Variable | P116: [please specify]
C117: Revenue | D117: =D115 -> Sunshine Coast Regional Council | F117: =F115 -> Other Core Water Services | H117: =H115 -> Uncapped | L117: =L115 -> Connection Fees | N117: =N115 -> Variable | P117: $'000 | U117: =('[12]Other Core Water'!C$78+'[12]Other Core Water'!C$80)/1000 -> 1240 | V117: =('[12]Other Core Water'!D$78+'[12]Other Core Water'!D$80)/1000 -> 1188.082 | W117: =('[12]Other Core Water'!E$78+'[12]Other Core Water'!E$80)/1000 -> 1257.996774 | X117: =('[12]Other Core Water'!F$78+'[12]Other Core Water'!F$80)/1000 -> 1331.061269
B118: =B115+1 -> 35 | C118: Price | D118: Sunshine Coast Regional Council | F118: Other Core Water Services | H118: Uncapped | J118: Other | L118: Other | N118: Variable | P118: $
C119: Quantity | D119: =D118 -> Sunshine Coast Regional Council | F119: =F118 -> Other Core Water Services | H119: =H118 -> Uncapped | L119: =L118 -> Other | N119: =N118 -> Variable | P119: [please specify]
C120: Revenue | D120: =D118 -> Sunshine Coast Regional Council | F120: =F118 -> Other Core Water Services | H120: =H118 -> Uncapped | L120: =L118 -> Other | N120: =N118 -> Variable | P120: $'000 | U120: =('[12]Other Core Water'!C$82-'[12]Other Core Water'!C$78-'[12]Other Core Water'!C$80)/1000 -> 1180 | V120: =('[12]Other Core Water'!D$82-'[12]Other Core Water'!D$78-'[12]Other Core Water'!D$80)/1000 -> 1067.5825 | W120: =('[12]Other Core Water'!E$82-'[12]Other Core Water'!E$78-'[12]Other Core Water'!E$80)/1000 -> 1130.406269 | X120: =('[12]Other Core Water'!F$82-'[12]Other Core Water'!F$78-'[12]Other Core Water'!F$80)/1000 -> 1196.060303
B121: =B118+1 -> 36 | C121: Price | D121: Moreton Bay Regional Council | F121: Other Core Waste-water Services | H121: Uncapped | J121: Other | L121: Recoverable Works | N121: Variable | P121: $
C122: Quantity | D122: =D121 -> Moreton Bay Regional Council | F122: =F121 -> Other Core Waste-water Services | H122: =H121 -> Uncapped | L122: =L121 -> Recoverable Works | N122: =N121 -> Variable | P122: [please specify]
C123: Revenue | D123: =D121 -> Moreton Bay Regional Council | F123: =F121 -> Other Core Waste-water Services | H123: =H121 -> Uncapped | L123: =L121 -> Recoverable Works | N123: =N121 -> Variable | P123: $'000 | U123: =('[12]Other Core Wastewater'!C$33)/1000 -> 350 | V123: =('[12]Other Core Wastewater'!D$33)/1000 -> 305.5 | W123: =('[12]Other Core Wastewater'!E$33)/1000 -> 323.7638933 | X123: =('[12]Other Core Wastewater'!F$33)/1000 -> 342.8712108
B124: =B121+1 -> 37 | C124: Price | D124: Moreton Bay Regional Council | F124: Other Core Waste-water Services | H124: Uncapped | J124: Other | L124: Other | N124: Variable | P124: $
C125: Quantity | D125: =D124 -> Moreton Bay Regional Council | F125: =F124 -> Other Core Waste-water Services | H125: =H124 -> Uncapped | L125: =L124 -> Other | N125: =N124 -> Variable | P125: [please specify]
C126: Revenue | D126: =D124 -> Moreton Bay Regional Council | F126: =F124 -> Other Core Waste-water Services | H126: =H124 -> Uncapped | L126: =L124 -> Other | N126: =N124 -> Variable | P126: $'000 | U126: =('[12]Other Core Wastewater'!C$42-'[12]Other Core Wastewater'!C$33)/1000 -> 997.766 | V126: =('[12]Other Core Wastewater'!D$42-'[12]Other Core Wastewater'!D$33)/1000 -> 800.863 | W126: =('[12]Other Core Wastewater'!E$42-'[12]Other Core Wastewater'!E$33)/1000 -> 848.7414826 | X126: =('[12]Other Core Wastewater'!F$42-'[12]Other Core Wastewater'!F$33)/1000 -> 898.830987
B127: =B124+1 -> 38 | C127: Price | D127: Sunshine Coast Regional Council | F127: Other Core Waste-water Services | H127: Uncapped | J127: Other | L127: Recoverable Works | N127: Variable | P127: $
C128: Quantity | D128: =D127 -> Sunshine Coast Regional Council | F128: =F127 -> Other Core Waste-water Services | H128: =H127 -> Uncapped | L128: =L127 -> Recoverable Works | N128: =N127 -> Variable | P128: [please specify]
C129: Revenue | D129: =D127 -> Sunshine Coast Regional Council | F129: =F127 -> Other Core Waste-water Services | H129: =H127 -> Uncapped | L129: =L127 -> Recoverable Works | N129: =N127 -> Variable | P129: $'000 | U129: =('[12]Other Core Wastewater'!C$73+'[12]Other Core Wastewater'!C$64)/1000 -> 20 | V129: =('[12]Other Core Wastewater'!D$73+'[12]Other Core Wastewater'!D$64)/1000 -> 154 | W129: =('[12]Other Core Wastewater'!E$73+'[12]Other Core Wastewater'!E$64)/1000 -> 163.0624008 | X129: =('[12]Other Core Wastewater'!F$73+'[12]Other Core Wastewater'!F$64)/1000 -> 172.5330705
B130: =B127+1 -> 39 | C130: Price | D130: Sunshine Coast Regional Council | F130: Other Core Waste-water Services | H130: Uncapped | J130: Other | L130: Other | N130: Variable | P130: $
C131: Quantity | D131: =D130 -> Sunshine Coast Regional Council | F131: =F130 -> Other Core Waste-water Services | H131: =H130 -> Uncapped | L131: =L130 -> Other | N131: =N130 -> Variable | P131: [please specify]
C132: Revenue | D132: =D130 -> Sunshine Coast Regional Council | F132: =F130 -> Other Core Waste-water Services | H132: =H130 -> Uncapped | L132: =L130 -> Other | N132: =N130 -> Variable | P132: $'000 | U132: =('[12]Other Core Wastewater'!C$82-'[12]Other Core Wastewater'!C$64-'[12]Other Core Wastewater'!C$73)/1000 -> 934.083 | V132: =('[12]Other Core Wastewater'!D$82-'[12]Other Core Wastewater'!D$64-'[12]Other Core Wastewater'!D$73)/1000 -> 481.1375 | W132: =('[12]Other Core Wastewater'!E$82-'[12]Other Core Wastewater'!E$64-'[12]Other Core Wastewater'!E$73)/1000 -> 509.4508821 | X132: =('[12]Other Core Wastewater'!F$82-'[12]Other Core Wastewater'!F$64-'[12]Other Core Wastewater'!F$73)/1000 -> 539.0398065
B133: =B130+1 -> 40 | C133: Price | D133: Moreton Bay Regional Council | F133: Aggregate Non-regulated Services | H133: Uncapped | J133: Other | L133: Other | N133: Variable | P133: $
C134: Quantity | D134: =D133 -> Moreton Bay Regional Council | F134: =F133 -> Aggregate Non-regulated Services | H134: =H133 -> Uncapped | L134: =L133 -> Other | N134: =N133 -> Variable | P134: [please specify]
C135: Revenue | D135: =D133 -> Moreton Bay Regional Council | F135: =F133 -> Aggregate Non-regulated Services | H135: =H133 -> Uncapped | L135: =L133 -> Other | N135: =N133 -> Variable | P135: $'000 | U135: ='[12]Non Regulated'!C$42/1000 -> 2570.782925 | V135: ='[12]Non Regulated'!D$42/1000 -> 2510.8185 | W135: ='[12]Non Regulated'!E$42/1000 -> 2650.563108 | X135: ='[12]Non Regulated'!F$42/1000 -> 2796.05935
B136: =B133+1 -> 41 | C136: Price | D136: Sunshine Coast Regional Council | F136: Aggregate Non-regulated Services | H136: Uncapped | J136: Other | L136: Other | N136: Variable | P136: $
C137: Quantity | D137: =D136 -> Sunshine Coast Regional Council | F137: =F136 -> Aggregate Non-regulated Services | H137: =H136 -> Uncapped | L137: =L136 -> Other | N137: =N136 -> Variable | P137: [please specify]
C138: Revenue | D138: =D136 -> Sunshine Coast Regional Council | F138: =F136 -> Aggregate Non-regulated Services | H138: =H136 -> Uncapped | L138: =L136 -> Other | N138: =N136 -> Variable | P138: $'000 | U138: ='[12]Non Regulated'!C$82/1000 -> 2930.115925 | V138: ='[12]Non Regulated'!D$82/1000 -> 2427.7655 | W138: ='[12]Non Regulated'!E$82/1000 -> 2567.203546 | X138: ='[12]Non Regulated'!F$82/1000 -> 2712.684465
B142: Total Revenue | P142: $'000 | R142: =SUMIF($C:$C,"=Revenue",R:R) -> 0 | S142: 0 | T142: 0 | U142: 415715.395 | V142: 443241.3625 | W142: 487931.8245 | X142: 534762.525
J152: Some volumes for drinking water were adjusted down in 2012 to reflect the impact on revenue of leak rebates
A176: List for Geographic Areas
A177: ='Business Details'!D12 -> Moreton Bay Regional Council
A178: ='Business Details'!D13 -> Sunshine Coast Regional Council
A179: ='Business Details'!D14 -> N/A
A180: ='Business Details'!D15 -> N/A
A181: ='Business Details'!D16 -> N/A
A183: List for Services
A184: Drinking water
A185: Other Core Water Services
A186: Waste-water via Sewer
A187: Trade Waste
A188: Other Core Waste-water Services
A189: Aggregate Non-regulated Services
A192: List for Type of Tariff:
A193: Fixed
A194: Variable
A196: Customer type
A197: Residential
A198: Business
A199: Commercially negotiated agreements
A200: Other
A202: Capped//Uncapped
A203: Capped
A204: Uncapped

Sheet 5.3.1
B4: ='Business Details'!$B$4 -> SEQ INTERIM REVENUE MONITORING - INFORMATION REQUIREMENT TEMPLATE
B7: =CONCATENATE("Service Standards for ",'Business Details'!$D$9) -> Service Standards for Northern SEQ Distributor-Retailer Authority (trading as Unitywater ABN: 89 791 717 472)
B8: =CONCATENATE("Reporting year = ",AnalysisYear) -> Reporting year = 2013
K10: 0
F11: Unit of Measurement | G11: For Year Ending 30 June: | N11: Approving Agency | O11: Changes expected in service standard | P11: Date of expected changes | Q11: Supporting Documents
D12: Service (Dropdown list) | E12: Region (Dropdown list) | G12: ='5.1.1'!F13 -> 2009 | H12: ='5.1.1'!G13 -> 2010 | I12: ='5.1.1'!H13 -> 2011 | J12: ='5.1.1'!I13 -> 2012 | K12: ='5.1.1'!J13 -> 2013 | L12: ='5.1.1'!K13 -> 2014 | M12: ='5.1.1'!L13 -> 2015
B13: # | C13: Description | AH13: =AG13 -> 
B16: 1 | C16: Customer Charter (general): Our core business is ensuring that, all day, every day, you can turn on a tap or flush your toilet, knowing that you will receive a safe, high quality and reliable water supply and sewerage service | D16: Drinking water | E16: Moreton Bay Regional Council | F16: Various | G16: N/A | H16: N/A | I16: N/A | J16: Yes | K16: Yes | L16: Yes | M16: Yes | N16: QWC | O16: No | P16: N/A | Q16: http://www.unitywater.com/customer-charter & http://www.qwc.qld.gov.au/reform/pdf/customer-water-wastewater-code.pdf & http://www.legislation.qld.gov.au/LEGISLTN/CURRENT/S/SouthEQWDisA09.pdf & http://www.legislation.qld.gov.au/LEGISLTN/CURRENT/W/WaterSupSRA08.pdf
B17: 2 | C17: Customer Charter (general): Our core business is ensuring that, all day, every day, you can turn on a tap or flush your toilet, knowing that you will receive a safe, high quality and reliable water supply and sewerage service | D17: Waste-water via Sewer | E17: Moreton Bay Regional Council | F17: Various | G17: N/A | H17: N/A | I17: N/A | J17: Yes | K17: Yes | L17: Yes | M17: Yes | N17: QWC | O17: No | P17: N/A | Q17: http://www.unitywater.com/customer-charter & http://www.qwc.qld.gov.au/reform/pdf/customer-water-wastewater-code.pdf & http://www.legislation.qld.gov.au/LEGISLTN/CURRENT/S/SouthEQWDisA09.pdf & http://www.legislation.qld.gov.au/LEGISLTN/CURRENT/W/WaterSupSRA08.pdf
B18: 3 | C18: Customer Charter (general): Our core business is ensuring that, all day, every day, you can turn on a tap or flush your toilet, knowing that you will receive a safe, high quality and reliable water supply and sewerage service | D18: Drinking water | E18: Sunshine Coast Regional Council | F18: Various | G18: N/A | H18: N/A | I18: N/A | J18: Yes | K18: Yes | L18: Yes | M18: Yes | N18: QWC | O18: No | P18: N/A | Q18: http://www.unitywater.com/customer-charter & http://www.qwc.qld.gov.au/reform/pdf/customer-water-wastewater-code.pdf & http://www.legislation.qld.gov.au/LEGISLTN/CURRENT/S/SouthEQWDisA09.pdf & http://www.legislation.qld.gov.au/LEGISLTN/CURRENT/W/WaterSupSRA08.pdf
B19: 4 | C19: Customer Charter (general): Our core business is ensuring that, all day, every day, you can turn on a tap or flush your toilet, knowing that you will receive a safe, high quality and reliable water supply and sewerage service | D19: Waste-water via Sewer | E19: Sunshine Coast Regional Council | F19: Various | G19: N/A | H19: N/A | I19: N/A | J19: Yes | K19: Yes | L19: Yes | M19: Yes | N19: QWC | O19: No | P19: N/A | Q19: http://www.unitywater.com/customer-charter & http://www.qwc.qld.gov.au/reform/pdf/customer-water-wastewater-code.pdf & http://www.legislation.qld.gov.au/LEGISLTN/CURRENT/S/SouthEQWDisA09.pdf & http://www.legislation.qld.gov.au/LEGISLTN/CURRENT/W/WaterSupSRA08.pdf
B20: 5 | C20: Customer Charter (general): Our crews are on standby 24/7, 365 days a year, to respond to urgent problems and emergencies | D20: Drinking water | E20: Moreton Bay Regional Council | F20: Various | G20: N/A | H20: N/A | I20: N/A | J20: Yes | K20: Yes | L20: Yes | M20: Yes | N20: QWC | O20: No | P20: N/A | Q20: http://www.unitywater.com/customer-charter & http://www.qwc.qld.gov.au/reform/pdf/customer-water-wastewater-code.pdf & http://www.legislation.qld.gov.au/LEGISLTN/CURRENT/S/SouthEQWDisA09.pdf & http://www.legislation.qld.gov.au/LEGISLTN/CURRENT/W/WaterSupSRA08.pdf
B21: 6 | C21: Customer Charter (general): Our crews are on standby 24/7, 365 days a year, to respond to urgent problems and emergencies | D21: Waste-water via Sewer | E21: Moreton Bay Regional Council | F21: Various | G21: N/A | H21: N/A | I21: N/A | J21: Yes | K21: Yes | L21: Yes | M21: Yes | N21: QWC | O21: No | P21: N/A | Q21: http://www.unitywater.com/customer-charter & http://www.qwc.qld.gov.au/reform/pdf/customer-water-wastewater-code.pdf & http://www.legislation.qld.gov.au/LEGISLTN/CURRENT/S/SouthEQWDisA09.pdf & http://www.legislation.qld.gov.au/LEGISLTN/CURRENT/W/WaterSupSRA08.pdf
B22: 7 | C22: Customer Charter (general): Our crews are on standby 24/7, 365 days a year, to respond to urgent problems and emergencies | D22: Drinking water | E22: Sunshine Coast Regional Council | F22: Various | G22: N/A | H22: N/A | I22: N/A | J22: Yes | K22: Yes | L22: Yes | M22: Yes | N22: QWC | O22: No | P22: N/A | Q22: http://www.unitywater.com/customer-charter & http://www.qwc.qld.gov.au/reform/pdf/customer-water-wastewater-code.pdf & http://www.legislation.qld.gov.au/LEGISLTN/CURRENT/S/SouthEQWDisA09.pdf & http://www.legislation.qld.gov.au/LEGISLTN/CURRENT/W/WaterSupSRA08.pdf
B23: 8 | C23: Customer Charter (general): Our crews are on standby 24/7, 365 days a year, to respond to urgent problems and emergencies | D23: Waste-water via Sewer | E23: Sunshine Coast Regional Council | F23: Various | G23: N/A | H23: N/A | I23: N/A | J23: Yes | K23: Yes | L23: Yes | M23: Yes | N23: QWC | O23: No | P23: N/A | Q23: http://www.unitywater.com/customer-charter & http://www.qwc.qld.gov.au/reform/pdf/customer-water-wastewater-code.pdf & http://www.legislation.qld.gov.au/LEGISLTN/CURRENT/S/SouthEQWDisA09.pdf & http://www.legislation.qld.gov.au/LEGISLTN/CURRENT/W/WaterSupSRA08.pdf
B24: 9 | C24: Quality, safety and reliability: We value our customers, our community and the environment | D24: Drinking water | E24: Moreton Bay Regional Council | F24: Various | G24: N/A | H24: N/A | I24: N/A | J24: Yes | K24: Yes | L24: Yes | M24: Yes | N24: QWC | O24: No | P24: N/A | Q24: http://www.unitywater.com/customer-charter & http://www.qwc.qld.gov.au/reform/pdf/customer-water-wastewater-code.pdf & http://www.legislation.qld.gov.au/LEGISLTN/CURRENT/S/SouthEQWDisA09.pdf & http://www.legislation.qld.gov.au/LEGISLTN/CURRENT/W/WaterSupSRA08.pdf
B25: 10 | C25: Quality, safety and reliability: We value our customers, our community and the environment | D25: Waste-water via Sewer | E25: Moreton Bay Regional Council | F25: Various | G25: N/A | H25: N/A | I25: N/A | J25: Yes | K25: Yes | L25: Yes | M25: Yes | N25: QWC | O25: No | P25: N/A | Q25: http://www.unitywater.com/customer-charter & http://www.qwc.qld.gov.au/reform/pdf/customer-water-wastewater-code.pdf & http://www.legislation.qld.gov.au/LEGISLTN/CURRENT/S/SouthEQWDisA09.pdf & http://www.legislation.qld.gov.au/LEGISLTN/CURRENT/W/WaterSupSRA08.pdf
B26: 11 | C26: Quality, safety and reliability: We value our customers, our community and the environment | D26: Drinking water | E26: Sunshine Coast Regional Council | F26: Various | G26: N/A | H26: N/A | I26: N/A | J26: Yes | K26: Yes | L26: Yes | M26: Yes | N26: QWC | O26: No | P26: N/A | Q26: http://www.unitywater.com/customer-charter & http://www.qwc.qld.gov.au/reform/pdf/customer-water-wastewater-code.pdf & http://www.legislation.qld.gov.au/LEGISLTN/CURRENT/S/SouthEQWDisA09.pdf & http://www.legislation.qld.gov.au/LEGISLTN/CURRENT/W/WaterSupSRA08.pdf
B27: 12 | C27: Quality, safety and reliability: We value our customers, our community and the environment | D27: Waste-water via Sewer | E27: Sunshine Coast Regional Council | F27: Various | G27: N/A | H27: N/A | I27: N/A | J27: Yes | K27: Yes | L27: Yes | M27: Yes | N27: QWC | O27: No | P27: N/A | Q27: http://www.unitywater.com/customer-charter & http://www.qwc.qld.gov.au/reform/pdf/customer-water-wastewater-code.pdf & http://www.legislation.qld.gov.au/LEGISLTN/CURRENT/S/SouthEQWDisA09.pdf & http://www.legislation.qld.gov.au/LEGISLTN/CURRENT/W/WaterSupSRA08.pdf
B28: 13 | C28: Providing you with water that complies with the Australian Drinking Water Guidelines issued by the National Health and Medical Research Council | D28: Drinking water | E28: Moreton Bay Regional Council | F28: Various | G28: N/A | H28: N/A | I28: N/A | J28: Yes | K28: Yes | L28: Yes | M28: Yes | N28: QWC & NHMRC | O28: No | P28: N/A | Q28: http://www.unitywater.com/customer-charter & http://www.nhmrc.gov.au/_files_nhmrc/publications/attachments/eh52_aust_drinking_water_guidelines_update_120430.pdf
B29: 14 | C29: Providing you with water that complies with the Australian Drinking Water Guidelines issued by the National Health and Medical Research Council | D29: Drinking water | E29: Sunshine Coast Regional Council | F29: Various | G29: N/A | H29: N/A | I29: N/A | J29: Yes | K29: Yes | L29: Yes | M29: Yes | N29: QWC & NHMRC | O29: No | P29: N/A | Q29: http://www.unitywater.com/customer-charter & http://www.nhmrc.gov.au/_files_nhmrc/publications/attachments/eh52_aust_drinking_water_guidelines_update_120430.pdf
B30: 15 | C30: Supplying water at the required pressure (210 kPa) and flow rate (23 litres/minute) to meet your household needs | D30: Drinking water | E30: Moreton Bay Regional Council | F30: Min pressure of 210 kPa & Min flow rate of 23 L/min | G30: N/A | H30: N/A | I30: N/A | J30: Yes | K30: Yes | L30: Yes | M30: Yes | N30: QWC | O30: No | P30: N/A | Q30: http://www.unitywater.com/customer-charter & http://www.qwc.qld.gov.au/reform/pdf/customer-water-wastewater-code.pdf & http://www.legislation.qld.gov.au/LEGISLTN/CURRENT/S/SouthEQWDisA09.pdf & http://www.legislation.qld.gov.au/LEGISLTN/CURRENT/W/WaterSupSRA08.pdf
B31: 16 | C31: Supplying water at the required pressure (210 kPa) and flow rate (23 litres/minute) to meet your household needs | D31: Drinking water | E31: Sunshine Coast Regional Council | F31: Min pressure of 210 kPa & Min flow rate of 23 L/min | G31: N/A | H31: N/A | I31: N/A | J31: Yes | K31: Yes | L31: Yes | M31: Yes | N31: QWC | O31: No | P31: N/A | Q31: http://www.unitywater.com/customer-charter & http://www.qwc.qld.gov.au/reform/pdf/customer-water-wastewater-code.pdf & http://www.legislation.qld.gov.au/LEGISLTN/CURRENT/S/SouthEQWDisA09.pdf & http://www.legislation.qld.gov.au/LEGISLTN/CURRENT/W/WaterSupSRA08.pdf
B32: 17 | C32: Protecting your health and the environment by operating and maintaining the infrastructure for the effective collection, transport and treatment of sewage | D32: Waste-water via Sewer | E32: Moreton Bay Regional Council | F32: Qualitative | G32: N/A | H32: N/A | I32: N/A | J32: Yes | K32: Yes | L32: Yes | M32: Yes | N32: QWC | O32: No | P32: N/A | Q32: http://www.unitywater.com/customer-charter & http://www.qwc.qld.gov.au/reform/pdf/customer-water-wastewater-code.pdf & http://www.legislation.qld.gov.au/LEGISLTN/CURRENT/S/SouthEQWDisA09.pdf & http://www.legislation.qld.gov.au/LEGISLTN/CURRENT/W/WaterSupSRA08.pdf
B33: 18 | C33: Protecting your health and the environment by operating and maintaining the infrastructure for the effective collection, transport and treatment of sewage | D33: Waste-water via Sewer | E33: Sunshine Coast Regional Council | F33: Qualitative | G33: N/A | H33: N/A | I33: N/A | J33: Yes | K33: Yes | L33: Yes | M33: Yes | N33: QWC | O33: No | P33: N/A | Q33: http://www.unitywater.com/customer-charter & http://www.qwc.qld.gov.au/reform/pdf/customer-water-wastewater-code.pdf & http://www.legislation.qld.gov.au/LEGISLTN/CURRENT/S/SouthEQWDisA09.pdf & http://www.legislation.qld.gov.au/LEGISLTN/CURRENT/W/WaterSupSRA08.pdf
B34: 19 | C34: Connecting your property to our water and sewerage network within 15 working days of receiving your application and payment, where the relevant service is available | D34: Drinking water | E34: Moreton Bay Regional Council | F34: Max connection time of 15 working days | G34: N/A | H34: N/A | I34: N/A | J34: Yes | K34: Yes | L34: Yes | M34: Yes | N34: QWC | O34: No | P34: N/A | Q34: http://www.unitywater.com/customer-charter & http://www.qwc.qld.gov.au/reform/pdf/customer-water-wastewater-code.pdf & http://www.legislation.qld.gov.au/LEGISLTN/CURRENT/S/SouthEQWDisA09.pdf & http://www.legislation.qld.gov.au/LEGISLTN/CURRENT/W/WaterSupSRA08.pdf
B35: 20 | C35: Connecting your property to our water and sewerage network within 15 working days of receiving your application and payment, where the relevant service is available | D35: Waste-water via Sewer | E35: Moreton Bay Regional Council | F35: Max connection time of 15 working days | G35: N/A | H35: N/A | I35: N/A | J35: Yes | K35: Yes | L35: Yes | M35: Yes | N35: QWC | O35: No | P35: N/A | Q35: http://www.unitywater.com/customer-charter & http://www.qwc.qld.gov.au/reform/pdf/customer-water-wastewater-code.pdf & http://www.legislation.qld.gov.au/LEGISLTN/CURRENT/S/SouthEQWDisA09.pdf & http://www.legislation.qld.gov.au/LEGISLTN/CURRENT/W/WaterSupSRA08.pdf
B36: 21 | C36: Connecting your property to our water and sewerage network within 15 working days of receiving your application and payment, where the relevant service is available | D36: Drinking water | E36: Sunshine Coast Regional Council | F36: Max connection time of 15 working days | G36: N/A | H36: N/A | I36: N/A | J36: Yes | K36: Yes | L36: Yes | M36: Yes | N36: QWC | O36: No | P36: N/A | Q36: http://www.unitywater.com/customer-charter & http://www.qwc.qld.gov.au/reform/pdf/customer-water-wastewater-code.pdf & http://www.legislation.qld.gov.au/LEGISLTN/CURRENT/S/SouthEQWDisA09.pdf & http://www.legislation.qld.gov.au/LEGISLTN/CURRENT/W/WaterSupSRA08.pdf
B37: 22 | C37: Connecting your property to our water and sewerage network within 15 working days of receiving your application and payment, where the relevant service is available | D37: Waste-water via Sewer | E37: Sunshine Coast Regional Council | F37: Max connection time of 15 working days | G37: N/A | H37: N/A | I37: N/A | J37: Yes | K37: Yes | L37: Yes | M37: Yes | N37: QWC | O37: No | P37: N/A | Q37: http://www.unitywater.com/customer-charter & http://www.qwc.qld.gov.au/reform/pdf/customer-water-wastewater-code.pdf & http://www.legislation.qld.gov.au/LEGISLTN/CURRENT/S/SouthEQWDisA09.pdf & http://www.legislation.qld.gov.au/LEGISLTN/CURRENT/W/WaterSupSRA08.pdf
B38: 23 | C38: Quality, safety and reliability: We will do our best to minimise customer inconvenience during planned and unplanned service interruptions | D38: Drinking water | E38: Moreton Bay Regional Council | F38: Various | G38: N/A | H38: N/A | I38: N/A | J38: Yes | K38: Yes | L38: Yes | M38: Yes | N38: QWC | O38: No | P38: N/A | Q38: http://www.unitywater.com/customer-charter & http://www.qwc.qld.gov.au/reform/pdf/customer-water-wastewater-code.pdf & http://www.legislation.qld.gov.au/LEGISLTN/CURRENT/S/SouthEQWDisA09.pdf & http://www.legislation.qld.gov.au/LEGISLTN/CURRENT/W/WaterSupSRA08.pdf
B39: 24 | C39: Quality, safety and reliability: We will do our best to minimise customer inconvenience during planned and unplanned service interruptions | D39: Waste-water via Sewer | E39: Moreton Bay Regional Council | F39: Various | G39: N/A | H39: N/A | I39: N/A | J39: Yes | K39: Yes | L39: Yes | M39: Yes | N39: QWC | O39: No | P39: N/A | Q39: http://www.unitywater.com/customer-charter & http://www.qwc.qld.gov.au/reform/pdf/customer-water-wastewater-code.pdf & http://www.legislation.qld.gov.au/LEGISLTN/CURRENT/S/SouthEQWDisA09.pdf & http://www.legislation.qld.gov.au/LEGISLTN/CURRENT/W/WaterSupSRA08.pdf
B40: 25 | C40: Quality, safety and reliability: We will do our best to minimise customer inconvenience during planned and unplanned service interruptions | D40: Drinking water | E40: Sunshine Coast Regional Council | F40: Various | G40: N/A | H40: N/A | I40: N/A | J40: Yes | K40: Yes | L40: Yes | M40: Yes | N40: QWC | O40: No | P40: N/A | Q40: http://www.unitywater.com/customer-charter & http://www.qwc.qld.gov.au/reform/pdf/customer-water-wastewater-code.pdf & http://www.legislation.qld.gov.au/LEGISLTN/CURRENT/S/SouthEQWDisA09.pdf & http://www.legislation.qld.gov.au/LEGISLTN/CURRENT/W/WaterSupSRA08.pdf
B41: 26 | C41: Quality, safety and reliability: We will do our best to minimise customer inconvenience during planned and unplanned service interruptions | D41: Waste-water via Sewer | E41: Sunshine Coast Regional Council | F41: Various | G41: N/A | H41: N/A | I41: N/A | J41: Yes | K41: Yes | L41: Yes | M41: Yes | N41: QWC | O41: No | P41: N/A | Q41: http://www.unitywater.com/customer-charter & http://www.qwc.qld.gov.au/reform/pdf/customer-water-wastewater-code.pdf & http://www.legislation.qld.gov.au/LEGISLTN/CURRENT/S/SouthEQWDisA09.pdf & http://www.legislation.qld.gov.au/LEGISLTN/CURRENT/W/WaterSupSRA08.pdf
B42: 27 | C42: Providing you with at least 48 hours notice of any planned works that may disrupt your water supply | D42: Drinking water | E42: Moreton Bay Regional Council | F42: Min notice time of 48 hours | G42: N/A | H42: N/A | I42: N/A | J42: Yes | K42: Yes | L42: Yes | M42: Yes | N42: QWC | O42: No | P42: N/A | Q42: http://www.unitywater.com/customer-charter & http://www.qwc.qld.gov.au/reform/pdf/customer-water-wastewater-code.pdf & http://www.legislation.qld.gov.au/LEGISLTN/CURRENT/S/SouthEQWDisA09.pdf & http://www.legislation.qld.gov.au/LEGISLTN/CURRENT/W/WaterSupSRA08.pdf
B43: 28 | C43: Providing you with at least 48 hours notice of any planned works that may disrupt your water supply | D43: Drinking water | E43: Sunshine Coast Regional Council | F43: Min notice time of 48 hours | G43: N/A | H43: N/A | I43: N/A | J43: Yes | K43: Yes | L43: Yes | M43: Yes | N43: QWC | O43: No | P43: N/A | Q43: http://www.unitywater.com/customer-charter & http://www.qwc.qld.gov.au/reform/pdf/customer-water-wastewater-code.pdf & http://www.legislation.qld.gov.au/LEGISLTN/CURRENT/S/SouthEQWDisA09.pdf & http://www.legislation.qld.gov.au/LEGISLTN/CURRENT/W/WaterSupSRA08.pdf
B44: 29 | C44: Communicating with customers, organisations or facilities with identified special needs, prior to planned water supply interruptions | D44: Drinking water | E44: Moreton Bay Regional Council | F44: Qualitative | G44: N/A | H44: N/A | I44: N/A | J44: Yes | K44: Yes | L44: Yes | M44: Yes | N44: QWC | O44: No | P44: N/A | Q44: http://www.unitywater.com/customer-charter & http://www.qwc.qld.gov.au/reform/pdf/customer-water-wastewater-code.pdf & http://www.legislation.qld.gov.au/LEGISLTN/CURRENT/S/SouthEQWDisA09.pdf & http://www.legislation.qld.gov.au/LEGISLTN/CURRENT/W/WaterSupSRA08.pdf
B45: 30 | C45: Communicating with customers, organisations or facilities with identified special needs, prior to planned water supply interruptions | D45: Drinking water | E45: Sunshine Coast Regional Council | F45: Qualitative | G45: N/A | H45: N/A | I45: N/A | J45: Yes | K45: Yes | L45: Yes | M45: Yes | N45: QWC | O45: No | P45: N/A | Q45: http://www.unitywater.com/customer-charter & http://www.qwc.qld.gov.au/reform/pdf/customer-water-wastewater-code.pdf & http://www.legislation.qld.gov.au/LEGISLTN/CURRENT/S/SouthEQWDisA09.pdf & http://www.legislation.qld.gov.au/LEGISLTN/CURRENT/W/WaterSupSRA08.pdf
B46: 31 | C46: In the event of unplanned water supply interruptions, striving to restore normal service levels within five hours, 90% of the time | D46: Drinking water | E46: Moreton Bay Regional Council | F46: Max restore time of 5 hours for Min of 90% of events | G46: N/A | H46: N/A | I46: N/A | J46: Yes | K46: Yes | L46: Yes | M46: Yes | N46: QWC | O46: No | P46: N/A | Q46: http://www.unitywater.com/customer-charter & http://www.qwc.qld.gov.au/reform/pdf/customer-water-wastewater-code.pdf & http://www.legislation.qld.gov.au/LEGISLTN/CURRENT/S/SouthEQWDisA09.pdf & http://www.legislation.qld.gov.au/LEGISLTN/CURRENT/W/WaterSupSRA08.pdf
B47: 32 | C47: In the event of unplanned water supply interruptions, striving to restore normal service levels within five hours, 90% of the time | D47: Drinking water | E47: Sunshine Coast Regional Council | F47: Max restore time of 5 hours for Min of 90% of events | G47: N/A | H47: N/A | I47: N/A | J47: Yes | K47: Yes | L47: Yes | M47: Yes | N47: QWC | O47: No | P47: N/A | Q47: http://www.unitywater.com/customer-charter & http://www.qwc.qld.gov.au/reform/pdf/customer-water-wastewater-code.pdf & http://www.legislation.qld.gov.au/LEGISLTN/CURRENT/S/SouthEQWDisA09.pdf & http://www.legislation.qld.gov.au/LEGISLTN/CURRENT/W/WaterSupSRA08.pdf
B48: 33 | C48: Aiming to have fewer than 15 unplanned water supply interruptions per 1000 homes per year | D48: Drinking water | E48: Moreton Bay Regional Council | F48: Max events of 15 per 1000 homes per year | G48: N/A | H48: N/A | I48: N/A | J48: Yes | K48: Yes | L48: Yes | M48: Yes | N48: QWC | O48: No | P48: N/A | Q48: http://www.unitywater.com/customer-charter & http://www.qwc.qld.gov.au/reform/pdf/customer-water-wastewater-code.pdf & http://www.legislation.qld.gov.au/LEGISLTN/CURRENT/S/SouthEQWDisA09.pdf & http://www.legislation.qld.gov.au/LEGISLTN/CURRENT/W/WaterSupSRA08.pdf
B49: 34 | C49: Aiming to have fewer than 15 unplanned water supply interruptions per 1000 homes per year | D49: Drinking water | E49: Sunshine Coast Regional Council | F49: Max events of 15 per 1000 homes per year | G49: N/A | H49: N/A | I49: N/A | J49: Yes | K49: Yes | L49: Yes | M49: Yes | N49: QWC | O49: No | P49: N/A | Q49: http://www.unitywater.com/customer-charter & http://www.qwc.qld.gov.au/reform/pdf/customer-water-wastewater-code.pdf & http://www.legislation.qld.gov.au/LEGISLTN/CURRENT/S/SouthEQWDisA09.pdf & http://www.legislation.qld.gov.au/LEGISLTN/CURRENT/W/WaterSupSRA08.pdf
B50: 35 | C50: Responding to urgent water and sewage incidents in less than one hour, in 90% of cases | D50: Drinking water | E50: Moreton Bay Regional Council | F50: Max response time of 1 hour for Min of 90% of events | G50: N/A | H50: N/A | I50: N/A | J50: Yes | K50: Yes | L50: Yes | M50: Yes | N50: QWC | O50: No | P50: N/A | Q50: http://www.unitywater.com/customer-charter & http://www.qwc.qld.gov.au/reform/pdf/customer-water-wastewater-code.pdf & http://www.legislation.qld.gov.au/LEGISLTN/CURRENT/S/SouthEQWDisA09.pdf & http://www.legislation.qld.gov.au/LEGISLTN/CURRENT/W/WaterSupSRA08.pdf
B51: 36 | C51: Responding to urgent water and sewage incidents in less than one hour, in 90% of cases | D51: Waste-water via Sewer | E51: Moreton Bay Regional Council | F51: Max response time of 1 hour for Min of 90% of events | G51: N/A | H51: N/A | I51: N/A | J51: Yes | K51: Yes | L51: Yes | M51: Yes | N51: QWC | O51: No | P51: N/A | Q51: http://www.unitywater.com/customer-charter & http://www.qwc.qld.gov.au/reform/pdf/customer-water-wastewater-code.pdf & http://www.legislation.qld.gov.au/LEGISLTN/CURRENT/S/SouthEQWDisA09.pdf & http://www.legislation.qld.gov.au/LEGISLTN/CURRENT/W/WaterSupSRA08.pdf
B52: 37 | C52: Responding to urgent water and sewage incidents in less than one hour, in 90% of cases | D52: Drinking water | E52: Sunshine Coast Regional Council | F52: Max response time of 1 hour for Min of 90% of events | G52: N/A | H52: N/A | I52: N/A | J52: Yes | K52: Yes | L52: Yes | M52: Yes | N52: QWC | O52: No | P52: N/A | Q52: http://www.unitywater.com/customer-charter & http://www.qwc.qld.gov.au/reform/pdf/customer-water-wastewater-code.pdf & http://www.legislation.qld.gov.au/LEGISLTN/CURRENT/S/SouthEQWDisA09.pdf & http://www.legislation.qld.gov.au/LEGISLTN/CURRENT/W/WaterSupSRA08.pdf
B53: 38 | C53: Responding to urgent water and sewage incidents in less than one hour, in 90% of cases | D53: Waste-water via Sewer | E53: Sunshine Coast Regional Council | F53: Max response time of 1 hour for Min of 90% of events | G53: N/A | H53: N/A | I53: N/A | J53: Yes | K53: Yes | L53: Yes | M53: Yes | N53: QWC | O53: No | P53: N/A | Q53: http://www.unitywater.com/customer-charter & http://www.qwc.qld.gov.au/reform/pdf/customer-water-wastewater-code.pdf & http://www.legislation.qld.gov.au/LEGISLTN/CURRENT/S/SouthEQWDisA09.pdf & http://www.legislation.qld.gov.au/LEGISLTN/CURRENT/W/WaterSupSRA08.pdf
B54: 39 | C54: Depending on the length and severity of disruption, providing more information about planned or unplanned service interruptions via our website and/or our Customer Service Call Centre | D54: Drinking water | E54: Moreton Bay Regional Council | F54: Qualitative | G54: N/A | H54: N/A | I54: N/A | J54: Yes | K54: Yes | L54: Yes | M54: Yes | N54: QWC | O54: No | P54: N/A | Q54: http://www.unitywater.com/customer-charter & http://www.qwc.qld.gov.au/reform/pdf/customer-water-wastewater-code.pdf & http://www.legislation.qld.gov.au/LEGISLTN/CURRENT/S/SouthEQWDisA09.pdf & http://www.legislation.qld.gov.au/LEGISLTN/CURRENT/W/WaterSupSRA08.pdf
B55: 40 | C55: Depending on the length and severity of disruption, providing more information about planned or unplanned service interruptions via our website and/or our Customer Service Call Centre | D55: Waste-water via Sewer | E55: Moreton Bay Regional Council | F55: Qualitative | G55: N/A | H55: N/A | I55: N/A | J55: Yes | K55: Yes | L55: Yes | M55: Yes | N55: QWC | O55: No | P55: N/A | Q55: http://www.unitywater.com/customer-charter & http://www.qwc.qld.gov.au/reform/pdf/customer-water-wastewater-code.pdf & http://www.legislation.qld.gov.au/LEGISLTN/CURRENT/S/SouthEQWDisA09.pdf & http://www.legislation.qld.gov.au/LEGISLTN/CURRENT/W/WaterSupSRA08.pdf
B56: 41 | C56: Depending on the length and severity of disruption, providing more information about planned or unplanned service interruptions via our website and/or our Customer Service Call Centre | D56: Drinking water | E56: Sunshine Coast Regional Council | F56: Qualitative | G56: N/A | H56: N/A | I56: N/A | J56: Yes | K56: Yes | L56: Yes | M56: Yes | N56: QWC | O56: No | P56: N/A | Q56: http://www.unitywater.com/customer-charter & http://www.qwc.qld.gov.au/reform/pdf/customer-water-wastewater-code.pdf & http://www.legislation.qld.gov.au/LEGISLTN/CURRENT/S/SouthEQWDisA09.pdf & http://www.legislation.qld.gov.au/LEGISLTN/CURRENT/W/WaterSupSRA08.pdf
B57: 42 | C57: Depending on the length and severity of disruption, providing more information about planned or unplanned service interruptions via our website and/or our Customer Service Call Centre | D57: Waste-water via Sewer | E57: Sunshine Coast Regional Council | F57: Qualitative | G57: N/A | H57: N/A | I57: N/A | J57: Yes | K57: Yes | L57: Yes | M57: Yes | N57: QWC | O57: No | P57: N/A | Q57: http://www.unitywater.com/customer-charter & http://www.qwc.qld.gov.au/reform/pdf/customer-water-wastewater-code.pdf & http://www.legislation.qld.gov.au/LEGISLTN/CURRENT/S/SouthEQWDisA09.pdf & http://www.legislation.qld.gov.au/LEGISLTN/CURRENT/W/WaterSupSRA08.pdf
B58: 43 | C58: Respecting our customers: We value our customers and aim to always respond in a respectful, efficient and timely manner | D58: Drinking water | E58: Moreton Bay Regional Council | F58: Qualitative | G58: N/A | H58: N/A | I58: N/A | J58: Yes | K58: Yes | L58: Yes | M58: Yes | N58: QWC | O58: No | P58: N/A | Q58: http://www.unitywater.com/customer-charter & http://www.qwc.qld.gov.au/reform/pdf/customer-water-wastewater-code.pdf & http://www.legislation.qld.gov.au/LEGISLTN/CURRENT/S/SouthEQWDisA09.pdf & http://www.legislation.qld.gov.au/LEGISLTN/CURRENT/W/WaterSupSRA08.pdf
B59: 44 | C59: Respecting our customers: We value our customers and aim to always respond in a respectful, efficient and timely manner | D59: Waste-water via Sewer | E59: Moreton Bay Regional Council | F59: Qualitative | G59: N/A | H59: N/A | I59: N/A | J59: Yes | K59: Yes | L59: Yes | M59: Yes | N59: QWC | O59: No | P59: N/A | Q59: http://www.unitywater.com/customer-charter & http://www.qwc.qld.gov.au/reform/pdf/customer-water-wastewater-code.pdf & http://www.legislation.qld.gov.au/LEGISLTN/CURRENT/S/SouthEQWDisA09.pdf & http://www.legislation.qld.gov.au/LEGISLTN/CURRENT/W/WaterSupSRA08.pdf
B60: 45 | C60: Respecting our customers: We value our customers and aim to always respond in a respectful, efficient and timely manner | D60: Drinking water | E60: Sunshine Coast Regional Council | F60: Qualitative | G60: N/A | H60: N/A | I60: N/A | J60: Yes | K60: Yes | L60: Yes | M60: Yes | N60: QWC | O60: No | P60: N/A | Q60: http://www.unitywater.com/customer-charter & http://www.qwc.qld.gov.au/reform/pdf/customer-water-wastewater-code.pdf & http://www.legislation.qld.gov.au/LEGISLTN/CURRENT/S/SouthEQWDisA09.pdf & http://www.legislation.qld.gov.au/LEGISLTN/CURRENT/W/WaterSupSRA08.pdf
B61: 46 | C61: Respecting our customers: We value our customers and aim to always respond in a respectful, efficient and timely manner | D61: Waste-water via Sewer | E61: Sunshine Coast Regional Council | F61: Qualitative | G61: N/A | H61: N/A | I61: N/A | J61: Yes | K61: Yes | L61: Yes | M61: Yes | N61: QWC | O61: No | P61: N/A | Q61: http://www.unitywater.com/customer-charter & http://www.qwc.qld.gov.au/reform/pdf/customer-water-wastewater-code.pdf & http://www.legislation.qld.gov.au/LEGISLTN/CURRENT/S/SouthEQWDisA09.pdf & http://www.legislation.qld.gov.au/LEGISLTN/CURRENT/W/WaterSupSRA08.pdf
B62: 47 | C62: We commit to being: Available - We are on call 24 hours a day, seven days a week, 365 days a year, for faults and emergencies | D62: Drinking water | E62: Moreton Bay Regional Council | F62: Min available time of 24-7-365 | G62: N/A | H62: N/A | I62: N/A | J62: Yes | K62: Yes | L62: Yes | M62: Yes | N62: QWC | O62: No | P62: N/A | Q62: http://www.unitywater.com/customer-charter & http://www.qwc.qld.gov.au/reform/pdf/customer-water-wastewater-code.pdf & http://www.legislation.qld.gov.au/LEGISLTN/CURRENT/S/SouthEQWDisA09.pdf & http://www.legislation.qld.gov.au/LEGISLTN/CURRENT/W/WaterSupSRA08.pdf
B63: 48 | C63: We commit to being: Available - We are on call 24 hours a day, seven days a week, 365 days a year, for faults and emergencies | D63: Waste-water via Sewer | E63: Moreton Bay Regional Council | F63: Min available time of 24-7-366 | G63: N/A | H63: N/A | I63: N/A | J63: Yes | K63: Yes | L63: Yes | M63: Yes | N63: QWC | O63: No | P63: N/A | Q63: http://www.unitywater.com/customer-charter & http://www.qwc.qld.gov.au/reform/pdf/customer-water-wastewater-code.pdf & http://www.legislation.qld.gov.au/LEGISLTN/CURRENT/S/SouthEQWDisA09.pdf & http://www.legislation.qld.gov.au/LEGISLTN/CURRENT/W/WaterSupSRA08.pdf
B64: 49 | C64: We commit to being: Available - We are on call 24 hours a day, seven days a week, 365 days a year, for faults and emergencies | D64: Drinking water | E64: Sunshine Coast Regional Council | F64: Min available time of 24-7-367 | G64: N/A | H64: N/A | I64: N/A | J64: Yes | K64: Yes | L64: Yes | M64: Yes | N64: QWC | O64: No | P64: N/A | Q64: http://www.unitywater.com/customer-charter & http://www.qwc.qld.gov.au/reform/pdf/customer-water-wastewater-code.pdf & http://www.legislation.qld.gov.au/LEGISLTN/CURRENT/S/SouthEQWDisA09.pdf & http://www.legislation.qld.gov.au/LEGISLTN/CURRENT/W/WaterSupSRA08.pdf
B65: 50 | C65: We commit to being: Available - We are on call 24 hours a day, seven days a week, 365 days a year, for faults and emergencies | D65: Waste-water via Sewer | E65: Sunshine Coast Regional Council | F65: Min available time of 24-7-368 | G65: N/A | H65: N/A | I65: N/A | J65: Yes | K65: Yes | L65: Yes | M65: Yes | N65: QWC | O65: No | P65: N/A | Q65: http://www.unitywater.com/customer-charter & http://www.qwc.qld.gov.au/reform/pdf/customer-water-wastewater-code.pdf & http://www.legislation.qld.gov.au/LEGISLTN/CURRENT/S/SouthEQWDisA09.pdf & http://www.legislation.qld.gov.au/LEGISLTN/CURRENT/W/WaterSupSRA08.pdf
B66: 51 | C66: We commit to being: Contactable - Our Customer Service Call Centre and customer service counters can assist with your general enquiries on Monday to Friday from 8.30am to 5pm (except public holidays) [&] [y]ou can also submit a question at any time through our website | D66: Drinking water | E66: Moreton Bay Regional Council | F66: Min contact time of 8:30-17:00 Mon-Fri (except pub hols) | G66: N/A | H66: N/A | I66: N/A | J66: Yes | K66: Yes | L66: Yes | M66: Yes | N66: QWC | O66: No | P66: N/A | Q66: http://www.unitywater.com/customer-charter & http://www.qwc.qld.gov.au/reform/pdf/customer-water-wastewater-code.pdf & http://www.legislation.qld.gov.au/LEGISLTN/CURRENT/S/SouthEQWDisA09.pdf & http://www.legislation.qld.gov.au/LEGISLTN/CURRENT/W/WaterSupSRA08.pdf
B67: 52 | C67: We commit to being: Contactable - Our Customer Service Call Centre and customer service counters can assist with your general enquiries on Monday to Friday from 8.30am to 5pm (except public holidays) [&] [y]ou can also submit a question at any time through our website | D67: Waste-water via Sewer | E67: Moreton Bay Regional Council | F67: Min contact time of 8:30-17:00 Mon-Fri (except pub hols) | G67: N/A | H67: N/A | I67: N/A | J67: Yes | K67: Yes | L67: Yes | M67: Yes | N67: QWC | O67: No | P67: N/A | Q67: http://www.unitywater.com/customer-charter & http://www.qwc.qld.gov.au/reform/pdf/customer-water-wastewater-code.pdf & http://www.legislation.qld.gov.au/LEGISLTN/CURRENT/S/SouthEQWDisA09.pdf & http://www.legislation.qld.gov.au/LEGISLTN/CURRENT/W/WaterSupSRA08.pdf
B68: 53 | C68: We commit to being: Contactable - Our Customer Service Call Centre and customer service counters can assist with your general enquiries on Monday to Friday from 8.30am to 5pm (except public holidays) [&] [y]ou can also submit a question at any time through our website | D68: Drinking water | E68: Sunshine Coast Regional Council | F68: Min contact time of 8:30-17:00 Mon-Fri (except pub hols) | G68: N/A | H68: N/A | I68: N/A | J68: Yes | K68: Yes | L68: Yes | M68: Yes | N68: QWC | O68: No | P68: N/A | Q68: http://www.unitywater.com/customer-charter & http://www.qwc.qld.gov.au/reform/pdf/customer-water-wastewater-code.pdf & http://www.legislation.qld.gov.au/LEGISLTN/CURRENT/S/SouthEQWDisA09.pdf & http://www.legislation.qld.gov.au/LEGISLTN/CURRENT/W/WaterSupSRA08.pdf
B69: 54 | C69: We commit to being: Contactable - Our Customer Service Call Centre and customer service counters can assist with your general enquiries on Monday to Friday from 8.30am to 5pm (except public holidays) [&] [y]ou can also submit a question at any time through our website | D69: Waste-water via Sewer | E69: Sunshine Coast Regional Council | F69: Min contact time of 8:30-17:00 Mon-Fri (except pub hols) | G69: N/A | H69: N/A | I69: N/A | J69: Yes | K69: Yes | L69: Yes | M69: Yes | N69: QWC | O69: No | P69: N/A | Q69: http://www.unitywater.com/customer-charter & http://www.qwc.qld.gov.au/reform/pdf/customer-water-wastewater-code.pdf & http://www.legislation.qld.gov.au/LEGISLTN/CURRENT/S/SouthEQWDisA09.pdf & http://www.legislation.qld.gov.au/LEGISLTN/CURRENT/W/WaterSupSRA08.pdf
B70: 55 | C70: We commit to being: Identifiable - Our Customer Service team members will provide you with their first name and supply a reference number for customer requests [&] [o]ur logo uniformed field staff will produce photo ID on request | D70: Drinking water | E70: Moreton Bay Regional Council | F70: Qualitative | G70: N/A | H70: N/A | I70: N/A | J70: Yes | K70: Yes | L70: Yes | M70: Yes | N70: QWC | O70: No | P70: N/A | Q70: http://www.unitywater.com/customer-charter & http://www.qwc.qld.gov.au/reform/pdf/customer-water-wastewater-code.pdf & http://www.legislation.qld.gov.au/LEGISLTN/CURRENT/S/SouthEQWDisA09.pdf & http://www.legislation.qld.gov.au/LEGISLTN/CURRENT/W/WaterSupSRA08.pdf
B71: 56 | C71: We commit to being: Identifiable - Our Customer Service team members will provide you with their first name and supply a reference number for customer requests [&] [o]ur logo uniformed field staff will produce photo ID on request | D71: Waste-water via Sewer | E71: Moreton Bay Regional Council | F71: Qualitative | G71: N/A | H71: N/A | I71: N/A | J71: Yes | K71: Yes | L71: Yes | M71: Yes | N71: QWC | O71: No | P71: N/A | Q71: http://www.unitywater.com/customer-charter & http://www.qwc.qld.gov.au/reform/pdf/customer-water-wastewater-code.pdf & http://www.legislation.qld.gov.au/LEGISLTN/CURRENT/S/SouthEQWDisA09.pdf & http://www.legislation.qld.gov.au/LEGISLTN/CURRENT/W/WaterSupSRA08.pdf
B72: 57 | C72: We commit to being: Identifiable - Our Customer Service team members will provide you with their first name and supply a reference number for customer requests [&] [o]ur logo uniformed field staff will produce photo ID on request | D72: Drinking water | E72: Sunshine Coast Regional Council | F72: Qualitative | G72: N/A | H72: N/A | I72: N/A | J72: Yes | K72: Yes | L72: Yes | M72: Yes | N72: QWC | O72: No | P72: N/A | Q72: http://www.unitywater.com/customer-charter & http://www.qwc.qld.gov.au/reform/pdf/customer-water-wastewater-code.pdf & http://www.legislation.qld.gov.au/LEGISLTN/CURRENT/S/SouthEQWDisA09.pdf & http://www.legislation.qld.gov.au/LEGISLTN/CURRENT/W/WaterSupSRA08.pdf
B73: 58 | C73: We commit to being: Identifiable - Our Customer Service team members will provide you with their first name and supply a reference number for customer requests [&] [o]ur logo uniformed field staff will produce photo ID on request | D73: Waste-water via Sewer | E73: Sunshine Coast Regional Council | F73: Qualitative | G73: N/A | H73: N/A | I73: N/A | J73: Yes | K73: Yes | L73: Yes | M73: Yes | N73: QWC | O73: No | P73: N/A | Q73: http://www.unitywater.com/customer-charter & http://www.qwc.qld.gov.au/reform/pdf/customer-water-wastewater-code.pdf & http://www.legislation.qld.gov.au/LEGISLTN/CURRENT/S/SouthEQWDisA09.pdf & http://www.legislation.qld.gov.au/LEGISLTN/CURRENT/W/WaterSupSRA08.pdf
B74: 59 | C74: We commit to being: Responsive - We will answer 80% of calls to our Customer Service Call Centre within 30 seconds and acknowledge written enquiries within 10 days | D74: Drinking water | E74: Moreton Bay Regional Council | F74: Min answer time of 30 sec for 80% of calls & Min acknowledge time of 10 days for all correspondence | G74: N/A | H74: N/A | I74: N/A | J74: Yes | K74: Yes | L74: Yes | M74: Yes | N74: QWC | O74: No | P74: N/A | Q74: http://www.unitywater.com/customer-charter & http://www.qwc.qld.gov.au/reform/pdf/customer-water-wastewater-code.pdf & http://www.legislation.qld.gov.au/LEGISLTN/CURRENT/S/SouthEQWDisA09.pdf & http://www.legislation.qld.gov.au/LEGISLTN/CURRENT/W/WaterSupSRA08.pdf
B75: 60 | C75: We commit to being: Responsive - We will answer 80% of calls to our Customer Service Call Centre within 30 seconds and acknowledge written enquiries within 10 days | D75: Waste-water via Sewer | E75: Moreton Bay Regional Council | F75: Min answer time of 30 sec for 80% of calls & Min acknowledge time of 10 days for all correspondence | G75: N/A | H75: N/A | I75: N/A | J75: Yes | K75: Yes | L75: Yes | M75: Yes | N75: QWC | O75: No | P75: N/A | Q75: http://www.unitywater.com/customer-charter & http://www.qwc.qld.gov.au/reform/pdf/customer-water-wastewater-code.pdf & http://www.legislation.qld.gov.au/LEGISLTN/CURRENT/S/SouthEQWDisA09.pdf & http://www.legislation.qld.gov.au/LEGISLTN/CURRENT/W/WaterSupSRA08.pdf
B76: 61 | C76: We commit to being: Responsive - We will answer 80% of calls to our Customer Service Call Centre within 30 seconds and acknowledge written enquiries within 10 days | D76: Drinking water | E76: Sunshine Coast Regional Council | F76: Min answer time of 30 sec for 80% of calls & Min acknowledge time of 10 days for all correspondence | G76: N/A | H76: N/A | I76: N/A | J76: Yes | K76: Yes | L76: Yes | M76: Yes | N76: QWC | O76: No | P76: N/A | Q76: http://www.unitywater.com/customer-charter & http://www.qwc.qld.gov.au/reform/pdf/customer-water-wastewater-code.pdf & http://www.legislation.qld.gov.au/LEGISLTN/CURRENT/S/SouthEQWDisA09.pdf & http://www.legislation.qld.gov.au/LEGISLTN/CURRENT/W/WaterSupSRA08.pdf
B77: 62 | C77: We commit to being: Responsive - We will answer 80% of calls to our Customer Service Call Centre within 30 seconds and acknowledge written enquiries within 10 days | D77: Waste-water via Sewer | E77: Sunshine Coast Regional Council | F77: Min answer time of 30 sec for 80% of calls & Min acknowledge time of 10 days for all correspondence | G77: N/A | H77: N/A | I77: N/A | J77: Yes | K77: Yes | L77: Yes | M77: Yes | N77: QWC | O77: No | P77: N/A | Q77: http://www.unitywater.com/customer-charter & http://www.qwc.qld.gov.au/reform/pdf/customer-water-wastewater-code.pdf & http://www.legislation.qld.gov.au/LEGISLTN/CURRENT/S/SouthEQWDisA09.pdf & http://www.legislation.qld.gov.au/LEGISLTN/CURRENT/W/WaterSupSRA08.pdf
B78: 63 | C78: We commit to being: Respectful - We will treat your information with strict confidence, as per our Privacy Statement and the Information Privacy Act 2009 | D78: Drinking water | E78: Moreton Bay Regional Council | F78: Qualitative | G78: N/A | H78: N/A | I78: N/A | J78: Yes | K78: Yes | L78: Yes | M78: Yes | N78: QWC | O78: No | P78: N/A | Q78: http://www.unitywater.com/customer-charter & http://www.qwc.qld.gov.au/reform/pdf/customer-water-wastewater-code.pdf & http://www.legislation.qld.gov.au/LEGISLTN/CURRENT/S/SouthEQWDisA09.pdf & http://www.legislation.qld.gov.au/LEGISLTN/CURRENT/W/WaterSupSRA08.pdf
B79: 64 | C79: We commit to being: Respectful - We will treat your information with strict confidence, as per our Privacy Statement and the Information Privacy Act 2010 | D79: Waste-water via Sewer | E79: Moreton Bay Regional Council | F79: Qualitative | G79: N/A | H79: N/A | I79: N/A | J79: Yes | K79: Yes | L79: Yes | M79: Yes | N79: QWC | O79: No | P79: N/A | Q79: http://www.unitywater.com/customer-charter & http://www.qwc.qld.gov.au/reform/pdf/customer-water-wastewater-code.pdf & http://www.legislation.qld.gov.au/LEGISLTN/CURRENT/S/SouthEQWDisA09.pdf & http://www.legislation.qld.gov.au/LEGISLTN/CURRENT/W/WaterSupSRA08.pdf
B80: 65 | C80: We commit to being: Respectful - We will treat your information with strict confidence, as per our Privacy Statement and the Information Privacy Act 2011 | D80: Drinking water | E80: Sunshine Coast Regional Council | F80: Qualitative | G80: N/A | H80: N/A | I80: N/A | J80: Yes | K80: Yes | L80: Yes | M80: Yes | N80: QWC | O80: No | P80: N/A | Q80: http://www.unitywater.com/customer-charter & http://www.qwc.qld.gov.au/reform/pdf/customer-water-wastewater-code.pdf & http://www.legislation.qld.gov.au/LEGISLTN/CURRENT/S/SouthEQWDisA09.pdf & http://www.legislation.qld.gov.au/LEGISLTN/CURRENT/W/WaterSupSRA08.pdf
B81: 66 | C81: We commit to being: Respectful - We will treat your information with strict confidence, as per our Privacy Statement and the Information Privacy Act 2012 | D81: Waste-water via Sewer | E81: Sunshine Coast Regional Council | F81: Qualitative | G81: N/A | H81: N/A | I81: N/A | J81: Yes | K81: Yes | L81: Yes | M81: Yes | N81: QWC | O81: No | P81: N/A | Q81: http://www.unitywater.com/customer-charter & http://www.qwc.qld.gov.au/reform/pdf/customer-water-wastewater-code.pdf & http://www.legislation.qld.gov.au/LEGISLTN/CURRENT/S/SouthEQWDisA09.pdf & http://www.legislation.qld.gov.au/LEGISLTN/CURRENT/W/WaterSupSRA08.pdf
B82: 67 | C82: Managing your account: We issue accounts quarterly to our Moreton Bay customers and six-monthly to our Sunshine Coast customers [&] [q]uarterly billing will commence on the Sunshine Coast from early 2012 | D82: Drinking water | E82: Moreton Bay Regional Council | F82: Max issue time of quarterly | G82: N/A | H82: N/A | I82: N/A | J82: Yes | K82: Yes | L82: Yes | M82: Yes | N82: QWC | O82: No | P82: N/A | Q82: http://www.unitywater.com/customer-charter & http://www.qwc.qld.gov.au/reform/pdf/customer-water-wastewater-code.pdf & http://www.legislation.qld.gov.au/LEGISLTN/CURRENT/S/SouthEQWDisA09.pdf & http://www.legislation.qld.gov.au/LEGISLTN/CURRENT/W/WaterSupSRA08.pdf
B83: 68 | C83: Managing your account: We issue accounts quarterly to our Moreton Bay customers and six-monthly to our Sunshine Coast customers [&] [q]uarterly billing will commence on the Sunshine Coast from early 2013 | D83: Waste-water via Sewer | E83: Moreton Bay Regional Council | F83: Max issue time of quarterly | G83: N/A | H83: N/A | I83: N/A | J83: Yes | K83: Yes | L83: Yes | M83: Yes | N83: QWC | O83: No | P83: N/A | Q83: http://www.unitywater.com/customer-charter & http://www.qwc.qld.gov.au/reform/pdf/customer-water-wastewater-code.pdf & http://www.legislation.qld.gov.au/LEGISLTN/CURRENT/S/SouthEQWDisA09.pdf & http://www.legislation.qld.gov.au/LEGISLTN/CURRENT/W/WaterSupSRA08.pdf
B84: 69 | C84: Managing your account: We issue accounts quarterly to our Moreton Bay customers and six-monthly to our Sunshine Coast customers [&] [q]uarterly billing will commence on the Sunshine Coast from early 2014 | D84: Drinking water | E84: Sunshine Coast Regional Council | F84: Max issue time of quarterly | G84: N/A | H84: N/A | I84: N/A | J84: Yes | K84: Yes | L84: Yes | M84: Yes | N84: QWC | O84: No | P84: N/A | Q84: http://www.unitywater.com/customer-charter & http://www.qwc.qld.gov.au/reform/pdf/customer-water-wastewater-code.pdf & http://www.legislation.qld.gov.au/LEGISLTN/CURRENT/S/SouthEQWDisA09.pdf & http://www.legislation.qld.gov.au/LEGISLTN/CURRENT/W/WaterSupSRA08.pdf
B85: 70 | C85: Managing your account: We issue accounts quarterly to our Moreton Bay customers and six-monthly to our Sunshine Coast customers [&] [q]uarterly billing will commence on the Sunshine Coast from early 2015 | D85: Waste-water via Sewer | E85: Sunshine Coast Regional Council | F85: Max issue time of quarterly | G85: N/A | H85: N/A | I85: N/A | J85: Yes | K85: Yes | L85: Yes | M85: Yes | N85: QWC | O85: No | P85: N/A | Q85: http://www.unitywater.com/customer-charter & http://www.qwc.qld.gov.au/reform/pdf/customer-water-wastewater-code.pdf & http://www.legislation.qld.gov.au/LEGISLTN/CURRENT/S/SouthEQWDisA09.pdf & http://www.legislation.qld.gov.au/LEGISLTN/CURRENT/W/WaterSupSRA08.pdf
B86: 71 | C86: Managing your account: To calculate your account we are required to read your water meter at least once a year, however we endeavour to read your meter every account cycle and inform you of the reading [but] [i]f your water meter remains inaccessible within the required timeframe and you do not phone through your reading to us we will estimate your consumption for that account period | D86: Drinking water | E86: Moreton Bay Regional Council | F86: Min meter read of annually (but preferably quarterly) | G86: N/A | H86: N/A | I86: N/A | J86: Yes | K86: Yes | L86: Yes | M86: Yes | N86: QWC | O86: No | P86: N/A | Q86: http://www.unitywater.com/customer-charter & http://www.qwc.qld.gov.au/reform/pdf/customer-water-wastewater-code.pdf & http://www.legislation.qld.gov.au/LEGISLTN/CURRENT/S/SouthEQWDisA09.pdf & http://www.legislation.qld.gov.au/LEGISLTN/CURRENT/W/WaterSupSRA08.pdf
B87: 72 | C87: Managing your account: To calculate your account we are required to read your water meter at least once a year, however we endeavour to read your meter every account cycle and inform you of the reading [but] [i]f your water meter remains inaccessible within the required timeframe and you do not phone through your reading to us we will estimate your consumption for that account period | D87: Drinking water | E87: Sunshine Coast Regional Council | F87: Min meter read of annually (but preferably quarterly) | G87: N/A | H87: N/A | I87: N/A | J87: Yes | K87: Yes | L87: Yes | M87: Yes | N87: QWC | O87: No | P87: N/A | Q87: http://www.unitywater.com/customer-charter & http://www.qwc.qld.gov.au/reform/pdf/customer-water-wastewater-code.pdf & http://www.legislation.qld.gov.au/LEGISLTN/CURRENT/S/SouthEQWDisA09.pdf & http://www.legislation.qld.gov.au/LEGISLTN/CURRENT/W/WaterSupSRA08.pdf
B88: 73 | C88: Managing your account: Your itemised account includes all the necessary information to help you understand your water supply and sewerage charges | D88: Drinking water | E88: Moreton Bay Regional Council | F88: Qualitative | G88: N/A | H88: N/A | I88: N/A | J88: Yes | K88: Yes | L88: Yes | M88: Yes | N88: QWC | O88: No | P88: N/A | Q88: http://www.unitywater.com/customer-charter & http://www.qwc.qld.gov.au/reform/pdf/customer-water-wastewater-code.pdf & http://www.legislation.qld.gov.au/LEGISLTN/CURRENT/S/SouthEQWDisA09.pdf & http://www.legislation.qld.gov.au/LEGISLTN/CURRENT/W/WaterSupSRA08.pdf
B89: 74 | C89: Managing your account: Your itemised account includes all the necessary information to help you understand your water supply and sewerage charges | D89: Waste-water via Sewer | E89: Moreton Bay Regional Council | F89: Qualitative | G89: N/A | H89: N/A | I89: N/A | J89: Yes | K89: Yes | L89: Yes | M89: Yes | N89: QWC | O89: No | P89: N/A | Q89: http://www.unitywater.com/customer-charter & http://www.qwc.qld.gov.au/reform/pdf/customer-water-wastewater-code.pdf & http://www.legislation.qld.gov.au/LEGISLTN/CURRENT/S/SouthEQWDisA09.pdf & http://www.legislation.qld.gov.au/LEGISLTN/CURRENT/W/WaterSupSRA08.pdf
B90: 75 | C90: Managing your account: Your itemised account includes all the necessary information to help you understand your water supply and sewerage charges | D90: Drinking water | E90: Sunshine Coast Regional Council | F90: Qualitative | G90: N/A | H90: N/A | I90: N/A | J90: Yes | K90: Yes | L90: Yes | M90: Yes | N90: QWC | O90: No | P90: N/A | Q90: http://www.unitywater.com/customer-charter & http://www.qwc.qld.gov.au/reform/pdf/customer-water-wastewater-code.pdf & http://www.legislation.qld.gov.au/LEGISLTN/CURRENT/S/SouthEQWDisA09.pdf & http://www.legislation.qld.gov.au/LEGISLTN/CURRENT/W/WaterSupSRA08.pdf
B91: 76 | C91: Managing your account: Your itemised account includes all the necessary information to help you understand your water supply and sewerage charges | D91: Waste-water via Sewer | E91: Sunshine Coast Regional Council | F91: Qualitative | G91: N/A | H91: N/A | I91: N/A | J91: Yes | K91: Yes | L91: Yes | M91: Yes | N91: QWC | O91: No | P91: N/A | Q91: http://www.unitywater.com/customer-charter & http://www.qwc.qld.gov.au/reform/pdf/customer-water-wastewater-code.pdf & http://www.legislation.qld.gov.au/LEGISLTN/CURRENT/S/SouthEQWDisA09.pdf & http://www.legislation.qld.gov.au/LEGISLTN/CURRENT/W/WaterSupSRA08.pdf
B92: 77 | C92: Managing your account: We offer a range of options for paying accounts online, in person or by mail | D92: Drinking water | E92: Moreton Bay Regional Council | F92: Qualitative | G92: N/A | H92: N/A | I92: N/A | J92: Yes | K92: Yes | L92: Yes | M92: Yes | N92: QWC | O92: No | P92: N/A | Q92: http://www.unitywater.com/customer-charter & http://www.qwc.qld.gov.au/reform/pdf/customer-water-wastewater-code.pdf & http://www.legislation.qld.gov.au/LEGISLTN/CURRENT/S/SouthEQWDisA09.pdf & http://www.legislation.qld.gov.au/LEGISLTN/CURRENT/W/WaterSupSRA08.pdf
B93: 78 | C93: Managing your account: We offer a range of options for paying accounts online, in person or by mail | D93: Waste-water via Sewer | E93: Moreton Bay Regional Council | F93: Qualitative | G93: N/A | H93: N/A | I93: N/A | J93: Yes | K93: Yes | L93: Yes | M93: Yes | N93: QWC | O93: No | P93: N/A | Q93: http://www.unitywater.com/customer-charter & http://www.qwc.qld.gov.au/reform/pdf/customer-water-wastewater-code.pdf & http://www.legislation.qld.gov.au/LEGISLTN/CURRENT/S/SouthEQWDisA09.pdf & http://www.legislation.qld.gov.au/LEGISLTN/CURRENT/W/WaterSupSRA08.pdf
B94: 79 | C94: Managing your account: We offer a range of options for paying accounts online, in person or by mail | D94: Drinking water | E94: Sunshine Coast Regional Council | F94: Qualitative | G94: N/A | H94: N/A | I94: N/A | J94: Yes | K94: Yes | L94: Yes | M94: Yes | N94: QWC | O94: No | P94: N/A | Q94: http://www.unitywater.com/customer-charter & http://www.qwc.qld.gov.au/reform/pdf/customer-water-wastewater-code.pdf & http://www.legislation.qld.gov.au/LEGISLTN/CURRENT/S/SouthEQWDisA09.pdf & http://www.legislation.qld.gov.au/LEGISLTN/CURRENT/W/WaterSupSRA08.pdf
B95: 80 | C95: Managing your account: We offer a range of options for paying accounts online, in person or by mail | D95: Waste-water via Sewer | E95: Sunshine Coast Regional Council | F95: Qualitative | G95: N/A | H95: N/A | I95: N/A | J95: Yes | K95: Yes | L95: Yes | M95: Yes | N95: QWC | O95: No | P95: N/A | Q95: http://www.unitywater.com/customer-charter & http://www.qwc.qld.gov.au/reform/pdf/customer-water-wastewater-code.pdf & http://www.legislation.qld.gov.au/LEGISLTN/CURRENT/S/SouthEQWDisA09.pdf & http://www.legislation.qld.gov.au/LEGISLTN/CURRENT/W/WaterSupSRA08.pdf
B96: 81 | C96: Managing your account: Our payment terms are 30 days and it is important to settle your account on time because interest of 11% per annum, compounding daily, is charged on overdue amounts [&] [i]f you are experiencing payment difficulties please contact us as early as possible to discuss suitable payment arrangements [&] [o]ur Financial Hardship Policy can be mailed on request, viewed at our customer service counters, or on our website www.unitywater.com | D96: Drinking water | E96: Moreton Bay Regional Council | F96: Qualitative | G96: N/A | H96: N/A | I96: N/A | J96: Yes | K96: Yes | L96: Yes | M96: Yes | N96: QWC | O96: No | P96: N/A | Q96: http://www.unitywater.com/customer-charter & http://www.qwc.qld.gov.au/reform/pdf/customer-water-wastewater-code.pdf & http://www.legislation.qld.gov.au/LEGISLTN/CURRENT/S/SouthEQWDisA09.pdf & http://www.legislation.qld.gov.au/LEGISLTN/CURRENT/W/WaterSupSRA08.pdf
B97: 82 | C97: Managing your account: Our payment terms are 30 days and it is important to settle your account on time because interest of 11% per annum, compounding daily, is charged on overdue amounts [&] [i]f you are experiencing payment difficulties please contact us as early as possible to discuss suitable payment arrangements [&] [o]ur Financial Hardship Policy can be mailed on request, viewed at our customer service counters, or on our website www.unitywater.com | D97: Waste-water via Sewer | E97: Moreton Bay Regional Council | F97: Qualitative | G97: N/A | H97: N/A | I97: N/A | J97: Yes | K97: Yes | L97: Yes | M97: Yes | N97: QWC | O97: No | P97: N/A | Q97: http://www.unitywater.com/customer-charter & http://www.qwc.qld.gov.au/reform/pdf/customer-water-wastewater-code.pdf & http://www.legislation.qld.gov.au/LEGISLTN/CURRENT/S/SouthEQWDisA09.pdf & http://www.legislation.qld.gov.au/LEGISLTN/CURRENT/W/WaterSupSRA08.pdf
B98: 83 | C98: Managing your account: Our payment terms are 30 days and it is important to settle your account on time because interest of 11% per annum, compounding daily, is charged on overdue amounts [&] [i]f you are experiencing payment difficulties please contact us as early as possible to discuss suitable payment arrangements [&] [o]ur Financial Hardship Policy can be mailed on request, viewed at our customer service counters, or on our website www.unitywater.com | D98: Drinking water | E98: Sunshine Coast Regional Council | F98: Qualitative | G98: N/A | H98: N/A | I98: N/A | J98: Yes | K98: Yes | L98: Yes | M98: Yes | N98: QWC | O98: No | P98: N/A | Q98: http://www.unitywater.com/customer-charter & http://www.qwc.qld.gov.au/reform/pdf/customer-water-wastewater-code.pdf & http://www.legislation.qld.gov.au/LEGISLTN/CURRENT/S/SouthEQWDisA09.pdf & http://www.legislation.qld.gov.au/LEGISLTN/CURRENT/W/WaterSupSRA08.pdf
B99: 84 | C99: Managing your account: Our payment terms are 30 days and it is important to settle your account on time because interest of 11% per annum, compounding daily, is charged on overdue amounts [&] [i]f you are experiencing payment difficulties please contact us as early as possible to discuss suitable payment arrangements [&] [o]ur Financial Hardship Policy can be mailed on request, viewed at our customer service counters, or on our website www.unitywater.com | D99: Waste-water via Sewer | E99: Sunshine Coast Regional Council | F99: Qualitative | G99: N/A | H99: N/A | I99: N/A | J99: Yes | K99: Yes | L99: Yes | M99: Yes | N99: QWC | O99: No | P99: N/A | Q99: http://www.unitywater.com/customer-charter & http://www.qwc.qld.gov.au/reform/pdf/customer-water-wastewater-code.pdf & http://www.legislation.qld.gov.au/LEGISLTN/CURRENT/S/SouthEQWDisA09.pdf & http://www.legislation.qld.gov.au/LEGISLTN/CURRENT/W/WaterSupSRA08.pdf
B100: 85 | C100: Handling complaints: We manage complaints in accordance with ISO 10002-2006 Customer Satisfaction Guidelines for Complaints Handling in Organisations [&] [p]lease contact us first so we can work with you personally to address your concerns [&] [i]f, following our investigations, the complaint is not resolved to your satisfaction we will escalate your complaint to our Complaint Management Team for review [&] [f]ollowing this review, if you remain unsatisfied with the outcome, you can then refer your complaint to the Energy and Water Ombudsman Queensland on 1800 662 837 or complaints@ewoq.com.au | D100: Drinking water | E100: Moreton Bay Regional Council | F100: Various | G100: N/A | H100: N/A | I100: N/A | J100: Yes | K100: Yes | L100: Yes | M100: Yes | N100: QWC | O100: No | P100: N/A | Q100: http://www.unitywater.com/customer-charter & http://infostore.saiglobal.com/store/details.aspx?ProductID=341668 & http://www.ewoq.com.au/Complaints/Makeacomplaint.aspx
B101: 86 | C101: Handling complaints: We manage complaints in accordance with ISO 10002-2006 Customer Satisfaction Guidelines for Complaints Handling in Organisations [&] [p]lease contact us first so we can work with you personally to address your concerns [&] [i]f, following our investigations, the complaint is not resolved to your satisfaction we will escalate your complaint to our Complaint Management Team for review [&] [f]ollowing this review, if you remain unsatisfied with the outcome, you can then refer your complaint to the Energy and Water Ombudsman Queensland on 1800 662 837 or complaints@ewoq.com.au | D101: Waste-water via Sewer | E101: Moreton Bay Regional Council | F101: Various | G101: N/A | H101: N/A | I101: N/A | J101: Yes | K101: Yes | L101: Yes | M101: Yes | N101: QWC | O101: No | P101: N/A | Q101: http://www.unitywater.com/customer-charter & http://infostore.saiglobal.com/store/details.aspx?ProductID=341668 & http://www.ewoq.com.au/Complaints/Makeacomplaint.aspx
B102: 87 | C102: Handling complaints: We manage complaints in accordance with ISO 10002-2006 Customer Satisfaction Guidelines for Complaints Handling in Organisations [&] [p]lease contact us first so we can work with you personally to address your concerns [&] [i]f, following our investigations, the complaint is not resolved to your satisfaction we will escalate your complaint to our Complaint Management Team for review [&] [f]ollowing this review, if you remain unsatisfied with the outcome, you can then refer your complaint to the Energy and Water Ombudsman Queensland on 1800 662 837 or complaints@ewoq.com.au | D102: Drinking water | E102: Sunshine Coast Regional Council | F102: Various | G102: N/A | H102: N/A | I102: N/A | J102: Yes | K102: Yes | L102: Yes | M102: Yes | N102: QWC | O102: No | P102: N/A | Q102: http://www.unitywater.com/customer-charter & http://infostore.saiglobal.com/store/details.aspx?ProductID=341668 & http://www.ewoq.com.au/Complaints/Makeacomplaint.aspx
B103: 88 | C103: Handling complaints: We manage complaints in accordance with ISO 10002-2006 Customer Satisfaction Guidelines for Complaints Handling in Organisations [&] [p]lease contact us first so we can work with you personally to address your concerns [&] [i]f, following our investigations, the complaint is not resolved to your satisfaction we will escalate your complaint to our Complaint Management Team for review [&] [f]ollowing this review, if you remain unsatisfied with the outcome, you can then refer your complaint to the Energy and Water Ombudsman Queensland on 1800 662 837 or complaints@ewoq.com.au | D103: Waste-water via Sewer | E103: Sunshine Coast Regional Council | F103: Various | G103: N/A | H103: N/A | I103: N/A | J103: Yes | K103: Yes | L103: Yes | M103: Yes | N103: QWC | O103: No | P103: N/A | Q103: http://www.unitywater.com/customer-charter & http://infostore.saiglobal.com/store/details.aspx?ProductID=341668 & http://www.ewoq.com.au/Complaints/Makeacomplaint.aspx
B105: 89 | C105: Our Drinking Water Quality Management Plan, describing how we manage the risks associated with delivering safe drinking water to our customers, was approved by DERM in Mar 2012 & we were the first of the SEQ DRs to complete this business-critical document & we will be publishing annual water quality summaries to our website for our customers to view from 2012-13 onwards | D105: Drinking water | E105: Moreton Bay Regional Council | F105: Various | G105: N/A | H105: N/A | I105: N/A | J105: N/A | K105: Yes | L105: Yes | M105: Yes | N105: DERM | O105: No | P105: N/A | Q105: http://www.derm.qld.gov.au/water/regulation/pdfs/dw_mgmt_plan_gline.pdf
B106: 90 | C106: Our Drinking Water Quality Management Plan, describing how we manage the risks associated with delivering safe drinking water to our customers, was approved by DERM in Mar 2012 & we were the first of the SEQ DRs to complete this business-critical document & we will be publishing annual water quality summaries to our website for our customers to view from 2012-13 onwards | D106: Drinking water | E106: Sunshine Coast Regional Council | F106: Various | G106: N/A | H106: N/A | I106: N/A | J106: N/A | K106: Yes | L106: Yes | M106: Yes | N106: DERM | O106: No | P106: N/A | Q106: http://www.derm.qld.gov.au/water/regulation/pdfs/dw_mgmt_plan_gline.pdf
B108: 91 | C108: Compliance Australia Certification Services Pty Ltd granted certification to BSSD in Jun 2012 & ISD in Dec 2011 of Quality Management Systems under ISO 9001-2008 | D108: Drinking water | E108: Moreton Bay Regional Council | F108: Various | G108: N/A | H108: N/A | I108: N/A | J108: N/A | K108: Yes | L108: Yes | M108: Yes | N108: CACS | O108: No | P108: N/A | Q108: http://www.unitywater.com/About-us/Participation-agreement.aspx & http://www.unitywater.com/media/scripts/doc_download.aspx?did=581 & http://www.saiglobal.com/assurance/quality-business-management/ISO9001.htm
B109: 92 | C109: Compliance Australia Certification Services Pty Ltd granted certification to BSSD in Jun 2012 & ISD in Dec 2011 of Quality Management Systems under ISO 9001-2009 | D109: Waste-water via Sewer | E109: Moreton Bay Regional Council | F109: Various | G109: N/A | H109: N/A | I109: N/A | J109: N/A | K109: Yes | L109: Yes | M109: Yes | N109: CACS | O109: No | P109: N/A | Q109: http://www.unitywater.com/About-us/Participation-agreement.aspx & http://www.unitywater.com/media/scripts/doc_download.aspx?did=581 & http://www.saiglobal.com/assurance/quality-business-management/ISO9001.htm
B110: 93 | C110: Compliance Australia Certification Services Pty Ltd granted certification to BSSD in Jun 2012 & ISD in Dec 2011 of Quality Management Systems under ISO 9001-2010 | D110: Drinking water | E110: Sunshine Coast Regional Council | F110: Various | G110: N/A | H110: N/A | I110: N/A | J110: N/A | K110: Yes | L110: Yes | M110: Yes | N110: CACS | O110: No | P110: N/A | Q110: http://www.unitywater.com/About-us/Participation-agreement.aspx & http://www.unitywater.com/media/scripts/doc_download.aspx?did=581 & http://www.saiglobal.com/assurance/quality-business-management/ISO9001.htm
B111: 94 | C111: Compliance Australia Certification Services Pty Ltd granted certification to BSSD in Jun 2012 & ISD in Dec 2011 of Quality Management Systems under ISO 9001-2011 | D111: Waste-water via Sewer | E111: Sunshine Coast Regional Council | F111: Various | G111: N/A | H111: N/A | I111: N/A | J111: N/A | K111: Yes | L111: Yes | M111: Yes | N111: CACS | O111: No | P111: N/A | Q111: http://www.unitywater.com/About-us/Participation-agreement.aspx & http://www.unitywater.com/media/scripts/doc_download.aspx?did=581 & http://www.saiglobal.com/assurance/quality-business-management/ISO9001.htm
B112: 95 | C112: Compliance Australia Certification Services Pty Ltd granted certification to BSSD in Jun 2012 & ISD in Dec 2011 of Environmental Management Systems under ISO 9001-2012 | D112: Drinking water | E112: Moreton Bay Regional Council | F112: Various | G112: N/A | H112: N/A | I112: N/A | J112: N/A | K112: Yes | L112: Yes | M112: Yes | N112: CACS | O112: No | P112: N/A | Q112: http://www.unitywater.com/About-us/Participation-agreement.aspx & http://www.unitywater.com/media/scripts/doc_download.aspx?did=581 & http://www.saiglobal.com/assurance/environmental/
B113: 96 | C113: Compliance Australia Certification Services Pty Ltd granted certification to BSSD in Jun 2012 & ISD in Dec 2011 of Environmental Management Systems under ISO 9001-2013 | D113: Waste-water via Sewer | E113: Moreton Bay Regional Council | F113: Various | G113: N/A | H113: N/A | I113: N/A | J113: N/A | K113: Yes | L113: Yes | M113: Yes | N113: CACS | O113: No | P113: N/A | Q113: http://www.unitywater.com/About-us/Participation-agreement.aspx & http://www.unitywater.com/media/scripts/doc_download.aspx?did=581 & http://www.saiglobal.com/assurance/environmental/
B114: 97 | C114: Compliance Australia Certification Services Pty Ltd granted certification to BSSD in Jun 2012 & ISD in Dec 2011 of Environmental Management Systems under ISO 9001-2014 | D114: Drinking water | E114: Sunshine Coast Regional Council | F114: Various | G114: N/A | H114: N/A | I114: N/A | J114: N/A | K114: Yes | L114: Yes | M114: Yes | N114: CACS | O114: No | P114: N/A | Q114: http://www.unitywater.com/About-us/Participation-agreement.aspx & http://www.unitywater.com/media/scripts/doc_download.aspx?did=581 & http://www.saiglobal.com/assurance/environmental/
B115: 98 | C115: Compliance Australia Certification Services Pty Ltd granted certification to BSSD in Jun 2012 & ISD in Dec 2011 of Environmental Management Systems under ISO 9001-2015 | D115: Waste-water via Sewer | E115: Sunshine Coast Regional Council | F115: Various | G115: N/A | H115: N/A | I115: N/A | J115: N/A | K115: Yes | L115: Yes | M115: Yes | N115: CACS | O115: No | P115: N/A | Q115: http://www.unitywater.com/About-us/Participation-agreement.aspx & http://www.unitywater.com/media/scripts/doc_download.aspx?did=581 & http://www.saiglobal.com/assurance/environmental/
B117: 99 | C117: Customer Satisfaction: Customer Satisfaction Index (from monthly survey by survey agency) | D117: Drinking water | E117: Moreton Bay Regional Council | F117: Max rating of 5.1 out of 10.0 per month | G117: N/A | H117: N/A | I117: N/A | J117: Yes | K117: Yes | L117: Yes | M117: Yes | N117: Internal | O117: No | P117: N/A | Q117: ..\Our Supporting Info\Service Standards\May 2012 Performance Report for June Board (A841417).docx
B118: 100 | C118: Customer Satisfaction: Customer Satisfaction Index (from monthly survey by survey agency) | D118: Waste-water via Sewer | E118: Moreton Bay Regional Council | F118: Max rating of 5.1 out of 10.0 per month | G118: N/A | H118: N/A | I118: N/A | J118: Yes | K118: Yes | L118: Yes | M118: Yes | N118: Internal | O118: No | P118: N/A | Q118: ..\Our Supporting Info\Service Standards\May 2012 Performance Report for June Board (A841417).docx
B119: 101 | C119: Customer Satisfaction: Customer Satisfaction Index (from monthly survey by survey agency) | D119: Drinking water | E119: Sunshine Coast Regional Council | F119: Max rating of 5.1 out of 10.0 per month | G119: N/A | H119: N/A | I119: N/A | J119: Yes | K119: Yes | L119: Yes | M119: Yes | N119: Internal | O119: No | P119: N/A | Q119: ..\Our Supporting Info\Service Standards\May 2012 Performance Report for June Board (A841417).docx
B120: 102 | C120: Customer Satisfaction: Customer Satisfaction Index (from monthly survey by survey agency) | D120: Waste-water via Sewer | E120: Sunshine Coast Regional Council | F120: Max rating of 5.1 out of 10.0 per month | G120: N/A | H120: N/A | I120: N/A | J120: Yes | K120: Yes | L120: Yes | M120: Yes | N120: Internal | O120: No | P120: N/A | Q120: ..\Our Supporting Info\Service Standards\May 2012 Performance Report for June Board (A841417).docx
B121: 103 | C121: Customer Satisfaction: Customer Complaints / Compliments to EWOQ | D121: Drinking water | E121: Moreton Bay Regional Council | F121: Max count of 0 per month | G121: N/A | H121: N/A | I121: N/A | J121: Yes | K121: Yes | L121: Yes | M121: Yes | N121: Internal & EWOQ | O121: No | P121: N/A | Q121: ..\Our Supporting Info\Service Standards\May 2012 Performance Report for June Board (A841417).docx
B122: 104 | C122: Customer Satisfaction: Customer Complaints / Compliments to EWOQ | D122: Waste-water via Sewer | E122: Moreton Bay Regional Council | F122: Max count of 0 per month | G122: N/A | H122: N/A | I122: N/A | J122: Yes | K122: Yes | L122: Yes | M122: Yes | N122: Internal & EWOQ | O122: No | P122: N/A | Q122: ..\Our Supporting Info\Service Standards\May 2012 Performance Report for June Board (A841417).docx
B123: 105 | C123: Customer Satisfaction: Customer Complaints / Compliments to EWOQ | D123: Drinking water | E123: Sunshine Coast Regional Council | F123: Max count of 0 per month | G123: N/A | H123: N/A | I123: N/A | J123: Yes | K123: Yes | L123: Yes | M123: Yes | N123: Internal & EWOQ | O123: No | P123: N/A | Q123: ..\Our Supporting Info\Service Standards\May 2012 Performance Report for June Board (A841417).docx
B124: 106 | C124: Customer Satisfaction: Customer Complaints / Compliments to EWOQ | D124: Waste-water via Sewer | E124: Sunshine Coast Regional Council | F124: Max count of 0 per month | G124: N/A | H124: N/A | I124: N/A | J124: Yes | K124: Yes | L124: Yes | M124: Yes | N124: Internal & EWOQ | O124: No | P124: N/A | Q124: ..\Our Supporting Info\Service Standards\May 2012 Performance Report for June Board (A841417).docx
B125: 107 | C125: Customer Satisfaction: Customer Contact | D125: Drinking water | E125: Moreton Bay Regional Council | F125: Max minutes of 6:00 per event | G125: N/A | H125: N/A | I125: N/A | J125: Yes | K125: Yes | L125: Yes | M125: Yes | N125: Internal | O125: No | P125: N/A | Q125: ..\Our Supporting Info\Service Standards\May 2012 Performance Report for June Board (A841417).docx
B126: 108 | C126: Customer Satisfaction: Customer Contact | D126: Waste-water via Sewer | E126: Moreton Bay Regional Council | F126: Max minutes of 6:00 per event | G126: N/A | H126: N/A | I126: N/A | J126: Yes | K126: Yes | L126: Yes | M126: Yes | N126: Internal | O126: No | P126: N/A | Q126: ..\Our Supporting Info\Service Standards\May 2012 Performance Report for June Board (A841417).docx
B127: 109 | C127: Customer Satisfaction: Customer Contact | D127: Drinking water | E127: Sunshine Coast Regional Council | F127: Max minutes of 6:00 per event | G127: N/A | H127: N/A | I127: N/A | J127: Yes | K127: Yes | L127: Yes | M127: Yes | N127: Internal | O127: No | P127: N/A | Q127: ..\Our Supporting Info\Service Standards\May 2012 Performance Report for June Board (A841417).docx
B128: 110 | C128: Customer Satisfaction: Customer Contact | D128: Waste-water via Sewer | E128: Sunshine Coast Regional Council | F128: Max minutes of 6:00 per event | G128: N/A | H128: N/A | I128: N/A | J128: Yes | K128: Yes | L128: Yes | M128: Yes | N128: Internal | O128: No | P128: N/A | Q128: ..\Our Supporting Info\Service Standards\May 2012 Performance Report for June Board (A841417).docx
B129: 111 | C129: Customer Satisfaction: Payment Options (eg Bpay, cash, cheque, EFT, post office, etc) | D129: Drinking water | E129: Moreton Bay Regional Council | F129: Various percentages (%) | G129: N/A | H129: N/A | I129: N/A | J129: Yes | K129: Yes | L129: Yes | M129: Yes | N129: Internal | O129: No | P129: N/A | Q129: ..\Our Supporting Info\Service Standards\May 2012 Performance Report for June Board (A841417).docx
B130: 112 | C130: Customer Satisfaction: Payment Options (eg Bpay, cash, cheque, EFT, post office, etc) | D130: Waste-water via Sewer | E130: Moreton Bay Regional Council | F130: Various percentages (%) | G130: N/A | H130: N/A | I130: N/A | J130: Yes | K130: Yes | L130: Yes | M130: Yes | N130: Internal | O130: No | P130: N/A | Q130: ..\Our Supporting Info\Service Standards\May 2012 Performance Report for June Board (A841417).docx
B131: 113 | C131: Customer Satisfaction: Payment Options (eg Bpay, cash, cheque, EFT, post office, etc) | D131: Drinking water | E131: Sunshine Coast Regional Council | F131: Various percentages (%) | G131: N/A | H131: N/A | I131: N/A | J131: Yes | K131: Yes | L131: Yes | M131: Yes | N131: Internal | O131: No | P131: N/A | Q131: ..\Our Supporting Info\Service Standards\May 2012 Performance Report for June Board (A841417).docx
B132: 114 | C132: Customer Satisfaction: Payment Options (eg Bpay, cash, cheque, EFT, post office, etc) | D132: Waste-water via Sewer | E132: Sunshine Coast Regional Council | F132: Various percentages (%) | G132: N/A | H132: N/A | I132: N/A | J132: Yes | K132: Yes | L132: Yes | M132: Yes | N132: Internal | O132: No | P132: N/A | Q132: ..\Our Supporting Info\Service Standards\May 2012 Performance Report for June Board (A841417).docx
B133: 115 | C133: Integrated Whole of Region Business: Interruptions to Water Supply | D133: Drinking water | E133: Moreton Bay Regional Council | F133: Max count of 255 per year | G133: N/A | H133: N/A | I133: N/A | J133: Yes | K133: Yes | L133: Yes | M133: Yes | N133: Internal | O133: No | P133: N/A | Q133: ..\Our Supporting Info\Service Standards\May 2012 Performance Report for June Board (A841417).docx
B134: 116 | C134: Integrated Whole of Region Business: Interruptions to Water Supply | D134: Drinking water | E134: Sunshine Coast Regional Council | F134: Max count of 255 per year | G134: N/A | H134: N/A | I134: N/A | J134: Yes | K134: Yes | L134: Yes | M134: Yes | N134: Internal | O134: No | P134: N/A | Q134: ..\Our Supporting Info\Service Standards\May 2012 Performance Report for June Board (A841417).docx
B135: 117 | C135: Integrated Whole of Region Business: Dry Weather Sewerage Overflows / 100km Main | D135: Waste-water via Sewer | E135: Moreton Bay Regional Council | F135: Max ratio of 1.3 per month | G135: N/A | H135: N/A | I135: N/A | J135: Yes | K135: Yes | L135: Yes | M135: Yes | N135: Internal | O135: No | P135: N/A | Q135: ..\Our Supporting Info\Service Standards\May 2012 Performance Report for June Board (A841417).docx
B136: 118 | C136: Integrated Whole of Region Business: Dry Weather Sewerage Overflows / 100km Main | D136: Waste-water via Sewer | E136: Sunshine Coast Regional Council | F136: Max ratio of 1.3 per month | G136: N/A | H136: N/A | I136: N/A | J136: Yes | K136: Yes | L136: Yes | M136: Yes | N136: Internal | O136: No | P136: N/A | Q136: ..\Our Supporting Info\Service Standards\May 2012 Performance Report for June Board (A841417).docx
B137: 119 | C137: Integrated Whole of Region Business: Breaks, Bursts & Leaks / 100km Water Main | D137: Drinking water | E137: Moreton Bay Regional Council | F137: Max ratio of 7.3 per year | G137: N/A | H137: N/A | I137: N/A | J137: Yes | K137: Yes | L137: Yes | M137: Yes | N137: Internal | O137: No | P137: N/A | Q137: ..\Our Supporting Info\Service Standards\May 2012 Performance Report for June Board (A841417).docx
B138: 120 | C138: Integrated Whole of Region Business: Breaks, Bursts & Leaks / 100km Water Main | D138: Drinking water | E138: Sunshine Coast Regional Council | F138: Max ratio of 7.3 per year | G138: N/A | H138: N/A | I138: N/A | J138: Yes | K138: Yes | L138: Yes | M138: Yes | N138: Internal | O138: No | P138: N/A | Q138: ..\Our Supporting Info\Service Standards\May 2012 Performance Report for June Board (A841417).docx
B139: 121 | C139: Integrated Whole of Region Business: Real Losses | D139: Drinking water | E139: Moreton Bay Regional Council | F139: Max ratio of 66 per year | G139: N/A | H139: N/A | I139: N/A | J139: Yes | K139: Yes | L139: Yes | M139: Yes | N139: Internal | O139: No | P139: N/A | Q139: ..\Our Supporting Info\Service Standards\May 2012 Performance Report for June Board (A841417).docx
B140: 122 | C140: Integrated Whole of Region Business: Real Losses | D140: Drinking water | E140: Sunshine Coast Regional Council | F140: Max ratio of 66 per year | G140: N/A | H140: N/A | I140: N/A | J140: Yes | K140: Yes | L140: Yes | M140: Yes | N140: Internal | O140: No | P140: N/A | Q140: ..\Our Supporting Info\Service Standards\May 2012 Performance Report for June Board (A841417).docx
B141: 123 | C141: Sustainable Value & Growth: Environmental Audits | D141: Drinking water | E141: Moreton Bay Regional Council | F141: Min count of 24 per month | G141: N/A | H141: N/A | I141: N/A | J141: Yes | K141: Yes | L141: Yes | M141: Yes | N141: Internal | O141: No | P141: N/A | Q141: ..\Our Supporting Info\Service Standards\May 2012 Performance Report for June Board (A841417).docx
B142: 124 | C142: Sustainable Value & Growth: Environmental Audits | D142: Waste-water via Sewer | E142: Moreton Bay Regional Council | F142: Min count of 24 per month | G142: N/A | H142: N/A | I142: N/A | J142: Yes | K142: Yes | L142: Yes | M142: Yes | N142: Internal | O142: No | P142: N/A | Q142: ..\Our Supporting Info\Service Standards\May 2012 Performance Report for June Board (A841417).docx
B143: 125 | C143: Sustainable Value & Growth: Environmental Audits | D143: Drinking water | E143: Sunshine Coast Regional Council | F143: Min count of 24 per month | G143: N/A | H143: N/A | I143: N/A | J143: Yes | K143: Yes | L143: Yes | M143: Yes | N143: Internal | O143: No | P143: N/A | Q143: ..\Our Supporting Info\Service Standards\May 2012 Performance Report for June Board (A841417).docx
B144: 126 | C144: Sustainable Value & Growth: Environmental Audits | D144: Waste-water via Sewer | E144: Sunshine Coast Regional Council | F144: Min count of 24 per month | G144: N/A | H144: N/A | I144: N/A | J144: Yes | K144: Yes | L144: Yes | M144: Yes | N144: Internal | O144: No | P144: N/A | Q144: ..\Our Supporting Info\Service Standards\May 2012 Performance Report for June Board (A841417).docx
B145: 127 | C145: Sustainable Value & Growth: Dry Weather Spills Reported to DERM | D145: Waste-water via Sewer | E145: Moreton Bay Regional Council | F145: Max count of 0 per month | G145: N/A | H145: N/A | I145: N/A | J145: Yes | K145: Yes | L145: Yes | M145: Yes | N145: Internal & DERM | O145: No | P145: N/A | Q145: ..\Our Supporting Info\Service Standards\May 2012 Performance Report for June Board (A841417).docx
B146: 128 | C146: Sustainable Value & Growth: Dry Weather Spills Reported to DERM | D146: Waste-water via Sewer | E146: Sunshine Coast Regional Council | F146: Max count of 0 per month | G146: N/A | H146: N/A | I146: N/A | J146: Yes | K146: Yes | L146: Yes | M146: Yes | N146: Internal & DERM | O146: No | P146: N/A | Q146: ..\Our Supporting Info\Service Standards\May 2012 Performance Report for June Board (A841417).docx
B147: 129 | C147: Sustainable Value & Growth: Sewerage Odour Complaints | D147: Waste-water via Sewer | E147: Moreton Bay Regional Council | F147: Max count of 65 per month | G147: N/A | H147: N/A | I147: N/A | J147: Yes | K147: Yes | L147: Yes | M147: Yes | N147: Internal & DERM | O147: No | P147: N/A | Q147: ..\Our Supporting Info\Service Standards\May 2012 Performance Report for June Board (A841417).docx
B148: 130 | C148: Sustainable Value & Growth: Sewerage Odour Complaints | D148: Waste-water via Sewer | E148: Sunshine Coast Regional Council | F148: Max count of 65 per month | G148: N/A | H148: N/A | I148: N/A | J148: Yes | K148: Yes | L148: Yes | M148: Yes | N148: Internal & DERM | O148: No | P148: N/A | Q148: ..\Our Supporting Info\Service Standards\May 2012 Performance Report for June Board (A841417).docx
B149: 131 | C149: Sustainable Value & Growth: Drinking Water Quality Compliance | D149: Drinking water | E149: Moreton Bay Regional Council | F149: Min percentage of 98.0% per month | G149: N/A | H149: N/A | I149: N/A | J149: Yes | K149: Yes | L149: Yes | M149: Yes | N149: Internal & DERM | O149: No | P149: N/A | Q149: ..\Our Supporting Info\Service Standards\May 2012 Performance Report for June Board (A841417).docx
B150: 132 | C150: Sustainable Value & Growth: Drinking Water Quality Compliance | D150: Drinking water | E150: Sunshine Coast Regional Council | F150: Min percentage of 98.0% per month | G150: N/A | H150: N/A | I150: N/A | J150: Yes | K150: Yes | L150: Yes | M150: Yes | N150: Internal & DERM | O150: No | P150: N/A | Q150: ..\Our Supporting Info\Service Standards\May 2012 Performance Report for June Board (A841417).docx
B151: 133 | C151: Sustainable Value & Growth: Sewerage Treatment Plant Compliance | D151: Waste-water via Sewer | E151: Moreton Bay Regional Council | F151: Min percentage of 98.0% per month | G151: N/A | H151: N/A | I151: N/A | J151: Yes | K151: Yes | L151: Yes | M151: Yes | N151: Internal & DERM | O151: No | P151: N/A | Q151: ..\Our Supporting Info\Service Standards\May 2012 Performance Report for June Board (A841417).docx
B152: 134 | C152: Sustainable Value & Growth: Sewerage Treatment Plant Compliance | D152: Waste-water via Sewer | E152: Sunshine Coast Regional Council | F152: Min percentage of 98.0% per month | G152: N/A | H152: N/A | I152: N/A | J152: Yes | K152: Yes | L152: Yes | M152: Yes | N152: Internal & DERM | O152: No | P152: N/A | Q152: ..\Our Supporting Info\Service Standards\May 2012 Performance Report for June Board (A841417).docx
B153: 135 | C153: Operational Watchlist: 3rd Party Property Damage Insurance Claims | D153: Drinking water | E153: Moreton Bay Regional Council | F153: Max count per month | G153: N/A | H153: N/A | I153: N/A | J153: Yes | K153: Yes | L153: Yes | M153: Yes | N153: Internal | O153: No | P153: N/A | Q153: ..\Our Supporting Info\Service Standards\May 2012 Performance Report for June Board (A841417).docx
B154: 136 | C154: Operational Watchlist: 3rd Party Property Damage Insurance Claims | D154: Waste-water via Sewer | E154: Moreton Bay Regional Council | F154: Max count per month | G154: N/A | H154: N/A | I154: N/A | J154: Yes | K154: Yes | L154: Yes | M154: Yes | N154: Internal | O154: No | P154: N/A | Q154: ..\Our Supporting Info\Service Standards\May 2012 Performance Report for June Board (A841417).docx
B155: 137 | C155: Operational Watchlist: 3rd Party Property Damage Insurance Claims | D155: Drinking water | E155: Sunshine Coast Regional Council | F155: Max count per month | G155: N/A | H155: N/A | I155: N/A | J155: Yes | K155: Yes | L155: Yes | M155: Yes | N155: Internal | O155: No | P155: N/A | Q155: ..\Our Supporting Info\Service Standards\May 2012 Performance Report for June Board (A841417).docx
B156: 138 | C156: Operational Watchlist: 3rd Party Property Damage Insurance Claims | D156: Waste-water via Sewer | E156: Sunshine Coast Regional Council | F156: Max count per month | G156: N/A | H156: N/A | I156: N/A | J156: Yes | K156: Yes | L156: Yes | M156: Yes | N156: Internal | O156: No | P156: N/A | Q156: ..\Our Supporting Info\Service Standards\May 2012 Performance Report for June Board (A841417).docx
B157: 139 | C157: Operational Watchlist: Leak Rebates | D157: Drinking water | E157: Moreton Bay Regional Council | F157: Max value ($) per year | G157: N/A | H157: N/A | I157: N/A | J157: Yes | K157: Yes | L157: Yes | M157: Yes | N157: Internal | O157: No | P157: N/A | Q157: ..\Our Supporting Info\Service Standards\May 2012 Performance Report for June Board (A841417).docx
B158: 140 | C158: Operational Watchlist: Leak Rebates | D158: Drinking water | E158: Sunshine Coast Regional Council | F158: Max value ($) per year | G158: N/A | H158: N/A | I158: N/A | J158: Yes | K158: Yes | L158: Yes | M158: Yes | N158: Internal | O158: No | P158: N/A | Q158: ..\Our Supporting Info\Service Standards\May 2012 Performance Report for June Board (A841417).docx
B160: 141 | C160: Recycled water available to customers | D160: Other Core Water Services | E160: Moreton Bay Regional Council | F160: Min percentage of 95% of time | G160: N/A | H160: N/A | I160: N/A | J160: Yes | K160: Yes | L160: Yes | M160: Yes | N160: Internal | O160: No | P160: N/A | Q160: ..\Our Supporting Info\Service Standards\RE QCA Info Needed re Customer Service Standards related KPIs.msg
B161: 142 | C161: Recycled water available to customers | D161: Other Core Water Services | E161: Sunshine Coast Regional Council | F161: Min percentage of 95% of time | G161: N/A | H161: N/A | I161: N/A | J161: Yes | K161: Yes | L161: Yes | M161: Yes | N161: Internal | O161: No | P161: N/A | Q161: ..\Our Supporting Info\Service Standards\RE QCA Info Needed re Customer Service Standards related KPIs.msg
B162: 143 | C162: Compliance with recycled water quality (e coli): Class A+ | D162: Other Core Water Services | E162: Moreton Bay Regional Council | F162: Max ratio of 1cfu per 100mL | G162: N/A | H162: N/A | I162: N/A | J162: Yes | K162: Yes | L162: Yes | M162: Yes | N162: Internal | O162: No | P162: N/A | Q162: ..\Our Supporting Info\Service Standards\RE QCA Info Needed re Customer Service Standards related KPIs.msg
B163: 144 | C163: Compliance with recycled water quality (e coli): Class A+ | D163: Other Core Water Services | E163: Sunshine Coast Regional Council | F163: Max ratio of 1cfu per 100mL | G163: N/A | H163: N/A | I163: N/A | J163: Yes | K163: Yes | L163: Yes | M163: Yes | N163: Internal | O163: No | P163: N/A | Q163: ..\Our Supporting Info\Service Standards\RE QCA Info Needed re Customer Service Standards related KPIs.msg
B164: 145 | C164: Compliance with recycled water quality (e coli): Class A | D164: Other Core Water Services | E164: Moreton Bay Regional Council | F164: Max ratio of 10cfu per 100mL | G164: N/A | H164: N/A | I164: N/A | J164: Yes | K164: Yes | L164: Yes | M164: Yes | N164: Internal | O164: No | P164: N/A | Q164: ..\Our Supporting Info\Service Standards\RE QCA Info Needed re Customer Service Standards related KPIs.msg
B165: 146 | C165: Compliance with recycled water quality (e coli): Class A | D165: Other Core Water Services | E165: Sunshine Coast Regional Council | F165: Max ratio of 10cfu per 100mL | G165: N/A | H165: N/A | I165: N/A | J165: Yes | K165: Yes | L165: Yes | M165: Yes | N165: Internal | O165: No | P165: N/A | Q165: ..\Our Supporting Info\Service Standards\RE QCA Info Needed re Customer Service Standards related KPIs.msg
B166: 147 | C166: Compliance with recycled water quality (e coli): Class B | D166: Other Core Water Services | E166: Moreton Bay Regional Council | F166: Max ratio of 100cfu per 100mL | G166: N/A | H166: N/A | I166: N/A | J166: Yes | K166: Yes | L166: Yes | M166: Yes | N166: Internal | O166: No | P166: N/A | Q166: ..\Our Supporting Info\Service Standards\RE QCA Info Needed re Customer Service Standards related KPIs.msg
B167: 148 | C167: Compliance with recycled water quality (e coli): Class B | D167: Other Core Water Services | E167: Sunshine Coast Regional Council | F167: Max ratio of 100cfu per 100mL | G167: N/A | H167: N/A | I167: N/A | J167: Yes | K167: Yes | L167: Yes | M167: Yes | N167: Internal | O167: No | P167: N/A | Q167: ..\Our Supporting Info\Service Standards\RE QCA Info Needed re Customer Service Standards related KPIs.msg
A172: List for Geographic Areas
A173: ='Business Details'!D12 -> Moreton Bay Regional Council
A174: ='Business Details'!D13 -> Sunshine Coast Regional Council
A175: ='Business Details'!D14 -> N/A
A176: ='Business Details'!D15 -> N/A
A177: ='Business Details'!D16 -> N/A
A179: List for Services
A180: Drinking water
A181: Other Core Water Services
A182: Waste-water via Sewer
A183: Trade Waste
A184: Other Core Waste-water Services
A185: Aggregate Non-regulated Services
A187: (Yes/No)
A188: Yes
A189: No
AH239: =AG239 -> 

Sheet 5.4.1
B4: ='Business Details'!$B$4 -> SEQ INTERIM REVENUE MONITORING - INFORMATION REQUIREMENT TEMPLATE
B7: =CONCATENATE("Demand Details for ",'Business Details'!D9," - Geographic Areas") -> Demand Details for Northern SEQ Distributor-Retailer Authority (trading as Unitywater ABN: 89 791 717 472) - Geographic Areas
B8: =CONCATENATE("Reporting year = ",AnalysisYear) -> Reporting year = 2013
F11: ='5.2.1'!F11 -> For Year Ending 30 June: | M11: Estimated annual | O11: =CONCATENATE("For Year Ending 30 June ",AnalysisYear) -> For Year Ending 30 June 2013
C12: Revenue Source | F12: ='5.1.1'!F13 -> 2009 | G12: ='5.1.1'!G13 -> 2010 | H12: ='5.1.1'!H13 -> 2011 | I12: ='5.1.1'!I13 -> 2012 | J12: ='5.1.1'!J13 -> 2013 | K12: ='5.1.1'!K13 -> 2014 | L12: ='5.1.1'!L13 -> 2015 | M12: =CONCATENATE("increase post ",L12) -> increase post 2015 | O12: Supporting Documents | AH12: =AG12 -> 
B14: ="Geographical Area 1 - "&'Business Details'!$D$12 -> Geographical Area 1 - Moreton Bay Regional Council
B16: WATER
C17: Drinking Water:
C18: Residential Demand | E18: ML | F18: ='[13]5.4.1'!F18 -> 0 | G18: ='[13]5.4.1'!G18 -> 21329.078 | H18: ='[13]5.4.1'!H18 -> 19590.20542 | I18: ='[11]5.4.1'!I18 -> 21322.185 | J18: ='[11]5.4.1'!J18 -> 23052.60727 | K18: ='[11]5.4.1'!K18 -> 24948.97441 | L18: ='[11]5.4.1'!L18 -> 27001.34161 | O18: ..\Our Last Year's Return\FINAL QCA Information Requirements Templates 2011_12.xls & ..\..\..\..\Commercial Acctg\QCA Unitywater Submission 2012\CAM\CAM 12_13\12-13 Revenue Forecast - Price Freeze Apr 4.xlsx
C19: Non-residential Demand | E19: ML | F19: ='[13]5.4.1'!F19 -> 0 | G19: ='[13]5.4.1'!G19 -> 3412.65248 | H19: ='[13]5.4.1'!H19 -> 2402.512735 | I19: ='[11]5.4.1'!I19 -> 2992.450049 | J19: ='[11]5.4.1'!J19 -> 3060.61381 | K19: ='[11]5.4.1'!K19 -> 3130.330244 | L19: ='[11]5.4.1'!L19 -> 3201.63472
C20: Other Demand (Inc Commercially Negotiated ) | E20: ML | F20: ='[13]5.4.1'!F20 -> 0 | G20: ='[13]5.4.1'!G20 -> 0 | H20: ='[13]5.4.1'!H20 -> 0 | I20: ='[11]5.4.1'!I20 -> 1198.703153 | J20: ='[11]5.4.1'!J20 -> 1198.703153 | K20: ='[11]5.4.1'!K20 -> 1198.703153 | L20: ='[11]5.4.1'!L20 -> 1198.703153
C21: Non-revenue water | E21: ML | F21: ='[13]5.4.1'!F21 -> 0 | G21: ='[13]5.4.1'!G21 -> 0 | H21: ='[13]5.4.1'!H21 -> 0 | I21: ='[11]5.4.1'!I21 -> 2877.01828 | J21: ='[11]5.4.1'!J21 -> 2958.500039 | K21: ='[11]5.4.1'!K21 -> 3046.584001 | L21: ='[11]5.4.1'!L21 -> 3138.855558
C22: Other core water services: | E22: ML | F22: ='[13]5.4.1'!F22 -> 0 | G22: ='[13]5.4.1'!G22 -> 0 | H22: ='[13]5.4.1'!H22 -> 0 | I22: ='[11]5.4.1'!I22 -> 0 | J22: ='[11]5.4.1'!J22 -> 0 | K22: ='[11]5.4.1'!K22 -> 0 | L22: ='[11]5.4.1'!L22 -> 0
B23: Total Water | E23: ML | F23: =SUM(F18:F22) -> 0 | G23: 24741.73048 | H23: 21992.71815 | I23: 28390.35648 | J23: 30270.42427 | K23: 32324.5918 | L23: =SUM(L18:L22) -> 34540.53504
B25: WASTEWATER
C26: Wastewater via sewer | E26: ='[11]5.4.1'!E26 -> Access Charges | H26: ='[11]5.4.1'!H26 -> 0 | I26: ='[11]5.4.1'!I26 -> 151663 | J26: ='[11]5.4.1'!J26 -> 155294 | K26: ='[11]5.4.1'!K26 -> 159012 | L26: ='[11]5.4.1'!L26 -> 162819 | O26: ..\..\..\..\Commercial Acctg\QCA Unitywater Submission 2012\CAM\CAM 12_13\12-13 Revenue Forecast - Price Freeze Apr 4.xlsx
C27: Trade waste | E27: ='[11]5.4.1'!E27 -> Customers | H27: ='[11]5.4.1'!H27 -> 1054 | I27: ='[11]5.4.1'!I27 -> 1079 | J27: ='[11]5.4.1'!J27 -> 1105 | K27: ='[11]5.4.1'!K27 -> 1131 | L27: ='[11]5.4.1'!L27 -> 1158
C28: Other core wastewater services | E28: ='[11]5.4.1'!E28 -> Customers | H28: ='[11]5.4.1'!H28 -> 729 | I28: ='[11]5.4.1'!I28 -> 749 | J28: ='[11]5.4.1'!J28 -> 769 | K28: ='[11]5.4.1'!K28 -> 790 | L28: ='[11]5.4.1'!L28 -> 812
B29: Total Wastewater | E29: Access Charged Customers | F29: =SUM(F26:F28) -> 0 | G29: 0 | H29: 1783 | I29: 153491 | J29: 157168 | K29: 160933 | L29: =SUM(L26:L28) -> 164789
B31: NON-REGULATED
C32: Aggregate non-regulated services | E32: Too many atomistic services | O32: N/A
F36: =F$11 -> For Year Ending 30 June: | M36: =M$11 -> Estimated annual | O36: =CONCATENATE("For Year Ending 30 June ",AnalysisYear) -> For Year Ending 30 June 2013
C37: =C12 -> Revenue Source | F37: =F$12 -> 2009 | G37: 2010 | H37: 2011 | I37: 2012 | J37: 2013 | K37: 2014 | L37: 2015 | M37: increase post 2015 | O37: Supporting Documents | AH37: =AG37 -> 
B39: ="Geographical Area 2 - "&'Business Details'!$D$13 -> Geographical Area 2 - Sunshine Coast Regional Council
B41: =B16 -> WATER
C42: Drinking Water:
C43: Residential Demand | E43: ML | F43: ='[13]5.4.1'!F43 -> 0 | G43: ='[13]5.4.1'!G43 -> 25817.22484 | H43: ='[13]5.4.1'!H43 -> 20160.13877 | I43: ='[11]5.4.1'!I43 -> 20590.799 | J43: ='[11]5.4.1'!J43 -> 22299.35406 | K43: ='[11]5.4.1'!K43 -> 24174.39804 | L43: ='[11]5.4.1'!L43 -> 24698.40383 | O43: ..\Our Last Year's Return\FINAL QCA Information Requirements Templates 2011_12.xls & ..\..\..\..\Commercial Acctg\QCA Unitywater Submission 2012\CAM\CAM 12_13\12-13 Revenue Forecast - Price Freeze Apr 4.xlsx
C44: Non-residential Demand | E44: ML | F44: ='[13]5.4.1'!F44 -> 0 | G44: ='[13]5.4.1'!G44 -> 4130.755974 | H44: ='[13]5.4.1'!H44 -> 4582.818102 | I44: ='[11]5.4.1'!I44 -> 4458.662418 | J44: ='[11]5.4.1'!J44 -> 4565.919312 | K44: ='[11]5.4.1'!K44 -> 4675.756361 | L44: ='[11]5.4.1'!L44 -> 4788.235632
C45: Other Demand (Inc Commercially Negotiated ) | E45: ML | F45: ='[13]5.4.1'!F45 -> 0 | G45: ='[13]5.4.1'!G45 -> 0 | H45: ='[13]5.4.1'!H45 -> 0 | I45: ='[11]5.4.1'!I45 -> 0 | J45: ='[11]5.4.1'!J45 -> 0 | K45: ='[11]5.4.1'!K45 -> 0 | L45: ='[11]5.4.1'!L45 -> 0
C46: Non-revenue water | E46: ML | F46: ='[13]5.4.1'!F46 -> 0 | G46: ='[13]5.4.1'!G46 -> 0 | H46: ='[13]5.4.1'!H46 -> 0 | I46: ='[11]5.4.1'!I46 -> 3255.014761 | J46: ='[11]5.4.1'!J46 -> 3312.180045 | K46: ='[11]5.4.1'!K46 -> 3375.747912 | L46: ='[11]5.4.1'!L46 -> 3275.442288
C47: =C22 -> Other core water services: | E47: =E22 -> ML | F47: ='[13]5.4.1'!F47 -> 0 | G47: ='[13]5.4.1'!G47 -> 0 | H47: ='[13]5.4.1'!H47 -> 0 | I47: ='[11]5.4.1'!I47 -> 0 | J47: ='[11]5.4.1'!J47 -> 0 | K47: ='[11]5.4.1'!K47 -> 0 | L47: ='[11]5.4.1'!L47 -> 0
B48: =B23 -> Total Water | E48: =E23 -> ML | F48: =SUM(F43:F47) -> 0 | G48: 29947.98081 | H48: 24742.95687 | I48: 28304.47618 | J48: 30177.45342 | K48: 32225.90231 | L48: =SUM(L43:L47) -> 32762.08175
B50: =B25 -> WASTEWATER
C51: =C26 -> Wastewater via sewer | E51: ='[11]5.4.1'!E51 -> Access Charges | H51: ='[11]5.4.1'!H51 -> 0 | I51: ='[11]5.4.1'!I51 -> 136741 | J51: ='[11]5.4.1'!J51 -> 139894 | K51: ='[11]5.4.1'!K51 -> 143118 | L51: ='[11]5.4.1'!L51 -> 146417 | O51: ..\..\..\..\Commercial Acctg\QCA Unitywater Submission 2012\CAM\CAM 12_13\12-13 Revenue Forecast - Price Freeze Apr 4.xlsx
C52: =C27 -> Trade waste | E52: ='[11]5.4.1'!E52 -> Customers | H52: ='[11]5.4.1'!H52 -> 797 | I52: ='[11]5.4.1'!I52 -> 815 | J52: ='[11]5.4.1'!J52 -> 834 | K52: ='[11]5.4.1'!K52 -> 853 | L52: ='[11]5.4.1'!L52 -> 873
C53: =C28 -> Other core wastewater services | E53: ='[11]5.4.1'!E53 -> Customers | H53: ='[11]5.4.1'!H53 -> 44 | I53: ='[11]5.4.1'!I53 -> 45 | J53: ='[11]5.4.1'!J53 -> 135 | K53: ='[11]5.4.1'!K53 -> 405 | L53: ='[11]5.4.1'!L53 -> 810
B54: =B29 -> Total Wastewater | E54: Access Charged Customers | F54: =SUM(F51:F53) -> 0 | G54: 0 | H54: 841 | I54: 137601 | J54: 140863 | K54: 144376 | L54: =SUM(L51:L53) -> 148100
B56: =B31 -> NON-REGULATED
C57: =C32 -> Aggregate non-regulated services | E57: Too many atomistic services | O57: N/A
F61: =F$11 -> For Year Ending 30 June: | M61: =M$11 -> Estimated annual | O61: =CONCATENATE("For Year Ending 30 June ",AnalysisYear) -> For Year Ending 30 June 2013
C62: =C37 -> Revenue Source | F62: =F$12 -> 2009 | G62: 2010 | H62: 2011 | I62: 2012 | J62: 2013 | K62: 2014 | L62: 2015 | M62: increase post 2015 | O62: Supporting Documents | AH62: =AG62 -> 
B64: ="Geographical Area 3 - "&'Business Details'!$D$14 -> Geographical Area 3 - N/A
B66: =B41 -> WATER
C67: Drinking Water:
C68: Residential Demand | E68: ML
C69: Non-residential Demand | E69: ML
C70: Other Demand (Inc Commercially Negotiated ) | E70: ML
C71: Non-revenue water | E71: ML
C72: =C47 -> Other core water services: | E72: =E47 -> ML
B73: =B48 -> Total Water | E73: =E48 -> ML | F73: =SUM(F68:F72) -> 0 | G73: 0 | H73: 0 | I73: 0 | J73: 0 | K73: 0 | L73: =SUM(L68:L72) -> 0
B75: =B50 -> WASTEWATER
C76: =C51 -> Wastewater via sewer | E76: [specify]
C77: =C52 -> Trade waste | E77: [specify]
C78: =C53 -> Other core wastewater services | E78: [specify]
B79: =B54 -> Total Wastewater | E79: [specify] | F79: =SUM(F76:F78) -> 0 | G79: 0 | H79: 0 | I79: 0 | J79: 0 | K79: 0 | L79: =SUM(L76:L78) -> 0
B81: =B56 -> NON-REGULATED
C82: =C57 -> Aggregate non-regulated services | E82: [specify]
F86: =F$11 -> For Year Ending 30 June: | M86: =M$11 -> Estimated annual | O86: =CONCATENATE("For Year Ending 30 June ",AnalysisYear) -> For Year Ending 30 June 2013
C87: =C62 -> Revenue Source | F87: =F$12 -> 2009 | G87: 2010 | H87: 2011 | I87: 2012 | J87: 2013 | K87: 2014 | L87: 2015 | M87: increase post 2015 | O87: Supporting Documents | AH87: =AG87 -> 
B89: ="Geographical Area 4 - "&'Business Details'!$D$15 -> Geographical Area 4 - N/A
B91: =B66 -> WATER
C92: Drinking Water:
C93: Residential Demand | E93: ML
C94: Non-residential Demand | E94: ML
C95: Other Demand (Inc Commercially Negotiated ) | E95: ML
C96: Non-revenue water | E96: ML
C97: =C72 -> Other core water services: | E97: =E72 -> ML
B98: =B73 -> Total Water | E98: =E73 -> ML | F98: =SUM(F93:F97) -> 0 | G98: 0 | H98: 0 | I98: 0 | J98: 0 | K98: 0 | L98: =SUM(L93:L97) -> 0
B100: =B75 -> WASTEWATER
C101: =C76 -> Wastewater via sewer | E101: [specify]
C102: =C77 -> Trade waste | E102: [specify]
C103: =C78 -> Other core wastewater services | E103: [specify]
B104: =B79 -> Total Wastewater | E104: [specify] | F104: =SUM(F101:F103) -> 0 | G104: 0 | H104: 0 | I104: 0 | J104: 0 | K104: 0 | L104: =SUM(L101:L103) -> 0
B106: =B81 -> NON-REGULATED
C107: =C82 -> Aggregate non-regulated services | E107: [specify]
F111: =F$11 -> For Year Ending 30 June: | M111: =M$11 -> Estimated annual | O111: =CONCATENATE("For Year Ending 30 June ",AnalysisYear) -> For Year Ending 30 June 2013
C112: =C87 -> Revenue Source | F112: =F$12 -> 2009 | G112: 2010 | H112: 2011 | I112: 2012 | J112: 2013 | K112: 2014 | L112: 2015 | M112: increase post 2015 | O112: Supporting Documents | AH112: =AG112 -> 
B114: ="Geographical Area 5 - "&'Business Details'!$D$16 -> Geographical Area 5 - N/A
B116: =B91 -> WATER
C117: Drinking Water:
C118: Residential Demand | E118: ML
C119: Non-residential Demand | E119: ML
C120: Other Demand (Inc Commercially Negotiated ) | E120: ML
C121: Non-revenue water | E121: ML
C122: =C97 -> Other core water services: | E122: =E97 -> ML
B123: =B98 -> Total Water | E123: =E98 -> ML | F123: =SUM(F118:F122) -> 0 | G123: 0 | H123: 0 | I123: 0 | J123: 0 | K123: 0 | L123: =SUM(L118:L122) -> 0
B125: =B100 -> WASTEWATER
C126: =C101 -> Wastewater via sewer | E126: [specify]
C127: =C102 -> Trade waste | E127: [specify]
C128: =C103 -> Other core wastewater services | E128: [specify]
B129: =B104 -> Total Wastewater | E129: [specify] | F129: =SUM(F126:F128) -> 0 | G129: 0 | H129: 0 | I129: 0 | J129: 0 | K129: 0 | L129: =SUM(L126:L128) -> 0
B131: =B106 -> NON-REGULATED
C132: =C107 -> Aggregate non-regulated services | E132: [specify]
F136: =F$11 -> For Year Ending 30 June: | M136: =M$11 -> Estimated annual | O136: =CONCATENATE("For Year Ending 30 June ",AnalysisYear) -> For Year Ending 30 June 2013
C137: =C112 -> Revenue Source | F137: =F$12 -> 2009 | G137: 2010 | H137: 2011 | I137: 2012 | J137: 2013 | K137: 2014 | L137: 2015 | M137: increase post 2015 | O137: Supporting Documents | AH137: =AG137 -> 
B139: Total
B141: =B116 -> WATER
C142: Drinking Water:
C143: Residential Demand | E143: ML | F143: =F18+F43+F68+F93+F118 -> 0 | G143: 47146.30284 | H143: 39750.34418 | I143: 41912.984 | J143: 45351.96133 | K143: 49123.37244 | L143: =L18+L43+L68+L93+L118 -> 51699.74544
C144: Non-residential Demand | E144: ML | F144: 0 | G144: 7543.408454 | H144: 6985.330837 | I144: 7451.112467 | J144: 7626.533121 | K144: 7806.086605 | L144: =L19+L44+L69+L94+L119 -> 7989.870352
C145: Other Demand (Inc Commercially Negotiated ) | E145: ML | F145: 0 | G145: 0 | H145: 0 | I145: 1198.703153 | J145: 1198.703153 | K145: 1198.703153 | L145: =L20+L45+L70+L95+L120 -> 1198.703153
C146: Non-revenue water | E146: ML | F146: 0 | G146: 0 | H146: 0 | I146: 6132.03304 | J146: 6270.680084 | K146: 6422.331913 | L146: =L21+L46+L71+L96+L121 -> 6414.297846
C147: =C122 -> Other core water services: | E147: =E122 -> ML | F147: 0 | G147: 0 | H147: 0 | I147: 0 | J147: 0 | K147: 0 | L147: =L22+L47+L72+L97+L122 -> 0
B148: =B123 -> Total Water | E148: =E123 -> ML | F148: =SUM(F143:F147) -> 0 | G148: 54689.71129 | H148: 46735.67502 | I148: 56694.83266 | J148: 60447.87769 | K148: 64550.49411 | L148: =SUM(L143:L147) -> 67302.61679
B150: =B125 -> WASTEWATER
C151: =C126 -> Wastewater via sewer | E151: [specify] | F151: =F26+F51+F76+F101+F126 -> 0 | G151: 0 | H151: 0 | I151: 288404 | J151: 295188 | K151: 302130 | L151: =L26+L51+L76+L101+L126 -> 309236
C152: =C127 -> Trade waste | E152: [specify] | F152: 0 | G152: 0 | H152: 1851 | I152: 1894 | J152: 1939 | K152: 1984 | L152: =L27+L52+L77+L102+L127 -> 2031
C153: =C128 -> Other core wastewater services | E153: [specify] | F153: 0 | G153: 0 | H153: 773 | I153: 794 | J153: 904 | K153: 1195 | L153: =L28+L53+L78+L103+L128 -> 1622
B154: =B129 -> Total Wastewater | E154: [specify] | F154: =SUM(F151:F153) -> 0 | G154: 0 | H154: 2624 | I154: 291092 | J154: 298031 | K154: 305309 | L154: =SUM(L151:L153) -> 312889
B156: =B131 -> NON-REGULATED
C157: =C132 -> Aggregate non-regulated services | E157: [specify] | F157: =F32+F57+F82+F107+F132 -> 0 | G157: 0 | H157: 0 | I157: 0 | J157: 0 | K157: 0 | L157: =L32+L57+L82+L107+L132 -> 0

Sheet 5.5.1
B4: ='Business Details'!$B$4 -> SEQ INTERIM REVENUE MONITORING - INFORMATION REQUIREMENT TEMPLATE
B7: =CONCATENATE("Opening Asset Base for ",'Business Details'!D9) -> Opening Asset Base for Northern SEQ Distributor-Retailer Authority (trading as Unitywater ABN: 89 791 717 472)
B8: =CONCATENATE("Reporting year = ",AnalysisYear) -> Reporting year = 2013
F11: Geographic Area 1 | G11: Geographic Area 2 | H11: Geographic Area 3 | I11: Geographic Area 4 | J11: Geographic Area 5
E12: Numeration | F12: ='Business Details'!$D$12 -> Moreton Bay Regional Council | G12: ='Business Details'!$D$13 -> Sunshine Coast Regional Council | H12: ='Business Details'!$D$14 -> N/A | I12: ='Business Details'!$D$15 -> N/A | J12: ='Business Details'!$D$16 -> N/A | K12: Total | M12: Supporting Documents
B14: WRITTEN DOWN VALUE as at 1 July 2008
B16: Total WDV (accounting values) as at 1 July 2008 | E16: $'000 | K16: ='[7]5.5.1'!$K$16 -> 2532700.605 | L16: =IF(K16='5.5.1 SD03'!K16,"OK","check") -> check | M16: ..\..\..\..\Commercial Acctg\QCA Unitywater Submission 2011\QCA Unitywater Submission 2011 Workpapers\FINAL DOCUMENTS\Templates\FINAL QCA Information Requirements Templates.xls
B19: REGULATORY ASSET BASE VALUES as at 1 July 2008
C20: Water:
C21: Drinking water | E21: $'000 | F21: ='[14]5.5.1'!$F$21 -> 496532.7751 | G21: ='[14]5.5.1'!$G$21 -> 345004.5065 | H21: ='5.5.1 SD03'!H37 -> 0 | I21: ='5.5.1 SD03'!I37 -> 0 | J21: ='5.5.1 SD03'!J37 -> 0 | K21: =SUM(F21:J21) -> 841537.2816 | M21: ..\..\..\..\Commercial Acctg\QCA Unitywater Submission 2012\RAB\Capex RAB Roll Forward.xlsx
C22: Other core water services | E22: $'000 | F22: ='[14]5.5.1'!$F$22 -> 13216.47784 | G22: ='[14]5.5.1'!$G$22 -> 24051.50133 | H22: ='5.5.1 SD03'!H56 -> 0 | I22: ='5.5.1 SD03'!I56 -> 0 | J22: ='5.5.1 SD03'!J56 -> 0 | K22: =SUM(F22:J22) -> 37267.97917
C24: Wastewater:
C25: Wastewater via sewer | E25: $'000 | F25: ='[14]5.5.1'!$F$25 -> 584658.1057 | G25: ='[14]5.5.1'!$G$25 -> 534710.5554 | H25: ='5.5.1 SD03'!H75 -> 0 | I25: ='5.5.1 SD03'!I75 -> 0 | J25: ='5.5.1 SD03'!J75 -> 0 | K25: =SUM(F25:J25) -> 1119368.661 | M25: ..\..\..\..\Commercial Acctg\QCA Unitywater Submission 2012\RAB\Capex RAB Roll Forward.xlsx
C26: Trade waste | E26: $'000 | F26: ='[14]5.5.1'!$F$26 -> 15206.74994 | G26: ='[14]5.5.1'!$G$26 -> 15925.1256 | H26: ='5.5.1 SD03'!H94 -> 0 | I26: ='5.5.1 SD03'!I94 -> 0 | J26: ='5.5.1 SD03'!J94 -> 0 | K26: =SUM(F26:J26) -> 31131.87553
C27: Other core wastewater services | E27: $'000 | F27: ='[14]5.5.1'!$F$27 -> 0 | G27: ='[14]5.5.1'!$G$27 -> 0 | H27: ='5.5.1 SD03'!H113 -> 0 | I27: ='5.5.1 SD03'!I113 -> 0 | J27: ='5.5.1 SD03'!J113 -> 0 | K27: =SUM(F27:J27) -> 0
C29: Non-regulated:
C30: Aggregate non-regulated services | E30: $'000 | F30: ='[14]5.5.1'!$F$30 -> 402.891438 | G30: ='[14]5.5.1'!$G$30 -> 161.3111606 | H30: ='5.5.1 SD03'!H132 -> 0 | I30: ='5.5.1 SD03'!I132 -> 0 | J30: ='5.5.1 SD03'!J132 -> 0 | K30: =SUM(F30:J30) -> 564.2025987 | M30: ..\..\..\..\Commercial Acctg\QCA Unitywater Submission 2012\RAB\Capex RAB Roll Forward.xlsx
B32: Total RAB Value as at 1 July 2008 | E32: $'000 | F32: =SUM(F21:F22)+SUM(F25:F27)+F30 -> 1110017 | G32: 919853 | H32: 0 | I32: 0 | J32: 0 | K32: 2029870
B35: Basis for Disaggregated RAB
E36: Is the disaggregated RAB based on the ratio of the RAB advised by the Minister to the audited WDV of the assets? | M36: ='[14]5.5.1'!$M$36 -> Yes
E38: If no (i.e. an alternative methodology was used), provide supporting documentation explaining the methodology used.
A109: (Yes/No)
A110: Yes
A111: No

Sheet 5.5.1 SD01
B4: ='Business Details'!$B$4 -> SEQ INTERIM REVENUE MONITORING - INFORMATION REQUIREMENT TEMPLATE
B7: =CONCATENATE("Allocation of Opening Asset Base for ",'Business Details'!$D$9) -> Allocation of Opening Asset Base for Northern SEQ Distributor-Retailer Authority (trading as Unitywater ABN: 89 791 717 472)
B8: =CONCATENATE("Reporting year = ",AnalysisYear) -> Reporting year = 2013
B11: Unique identifier | C11: Asset Name | D11: Asset Description | E11: WDV as at 1 July 2008 ($'000) | F11: Regulatory Asset Base Values as at 1 July 2008 ($'000) | G11: Remaining Useful Life (Years) | I11: Allocation of RAB Value to QCA Asset Category (dropdown list) | K11: Allocation of RAB Value to Geographic Area (dropdown list) | M11: Allocation of RAB Value to Services ($'000) | T11: Basis of Allocation (dropdown list) | V11: Supporting Documents
M12: WATER | O12: WASTE WATER | R12: OTHER
M13: Drinking water | N13: Other core water services | O13: Waste-water via Sewer | P13: Trade Waste | Q13: Other core wastewater services | R13: Aggregate Non-regulated Services
B15: 1 | C15: Multiple | D15: ='[14]5.5.1 SD01'!D15 -> Business SupportOperations Business SupportBuilding | E15: ='[14]5.5.1 SD01'!E15 -> 6657.253782 | F15: ='[14]5.5.1 SD01'!F15 -> 7248.934065 | G15: ='[14]5.5.1 SD01'!G15 -> 80.41179081 | I15: ='[14]5.5.1 SD01'!I15 -> Building other than infrastructure housing | K15: ='[14]5.5.1 SD01'!K15 -> Moreton Bay | M15: ='[14]5.5.1 SD01'!M15 -> 3329.745764 | N15: ='[14]5.5.1 SD01'!N15 -> 149.540196 | O15: ='[14]5.5.1 SD01'!O15 -> 3641.757997 | P15: ='[14]5.5.1 SD01'!P15 -> 54.89623468 | Q15: ='[14]5.5.1 SD01'!Q15 -> 0 | R15: ='[14]5.5.1 SD01'!R15 -> 72.99387329 | T15: ='[14]5.5.1 SD01'!T15 -> Causal allocation | V15: ..\..\..\..\Commercial Acctg\QCA Unitywater Submission 2012\RAB\Capex RAB Roll Forward.xlsx
B16: 2 | C16: Multiple | D16: ='[14]5.5.1 SD01'!D16 -> Business SupportOperations Business SupportCorporate Systems | E16: ='[14]5.5.1 SD01'!E16 -> 200.4428314 | F16: ='[14]5.5.1 SD01'!F16 -> 218.2576955 | G16: ='[14]5.5.1 SD01'!G16 -> 2.409571322 | I16: ='[14]5.5.1 SD01'!I16 -> Corporate systems | K16: ='[14]5.5.1 SD01'!K16 -> Moreton Bay | M16: ='[14]5.5.1 SD01'!M16 -> 100.2551038 | N16: ='[14]5.5.1 SD01'!N16 -> 4.502496267 | O16: ='[14]5.5.1 SD01'!O16 -> 109.6494603 | P16: ='[14]5.5.1 SD01'!P16 -> 1.652867245 | Q16: ='[14]5.5.1 SD01'!Q16 -> 0 | R16: ='[14]5.5.1 SD01'!R16 -> 2.197767896 | T16: ='[14]5.5.1 SD01'!T16 -> Causal allocation | V16: ..\..\..\..\Commercial Acctg\QCA Unitywater Submission 2012\RAB\Capex RAB Roll Forward.xlsx
B17: 3 | C17: Multiple | D17: ='[14]5.5.1 SD01'!D17 -> Business SupportOperations Business SupportLand | E17: ='[14]5.5.1 SD01'!E17 -> 24604.74274 | F17: ='[14]5.5.1 SD01'!F17 -> 26791.55154 | G17: ='[14]5.5.1 SD01'!G17 -> 1.465027719 | I17: ='[14]5.5.1 SD01'!I17 -> Land | K17: ='[14]5.5.1 SD01'!K17 -> Moreton Bay | M17: ='[14]5.5.1 SD01'!M17 -> 12306.50665 | N17: ='[14]5.5.1 SD01'!N17 -> 552.690069 | O17: ='[14]5.5.1 SD01'!O17 -> 13459.68196 | P17: ='[14]5.5.1 SD01'!P17 -> 202.8926305 | Q17: ='[14]5.5.1 SD01'!Q17 -> 0 | R17: ='[14]5.5.1 SD01'!R17 -> 269.7802326 | T17: ='[14]5.5.1 SD01'!T17 -> Causal allocation | V17: ..\..\..\..\Commercial Acctg\QCA Unitywater Submission 2012\RAB\Capex RAB Roll Forward.xlsx
B18: 4 | C18: Multiple | D18: ='[14]5.5.1 SD01'!D18 -> Business SupportOperations Business SupportSundry Plant and Equipment | E18: ='[14]5.5.1 SD01'!E18 -> 3235.628205 | F18: ='[14]5.5.1 SD01'!F18 -> 3523.202853 | G18: ='[14]5.5.1 SD01'!G18 -> 3.843263699 | I18: ='[14]5.5.1 SD01'!I18 -> Sundry property, plant and equipment | K18: ='[14]5.5.1 SD01'!K18 -> Moreton Bay | M18: ='[14]5.5.1 SD01'!M18 -> 1618.357909 | N18: ='[14]5.5.1 SD01'!N18 -> 72.68109222 | O18: ='[14]5.5.1 SD01'!O18 -> 1770.005362 | P18: ='[14]5.5.1 SD01'!P18 -> 26.68124291 | Q18: ='[14]5.5.1 SD01'!Q18 -> 0 | R18: ='[14]5.5.1 SD01'!R18 -> 35.47724677 | T18: ='[14]5.5.1 SD01'!T18 -> Causal allocation | V18: ..\..\..\..\Commercial Acctg\QCA Unitywater Submission 2012\RAB\Capex RAB Roll Forward.xlsx
B19: 5 | C19: Multiple | D19: ='[14]5.5.1 SD01'!D19 -> Business SupportOperations Business SupportSupport Services | E19: ='[14]5.5.1 SD01'!E19 -> 2046.804702 | F19: ='[14]5.5.1 SD01'!F19 -> 2228.719652 | G19: ='[14]5.5.1 SD01'!G19 -> 8.358994465 | I19: ='[14]5.5.1 SD01'!I19 -> Support services | K19: ='[14]5.5.1 SD01'!K19 -> Moreton Bay | M19: ='[14]5.5.1 SD01'!M19 -> 1023.746354 | N19: ='[14]5.5.1 SD01'!N19 -> 45.97685269 | O19: ='[14]5.5.1 SD01'!O19 -> 1119.676016 | P19: ='[14]5.5.1 SD01'!P19 -> 16.87811145 | Q19: ='[14]5.5.1 SD01'!Q19 -> 0 | R19: ='[14]5.5.1 SD01'!R19 -> 22.44231751 | T19: ='[14]5.5.1 SD01'!T19 -> Causal allocation | V19: ..\..\..\..\Commercial Acctg\QCA Unitywater Submission 2012\RAB\Capex RAB Roll Forward.xlsx
B20: 6 | C20: Multiple | D20: ='[14]5.5.1 SD01'!D20 -> SewerageSewerage via SewerDistribution Infrastructure | E20: ='[14]5.5.1 SD01'!E20 -> 136993.0197 | F20: ='[14]5.5.1 SD01'!F20 -> 149168.6212 | G20: ='[14]5.5.1 SD01'!G20 -> 51.56234072 | I20: ='[14]5.5.1 SD01'!I20 -> Distribution infrastructure not included in another category | K20: ='[14]5.5.1 SD01'!K20 -> Moreton Bay | M20: ='[14]5.5.1 SD01'!M20 -> 0 | N20: ='[14]5.5.1 SD01'!N20 -> 0 | O20: ='[14]5.5.1 SD01'!O20 -> 145332.0017 | P20: ='[14]5.5.1 SD01'!P20 -> 3836.619453 | Q20: ='[14]5.5.1 SD01'!Q20 -> 0 | R20: ='[14]5.5.1 SD01'!R20 -> 0 | T20: ='[14]5.5.1 SD01'!T20 -> Causal allocation | V20: ..\..\..\..\Commercial Acctg\QCA Unitywater Submission 2012\RAB\Capex RAB Roll Forward.xlsx
B21: 7 | C21: Multiple | D21: ='[14]5.5.1 SD01'!D21 -> SewerageSewerage via SewerMains | E21: ='[14]5.5.1 SD01'!E21 -> 264921.9836 | F21: ='[14]5.5.1 SD01'!F21 -> 288467.5955 | G21: ='[14]5.5.1 SD01'!G21 -> 56.76326908 | I21: ='[14]5.5.1 SD01'!I21 -> Mains | K21: ='[14]5.5.1 SD01'!K21 -> Moreton Bay | M21: ='[14]5.5.1 SD01'!M21 -> 0 | N21: ='[14]5.5.1 SD01'!N21 -> 0 | O21: ='[14]5.5.1 SD01'!O21 -> 281048.2041 | P21: ='[14]5.5.1 SD01'!P21 -> 7419.391424 | Q21: ='[14]5.5.1 SD01'!Q21 -> 0 | R21: ='[14]5.5.1 SD01'!R21 -> 0 | T21: ='[14]5.5.1 SD01'!T21 -> Causal allocation | V21: ..\..\..\..\Commercial Acctg\QCA Unitywater Submission 2012\RAB\Capex RAB Roll Forward.xlsx
B22: 8 | C22: Multiple | D22: ='[14]5.5.1 SD01'!D22 -> SewerageSewerage via SewerMeter | E22: ='[14]5.5.1 SD01'!E22 -> 97809.2635 | F22: ='[14]5.5.1 SD01'!F22 -> 106502.3094 | G22: ='[14]5.5.1 SD01'!G22 -> 51.07785625 | I22: ='[14]5.5.1 SD01'!I22 -> Meters | K22: ='[14]5.5.1 SD01'!K22 -> Moreton Bay | M22: ='[14]5.5.1 SD01'!M22 -> 0 | N22: ='[14]5.5.1 SD01'!N22 -> 0 | O22: ='[14]5.5.1 SD01'!O22 -> 103763.0682 | P22: ='[14]5.5.1 SD01'!P22 -> 2739.241195 | Q22: ='[14]5.5.1 SD01'!Q22 -> 0 | R22: ='[14]5.5.1 SD01'!R22 -> 0 | T22: ='[14]5.5.1 SD01'!T22 -> Causal allocation | V22: ..\..\..\..\Commercial Acctg\QCA Unitywater Submission 2012\RAB\Capex RAB Roll Forward.xlsx
B23: 9 | C23: Multiple | D23: ='[14]5.5.1 SD01'!D23 -> SewerageSewerage via SewerPump Stations | E23: ='[14]5.5.1 SD01'!E23 -> 3803.626238 | F23: ='[14]5.5.1 SD01'!F23 -> 4141.683149 | G23: ='[14]5.5.1 SD01'!G23 -> 42.52017275 | I23: ='[14]5.5.1 SD01'!I23 -> Pump stations | K23: ='[14]5.5.1 SD01'!K23 -> Moreton Bay | M23: ='[14]5.5.1 SD01'!M23 -> 0 | N23: ='[14]5.5.1 SD01'!N23 -> 0 | O23: ='[14]5.5.1 SD01'!O23 -> 4035.158988 | P23: ='[14]5.5.1 SD01'!P23 -> 106.5241605 | Q23: ='[14]5.5.1 SD01'!Q23 -> 0 | R23: ='[14]5.5.1 SD01'!R23 -> 0 | T23: ='[14]5.5.1 SD01'!T23 -> Causal allocation | V23: ..\..\..\..\Commercial Acctg\QCA Unitywater Submission 2012\RAB\Capex RAB Roll Forward.xlsx
B24: 10 | C24: Multiple | D24: ='[14]5.5.1 SD01'!D24 -> SewerageSewerage via SewerTelemetry | E24: ='[14]5.5.1 SD01'!E24 -> 94.3083775 | F24: ='[14]5.5.1 SD01'!F24 -> 102.6902733 | G24: ='[14]5.5.1 SD01'!G24 -> 7.898607273 | I24: ='[14]5.5.1 SD01'!I24 -> Associated telemetry and control systems | K24: ='[14]5.5.1 SD01'!K24 -> Moreton Bay | M24: ='[14]5.5.1 SD01'!M24 -> 0 | N24: ='[14]5.5.1 SD01'!N24 -> 0 | O24: ='[14]5.5.1 SD01'!O24 -> 100.0490777 | P24: ='[14]5.5.1 SD01'!P24 -> 2.641195562 | Q24: ='[14]5.5.1 SD01'!Q24 -> 0 | R24: ='[14]5.5.1 SD01'!R24 -> 0 | T24: ='[14]5.5.1 SD01'!T24 -> Causal allocation | V24: ..\..\..\..\Commercial Acctg\QCA Unitywater Submission 2012\RAB\Capex RAB Roll Forward.xlsx
B25: 11 | C25: Multiple | D25: ='[14]5.5.1 SD01'!D25 -> SewerageSewerage via SewerTreatment | E25: ='[14]5.5.1 SD01'!E25 -> 28541.48725 | F25: ='[14]5.5.1 SD01'!F25 -> 31078.18419 | G25: ='[14]5.5.1 SD01'!G25 -> 41.20269451 | I25: ='[14]5.5.1 SD01'!I25 -> Treatment | K25: ='[14]5.5.1 SD01'!K25 -> Moreton Bay | M25: ='[14]5.5.1 SD01'!M25 -> 0 | N25: ='[14]5.5.1 SD01'!N25 -> 0 | O25: ='[14]5.5.1 SD01'!O25 -> 30278.85277 | P25: ='[14]5.5.1 SD01'!P25 -> 799.3314216 | Q25: ='[14]5.5.1 SD01'!Q25 -> 0 | R25: ='[14]5.5.1 SD01'!R25 -> 0 | T25: ='[14]5.5.1 SD01'!T25 -> Causal allocation | V25: ..\..\..\..\Commercial Acctg\QCA Unitywater Submission 2012\RAB\Capex RAB Roll Forward.xlsx
B26: 12 | C26: Multiple | D26: ='[14]5.5.1 SD01'!D26 -> WaterDrinking WaterDistribution Infrastructure | E26: ='[14]5.5.1 SD01'!E26 -> 33379.13498 | F26: ='[14]5.5.1 SD01'!F26 -> 36345.7901 | G26: ='[14]5.5.1 SD01'!G26 -> 31.00522536 | I26: ='[14]5.5.1 SD01'!I26 -> Distribution infrastructure not included in another category | K26: ='[14]5.5.1 SD01'!K26 -> Moreton Bay | M26: ='[14]5.5.1 SD01'!M26 -> 36345.7901 | N26: ='[14]5.5.1 SD01'!N26 -> 0 | O26: ='[14]5.5.1 SD01'!O26 -> 0 | P26: ='[14]5.5.1 SD01'!P26 -> 0 | Q26: ='[14]5.5.1 SD01'!Q26 -> 0 | R26: ='[14]5.5.1 SD01'!R26 -> 0 | T26: ='[14]5.5.1 SD01'!T26 -> Directly attributable | V26: ..\..\..\..\Commercial Acctg\QCA Unitywater Submission 2012\RAB\Capex RAB Roll Forward.xlsx
B27: 13 | C27: Multiple | D27: ='[14]5.5.1 SD01'!D27 -> WaterDrinking WaterMains | E27: ='[14]5.5.1 SD01'!E27 -> 318398.5343 | F27: ='[14]5.5.1 SD01'!F27 -> 346697.0101 | G27: ='[14]5.5.1 SD01'!G27 -> 32.40116518 | I27: ='[14]5.5.1 SD01'!I27 -> Mains | K27: ='[14]5.5.1 SD01'!K27 -> Moreton Bay | M27: ='[14]5.5.1 SD01'!M27 -> 346697.0101 | N27: ='[14]5.5.1 SD01'!N27 -> 0 | O27: ='[14]5.5.1 SD01'!O27 -> 0 | P27: ='[14]5.5.1 SD01'!P27 -> 0 | Q27: ='[14]5.5.1 SD01'!Q27 -> 0 | R27: ='[14]5.5.1 SD01'!R27 -> 0 | T27: ='[14]5.5.1 SD01'!T27 -> Directly attributable | V27: ..\..\..\..\Commercial Acctg\QCA Unitywater Submission 2012\RAB\Capex RAB Roll Forward.xlsx
B28: 14 | C28: Multiple | D28: ='[14]5.5.1 SD01'!D28 -> WaterDrinking WaterMeter | E28: ='[14]5.5.1 SD01'!E28 -> 13992.52772 | F28: ='[14]5.5.1 SD01'!F28 -> 15236.14904 | G28: ='[14]5.5.1 SD01'!G28 -> 14.332004 | I28: ='[14]5.5.1 SD01'!I28 -> Meters | K28: ='[14]5.5.1 SD01'!K28 -> Moreton Bay | M28: ='[14]5.5.1 SD01'!M28 -> 15236.14904 | N28: ='[14]5.5.1 SD01'!N28 -> 0 | O28: ='[14]5.5.1 SD01'!O28 -> 0 | P28: ='[14]5.5.1 SD01'!P28 -> 0 | Q28: ='[14]5.5.1 SD01'!Q28 -> 0 | R28: ='[14]5.5.1 SD01'!R28 -> 0 | T28: ='[14]5.5.1 SD01'!T28 -> Directly attributable | V28: ..\..\..\..\Commercial Acctg\QCA Unitywater Submission 2012\RAB\Capex RAB Roll Forward.xlsx
B29: 15 | C29: Multiple | D29: ='[14]5.5.1 SD01'!D29 -> WaterDrinking WaterPump Stations | E29: ='[14]5.5.1 SD01'!E29 -> 2305.576926 | F29: ='[14]5.5.1 SD01'!F29 -> 2510.490912 | G29: ='[14]5.5.1 SD01'!G29 -> 24.07877224 | I29: ='[14]5.5.1 SD01'!I29 -> Pump stations | K29: ='[14]5.5.1 SD01'!K29 -> Moreton Bay | M29: ='[14]5.5.1 SD01'!M29 -> 2510.490912 | N29: ='[14]5.5.1 SD01'!N29 -> 0 | O29: ='[14]5.5.1 SD01'!O29 -> 0 | P29: ='[14]5.5.1 SD01'!P29 -> 0 | Q29: ='[14]5.5.1 SD01'!Q29 -> 0 | R29: ='[14]5.5.1 SD01'!R29 -> 0 | T29: ='[14]5.5.1 SD01'!T29 -> Directly attributable | V29: ..\..\..\..\Commercial Acctg\QCA Unitywater Submission 2012\RAB\Capex RAB Roll Forward.xlsx
B30: 16 | C30: Multiple | D30: ='[14]5.5.1 SD01'!D30 -> WaterDrinking WaterReservoir | E30: ='[14]5.5.1 SD01'!E30 -> 70330.94305 | F30: ='[14]5.5.1 SD01'!F30 -> 76581.78367 | G30: ='[14]5.5.1 SD01'!G30 -> 57.69048499 | I30: ='[14]5.5.1 SD01'!I30 -> Reservoirs | K30: ='[14]5.5.1 SD01'!K30 -> Moreton Bay | M30: ='[14]5.5.1 SD01'!M30 -> 76581.78367 | N30: ='[14]5.5.1 SD01'!N30 -> 0 | O30: ='[14]5.5.1 SD01'!O30 -> 0 | P30: ='[14]5.5.1 SD01'!P30 -> 0 | Q30: ='[14]5.5.1 SD01'!Q30 -> 0 | R30: ='[14]5.5.1 SD01'!R30 -> 0 | T30: ='[14]5.5.1 SD01'!T30 -> Directly attributable | V30: ..\..\..\..\Commercial Acctg\QCA Unitywater Submission 2012\RAB\Capex RAB Roll Forward.xlsx
B31: 17 | C31: Multiple | D31: ='[14]5.5.1 SD01'!D31 -> WaterDrinking WaterTelemetry | E31: ='[14]5.5.1 SD01'!E31 -> 719.0335677 | F31: ='[14]5.5.1 SD01'!F31 -> 782.9394964 | G31: ='[14]5.5.1 SD01'!G31 -> 21.19916473 | I31: ='[14]5.5.1 SD01'!I31 -> Associated telemetry and control systems | K31: ='[14]5.5.1 SD01'!K31 -> Moreton Bay | M31: ='[14]5.5.1 SD01'!M31 -> 782.9394964 | N31: ='[14]5.5.1 SD01'!N31 -> 0 | O31: ='[14]5.5.1 SD01'!O31 -> 0 | P31: ='[14]5.5.1 SD01'!P31 -> 0 | Q31: ='[14]5.5.1 SD01'!Q31 -> 0 | R31: ='[14]5.5.1 SD01'!R31 -> 0 | T31: ='[14]5.5.1 SD01'!T31 -> Directly attributable | V31: ..\..\..\..\Commercial Acctg\QCA Unitywater Submission 2012\RAB\Capex RAB Roll Forward.xlsx
B32: 18 | C32: Multiple | D32: ='[14]5.5.1 SD01'!D32 -> WaterOther Core Water ServicesDistribution Infrastructure | E32: ='[14]5.5.1 SD01'!E32 -> 664.0827607 | F32: ='[14]5.5.1 SD01'!F32 -> 723.1047972 | G32: ='[14]5.5.1 SD01'!G32 -> 23.2700086 | I32: ='[14]5.5.1 SD01'!I32 -> Distribution infrastructure not included in another category | K32: ='[14]5.5.1 SD01'!K32 -> Moreton Bay | M32: ='[14]5.5.1 SD01'!M32 -> 0 | N32: ='[14]5.5.1 SD01'!N32 -> 723.1047972 | O32: ='[14]5.5.1 SD01'!O32 -> 0 | P32: ='[14]5.5.1 SD01'!P32 -> 0 | Q32: ='[14]5.5.1 SD01'!Q32 -> 0 | R32: ='[14]5.5.1 SD01'!R32 -> 0 | T32: ='[14]5.5.1 SD01'!T32 -> Directly attributable | V32: ..\..\..\..\Commercial Acctg\QCA Unitywater Submission 2012\RAB\Capex RAB Roll Forward.xlsx
B33: 19 | C33: Multiple | D33: ='[14]5.5.1 SD01'!D33 -> WaterOther Core Water ServicesMains | E33: ='[14]5.5.1 SD01'!E33 -> 3840.713052 | F33: ='[14]5.5.1 SD01'!F33 -> 4182.066148 | G33: ='[14]5.5.1 SD01'!G33 -> 58.29997926 | I33: ='[14]5.5.1 SD01'!I33 -> Mains | K33: ='[14]5.5.1 SD01'!K33 -> Moreton Bay | M33: ='[14]5.5.1 SD01'!M33 -> 0 | N33: ='[14]5.5.1 SD01'!N33 -> 4182.066148 | O33: ='[14]5.5.1 SD01'!O33 -> 0 | P33: ='[14]5.5.1 SD01'!P33 -> 0 | Q33: ='[14]5.5.1 SD01'!Q33 -> 0 | R33: ='[14]5.5.1 SD01'!R33 -> 0 | T33: ='[14]5.5.1 SD01'!T33 -> Directly attributable | V33: ..\..\..\..\Commercial Acctg\QCA Unitywater Submission 2012\RAB\Capex RAB Roll Forward.xlsx
B34: 20 | C34: Multiple | D34: ='[14]5.5.1 SD01'!D34 -> WaterOther Core Water ServicesMeter | E34: ='[14]5.5.1 SD01'!E34 -> 6874.892693 | F34: ='[14]5.5.1 SD01'!F34 -> 7485.916185 | G34: ='[14]5.5.1 SD01'!G34 -> 57.75948874 | I34: ='[14]5.5.1 SD01'!I34 -> Meters | K34: ='[14]5.5.1 SD01'!K34 -> Moreton Bay | M34: ='[14]5.5.1 SD01'!M34 -> 0 | N34: ='[14]5.5.1 SD01'!N34 -> 7485.916185 | O34: ='[14]5.5.1 SD01'!O34 -> 0 | P34: ='[14]5.5.1 SD01'!P34 -> 0 | Q34: ='[14]5.5.1 SD01'!Q34 -> 0 | R34: ='[14]5.5.1 SD01'!R34 -> 0 | T34: ='[14]5.5.1 SD01'!T34 -> Directly attributable | V34: ..\..\..\..\Commercial Acctg\QCA Unitywater Submission 2012\RAB\Capex RAB Roll Forward.xlsx
B35: 21 | C35: Multiple | D35: ='[14]5.5.1 SD01'!D35 -> Non RegulatedAggregate Non Regulated ServicesSundry Plant and Equipment | E35: ='[14]5.5.1 SD01'!E35 -> 225.3168678 | F35: ='[14]5.5.1 SD01'!F35 -> 140.8228227 | G35: ='[14]5.5.1 SD01'!G35 -> 8.402007253 | I35: ='[14]5.5.1 SD01'!I35 -> Sundry property, plant and equipment | K35: ='[14]5.5.1 SD01'!K35 -> Sunshine Coast | M35: ='[14]5.5.1 SD01'!M35 -> 0 | N35: ='[14]5.5.1 SD01'!N35 -> 0 | O35: ='[14]5.5.1 SD01'!O35 -> 0 | P35: ='[14]5.5.1 SD01'!P35 -> 0 | Q35: ='[14]5.5.1 SD01'!Q35 -> 0 | R35: ='[14]5.5.1 SD01'!R35 -> 140.8228227 | T35: ='[14]5.5.1 SD01'!T35 -> Directly attributable | V35: ..\..\..\..\Commercial Acctg\QCA Unitywater Submission 2012\RAB\Capex RAB Roll Forward.xlsx
B36: 22 | C36: Multiple | D36: ='[14]5.5.1 SD01'!D36 -> Non RegulatedAggregate Non Regulated ServicesPump Stations | E36: ='[14]5.5.1 SD01'!E36 -> 19.44475112 | F36: ='[14]5.5.1 SD01'!F36 -> 9.080882224 | G36: ='[14]5.5.1 SD01'!G36 -> 3 | I36: ='[14]5.5.1 SD01'!I36 -> Pump stations | K36: ='[14]5.5.1 SD01'!K36 -> Sunshine Coast | M36: ='[14]5.5.1 SD01'!M36 -> 0 | N36: ='[14]5.5.1 SD01'!N36 -> 0 | O36: ='[14]5.5.1 SD01'!O36 -> 0 | P36: ='[14]5.5.1 SD01'!P36 -> 0 | Q36: ='[14]5.5.1 SD01'!Q36 -> 0 | R36: ='[14]5.5.1 SD01'!R36 -> 9.080882224 | T36: ='[14]5.5.1 SD01'!T36 -> Directly attributable | V36: ..\..\..\..\Commercial Acctg\QCA Unitywater Submission 2012\RAB\Capex RAB Roll Forward.xlsx
B37: 23 | C37: Multiple | D37: ='[14]5.5.1 SD01'!D37 -> SewerageSewerage via SewerBuilding | E37: ='[14]5.5.1 SD01'!E37 -> 4059.054845 | F37: ='[14]5.5.1 SD01'!F37 -> 2457.728657 | G37: ='[14]5.5.1 SD01'!G37 -> 32.19160234 | I37: ='[14]5.5.1 SD01'!I37 -> Building other than infrastructure housing | K37: ='[14]5.5.1 SD01'!K37 -> Sunshine Coast | M37: ='[14]5.5.1 SD01'!M37 -> 0 | N37: ='[14]5.5.1 SD01'!N37 -> 0 | O37: ='[14]5.5.1 SD01'!O37 -> 2386.726297 | P37: ='[14]5.5.1 SD01'!P37 -> 71.00236021 | Q37: ='[14]5.5.1 SD01'!Q37 -> 0 | R37: ='[14]5.5.1 SD01'!R37 -> 0 | T37: ='[14]5.5.1 SD01'!T37 -> Causal allocation | V37: ..\..\..\..\Commercial Acctg\QCA Unitywater Submission 2012\RAB\Capex RAB Roll Forward.xlsx
B38: 24 | C38: Multiple | D38: ='[14]5.5.1 SD01'!D38 -> SewerageSewerage via SewerDistribution Infrastructure | E38: ='[14]5.5.1 SD01'!E38 -> 171228.9794 | F38: ='[14]5.5.1 SD01'!F38 -> 101612.0178 | G38: ='[14]5.5.1 SD01'!G38 -> 41.27339051 | I38: ='[14]5.5.1 SD01'!I38 -> Distribution infrastructure not included in another category | K38: ='[14]5.5.1 SD01'!K38 -> Sunshine Coast | M38: ='[14]5.5.1 SD01'!M38 -> 0 | N38: ='[14]5.5.1 SD01'!N38 -> 0 | O38: ='[14]5.5.1 SD01'!O38 -> 98676.50539 | P38: ='[14]5.5.1 SD01'!P38 -> 2935.512459 | Q38: ='[14]5.5.1 SD01'!Q38 -> 0 | R38: ='[14]5.5.1 SD01'!R38 -> 0 | T38: ='[14]5.5.1 SD01'!T38 -> Causal allocation | V38: ..\..\..\..\Commercial Acctg\QCA Unitywater Submission 2012\RAB\Capex RAB Roll Forward.xlsx
B39: 25 | C39: Multiple | D39: ='[14]5.5.1 SD01'!D39 -> SewerageSewerage via SewerMains | E39: ='[14]5.5.1 SD01'!E39 -> 509418.8499 | F39: ='[14]5.5.1 SD01'!F39 -> 309237.8234 | G39: ='[14]5.5.1 SD01'!G39 -> 53.41024914 | I39: ='[14]5.5.1 SD01'!I39 -> Mains | K39: ='[14]5.5.1 SD01'!K39 -> Sunshine Coast | M39: ='[14]5.5.1 SD01'!M39 -> 0 | N39: ='[14]5.5.1 SD01'!N39 -> 0 | O39: ='[14]5.5.1 SD01'!O39 -> 300304.1214 | P39: ='[14]5.5.1 SD01'!P39 -> 8933.701962 | Q39: ='[14]5.5.1 SD01'!Q39 -> 0 | R39: ='[14]5.5.1 SD01'!R39 -> 0 | T39: ='[14]5.5.1 SD01'!T39 -> Causal allocation | V39: ..\..\..\..\Commercial Acctg\QCA Unitywater Submission 2012\RAB\Capex RAB Roll Forward.xlsx
B40: 26 | C40: Multiple | D40: ='[14]5.5.1 SD01'!D40 -> SewerageSewerage via SewerLand | E40: ='[14]5.5.1 SD01'!E40 -> 4998.883315 | F40: ='[14]5.5.1 SD01'!F40 -> 3449.187358 | G40: ='[14]5.5.1 SD01'!G40 -> 0 | I40: ='[14]5.5.1 SD01'!I40 -> Land | K40: ='[14]5.5.1 SD01'!K40 -> Sunshine Coast | M40: ='[14]5.5.1 SD01'!M40 -> 0 | N40: ='[14]5.5.1 SD01'!N40 -> 0 | O40: ='[14]5.5.1 SD01'!O40 -> 3349.542329 | P40: ='[14]5.5.1 SD01'!P40 -> 99.64502898 | Q40: ='[14]5.5.1 SD01'!Q40 -> 0 | R40: ='[14]5.5.1 SD01'!R40 -> 0 | T40: ='[14]5.5.1 SD01'!T40 -> Causal allocation | V40: ..\..\..\..\Commercial Acctg\QCA Unitywater Submission 2012\RAB\Capex RAB Roll Forward.xlsx
B41: 27 | C41: Multiple | D41: ='[14]5.5.1 SD01'!D41 -> SewerageSewerage via SewerPump Stations | E41: ='[14]5.5.1 SD01'!E41 -> 81539.92417 | F41: ='[14]5.5.1 SD01'!F41 -> 49604.30577 | G41: ='[14]5.5.1 SD01'!G41 -> 41.97189309 | I41: ='[14]5.5.1 SD01'!I41 -> Pump stations | K41: ='[14]5.5.1 SD01'!K41 -> Sunshine Coast | M41: ='[14]5.5.1 SD01'!M41 -> 0 | N41: ='[14]5.5.1 SD01'!N41 -> 0 | O41: ='[14]5.5.1 SD01'!O41 -> 48171.26605 | P41: ='[14]5.5.1 SD01'!P41 -> 1433.03972 | Q41: ='[14]5.5.1 SD01'!Q41 -> 0 | R41: ='[14]5.5.1 SD01'!R41 -> 0 | T41: ='[14]5.5.1 SD01'!T41 -> Causal allocation | V41: ..\..\..\..\Commercial Acctg\QCA Unitywater Submission 2012\RAB\Capex RAB Roll Forward.xlsx
B42: 28 | C42: Multiple | D42: ='[14]5.5.1 SD01'!D42 -> SewerageSewerage via SewerSundry Plant and Equipment | E42: ='[14]5.5.1 SD01'!E42 -> 685.2166201 | F42: ='[14]5.5.1 SD01'!F42 -> 460.1912067 | G42: ='[14]5.5.1 SD01'!G42 -> 11.1207562 | I42: ='[14]5.5.1 SD01'!I42 -> Sundry property, plant and equipment | K42: ='[14]5.5.1 SD01'!K42 -> Sunshine Coast | M42: ='[14]5.5.1 SD01'!M42 -> 0 | N42: ='[14]5.5.1 SD01'!N42 -> 0 | O42: ='[14]5.5.1 SD01'!O42 -> 446.8965487 | P42: ='[14]5.5.1 SD01'!P42 -> 13.29465795 | Q42: ='[14]5.5.1 SD01'!Q42 -> 0 | R42: ='[14]5.5.1 SD01'!R42 -> 0 | T42: ='[14]5.5.1 SD01'!T42 -> Causal allocation | V42: ..\..\..\..\Commercial Acctg\QCA Unitywater Submission 2012\RAB\Capex RAB Roll Forward.xlsx
B43: 29 | C43: Multiple | D43: ='[14]5.5.1 SD01'!D43 -> SewerageSewerage via SewerTelemetry | E43: ='[14]5.5.1 SD01'!E43 -> 627.2858937 | F43: ='[14]5.5.1 SD01'!F43 -> 382.8058723 | G43: ='[14]5.5.1 SD01'!G43 -> 11.60483439 | I43: ='[14]5.5.1 SD01'!I43 -> Associated telemetry and control systems | K43: ='[14]5.5.1 SD01'!K43 -> Sunshine Coast | M43: ='[14]5.5.1 SD01'!M43 -> 0 | N43: ='[14]5.5.1 SD01'!N43 -> 0 | O43: ='[14]5.5.1 SD01'!O43 -> 371.7468319 | P43: ='[14]5.5.1 SD01'!P43 -> 11.05904037 | Q43: ='[14]5.5.1 SD01'!Q43 -> 0 | R43: ='[14]5.5.1 SD01'!R43 -> 0 | T43: ='[14]5.5.1 SD01'!T43 -> Causal allocation | V43: ..\..\..\..\Commercial Acctg\QCA Unitywater Submission 2012\RAB\Capex RAB Roll Forward.xlsx
B44: 30 | C44: Multiple | D44: ='[14]5.5.1 SD01'!D44 -> SewerageSewerage via SewerTreatment | E44: ='[14]5.5.1 SD01'!E44 -> 136064.9717 | F44: ='[14]5.5.1 SD01'!F44 -> 82827.45527 | G44: ='[14]5.5.1 SD01'!G44 -> 29.39243263 | I44: ='[14]5.5.1 SD01'!I44 -> Treatment | K44: ='[14]5.5.1 SD01'!K44 -> Sunshine Coast | M44: ='[14]5.5.1 SD01'!M44 -> 0 | N44: ='[14]5.5.1 SD01'!N44 -> 0 | O44: ='[14]5.5.1 SD01'!O44 -> 80434.61796 | P44: ='[14]5.5.1 SD01'!P44 -> 2392.837304 | Q44: ='[14]5.5.1 SD01'!Q44 -> 0 | R44: ='[14]5.5.1 SD01'!R44 -> 0 | T44: ='[14]5.5.1 SD01'!T44 -> Causal allocation | V44: ..\..\..\..\Commercial Acctg\QCA Unitywater Submission 2012\RAB\Capex RAB Roll Forward.xlsx
B45: 31 | C45: Multiple | D45: ='[14]5.5.1 SD01'!D45 -> SewerageTrade WasteSundry Plant and Equipment | E45: ='[14]5.5.1 SD01'!E45 -> 34.58559525 | F45: ='[14]5.5.1 SD01'!F45 -> 24.67906756 | G45: ='[14]5.5.1 SD01'!G45 -> 4 | I45: ='[14]5.5.1 SD01'!I45 -> Sundry property, plant and equipment | K45: ='[14]5.5.1 SD01'!K45 -> Sunshine Coast | M45: ='[14]5.5.1 SD01'!M45 -> 0 | N45: ='[14]5.5.1 SD01'!N45 -> 0 | O45: ='[14]5.5.1 SD01'!O45 -> 0 | P45: ='[14]5.5.1 SD01'!P45 -> 24.67906756 | Q45: ='[14]5.5.1 SD01'!Q45 -> 0 | R45: ='[14]5.5.1 SD01'!R45 -> 0 | T45: ='[14]5.5.1 SD01'!T45 -> Causal allocation | V45: ..\..\..\..\Commercial Acctg\QCA Unitywater Submission 2012\RAB\Capex RAB Roll Forward.xlsx
B46: 32 | C46: Multiple | D46: ='[14]5.5.1 SD01'!D46 -> SewerageTrade WastePump Stations | E46: ='[14]5.5.1 SD01'!E46 -> 3.000464015 | F46: ='[14]5.5.1 SD01'!F46 -> 1.774832194 | G46: ='[14]5.5.1 SD01'!G46 -> 4.950488201 | I46: ='[14]5.5.1 SD01'!I46 -> Pump stations | K46: ='[14]5.5.1 SD01'!K46 -> Sunshine Coast | M46: ='[14]5.5.1 SD01'!M46 -> 0 | N46: ='[14]5.5.1 SD01'!N46 -> 0 | O46: ='[14]5.5.1 SD01'!O46 -> 0 | P46: ='[14]5.5.1 SD01'!P46 -> 1.774832194 | Q46: ='[14]5.5.1 SD01'!Q46 -> 0 | R46: ='[14]5.5.1 SD01'!R46 -> 0 | T46: ='[14]5.5.1 SD01'!T46 -> Causal allocation | V46: ..\..\..\..\Commercial Acctg\QCA Unitywater Submission 2012\RAB\Capex RAB Roll Forward.xlsx
B47: 33 | C47: Multiple | D47: ='[14]5.5.1 SD01'!D47 -> WaterOther Core Water ServicesDistribution Infrastructure | E47: ='[14]5.5.1 SD01'!E47 -> 179.2555131 | F47: ='[14]5.5.1 SD01'!F47 -> 106.0330849 | G47: ='[14]5.5.1 SD01'!G47 -> 53.70410959 | I47: ='[14]5.5.1 SD01'!I47 -> Distribution infrastructure not included in another category | K47: ='[14]5.5.1 SD01'!K47 -> Sunshine Coast | M47: ='[14]5.5.1 SD01'!M47 -> 0 | N47: ='[14]5.5.1 SD01'!N47 -> 106.0330849 | O47: ='[14]5.5.1 SD01'!O47 -> 0 | P47: ='[14]5.5.1 SD01'!P47 -> 0 | Q47: ='[14]5.5.1 SD01'!Q47 -> 0 | R47: ='[14]5.5.1 SD01'!R47 -> 0 | T47: ='[14]5.5.1 SD01'!T47 -> Directly attributable | V47: ..\..\..\..\Commercial Acctg\QCA Unitywater Submission 2012\RAB\Capex RAB Roll Forward.xlsx
B48: 34 | C48: Multiple | D48: ='[14]5.5.1 SD01'!D48 -> WaterOther Core Water ServicesMains | E48: ='[14]5.5.1 SD01'!E48 -> 12082.39323 | F48: ='[14]5.5.1 SD01'!F48 -> 8589.27674 | G48: ='[14]5.5.1 SD01'!G48 -> 42.31915708 | I48: ='[14]5.5.1 SD01'!I48 -> Mains | K48: ='[14]5.5.1 SD01'!K48 -> Sunshine Coast | M48: ='[14]5.5.1 SD01'!M48 -> 0 | N48: ='[14]5.5.1 SD01'!N48 -> 8589.27674 | O48: ='[14]5.5.1 SD01'!O48 -> 0 | P48: ='[14]5.5.1 SD01'!P48 -> 0 | Q48: ='[14]5.5.1 SD01'!Q48 -> 0 | R48: ='[14]5.5.1 SD01'!R48 -> 0 | T48: ='[14]5.5.1 SD01'!T48 -> Directly attributable | V48: ..\..\..\..\Commercial Acctg\QCA Unitywater Submission 2012\RAB\Capex RAB Roll Forward.xlsx
B49: 35 | C49: Multiple | D49: ='[14]5.5.1 SD01'!D49 -> WaterOther Core Water ServicesPump Stations | E49: ='[14]5.5.1 SD01'!E49 -> 2916.747418 | F49: ='[14]5.5.1 SD01'!F49 -> 1725.312217 | G49: ='[14]5.5.1 SD01'!G49 -> 26.44066228 | I49: ='[14]5.5.1 SD01'!I49 -> Pump stations | K49: ='[14]5.5.1 SD01'!K49 -> Sunshine Coast | M49: ='[14]5.5.1 SD01'!M49 -> 0 | N49: ='[14]5.5.1 SD01'!N49 -> 1725.312217 | O49: ='[14]5.5.1 SD01'!O49 -> 0 | P49: ='[14]5.5.1 SD01'!P49 -> 0 | Q49: ='[14]5.5.1 SD01'!Q49 -> 0 | R49: ='[14]5.5.1 SD01'!R49 -> 0 | T49: ='[14]5.5.1 SD01'!T49 -> Directly attributable | V49: ..\..\..\..\Commercial Acctg\QCA Unitywater Submission 2012\RAB\Capex RAB Roll Forward.xlsx
B50: 36 | C50: Multiple | D50: ='[14]5.5.1 SD01'!D50 -> WaterOther Core Water ServicesTreatment | E50: ='[14]5.5.1 SD01'!E50 -> 23004.33913 | F50: ='[14]5.5.1 SD01'!F50 -> 13607.5092 | G50: ='[14]5.5.1 SD01'!G50 -> 58.3928357 | I50: ='[14]5.5.1 SD01'!I50 -> Treatment | K50: ='[14]5.5.1 SD01'!K50 -> Sunshine Coast | M50: ='[14]5.5.1 SD01'!M50 -> 0 | N50: ='[14]5.5.1 SD01'!N50 -> 13607.5092 | O50: ='[14]5.5.1 SD01'!O50 -> 0 | P50: ='[14]5.5.1 SD01'!P50 -> 0 | Q50: ='[14]5.5.1 SD01'!Q50 -> 0 | R50: ='[14]5.5.1 SD01'!R50 -> 0 | T50: ='[14]5.5.1 SD01'!T50 -> Directly attributable | V50: ..\..\..\..\Commercial Acctg\QCA Unitywater Submission 2012\RAB\Capex RAB Roll Forward.xlsx
B51: 37 | C51: Multiple | D51: ='[14]5.5.1 SD01'!D51 -> WaterDrinking WaterBuilding | E51: ='[14]5.5.1 SD01'!E51 -> 1117.576026 | F51: ='[14]5.5.1 SD01'!F51 -> 797.4630492 | G51: ='[14]5.5.1 SD01'!G51 -> 31.21497863 | I51: ='[14]5.5.1 SD01'!I51 -> Building other than infrastructure housing | K51: ='[14]5.5.1 SD01'!K51 -> Sunshine Coast | M51: ='[14]5.5.1 SD01'!M51 -> 797.4630492 | N51: ='[14]5.5.1 SD01'!N51 -> 0 | O51: ='[14]5.5.1 SD01'!O51 -> 0 | P51: ='[14]5.5.1 SD01'!P51 -> 0 | Q51: ='[14]5.5.1 SD01'!Q51 -> 0 | R51: ='[14]5.5.1 SD01'!R51 -> 0 | T51: ='[14]5.5.1 SD01'!T51 -> Directly attributable | V51: ..\..\..\..\Commercial Acctg\QCA Unitywater Submission 2012\RAB\Capex RAB Roll Forward.xlsx
B52: 38 | C52: Multiple | D52: ='[14]5.5.1 SD01'!D52 -> WaterDrinking WaterDistribution Infrastructure | E52: ='[14]5.5.1 SD01'!E52 -> 37155.31896 | F52: ='[14]5.5.1 SD01'!F52 -> 22020.64008 | G52: ='[14]5.5.1 SD01'!G52 -> 41.19124289 | I52: ='[14]5.5.1 SD01'!I52 -> Distribution infrastructure not included in another category | K52: ='[14]5.5.1 SD01'!K52 -> Sunshine Coast | M52: ='[14]5.5.1 SD01'!M52 -> 22020.64008 | N52: ='[14]5.5.1 SD01'!N52 -> 0 | O52: ='[14]5.5.1 SD01'!O52 -> 0 | P52: ='[14]5.5.1 SD01'!P52 -> 0 | Q52: ='[14]5.5.1 SD01'!Q52 -> 0 | R52: ='[14]5.5.1 SD01'!R52 -> 0 | T52: ='[14]5.5.1 SD01'!T52 -> Directly attributable | V52: ..\..\..\..\Commercial Acctg\QCA Unitywater Submission 2012\RAB\Capex RAB Roll Forward.xlsx
B53: 39 | C53: Multiple | D53: ='[14]5.5.1 SD01'!D53 -> WaterDrinking WaterMains | E53: ='[14]5.5.1 SD01'!E53 -> 435641.0455 | F53: ='[14]5.5.1 SD01'!F53 -> 267491.9991 | G53: ='[14]5.5.1 SD01'!G53 -> 52.25934799 | I53: ='[14]5.5.1 SD01'!I53 -> Mains | K53: ='[14]5.5.1 SD01'!K53 -> Sunshine Coast | M53: ='[14]5.5.1 SD01'!M53 -> 267491.9991 | N53: ='[14]5.5.1 SD01'!N53 -> 0 | O53: ='[14]5.5.1 SD01'!O53 -> 0 | P53: ='[14]5.5.1 SD01'!P53 -> 0 | Q53: ='[14]5.5.1 SD01'!Q53 -> 0 | R53: ='[14]5.5.1 SD01'!R53 -> 0 | T53: ='[14]5.5.1 SD01'!T53 -> Directly attributable | V53: ..\..\..\..\Commercial Acctg\QCA Unitywater Submission 2012\RAB\Capex RAB Roll Forward.xlsx
B54: 40 | C54: Multiple | D54: ='[14]5.5.1 SD01'!D54 -> WaterDrinking WaterLand | E54: ='[14]5.5.1 SD01'!E54 -> 19423.75669 | F54: ='[14]5.5.1 SD01'!F54 -> 11598.34952 | G54: ='[14]5.5.1 SD01'!G54 -> 0 | I54: ='[14]5.5.1 SD01'!I54 -> Land | K54: ='[14]5.5.1 SD01'!K54 -> Sunshine Coast | M54: ='[14]5.5.1 SD01'!M54 -> 11598.34952 | N54: ='[14]5.5.1 SD01'!N54 -> 0 | O54: ='[14]5.5.1 SD01'!O54 -> 0 | P54: ='[14]5.5.1 SD01'!P54 -> 0 | Q54: ='[14]5.5.1 SD01'!Q54 -> 0 | R54: ='[14]5.5.1 SD01'!R54 -> 0 | T54: ='[14]5.5.1 SD01'!T54 -> Directly attributable | V54: ..\..\..\..\Commercial Acctg\QCA Unitywater Submission 2012\RAB\Capex RAB Roll Forward.xlsx
B55: 41 | C55: Multiple | D55: ='[14]5.5.1 SD01'!D55 -> WaterDrinking WaterMeter | E55: ='[14]5.5.1 SD01'!E55 -> 16536.56585 | F55: ='[14]5.5.1 SD01'!F55 -> 8691.772371 | G55: ='[14]5.5.1 SD01'!G55 -> 30.43644151 | I55: ='[14]5.5.1 SD01'!I55 -> Meters | K55: ='[14]5.5.1 SD01'!K55 -> Sunshine Coast | M55: ='[14]5.5.1 SD01'!M55 -> 8691.772371 | N55: ='[14]5.5.1 SD01'!N55 -> 0 | O55: ='[14]5.5.1 SD01'!O55 -> 0 | P55: ='[14]5.5.1 SD01'!P55 -> 0 | Q55: ='[14]5.5.1 SD01'!Q55 -> 0 | R55: ='[14]5.5.1 SD01'!R55 -> 0 | T55: ='[14]5.5.1 SD01'!T55 -> Directly attributable | V55: ..\..\..\..\Commercial Acctg\QCA Unitywater Submission 2012\RAB\Capex RAB Roll Forward.xlsx
B56: 42 | C56: Multiple | D56: ='[14]5.5.1 SD01'!D56 -> WaterDrinking WaterPump Stations | E56: ='[14]5.5.1 SD01'!E56 -> 6472.610981 | F56: ='[14]5.5.1 SD01'!F56 -> 3653.718318 | G56: ='[14]5.5.1 SD01'!G56 -> 27.83914016 | I56: ='[14]5.5.1 SD01'!I56 -> Pump stations | K56: ='[14]5.5.1 SD01'!K56 -> Sunshine Coast | M56: ='[14]5.5.1 SD01'!M56 -> 3653.718318 | N56: ='[14]5.5.1 SD01'!N56 -> 0 | O56: ='[14]5.5.1 SD01'!O56 -> 0 | P56: ='[14]5.5.1 SD01'!P56 -> 0 | Q56: ='[14]5.5.1 SD01'!Q56 -> 0 | R56: ='[14]5.5.1 SD01'!R56 -> 0 | T56: ='[14]5.5.1 SD01'!T56 -> Directly attributable | V56: ..\..\..\..\Commercial Acctg\QCA Unitywater Submission 2012\RAB\Capex RAB Roll Forward.xlsx
B57: 43 | C57: Multiple | D57: ='[14]5.5.1 SD01'!D57 -> WaterDrinking WaterReservoir | E57: ='[14]5.5.1 SD01'!E57 -> 47210.72302 | F57: ='[14]5.5.1 SD01'!F57 -> 29719.24607 | G57: ='[14]5.5.1 SD01'!G57 -> 50.33844285 | I57: ='[14]5.5.1 SD01'!I57 -> Reservoirs | K57: ='[14]5.5.1 SD01'!K57 -> Sunshine Coast | M57: ='[14]5.5.1 SD01'!M57 -> 29719.24607 | N57: ='[14]5.5.1 SD01'!N57 -> 0 | O57: ='[14]5.5.1 SD01'!O57 -> 0 | P57: ='[14]5.5.1 SD01'!P57 -> 0 | Q57: ='[14]5.5.1 SD01'!Q57 -> 0 | R57: ='[14]5.5.1 SD01'!R57 -> 0 | T57: ='[14]5.5.1 SD01'!T57 -> Directly attributable | V57: ..\..\..\..\Commercial Acctg\QCA Unitywater Submission 2012\RAB\Capex RAB Roll Forward.xlsx
B58: 44 | C58: Multiple | D58: ='[14]5.5.1 SD01'!D58 -> WaterDrinking WaterSundry Plant and Equipment | E58: ='[14]5.5.1 SD01'!E58 -> 368.1418138 | F58: ='[14]5.5.1 SD01'!F58 -> 243.5249689 | G58: ='[14]5.5.1 SD01'!G58 -> 19.04338162 | I58: ='[14]5.5.1 SD01'!I58 -> Sundry property, plant and equipment | K58: ='[14]5.5.1 SD01'!K58 -> Sunshine Coast | M58: ='[14]5.5.1 SD01'!M58 -> 243.5249689 | N58: ='[14]5.5.1 SD01'!N58 -> 0 | O58: ='[14]5.5.1 SD01'!O58 -> 0 | P58: ='[14]5.5.1 SD01'!P58 -> 0 | Q58: ='[14]5.5.1 SD01'!Q58 -> 0 | R58: ='[14]5.5.1 SD01'!R58 -> 0 | T58: ='[14]5.5.1 SD01'!T58 -> Directly attributable | V58: ..\..\..\..\Commercial Acctg\QCA Unitywater Submission 2012\RAB\Capex RAB Roll Forward.xlsx
B59: 45 | C59: Multiple | D59: ='[14]5.5.1 SD01'!D59 -> WaterDrinking WaterTelemetry | E59: ='[14]5.5.1 SD01'!E59 -> 417.0637383 | F59: ='[14]5.5.1 SD01'!F59 -> 264.6579396 | G59: ='[14]5.5.1 SD01'!G59 -> 9.155183156 | I59: ='[14]5.5.1 SD01'!I59 -> Associated telemetry and control systems | K59: ='[14]5.5.1 SD01'!K59 -> Sunshine Coast | M59: ='[14]5.5.1 SD01'!M59 -> 264.6579396 | N59: ='[14]5.5.1 SD01'!N59 -> 0 | O59: ='[14]5.5.1 SD01'!O59 -> 0 | P59: ='[14]5.5.1 SD01'!P59 -> 0 | Q59: ='[14]5.5.1 SD01'!Q59 -> 0 | R59: ='[14]5.5.1 SD01'!R59 -> 0 | T59: ='[14]5.5.1 SD01'!T59 -> Directly attributable | V59: ..\..\..\..\Commercial Acctg\QCA Unitywater Submission 2012\RAB\Capex RAB Roll Forward.xlsx
B60: 46 | C60: Multiple | D60: ='[14]5.5.1 SD01'!D60 -> WaterDrinking WaterTreatment | E60: ='[14]5.5.1 SD01'!E60 -> 4.67200418 | F60: ='[14]5.5.1 SD01'!F60 -> 2.763580363 | G60: ='[14]5.5.1 SD01'!G60 -> 46.56410959 | I60: ='[14]5.5.1 SD01'!I60 -> Treatment | K60: ='[14]5.5.1 SD01'!K60 -> Sunshine Coast | M60: ='[14]5.5.1 SD01'!M60 -> 2.763580363 | N60: ='[14]5.5.1 SD01'!N60 -> 0 | O60: ='[14]5.5.1 SD01'!O60 -> 0 | P60: ='[14]5.5.1 SD01'!P60 -> 0 | Q60: ='[14]5.5.1 SD01'!Q60 -> 0 | R60: ='[14]5.5.1 SD01'!R60 -> 0 | T60: ='[14]5.5.1 SD01'!T60 -> Directly attributable | V60: ..\..\..\..\Commercial Acctg\QCA Unitywater Submission 2012\RAB\Capex RAB Roll Forward.xlsx
B61: 47 | C61: Multiple | D61: ='[14]5.5.1 SD01'!D61 -> Business SupportOperations Business SupportSundry Plant and Equipment | E61: ='[14]5.5.1 SD01'!E61 -> 1850.881855 | F61: ='[14]5.5.1 SD01'!F61 -> 1132.860753 | G61: ='[14]5.5.1 SD01'!G61 -> 4.996183624 | I61: ='[14]5.5.1 SD01'!I61 -> Sundry property, plant and equipment | K61: ='[14]5.5.1 SD01'!K61 -> Sunshine Coast | M61: ='[14]5.5.1 SD01'!M61 -> 520.3714451 | N61: ='[14]5.5.1 SD01'!N61 -> 23.37008691 | O61: ='[14]5.5.1 SD01'!O61 -> 569.1326023 | P61: ='[14]5.5.1 SD01'!P61 -> 8.579163395 | Q61: ='[14]5.5.1 SD01'!Q61 -> 0 | R61: ='[14]5.5.1 SD01'!R61 -> 11.40745571 | T61: ='[14]5.5.1 SD01'!T61 -> Causal allocation | V61: ..\..\..\..\Commercial Acctg\QCA Unitywater Submission 2012\RAB\Capex RAB Roll Forward.xlsx
B62: [Insert additional rows as required]
B63: Total | E63: =SUM(E15:E62) -> 2532700.605 | F63: =SUM(F15:F62) -> 2029870 | M63: =SUM(M15:M62) -> 841537.2816 | N63: 37267.97917 | O63: 1119368.661 | P63: 31131.87553 | Q63: 0 | R63: 564.2025987
A95: List for Asset Categories
A97: ='Business Details'!D40 -> Reservoirs
A98: ='Business Details'!D41 -> Pump stations
A99: ='Business Details'!D42 -> Treatment
A100: ='Business Details'!D43 -> Associated telemetry and control systems
A101: ='Business Details'!D44 -> Meters
A102: ='Business Details'!D45 -> Billing systems
A103: ='Business Details'!D46 -> Corporate systems
A104: ='Business Details'!D47 -> Sundry property, plant and equipment
A105: ='Business Details'!D48 -> Land
A106: ='Business Details'!D49 -> Building other than infrastructure housing
A107: ='Business Details'!D50 -> Distribution infrastructure not included in another category
A108: ='Business Details'!D51 -> Support services
A109: ='Business Details'!D52 -> Mains
A110: ='Business Details'!D53 -> Establishment Costs
A111: ='Business Details'!D54 -> Unallocated cash contribution
A113: List for Geographic Areas
A114: =IF('Business Details'!D12="","Geographic Area 1",'Business Details'!D12) -> Moreton Bay Regional Council
A115: =IF('Business Details'!D13="","Geographic Area 2",'Business Details'!D13) -> Sunshine Coast Regional Council
A116: =IF('Business Details'!D14="","Geographic Area 3",'Business Details'!D14) -> N/A
A117: =IF('Business Details'!D15="","Geographic Area 4",'Business Details'!D15) -> N/A
A118: =IF('Business Details'!D16="","Geographic Area 5",'Business Details'!D16) -> N/A
A120: List for Allocation Basis
A121: Directly attributable
A122: Causal allocation
A123: Non-causal allocation

Sheet 5.5.1 SD02
B4: ='Business Details'!$B$4 -> SEQ INTERIM REVENUE MONITORING - INFORMATION REQUIREMENT TEMPLATE
B7: =CONCATENATE("Asset Allocation Workpaper for ",'Business Details'!$D$9) -> Asset Allocation Workpaper for Northern SEQ Distributor-Retailer Authority (trading as Unitywater ABN: 89 791 717 472)
B8: =CONCATENATE("Reporting year = ",AnalysisYear) -> Reporting year = 2013
B10: Unique Identifier: | D10: N/A
B11: Asset Name: | D11: N/A
B12: Type of Allocation: | D12: N/A
F14: Value as at 1 July 2008 | H14: WATER | J14: WASTE WATER | M14: OTHER
H15: Drinking water | I15: Other core water services | J15: Waste-water via Sewer | K15: Trade Waste | L15: Other core wastewater services | M15: Aggregate Non-regulated Services
B17: Opening RAB value for the asset | D17: ($'000) | F17: N/A | H17: N/A | I17: N/A | J17: N/A | K17: N/A | L17: N/A | M17: N/A
B19: Basis of allocation:
B20: Please see spreadsheet below | F20: N/A | H20: N/A | I20: N/A | J20: N/A | K20: N/A | L20: N/A | M20: N/A
B22: Reason for choosing this basis:
B23: ..\..\..\..\Commercial Acctg\QCA Unitywater Submission 2012\RAB\Capex RAB Roll Forward.xlsx
A53: List for Allocation Basis
A54: Causal allocation
A55: Non-causal allocation

Sheet 5.5.1 SD03
B4: ='Business Details'!$B$4 -> SEQ INTERIM REVENUE MONITORING - INFORMATION REQUIREMENT TEMPLATE | K4: Provide (for each deemed category in section 3.4.2 of the Information Requirements, except for customer groups) details of the opening RAB for 1 July 2008. Entities are also required to allocate the RAB between asset classes. See sections 5.5.1 and 5.6.2 of the Information Requirements.
B5: 5.5.1 SD03 OPENING REGULATORY ASSET BASE as at 1 July 2008
B7: =CONCATENATE("Allocation of Opening RAB for ",'Business Details'!$D$9) -> Allocation of Opening RAB for Northern SEQ Distributor-Retailer Authority (trading as Unitywater ABN: 89 791 717 472)
B8: =CONCATENATE("Reporting year = ",AnalysisYear) -> Reporting year = 2013
F11: Geographic Area 1 | G11: Geographic Area 2 | H11: Geographic Area 3 | I11: Geographic Area 4 | J11: Geographic Area 5
E12: Numeration | F12: ='Business Details'!$D$12 -> Moreton Bay Regional Council | G12: ='Business Details'!$D$13 -> Sunshine Coast Regional Council | H12: ='Business Details'!$D$14 -> N/A | I12: ='Business Details'!$D$15 -> N/A | J12: ='Business Details'!$D$16 -> N/A | K12: Total | M12: Supporting Documents
B14: WRITTEN DOWN VALUE as at 1 July 2008
B16: Total RAB as at 1 July 2008 | E16: $'000 | K16: =K37+K56+K75+K94+K113+K132 -> 2029870 | L16: =IF(K16='5.5.1'!K32,"OK","check") -> OK | M16: See below
B19: REGULATORY ASSET BASE VALUES as at 1 July 2008
B20: Drinking water
B21: ='Business Details'!$D$40 -> Reservoirs | E21: $'000 | F21: ='[14]5.5.1 SD03'!F21 -> 76581.78367 | G21: ='[14]5.5.1 SD03'!G21 -> 29719.24607 | K21: =SUM(F21:J21) -> 106301.0297 | M21: ..\..\..\..\Commercial Acctg\QCA Unitywater Submission 2012\RAB\Capex RAB Roll Forward.xlsx
B22: ='Business Details'!$D$41 -> Pump stations | E22: $'000 | F22: ='[14]5.5.1 SD03'!F22 -> 2510.490912 | G22: ='[14]5.5.1 SD03'!G22 -> 3653.718318 | K22: =SUM(F22:J22) -> 6164.20923
B23: ='Business Details'!$D$42 -> Treatment | E23: $'000 | F23: ='[14]5.5.1 SD03'!F23 -> 0 | G23: ='[14]5.5.1 SD03'!G23 -> 2.763580363 | K23: 2.763580363
B24: ='Business Details'!$D$43 -> Associated telemetry and control systems | E24: $'000 | F24: ='[14]5.5.1 SD03'!F24 -> 782.9394964 | G24: ='[14]5.5.1 SD03'!G24 -> 264.6579396 | K24: 1047.597436
B25: ='Business Details'!$D$44 -> Meters | E25: $'000 | F25: ='[14]5.5.1 SD03'!F25 -> 15236.14904 | G25: ='[14]5.5.1 SD03'!G25 -> 8691.772371 | K25: 23927.92141
B26: ='Business Details'!$D$45 -> Billing systems | E26: $'000 | F26: ='[14]5.5.1 SD03'!F26 -> 0 | G26: ='[14]5.5.1 SD03'!G26 -> 0 | K26: 0
B27: ='Business Details'!$D$46 -> Corporate systems | E27: $'000 | F27: ='[14]5.5.1 SD03'!F27 -> 0 | G27: ='[14]5.5.1 SD03'!G27 -> 0 | K27: 0
B28: ='Business Details'!$D$47 -> Sundry property, plant and equipment | E28: $'000 | F28: ='[14]5.5.1 SD03'!F28 -> 0 | G28: ='[14]5.5.1 SD03'!G28 -> 243.5249689 | K28: 243.5249689
B29: ='Business Details'!$D$48 -> Land | E29: $'000 | F29: ='[14]5.5.1 SD03'!F29 -> 0 | G29: ='[14]5.5.1 SD03'!G29 -> 11598.34952 | K29: 11598.34952
B30: ='Business Details'!$D$49 -> Building other than infrastructure housing | E30: $'000 | F30: ='[14]5.5.1 SD03'!F30 -> 0 | G30: ='[14]5.5.1 SD03'!G30 -> 797.4630492 | K30: 797.4630492
B31: ='Business Details'!$D$50 -> Distribution infrastructure not included in another category | E31: $'000 | F31: ='[14]5.5.1 SD03'!F31 -> 36345.7901 | G31: ='[14]5.5.1 SD03'!G31 -> 22020.64008 | K31: 58366.43018
B32: ='Business Details'!$D$51 -> Support services | E32: $'000 | F32: ='[14]5.5.1 SD03'!F32 -> 18378.61178 | G32: ='[14]5.5.1 SD03'!G32 -> 520.3714451 | K32: 18898.98322
B33: ='Business Details'!$D$52 -> Mains | E33: $'000 | F33: ='[14]5.5.1 SD03'!F33 -> 346697.0101 | G33: ='[14]5.5.1 SD03'!G33 -> 267491.9991 | K33: 614189.0092
B34: ='Business Details'!$D$53 -> Establishment Costs | E34: $'000 | F34: ='[14]5.5.1 SD03'!F34 -> 0 | G34: ='[14]5.5.1 SD03'!G34 -> 0 | K34: 0
B35: ='Business Details'!$D$54 -> Unallocated cash contribution | E35: $'000 | F35: ='[14]5.5.1 SD03'!F35 -> 0 | G35: ='[14]5.5.1 SD03'!G35 -> 0 | K35: 0
B37: Total RAB Value for Drinking water as at 1 July 2008 | E37: $'000 | F37: =SUM(F21:F35) -> 496532.7751 | G37: 345004.5065 | H37: 0 | I37: 0 | J37: 0 | K37: 841537.2816
B39: Other core water services
B40: ='Business Details'!$D$40 -> Reservoirs | E40: $'000 | F40: ='[14]5.5.1 SD03'!F40 -> 0 | G40: ='[14]5.5.1 SD03'!G40 -> 0 | K40: =SUM(F40:J40) -> 0 | M40: ..\..\..\..\Commercial Acctg\QCA Unitywater Submission 2012\RAB\Capex RAB Roll Forward.xlsx
B41: ='Business Details'!$D$41 -> Pump stations | E41: $'000 | F41: ='[14]5.5.1 SD03'!F41 -> 0 | G41: ='[14]5.5.1 SD03'!G41 -> 1725.312217 | K41: =SUM(F41:J41) -> 1725.312217
B42: ='Business Details'!$D$42 -> Treatment | E42: $'000 | F42: ='[14]5.5.1 SD03'!F42 -> 0 | G42: ='[14]5.5.1 SD03'!G42 -> 13607.5092 | K42: 13607.5092
B43: ='Business Details'!$D$43 -> Associated telemetry and control systems | E43: $'000 | F43: ='[14]5.5.1 SD03'!F43 -> 0 | G43: ='[14]5.5.1 SD03'!G43 -> 0 | K43: 0
B44: ='Business Details'!$D$44 -> Meters | E44: $'000 | F44: ='[14]5.5.1 SD03'!F44 -> 7485.916185 | G44: ='[14]5.5.1 SD03'!G44 -> 0 | K44: 7485.916185
B45: ='Business Details'!$D$45 -> Billing systems | E45: $'000 | F45: ='[14]5.5.1 SD03'!F45 -> 0 | G45: ='[14]5.5.1 SD03'!G45 -> 0 | K45: 0
B46: ='Business Details'!$D$46 -> Corporate systems | E46: $'000 | F46: ='[14]5.5.1 SD03'!F46 -> 0 | G46: ='[14]5.5.1 SD03'!G46 -> 0 | K46: 0
B47: ='Business Details'!$D$47 -> Sundry property, plant and equipment | E47: $'000 | F47: ='[14]5.5.1 SD03'!F47 -> 0 | G47: ='[14]5.5.1 SD03'!G47 -> 0 | K47: 0
B48: ='Business Details'!$D$48 -> Land | E48: $'000 | F48: ='[14]5.5.1 SD03'!F48 -> 0 | G48: ='[14]5.5.1 SD03'!G48 -> 0 | K48: 0
B49: ='Business Details'!$D$49 -> Building other than infrastructure housing | E49: $'000 | F49: ='[14]5.5.1 SD03'!F49 -> 0 | G49: ='[14]5.5.1 SD03'!G49 -> 0 | K49: 0
B50: ='Business Details'!$D$50 -> Distribution infrastructure not included in another category | E50: $'000 | F50: ='[14]5.5.1 SD03'!F50 -> 723.1047972 | G50: ='[14]5.5.1 SD03'!G50 -> 106.0330849 | K50: 829.1378822
B51: ='Business Details'!$D$51 -> Support services | E51: $'000 | F51: ='[14]5.5.1 SD03'!F51 -> 825.3907063 | G51: ='[14]5.5.1 SD03'!G51 -> 23.37008691 | K51: 848.7607932
B52: ='Business Details'!$D$52 -> Mains | E52: $'000 | F52: ='[14]5.5.1 SD03'!F52 -> 4182.066148 | G52: ='[14]5.5.1 SD03'!G52 -> 8589.27674 | K52: 12771.34289
B53: ='Business Details'!$D$53 -> Establishment Costs | E53: $'000 | F53: ='[14]5.5.1 SD03'!F53 -> 0 | G53: ='[14]5.5.1 SD03'!G53 -> 0 | K53: 0
B54: ='Business Details'!$D$54 -> Unallocated cash contribution | E54: $'000 | F54: ='[14]5.5.1 SD03'!F54 -> 0 | G54: ='[14]5.5.1 SD03'!G54 -> 0 | K54: 0
